{"text_format":"1","workbook":"xlsx","n_sheets":3,"sheets":["FORMATO","TABLA DINÁMICA","LISTAS"],"not_rendered":{"charts":0,"images":1,"macros":1,"external_links":1,"defined_names":166,"comments":0,"pivot_tables":1},"unopened":[],"bounds":{"document_bytes":16777216,"sheet_cells":100000,"rows_first":2000,"rows_last":500,"rows_between":2000,"halvings":0,"cell_chars":16384,"cell_head_chars":4096},"cells_cut":0,"cells_raw":0,"read":"whole","date_system":"1900"}

{"sheet":"FORMATO","index":0,"n_rows":3004,"n_cols":49,"rows_kept":1125,"cut":true,"hidden":false,"merged":[[17,22,17,23],[16,47,17,48],[18,47,19,47],[18,48,19,48],[17,34,17,35],[17,32,17,33],[17,30,17,31],[17,28,17,29],[17,26,17,27],[17,44,17,45],[17,42,17,43],[17,40,17,41],[17,38,17,39],[17,36,17,37],[18,37,19,37],[18,39,19,39],[18,41,19,41],[18,43,19,43],[18,45,19,45],[18,22,19,22],[18,24,19,24],[18,26,19,26],[18,28,19,28],[18,30,19,30],[18,23,19,23],[18,25,19,25],[18,27,19,27],[18,29,19,29],[18,31,19,31],[18,40,19,40],[18,42,19,42],[18,44,19,44],[17,24,17,25],[18,32,19,32],[18,34,19,34],[18,36,19,36],[18,38,19,38],[18,33,19,33],[18,35,19,35],[18,17,19,17],[18,18,19,18],[18,19,19,19],[18,20,19,20],[18,21,19,21],[18,12,19,12],[18,13,19,13],[18,14,19,14],[18,15,19,15],[18,16,19,16],[18,9,19,9],[18,10,18,11],[11,0,11,10],[16,0,16,2],[13,6,16,9],[13,3,13,4],[13,0,13,2],[18,0,19,0],[18,1,19,1],[18,2,19,2],[18,3,19,3],[18,4,19,4],[0,0,1,2],[0,3,1,8],[0,9,0,10],[1,9,1,10],[8,0,8,2],[4,0,4,2],[3,0,3,2],[6,0,6,2],[3,4,4,10],[9,5,9,10],[18,5,19,5],[18,6,19,6],[18,7,19,7],[18,8,19,8],[8,3,8,10],[16,22,16,45],[6,3,6,10],[14,3,14,4],[9,0,9,1],[9,3,9,4],[15,3,15,4],[16,3,16,4],[14,0,14,2],[15,0,15,2]],"bounds":{"rows_first":500,"rows_last":125,"rows_between":500,"halvings":2}}
["                                  ",null,null,"FORMULACIÓN DE PLAN ANUAL DE ADQUISICIONES  ",null,null,null,null,null,"Código: F-DE-04"]
[null,null,null,null,null,null,null,null,null,"Versión: 2"]
[]
["VIGENCIA",null,null,2023,"IMPORTANTE: Este formato debe ser diligenciado en EXCEL, contemplando las instrucciones que se habilitan al ubicar el cursor en las celdas de color gris"]
["Seleccione el Tipo de formulación que desea realizar"]
[]
["Seleccione nombre de Área de Funcionamiento"]
[]
["Seleccione el nombre del Proyecto de Inversión "]
["Código Presupuestal",null,{"$f":"+IF(ISBLANK(D9),\"\",IF(D9=\"SELECCIONE PROYECTO\",\" \",IF(D9=\"NA\",\"NA \",VLOOKUP(D9,LISTAS!$B$44:$E$52,4,0))))","v":""},"Objetivo General del Proyecto",null,{"$f":"+IF(ISBLANK(D9),\"\",IF(D9=\"SELECCIONE PROYECTO\",\" \",IF(D9=\"NA\",\"NA \",VLOOKUP(D9,LISTAS!$B$44:$E$52,2,0))))","v":""}]
[]
[{"$f":"IF(D5=\"Área de Funcionamiento\",\"\",IF(C10=\"\",\"\",(CONCATENATE(\"RESUMEN PARA LA FORMULACIÓN: El Proyecto de Inversión \",C10,\" está compuesto por \",VLOOKUP($C$10,LISTAS!$B$302:$H$366,5,0),\" OBJETIVO(S) ESPECÍFICO(S), el(los) cual(es) se desagrega(n) en un total de: \",VLOOKUP(FORMATO!$C$10,LISTAS!$B$302:$H$366,6,0),\" PRODUCTO(S) y \",VLOOKUP(FORMATO!$C$10,LISTAS!$B$302:$H$366,7,0),\" ACTIVIDAD(ES). Por favor proceda ordenadamente al registro de las correspondientes líneas de adquisiciones.\"))))","v":""}]
[]
["DETALLE VALORES",null,null,"VALOR TOTAL ESTIMADO VIGENCIA ACTUAL",null,null,{"$f":"_xlfn.IFS(D5=\"Área de Funcionamiento\",\"La opción de validación no esta disponible para áreas de funcionamiento\",D5=\"\",\"\",D17>0,\"El valor estimado en la vigencia actual no corresponde con el presupuesto asignado, por favor valide la diferencia.\",D17=0,\"El PAA ha superado la prueba de validación\",D17<0,\"El valor estimado en la vigencia actual no corresponde con el presupuesto asignado, por favor valide la diferencia.\")","v":""}]
["Valor total de Adquisiciones del Proyecto de Inversión o Área de funcionamiento",null,null,{"$f":"+SUM(P21:P620)","v":0}]
["Valor total aprobado para el Proyecto de Inversión, \n**Esta información no esta disponible para Funcionamiento",null,null,{"$f":"IF(D9=\"SELECCIONE PROYECTO\",\" \",IF(D9=\"NA\",\" \",IF($C$10=\"\",\"\",VLOOKUP($C$10,LISTAS!$E$44:$F$52,2,0))))","v":""}]
["Diferencia entre los valores planeados y aprobados\n**Esta información no esta disponible para Funcionamiento",null,null,{"$f":"IF(D9=\"SELECCIONE PROYECTO\",\" \",IF(D9=\"NA\",\" \",IF(D16=\"\",\"\",+D16-D15)))","v":""},null,null,null,null,null,null,null,null,null,null,null,null,null,null,null,null,null,null,"Registro - distribución mensual de compromisos y obligaciones ",null,null,null,null,null,null,null,null,null,null,null,null,null,null,null,null,null,null,null,null,null,null,null,null,"Validadores totales"]
[null,null,null,null,null,null,null,null,null,null,null,null,null,null,null,null,null,null,null,null,null,null,"Enero",null,"Febrero",null,"Marzo",null,"Abril",null,"Mayo",null,"Junio",null,"Julio",null,"Agosto",null,"Septiembre",null,"Octubre",null,"Noviembre",null,"Diciembre"]
["Ítem","Objetivo Específico del Proyecto de Inversión","Producto del Proyecto de Inversión","Actividad del Proyecto de Inversión","Códigos UNSPSC","Rubro prespuestal","Descripción u objeto contractual","Mes estimado de inicio de proceso de selección","Mes estimado de presentación de ofertas","Mes de registro del contrato","Duración estimada del contrato",null,"Modalidad de selección ","Fuente de los recursos","Valor total estimado","Valor estimado en la vigencia actual","¿Se requieren vigencias futuras?","Estado de solicitud de vigencias futuras","Nombre del responsable","Cargo del responsable ","Teléfono del responsable ","Correo electrónico del responsable","Compromisos ","Obligaciones","Compromisos ","Obligaciones","Compromisos ","Obligaciones","Compromisos ","Obligaciones","Compromisos ","Obligaciones","Compromisos ","Obligaciones","Compromisos ","Obligaciones","Compromisos ","Obligaciones","Compromisos ","Obligaciones","Compromisos ","Obligaciones","Compromisos ","Obligaciones","Compromisos ","Obligaciones",null,"Compromisos ","Obligaciones"]
[null,null,null,null,null,null,null,null,null,null,"Duración","Unidad de tiempo"]
[null,null,null,null,null,null,null,null,null,null,null,null,null,null,null,null,null,null,null,null,null,null,null,null,null,null,null,null,null,null,null,null,null,null,null,null,null,null,null,null,null,null,null,null,null,null,null,{"$f":"IF(P21-W21-Y21-AA21-AC21-AE21-AG21-AI21-AK21-AM21-AO21-AQ21-AS21=0,\"OK\",\"Compromisos diferentes al valor estimado en la vigencia actual\")","v":"OK"},{"$f":"IF(P21-X21-Z21-AB21-AD21-AF21-AH21-AJ21-AL21-AN21-AP21-AR21-AT21=0,\"OK\",\"Obligaciones diferentes al valor estimado en la vigencia actual\")","v":"OK"}]
[null,null,null,null,null,null,null,null,null,null,null,null,null,null,null,null,null,null,null,null,null,null,null,null,null,null,null,null,null,null,null,null,null,null,null,null,null,null,null,null,null,null,null,null,null,null,null,{"$f":"IF(P22-W22-Y22-AA22-AC22-AE22-AG22-AI22-AK22-AM22-AO22-AQ22-AS22=0,\"OK\",\"Compromisos diferentes al valor estimado en la vigencia actual\")","v":"OK"},{"$f":"IF(P22-X22-Z22-AB22-AD22-AF22-AH22-AJ22-AL22-AN22-AP22-AR22-AT22=0,\"OK\",\"Obligaciones diferentes al valor estimado en la vigencia actual\")","v":"OK"}]
[null,null,null,null,null,null,null,null,null,null,null,null,null,null,null,null,null,null,null,null,null,null,null,null,null,null,null,null,null,null,null,null,null,null,null,null,null,null,null,null,null,null,null,null,null,null,null,"OK","OK"]
[null,null,null,null,null,null,null,null,null,null,null,null,null,null,null,null,null,null,null,null,null,null,null,null,null,null,null,null,null,null,null,null,null,null,null,null,null,null,null,null,null,null,null,null,null,null,null,"OK","OK"]
[null,null,null,null,null,null,null,null,null,null,null,null,null,null,null,null,null,null,null,null,null,null,null,null,null,null,null,null,null,null,null,null,null,null,null,null,null,null,null,null,null,null,null,null,null,null,null,"OK","OK"]
[null,null,null,null,null,null,null,null,null,null,null,null,null,null,null,null,null,null,null,null,null,null,null,null,null,null,null,null,null,null,null,null,null,null,null,null,null,null,null,null,null,null,null,null,null,null,null,"OK","OK"]
[null,null,null,null,null,null,null,null,null,null,null,null,null,null,null,null,null,null,null,null,null,null,null,null,null,null,null,null,null,null,null,null,null,null,null,null,null,null,null,null,null,null,null,null,null,null,null,"OK","OK"]
[null,null,null,null,null,null,null,null,null,null,null,null,null,null,null,null,null,null,null,null,null,null,null,null,null,null,null,null,null,null,null,null,null,null,null,null,null,null,null,null,null,null,null,null,null,null,null,"OK","OK"]
[null,null,null,null,null,null,null,null,null,null,null,null,null,null,null,null,null,null,null,null,null,null,null,null,null,null,null,null,null,null,null,null,null,null,null,null,null,null,null,null,null,null,null,null,null,null,null,"OK","OK"]
[null,null,null,null,null,null,null,null,null,null,null,null,null,null,null,null,null,null,null,null,null,null,null,null,null,null,null,null,null,null,null,null,null,null,null,null,null,null,null,null,null,null,null,null,null,null,null,"OK","OK"]
[null,null,null,null,null,null,null,null,null,null,null,null,null,null,null,null,null,null,null,null,null,null,null,null,null,null,null,null,null,null,null,null,null,null,null,null,null,null,null,null,null,null,null,null,null,null,null,"OK","OK"]
[null,null,null,null,null,null,null,null,null,null,null,null,null,null,null,null,null,null,null,null,null,null,null,null,null,null,null,null,null,null,null,null,null,null,null,null,null,null,null,null,null,null,null,null,null,null,null,"OK","OK"]
[null,null,null,null,null,null,null,null,null,null,null,null,null,null,null,null,null,null,null,null,null,null,null,null,null,null,null,null,null,null,null,null,null,null,null,null,null,null,null,null,null,null,null,null,null,null,null,"OK","OK"]
[null,null,null,null,null,null,null,null,null,null,null,null,null,null,null,null,null,null,null,null,null,null,null,null,null,null,null,null,null,null,null,null,null,null,null,null,null,null,null,null,null,null,null,null,null,null,null,"OK","OK"]
[null,null,null,null,null,null,null,null,null,null,null,null,null,null,null,null,null,null,null,null,null,null,null,null,null,null,null,null,null,null,null,null,null,null,null,null,null,null,null,null,null,null,null,null,null,null,null,"OK","OK"]
[null,null,null,null,null,null,null,null,null,null,null,null,null,null,null,null,null,null,null,null,null,null,null,null,null,null,null,null,null,null,null,null,null,null,null,null,null,null,null,null,null,null,null,null,null,null,null,"OK","OK"]
[null,null,null,null,null,null,null,null,null,null,null,null,null,null,null,null,null,null,null,null,null,null,null,null,null,null,null,null,null,null,null,null,null,null,null,null,null,null,null,null,null,null,null,null,null,null,null,"OK","OK"]
[null,null,null,null,null,null,null,null,null,null,null,null,null,null,null,null,null,null,null,null,null,null,null,null,null,null,null,null,null,null,null,null,null,null,null,null,null,null,null,null,null,null,null,null,null,null,null,"OK","OK"]
[null,null,null,null,null,null,null,null,null,null,null,null,null,null,null,null,null,null,null,null,null,null,null,null,null,null,null,null,null,null,null,null,null,null,null,null,null,null,null,null,null,null,null,null,null,null,null,"OK","OK"]
[null,null,null,null,null,null,null,null,null,null,null,null,null,null,null,null,null,null,null,null,null,null,null,null,null,null,null,null,null,null,null,null,null,null,null,null,null,null,null,null,null,null,null,null,null,null,null,"OK","OK"]
[null,null,null,null,null,null,null,null,null,null,null,null,null,null,null,null,null,null,null,null,null,null,null,null,null,null,null,null,null,null,null,null,null,null,null,null,null,null,null,null,null,null,null,null,null,null,null,"OK","OK"]
[null,null,null,null,null,null,null,null,null,null,null,null,null,null,null,null,null,null,null,null,null,null,null,null,null,null,null,null,null,null,null,null,null,null,null,null,null,null,null,null,null,null,null,null,null,null,null,"OK","OK"]
[null,null,null,null,null,null,null,null,null,null,null,null,null,null,null,null,null,null,null,null,null,null,null,null,null,null,null,null,null,null,null,null,null,null,null,null,null,null,null,null,null,null,null,null,null,null,null,"OK","OK"]
[null,null,null,null,null,null,null,null,null,null,null,null,null,null,null,null,null,null,null,null,null,null,null,null,null,null,null,null,null,null,null,null,null,null,null,null,null,null,null,null,null,null,null,null,null,null,null,"OK","OK"]
[null,null,null,null,null,null,null,null,null,null,null,null,null,null,null,null,null,null,null,null,null,null,null,null,null,null,null,null,null,null,null,null,null,null,null,null,null,null,null,null,null,null,null,null,null,null,null,"OK","OK"]
[null,null,null,null,null,null,null,null,null,null,null,null,null,null,null,null,null,null,null,null,null,null,null,null,null,null,null,null,null,null,null,null,null,null,null,null,null,null,null,null,null,null,null,null,null,null,null,"OK","OK"]
[null,null,null,null,null,null,null,null,null,null,null,null,null,null,null,null,null,null,null,null,null,null,null,null,null,null,null,null,null,null,null,null,null,null,null,null,null,null,null,null,null,null,null,null,null,null,null,"OK","OK"]
[null,null,null,null,null,null,null,null,null,null,null,null,null,null,null,null,null,null,null,null,null,null,null,null,null,null,null,null,null,null,null,null,null,null,null,null,null,null,null,null,null,null,null,null,null,null,null,"OK","OK"]
[null,null,null,null,null,null,null,null,null,null,null,null,null,null,null,null,null,null,null,null,null,null,null,null,null,null,null,null,null,null,null,null,null,null,null,null,null,null,null,null,null,null,null,null,null,null,null,"OK","OK"]
[null,null,null,null,null,null,null,null,null,null,null,null,null,null,null,null,null,null,null,null,null,null,null,null,null,null,null,null,null,null,null,null,null,null,null,null,null,null,null,null,null,null,null,null,null,null,null,"OK","OK"]
[null,null,null,null,null,null,null,null,null,null,null,null,null,null,null,null,null,null,null,null,null,null,null,null,null,null,null,null,null,null,null,null,null,null,null,null,null,null,null,null,null,null,null,null,null,null,null,"OK","OK"]
[null,null,null,null,null,null,null,null,null,null,null,null,null,null,null,null,null,null,null,null,null,null,null,null,null,null,null,null,null,null,null,null,null,null,null,null,null,null,null,null,null,null,null,null,null,null,null,"OK","OK"]
[null,null,null,null,null,null,null,null,null,null,null,null,null,null,null,null,null,null,null,null,null,null,null,null,null,null,null,null,null,null,null,null,null,null,null,null,null,null,null,null,null,null,null,null,null,null,null,"OK","OK"]
[null,null,null,null,null,null,null,null,null,null,null,null,null,null,null,null,null,null,null,null,null,null,null,null,null,null,null,null,null,null,null,null,null,null,null,null,null,null,null,null,null,null,null,null,null,null,null,"OK","OK"]
[null,null,null,null,null,null,null,null,null,null,null,null,null,null,null,null,null,null,null,null,null,null,null,null,null,null,null,null,null,null,null,null,null,null,null,null,null,null,null,null,null,null,null,null,null,null,null,"OK","OK"]
[null,null,null,null,null,null,null,null,null,null,null,null,null,null,null,null,null,null,null,null,null,null,null,null,null,null,null,null,null,null,null,null,null,null,null,null,null,null,null,null,null,null,null,null,null,null,null,"OK","OK"]
[null,null,null,null,null,null,null,null,null,null,null,null,null,null,null,null,null,null,null,null,null,null,null,null,null,null,null,null,null,null,null,null,null,null,null,null,null,null,null,null,null,null,null,null,null,null,null,"OK","OK"]
[null,null,null,null,null,null,null,null,null,null,null,null,null,null,null,null,null,null,null,null,null,null,null,null,null,null,null,null,null,null,null,null,null,null,null,null,null,null,null,null,null,null,null,null,null,null,null,"OK","OK"]
[null,null,null,null,null,null,null,null,null,null,null,null,null,null,null,null,null,null,null,null,null,null,null,null,null,null,null,null,null,null,null,null,null,null,null,null,null,null,null,null,null,null,null,null,null,null,null,"OK","OK"]
[null,null,null,null,null,null,null,null,null,null,null,null,null,null,null,null,null,null,null,null,null,null,null,null,null,null,null,null,null,null,null,null,null,null,null,null,null,null,null,null,null,null,null,null,null,null,null,"OK","OK"]
[null,null,null,null,null,null,null,null,null,null,null,null,null,null,null,null,null,null,null,null,null,null,null,null,null,null,null,null,null,null,null,null,null,null,null,null,null,null,null,null,null,null,null,null,null,null,null,"OK","OK"]
[null,null,null,null,null,null,null,null,null,null,null,null,null,null,null,null,null,null,null,null,null,null,null,null,null,null,null,null,null,null,null,null,null,null,null,null,null,null,null,null,null,null,null,null,null,null,null,"OK","OK"]
[null,null,null,null,null,null,null,null,null,null,null,null,null,null,null,null,null,null,null,null,null,null,null,null,null,null,null,null,null,null,null,null,null,null,null,null,null,null,null,null,null,null,null,null,null,null,null,"OK","OK"]
[null,null,null,null,null,null,null,null,null,null,null,null,null,null,null,null,null,null,null,null,null,null,null,null,null,null,null,null,null,null,null,null,null,null,null,null,null,null,null,null,null,null,null,null,null,null,null,"OK","OK"]
[null,null,null,null,null,null,null,null,null,null,null,null,null,null,null,null,null,null,null,null,null,null,null,null,null,null,null,null,null,null,null,null,null,null,null,null,null,null,null,null,null,null,null,null,null,null,null,"OK","OK"]
[null,null,null,null,null,null,null,null,null,null,null,null,null,null,null,null,null,null,null,null,null,null,null,null,null,null,null,null,null,null,null,null,null,null,null,null,null,null,null,null,null,null,null,null,null,null,null,"OK","OK"]
[null,null,null,null,null,null,null,null,null,null,null,null,null,null,null,null,null,null,null,null,null,null,null,null,null,null,null,null,null,null,null,null,null,null,null,null,null,null,null,null,null,null,null,null,null,null,null,"OK","OK"]
[null,null,null,null,null,null,null,null,null,null,null,null,null,null,null,null,null,null,null,null,null,null,null,null,null,null,null,null,null,null,null,null,null,null,null,null,null,null,null,null,null,null,null,null,null,null,null,"OK","OK"]
[null,null,null,null,null,null,null,null,null,null,null,null,null,null,null,null,null,null,null,null,null,null,null,null,null,null,null,null,null,null,null,null,null,null,null,null,null,null,null,null,null,null,null,null,null,null,null,"OK","OK"]
[null,null,null,null,null,null,null,null,null,null,null,null,null,null,null,null,null,null,null,null,null,null,null,null,null,null,null,null,null,null,null,null,null,null,null,null,null,null,null,null,null,null,null,null,null,null,null,"OK","OK"]
[null,null,null,null,null,null,null,null,null,null,null,null,null,null,null,null,null,null,null,null,null,null,null,null,null,null,null,null,null,null,null,null,null,null,null,null,null,null,null,null,null,null,null,null,null,null,null,"OK","OK"]
[null,null,null,null,null,null,null,null,null,null,null,null,null,null,null,null,null,null,null,null,null,null,null,null,null,null,null,null,null,null,null,null,null,null,null,null,null,null,null,null,null,null,null,null,null,null,null,"OK","OK"]
[null,null,null,null,null,null,null,null,null,null,null,null,null,null,null,null,null,null,null,null,null,null,null,null,null,null,null,null,null,null,null,null,null,null,null,null,null,null,null,null,null,null,null,null,null,null,null,"OK","OK"]
[null,null,null,null,null,null,null,null,null,null,null,null,null,null,null,null,null,null,null,null,null,null,null,null,null,null,null,null,null,null,null,null,null,null,null,null,null,null,null,null,null,null,null,null,null,null,null,"OK","OK"]
[null,null,null,null,null,null,null,null,null,null,null,null,null,null,null,null,null,null,null,null,null,null,null,null,null,null,null,null,null,null,null,null,null,null,null,null,null,null,null,null,null,null,null,null,null,null,null,"OK","OK"]
[null,null,null,null,null,null,null,null,null,null,null,null,null,null,null,null,null,null,null,null,null,null,null,null,null,null,null,null,null,null,null,null,null,null,null,null,null,null,null,null,null,null,null,null,null,null,null,"OK","OK"]
[null,null,null,null,null,null,null,null,null,null,null,null,null,null,null,null,null,null,null,null,null,null,null,null,null,null,null,null,null,null,null,null,null,null,null,null,null,null,null,null,null,null,null,null,null,null,null,"OK","OK"]
[null,null,null,null,null,null,null,null,null,null,null,null,null,null,null,null,null,null,null,null,null,null,null,null,null,null,null,null,null,null,null,null,null,null,null,null,null,null,null,null,null,null,null,null,null,null,null,"OK","OK"]
[null,null,null,null,null,null,null,null,null,null,null,null,null,null,null,null,null,null,null,null,null,null,null,null,null,null,null,null,null,null,null,null,null,null,null,null,null,null,null,null,null,null,null,null,null,null,null,"OK","OK"]
[null,null,null,null,null,null,null,null,null,null,null,null,null,null,null,null,null,null,null,null,null,null,null,null,null,null,null,null,null,null,null,null,null,null,null,null,null,null,null,null,null,null,null,null,null,null,null,"OK","OK"]
[null,null,null,null,null,null,null,null,null,null,null,null,null,null,null,null,null,null,null,null,null,null,null,null,null,null,null,null,null,null,null,null,null,null,null,null,null,null,null,null,null,null,null,null,null,null,null,"OK","OK"]
[null,null,null,null,null,null,null,null,null,null,null,null,null,null,null,null,null,null,null,null,null,null,null,null,null,null,null,null,null,null,null,null,null,null,null,null,null,null,null,null,null,null,null,null,null,null,null,"OK","OK"]
[null,null,null,null,null,null,null,null,null,null,null,null,null,null,null,null,null,null,null,null,null,null,null,null,null,null,null,null,null,null,null,null,null,null,null,null,null,null,null,null,null,null,null,null,null,null,null,"OK","OK"]
[null,null,null,null,null,null,null,null,null,null,null,null,null,null,null,null,null,null,null,null,null,null,null,null,null,null,null,null,null,null,null,null,null,null,null,null,null,null,null,null,null,null,null,null,null,null,null,"OK","OK"]
[null,null,null,null,null,null,null,null,null,null,null,null,null,null,null,null,null,null,null,null,null,null,null,null,null,null,null,null,null,null,null,null,null,null,null,null,null,null,null,null,null,null,null,null,null,null,null,{"$f":"IF(P85-W85-Y85-AA85-AC85-AE85-AG85-AI85-AK85-AM85-AO85-AQ85-AS85=0,\"OK\",\"Compromisos diferentes al valor estimado en la vigencia actual\")","v":"OK"},{"$f":"IF(P85-X85-Z85-AB85-AD85-AF85-AH85-AJ85-AL85-AN85-AP85-AR85-AT85=0,\"OK\",\"Obligaciones diferentes al valor estimado en la vigencia actual\")","v":"OK"}]
[null,null,null,null,null,null,null,null,null,null,null,null,null,null,null,null,null,null,null,null,null,null,null,null,null,null,null,null,null,null,null,null,null,null,null,null,null,null,null,null,null,null,null,null,null,null,null,"OK","OK"]
[null,null,null,null,null,null,null,null,null,null,null,null,null,null,null,null,null,null,null,null,null,null,null,null,null,null,null,null,null,null,null,null,null,null,null,null,null,null,null,null,null,null,null,null,null,null,null,"OK","OK"]
[null,null,null,null,null,null,null,null,null,null,null,null,null,null,null,null,null,null,null,null,null,null,null,null,null,null,null,null,null,null,null,null,null,null,null,null,null,null,null,null,null,null,null,null,null,null,null,"OK","OK"]
[null,null,null,null,null,null,null,null,null,null,null,null,null,null,null,null,null,null,null,null,null,null,null,null,null,null,null,null,null,null,null,null,null,null,null,null,null,null,null,null,null,null,null,null,null,null,null,"OK","OK"]
[null,null,null,null,null,null,null,null,null,null,null,null,null,null,null,null,null,null,null,null,null,null,null,null,null,null,null,null,null,null,null,null,null,null,null,null,null,null,null,null,null,null,null,null,null,null,null,"OK","OK"]
[null,null,null,null,null,null,null,null,null,null,null,null,null,null,null,null,null,null,null,null,null,null,null,null,null,null,null,null,null,null,null,null,null,null,null,null,null,null,null,null,null,null,null,null,null,null,null,"OK","OK"]
[null,null,null,null,null,null,null,null,null,null,null,null,null,null,null,null,null,null,null,null,null,null,null,null,null,null,null,null,null,null,null,null,null,null,null,null,null,null,null,null,null,null,null,null,null,null,null,"OK","OK"]
[null,null,null,null,null,null,null,null,null,null,null,null,null,null,null,null,null,null,null,null,null,null,null,null,null,null,null,null,null,null,null,null,null,null,null,null,null,null,null,null,null,null,null,null,null,null,null,"OK","OK"]
[null,null,null,null,null,null,null,null,null,null,null,null,null,null,null,null,null,null,null,null,null,null,null,null,null,null,null,null,null,null,null,null,null,null,null,null,null,null,null,null,null,null,null,null,null,null,null,"OK","OK"]
[null,null,null,null,null,null,null,null,null,null,null,null,null,null,null,null,null,null,null,null,null,null,null,null,null,null,null,null,null,null,null,null,null,null,null,null,null,null,null,null,null,null,null,null,null,null,null,"OK","OK"]
[null,null,null,null,null,null,null,null,null,null,null,null,null,null,null,null,null,null,null,null,null,null,null,null,null,null,null,null,null,null,null,null,null,null,null,null,null,null,null,null,null,null,null,null,null,null,null,"OK","OK"]
[null,null,null,null,null,null,null,null,null,null,null,null,null,null,null,null,null,null,null,null,null,null,null,null,null,null,null,null,null,null,null,null,null,null,null,null,null,null,null,null,null,null,null,null,null,null,null,"OK","OK"]
[null,null,null,null,null,null,null,null,null,null,null,null,null,null,null,null,null,null,null,null,null,null,null,null,null,null,null,null,null,null,null,null,null,null,null,null,null,null,null,null,null,null,null,null,null,null,null,"OK","OK"]
[null,null,null,null,null,null,null,null,null,null,null,null,null,null,null,null,null,null,null,null,null,null,null,null,null,null,null,null,null,null,null,null,null,null,null,null,null,null,null,null,null,null,null,null,null,null,null,"OK","OK"]
[null,null,null,null,null,null,null,null,null,null,null,null,null,null,null,null,null,null,null,null,null,null,null,null,null,null,null,null,null,null,null,null,null,null,null,null,null,null,null,null,null,null,null,null,null,null,null,"OK","OK"]
[null,null,null,null,null,null,null,null,null,null,null,null,null,null,null,null,null,null,null,null,null,null,null,null,null,null,null,null,null,null,null,null,null,null,null,null,null,null,null,null,null,null,null,null,null,null,null,"OK","OK"]
[null,null,null,null,null,null,null,null,null,null,null,null,null,null,null,null,null,null,null,null,null,null,null,null,null,null,null,null,null,null,null,null,null,null,null,null,null,null,null,null,null,null,null,null,null,null,null,"OK","OK"]
[null,null,null,null,null,null,null,null,null,null,null,null,null,null,null,null,null,null,null,null,null,null,null,null,null,null,null,null,null,null,null,null,null,null,null,null,null,null,null,null,null,null,null,null,null,null,null,"OK","OK"]
[null,null,null,null,null,null,null,null,null,null,null,null,null,null,null,null,null,null,null,null,null,null,null,null,null,null,null,null,null,null,null,null,null,null,null,null,null,null,null,null,null,null,null,null,null,null,null,"OK","OK"]
[null,null,null,null,null,null,null,null,null,null,null,null,null,null,null,null,null,null,null,null,null,null,null,null,null,null,null,null,null,null,null,null,null,null,null,null,null,null,null,null,null,null,null,null,null,null,null,"OK","OK"]
[null,null,null,null,null,null,null,null,null,null,null,null,null,null,null,null,null,null,null,null,null,null,null,null,null,null,null,null,null,null,null,null,null,null,null,null,null,null,null,null,null,null,null,null,null,null,null,"OK","OK"]
[null,null,null,null,null,null,null,null,null,null,null,null,null,null,null,null,null,null,null,null,null,null,null,null,null,null,null,null,null,null,null,null,null,null,null,null,null,null,null,null,null,null,null,null,null,null,null,"OK","OK"]
[null,null,null,null,null,null,null,null,null,null,null,null,null,null,null,null,null,null,null,null,null,null,null,null,null,null,null,null,null,null,null,null,null,null,null,null,null,null,null,null,null,null,null,null,null,null,null,"OK","OK"]
[null,null,null,null,null,null,null,null,null,null,null,null,null,null,null,null,null,null,null,null,null,null,null,null,null,null,null,null,null,null,null,null,null,null,null,null,null,null,null,null,null,null,null,null,null,null,null,"OK","OK"]
[null,null,null,null,null,null,null,null,null,null,null,null,null,null,null,null,null,null,null,null,null,null,null,null,null,null,null,null,null,null,null,null,null,null,null,null,null,null,null,null,null,null,null,null,null,null,null,"OK","OK"]
[null,null,null,null,null,null,null,null,null,null,null,null,null,null,null,null,null,null,null,null,null,null,null,null,null,null,null,null,null,null,null,null,null,null,null,null,null,null,null,null,null,null,null,null,null,null,null,"OK","OK"]
[null,null,null,null,null,null,null,null,null,null,null,null,null,null,null,null,null,null,null,null,null,null,null,null,null,null,null,null,null,null,null,null,null,null,null,null,null,null,null,null,null,null,null,null,null,null,null,"OK","OK"]
[null,null,null,null,null,null,null,null,null,null,null,null,null,null,null,null,null,null,null,null,null,null,null,null,null,null,null,null,null,null,null,null,null,null,null,null,null,null,null,null,null,null,null,null,null,null,null,"OK","OK"]
[null,null,null,null,null,null,null,null,null,null,null,null,null,null,null,null,null,null,null,null,null,null,null,null,null,null,null,null,null,null,null,null,null,null,null,null,null,null,null,null,null,null,null,null,null,null,null,"OK","OK"]
[null,null,null,null,null,null,null,null,null,null,null,null,null,null,null,null,null,null,null,null,null,null,null,null,null,null,null,null,null,null,null,null,null,null,null,null,null,null,null,null,null,null,null,null,null,null,null,"OK","OK"]
[null,null,null,null,null,null,null,null,null,null,null,null,null,null,null,null,null,null,null,null,null,null,null,null,null,null,null,null,null,null,null,null,null,null,null,null,null,null,null,null,null,null,null,null,null,null,null,"OK","OK"]
[null,null,null,null,null,null,null,null,null,null,null,null,null,null,null,null,null,null,null,null,null,null,null,null,null,null,null,null,null,null,null,null,null,null,null,null,null,null,null,null,null,null,null,null,null,null,null,"OK","OK"]
[null,null,null,null,null,null,null,null,null,null,null,null,null,null,null,null,null,null,null,null,null,null,null,null,null,null,null,null,null,null,null,null,null,null,null,null,null,null,null,null,null,null,null,null,null,null,null,"OK","OK"]
[null,null,null,null,null,null,null,null,null,null,null,null,null,null,null,null,null,null,null,null,null,null,null,null,null,null,null,null,null,null,null,null,null,null,null,null,null,null,null,null,null,null,null,null,null,null,null,"OK","OK"]
[null,null,null,null,null,null,null,null,null,null,null,null,null,null,null,null,null,null,null,null,null,null,null,null,null,null,null,null,null,null,null,null,null,null,null,null,null,null,null,null,null,null,null,null,null,null,null,"OK","OK"]
[null,null,null,null,null,null,null,null,null,null,null,null,null,null,null,null,null,null,null,null,null,null,null,null,null,null,null,null,null,null,null,null,null,null,null,null,null,null,null,null,null,null,null,null,null,null,null,"OK","OK"]
[null,null,null,null,null,null,null,null,null,null,null,null,null,null,null,null,null,null,null,null,null,null,null,null,null,null,null,null,null,null,null,null,null,null,null,null,null,null,null,null,null,null,null,null,null,null,null,"OK","OK"]
[null,null,null,null,null,null,null,null,null,null,null,null,null,null,null,null,null,null,null,null,null,null,null,null,null,null,null,null,null,null,null,null,null,null,null,null,null,null,null,null,null,null,null,null,null,null,null,"OK","OK"]
[null,null,null,null,null,null,null,null,null,null,null,null,null,null,null,null,null,null,null,null,null,null,null,null,null,null,null,null,null,null,null,null,null,null,null,null,null,null,null,null,null,null,null,null,null,null,null,"OK","OK"]
[null,null,null,null,null,null,null,null,null,null,null,null,null,null,null,null,null,null,null,null,null,null,null,null,null,null,null,null,null,null,null,null,null,null,null,null,null,null,null,null,null,null,null,null,null,null,null,"OK","OK"]
[null,null,null,null,null,null,null,null,null,null,null,null,null,null,null,null,null,null,null,null,null,null,null,null,null,null,null,null,null,null,null,null,null,null,null,null,null,null,null,null,null,null,null,null,null,null,null,"OK","OK"]
[null,null,null,null,null,null,null,null,null,null,null,null,null,null,null,null,null,null,null,null,null,null,null,null,null,null,null,null,null,null,null,null,null,null,null,null,null,null,null,null,null,null,null,null,null,null,null,"OK","OK"]
[null,null,null,null,null,null,null,null,null,null,null,null,null,null,null,null,null,null,null,null,null,null,null,null,null,null,null,null,null,null,null,null,null,null,null,null,null,null,null,null,null,null,null,null,null,null,null,"OK","OK"]
[null,null,null,null,null,null,null,null,null,null,null,null,null,null,null,null,null,null,null,null,null,null,null,null,null,null,null,null,null,null,null,null,null,null,null,null,null,null,null,null,null,null,null,null,null,null,null,"OK","OK"]
[null,null,null,null,null,null,null,null,null,null,null,null,null,null,null,null,null,null,null,null,null,null,null,null,null,null,null,null,null,null,null,null,null,null,null,null,null,null,null,null,null,null,null,null,null,null,null,"OK","OK"]
[null,null,null,null,null,null,null,null,null,null,null,null,null,null,null,null,null,null,null,null,null,null,null,null,null,null,null,null,null,null,null,null,null,null,null,null,null,null,null,null,null,null,null,null,null,null,null,"OK","OK"]
[null,null,null,null,null,null,null,null,null,null,null,null,null,null,null,null,null,null,null,null,null,null,null,null,null,null,null,null,null,null,null,null,null,null,null,null,null,null,null,null,null,null,null,null,null,null,null,"OK","OK"]
[null,null,null,null,null,null,null,null,null,null,null,null,null,null,null,null,null,null,null,null,null,null,null,null,null,null,null,null,null,null,null,null,null,null,null,null,null,null,null,null,null,null,null,null,null,null,null,"OK","OK"]
[null,null,null,null,null,null,null,null,null,null,null,null,null,null,null,null,null,null,null,null,null,null,null,null,null,null,null,null,null,null,null,null,null,null,null,null,null,null,null,null,null,null,null,null,null,null,null,"OK","OK"]
[null,null,null,null,null,null,null,null,null,null,null,null,null,null,null,null,null,null,null,null,null,null,null,null,null,null,null,null,null,null,null,null,null,null,null,null,null,null,null,null,null,null,null,null,null,null,null,"OK","OK"]
[null,null,null,null,null,null,null,null,null,null,null,null,null,null,null,null,null,null,null,null,null,null,null,null,null,null,null,null,null,null,null,null,null,null,null,null,null,null,null,null,null,null,null,null,null,null,null,"OK","OK"]
[null,null,null,null,null,null,null,null,null,null,null,null,null,null,null,null,null,null,null,null,null,null,null,null,null,null,null,null,null,null,null,null,null,null,null,null,null,null,null,null,null,null,null,null,null,null,null,"OK","OK"]
[null,null,null,null,null,null,null,null,null,null,null,null,null,null,null,null,null,null,null,null,null,null,null,null,null,null,null,null,null,null,null,null,null,null,null,null,null,null,null,null,null,null,null,null,null,null,null,"OK","OK"]
[null,null,null,null,null,null,null,null,null,null,null,null,null,null,null,null,null,null,null,null,null,null,null,null,null,null,null,null,null,null,null,null,null,null,null,null,null,null,null,null,null,null,null,null,null,null,null,"OK","OK"]
[null,null,null,null,null,null,null,null,null,null,null,null,null,null,null,null,null,null,null,null,null,null,null,null,null,null,null,null,null,null,null,null,null,null,null,null,null,null,null,null,null,null,null,null,null,null,null,"OK","OK"]
[null,null,null,null,null,null,null,null,null,null,null,null,null,null,null,null,null,null,null,null,null,null,null,null,null,null,null,null,null,null,null,null,null,null,null,null,null,null,null,null,null,null,null,null,null,null,null,"OK","OK"]
[null,null,null,null,null,null,null,null,null,null,null,null,null,null,null,null,null,null,null,null,null,null,null,null,null,null,null,null,null,null,null,null,null,null,null,null,null,null,null,null,null,null,null,null,null,null,null,"OK","OK"]
[null,null,null,null,null,null,null,null,null,null,null,null,null,null,null,null,null,null,null,null,null,null,null,null,null,null,null,null,null,null,null,null,null,null,null,null,null,null,null,null,null,null,null,null,null,null,null,"OK","OK"]
[null,null,null,null,null,null,null,null,null,null,null,null,null,null,null,null,null,null,null,null,null,null,null,null,null,null,null,null,null,null,null,null,null,null,null,null,null,null,null,null,null,null,null,null,null,null,null,"OK","OK"]
[null,null,null,null,null,null,null,null,null,null,null,null,null,null,null,null,null,null,null,null,null,null,null,null,null,null,null,null,null,null,null,null,null,null,null,null,null,null,null,null,null,null,null,null,null,null,null,"OK","OK"]
[null,null,null,null,null,null,null,null,null,null,null,null,null,null,null,null,null,null,null,null,null,null,null,null,null,null,null,null,null,null,null,null,null,null,null,null,null,null,null,null,null,null,null,null,null,null,null,"OK","OK"]
[null,null,null,null,null,null,null,null,null,null,null,null,null,null,null,null,null,null,null,null,null,null,null,null,null,null,null,null,null,null,null,null,null,null,null,null,null,null,null,null,null,null,null,null,null,null,null,"OK","OK"]
[null,null,null,null,null,null,null,null,null,null,null,null,null,null,null,null,null,null,null,null,null,null,null,null,null,null,null,null,null,null,null,null,null,null,null,null,null,null,null,null,null,null,null,null,null,null,null,"OK","OK"]
[null,null,null,null,null,null,null,null,null,null,null,null,null,null,null,null,null,null,null,null,null,null,null,null,null,null,null,null,null,null,null,null,null,null,null,null,null,null,null,null,null,null,null,null,null,null,null,{"$f":"IF(P149-W149-Y149-AA149-AC149-AE149-AG149-AI149-AK149-AM149-AO149-AQ149-AS149=0,\"OK\",\"Compromisos diferentes al valor estimado en la vigencia actual\")","v":"OK"},{"$f":"IF(P149-X149-Z149-AB149-AD149-AF149-AH149-AJ149-AL149-AN149-AP149-AR149-AT149=0,\"OK\",\"Obligaciones diferentes al valor estimado en la vigencia actual\")","v":"OK"}]
[null,null,null,null,null,null,null,null,null,null,null,null,null,null,null,null,null,null,null,null,null,null,null,null,null,null,null,null,null,null,null,null,null,null,null,null,null,null,null,null,null,null,null,null,null,null,null,"OK","OK"]
[null,null,null,null,null,null,null,null,null,null,null,null,null,null,null,null,null,null,null,null,null,null,null,null,null,null,null,null,null,null,null,null,null,null,null,null,null,null,null,null,null,null,null,null,null,null,null,"OK","OK"]
[null,null,null,null,null,null,null,null,null,null,null,null,null,null,null,null,null,null,null,null,null,null,null,null,null,null,null,null,null,null,null,null,null,null,null,null,null,null,null,null,null,null,null,null,null,null,null,"OK","OK"]
[null,null,null,null,null,null,null,null,null,null,null,null,null,null,null,null,null,null,null,null,null,null,null,null,null,null,null,null,null,null,null,null,null,null,null,null,null,null,null,null,null,null,null,null,null,null,null,"OK","OK"]
[null,null,null,null,null,null,null,null,null,null,null,null,null,null,null,null,null,null,null,null,null,null,null,null,null,null,null,null,null,null,null,null,null,null,null,null,null,null,null,null,null,null,null,null,null,null,null,"OK","OK"]
[null,null,null,null,null,null,null,null,null,null,null,null,null,null,null,null,null,null,null,null,null,null,null,null,null,null,null,null,null,null,null,null,null,null,null,null,null,null,null,null,null,null,null,null,null,null,null,"OK","OK"]
[null,null,null,null,null,null,null,null,null,null,null,null,null,null,null,null,null,null,null,null,null,null,null,null,null,null,null,null,null,null,null,null,null,null,null,null,null,null,null,null,null,null,null,null,null,null,null,"OK","OK"]
[null,null,null,null,null,null,null,null,null,null,null,null,null,null,null,null,null,null,null,null,null,null,null,null,null,null,null,null,null,null,null,null,null,null,null,null,null,null,null,null,null,null,null,null,null,null,null,"OK","OK"]
[null,null,null,null,null,null,null,null,null,null,null,null,null,null,null,null,null,null,null,null,null,null,null,null,null,null,null,null,null,null,null,null,null,null,null,null,null,null,null,null,null,null,null,null,null,null,null,"OK","OK"]
[null,null,null,null,null,null,null,null,null,null,null,null,null,null,null,null,null,null,null,null,null,null,null,null,null,null,null,null,null,null,null,null,null,null,null,null,null,null,null,null,null,null,null,null,null,null,null,"OK","OK"]
[null,null,null,null,null,null,null,null,null,null,null,null,null,null,null,null,null,null,null,null,null,null,null,null,null,null,null,null,null,null,null,null,null,null,null,null,null,null,null,null,null,null,null,null,null,null,null,"OK","OK"]
[null,null,null,null,null,null,null,null,null,null,null,null,null,null,null,null,null,null,null,null,null,null,null,null,null,null,null,null,null,null,null,null,null,null,null,null,null,null,null,null,null,null,null,null,null,null,null,"OK","OK"]
[null,null,null,null,null,null,null,null,null,null,null,null,null,null,null,null,null,null,null,null,null,null,null,null,null,null,null,null,null,null,null,null,null,null,null,null,null,null,null,null,null,null,null,null,null,null,null,"OK","OK"]
[null,null,null,null,null,null,null,null,null,null,null,null,null,null,null,null,null,null,null,null,null,null,null,null,null,null,null,null,null,null,null,null,null,null,null,null,null,null,null,null,null,null,null,null,null,null,null,"OK","OK"]
[null,null,null,null,null,null,null,null,null,null,null,null,null,null,null,null,null,null,null,null,null,null,null,null,null,null,null,null,null,null,null,null,null,null,null,null,null,null,null,null,null,null,null,null,null,null,null,"OK","OK"]
[null,null,null,null,null,null,null,null,null,null,null,null,null,null,null,null,null,null,null,null,null,null,null,null,null,null,null,null,null,null,null,null,null,null,null,null,null,null,null,null,null,null,null,null,null,null,null,"OK","OK"]
[null,null,null,null,null,null,null,null,null,null,null,null,null,null,null,null,null,null,null,null,null,null,null,null,null,null,null,null,null,null,null,null,null,null,null,null,null,null,null,null,null,null,null,null,null,null,null,"OK","OK"]
[null,null,null,null,null,null,null,null,null,null,null,null,null,null,null,null,null,null,null,null,null,null,null,null,null,null,null,null,null,null,null,null,null,null,null,null,null,null,null,null,null,null,null,null,null,null,null,"OK","OK"]
[null,null,null,null,null,null,null,null,null,null,null,null,null,null,null,null,null,null,null,null,null,null,null,null,null,null,null,null,null,null,null,null,null,null,null,null,null,null,null,null,null,null,null,null,null,null,null,"OK","OK"]
[null,null,null,null,null,null,null,null,null,null,null,null,null,null,null,null,null,null,null,null,null,null,null,null,null,null,null,null,null,null,null,null,null,null,null,null,null,null,null,null,null,null,null,null,null,null,null,"OK","OK"]
[null,null,null,null,null,null,null,null,null,null,null,null,null,null,null,null,null,null,null,null,null,null,null,null,null,null,null,null,null,null,null,null,null,null,null,null,null,null,null,null,null,null,null,null,null,null,null,"OK","OK"]
[null,null,null,null,null,null,null,null,null,null,null,null,null,null,null,null,null,null,null,null,null,null,null,null,null,null,null,null,null,null,null,null,null,null,null,null,null,null,null,null,null,null,null,null,null,null,null,"OK","OK"]
[null,null,null,null,null,null,null,null,null,null,null,null,null,null,null,null,null,null,null,null,null,null,null,null,null,null,null,null,null,null,null,null,null,null,null,null,null,null,null,null,null,null,null,null,null,null,null,"OK","OK"]
[null,null,null,null,null,null,null,null,null,null,null,null,null,null,null,null,null,null,null,null,null,null,null,null,null,null,null,null,null,null,null,null,null,null,null,null,null,null,null,null,null,null,null,null,null,null,null,"OK","OK"]
[null,null,null,null,null,null,null,null,null,null,null,null,null,null,null,null,null,null,null,null,null,null,null,null,null,null,null,null,null,null,null,null,null,null,null,null,null,null,null,null,null,null,null,null,null,null,null,"OK","OK"]
[null,null,null,null,null,null,null,null,null,null,null,null,null,null,null,null,null,null,null,null,null,null,null,null,null,null,null,null,null,null,null,null,null,null,null,null,null,null,null,null,null,null,null,null,null,null,null,"OK","OK"]
[null,null,null,null,null,null,null,null,null,null,null,null,null,null,null,null,null,null,null,null,null,null,null,null,null,null,null,null,null,null,null,null,null,null,null,null,null,null,null,null,null,null,null,null,null,null,null,"OK","OK"]
[null,null,null,null,null,null,null,null,null,null,null,null,null,null,null,null,null,null,null,null,null,null,null,null,null,null,null,null,null,null,null,null,null,null,null,null,null,null,null,null,null,null,null,null,null,null,null,"OK","OK"]
[null,null,null,null,null,null,null,null,null,null,null,null,null,null,null,null,null,null,null,null,null,null,null,null,null,null,null,null,null,null,null,null,null,null,null,null,null,null,null,null,null,null,null,null,null,null,null,"OK","OK"]
[null,null,null,null,null,null,null,null,null,null,null,null,null,null,null,null,null,null,null,null,null,null,null,null,null,null,null,null,null,null,null,null,null,null,null,null,null,null,null,null,null,null,null,null,null,null,null,"OK","OK"]
[null,null,null,null,null,null,null,null,null,null,null,null,null,null,null,null,null,null,null,null,null,null,null,null,null,null,null,null,null,null,null,null,null,null,null,null,null,null,null,null,null,null,null,null,null,null,null,"OK","OK"]
[null,null,null,null,null,null,null,null,null,null,null,null,null,null,null,null,null,null,null,null,null,null,null,null,null,null,null,null,null,null,null,null,null,null,null,null,null,null,null,null,null,null,null,null,null,null,null,"OK","OK"]
[null,null,null,null,null,null,null,null,null,null,null,null,null,null,null,null,null,null,null,null,null,null,null,null,null,null,null,null,null,null,null,null,null,null,null,null,null,null,null,null,null,null,null,null,null,null,null,"OK","OK"]
[null,null,null,null,null,null,null,null,null,null,null,null,null,null,null,null,null,null,null,null,null,null,null,null,null,null,null,null,null,null,null,null,null,null,null,null,null,null,null,null,null,null,null,null,null,null,null,"OK","OK"]
[null,null,null,null,null,null,null,null,null,null,null,null,null,null,null,null,null,null,null,null,null,null,null,null,null,null,null,null,null,null,null,null,null,null,null,null,null,null,null,null,null,null,null,null,null,null,null,"OK","OK"]
[null,null,null,null,null,null,null,null,null,null,null,null,null,null,null,null,null,null,null,null,null,null,null,null,null,null,null,null,null,null,null,null,null,null,null,null,null,null,null,null,null,null,null,null,null,null,null,"OK","OK"]
[null,null,null,null,null,null,null,null,null,null,null,null,null,null,null,null,null,null,null,null,null,null,null,null,null,null,null,null,null,null,null,null,null,null,null,null,null,null,null,null,null,null,null,null,null,null,null,"OK","OK"]
[null,null,null,null,null,null,null,null,null,null,null,null,null,null,null,null,null,null,null,null,null,null,null,null,null,null,null,null,null,null,null,null,null,null,null,null,null,null,null,null,null,null,null,null,null,null,null,"OK","OK"]
[null,null,null,null,null,null,null,null,null,null,null,null,null,null,null,null,null,null,null,null,null,null,null,null,null,null,null,null,null,null,null,null,null,null,null,null,null,null,null,null,null,null,null,null,null,null,null,"OK","OK"]
[null,null,null,null,null,null,null,null,null,null,null,null,null,null,null,null,null,null,null,null,null,null,null,null,null,null,null,null,null,null,null,null,null,null,null,null,null,null,null,null,null,null,null,null,null,null,null,"OK","OK"]
[null,null,null,null,null,null,null,null,null,null,null,null,null,null,null,null,null,null,null,null,null,null,null,null,null,null,null,null,null,null,null,null,null,null,null,null,null,null,null,null,null,null,null,null,null,null,null,"OK","OK"]
[null,null,null,null,null,null,null,null,null,null,null,null,null,null,null,null,null,null,null,null,null,null,null,null,null,null,null,null,null,null,null,null,null,null,null,null,null,null,null,null,null,null,null,null,null,null,null,"OK","OK"]
[null,null,null,null,null,null,null,null,null,null,null,null,null,null,null,null,null,null,null,null,null,null,null,null,null,null,null,null,null,null,null,null,null,null,null,null,null,null,null,null,null,null,null,null,null,null,null,"OK","OK"]
[null,null,null,null,null,null,null,null,null,null,null,null,null,null,null,null,null,null,null,null,null,null,null,null,null,null,null,null,null,null,null,null,null,null,null,null,null,null,null,null,null,null,null,null,null,null,null,"OK","OK"]
[null,null,null,null,null,null,null,null,null,null,null,null,null,null,null,null,null,null,null,null,null,null,null,null,null,null,null,null,null,null,null,null,null,null,null,null,null,null,null,null,null,null,null,null,null,null,null,"OK","OK"]
[null,null,null,null,null,null,null,null,null,null,null,null,null,null,null,null,null,null,null,null,null,null,null,null,null,null,null,null,null,null,null,null,null,null,null,null,null,null,null,null,null,null,null,null,null,null,null,"OK","OK"]
[null,null,null,null,null,null,null,null,null,null,null,null,null,null,null,null,null,null,null,null,null,null,null,null,null,null,null,null,null,null,null,null,null,null,null,null,null,null,null,null,null,null,null,null,null,null,null,"OK","OK"]
[null,null,null,null,null,null,null,null,null,null,null,null,null,null,null,null,null,null,null,null,null,null,null,null,null,null,null,null,null,null,null,null,null,null,null,null,null,null,null,null,null,null,null,null,null,null,null,"OK","OK"]
[null,null,null,null,null,null,null,null,null,null,null,null,null,null,null,null,null,null,null,null,null,null,null,null,null,null,null,null,null,null,null,null,null,null,null,null,null,null,null,null,null,null,null,null,null,null,null,"OK","OK"]
[null,null,null,null,null,null,null,null,null,null,null,null,null,null,null,null,null,null,null,null,null,null,null,null,null,null,null,null,null,null,null,null,null,null,null,null,null,null,null,null,null,null,null,null,null,null,null,"OK","OK"]
[null,null,null,null,null,null,null,null,null,null,null,null,null,null,null,null,null,null,null,null,null,null,null,null,null,null,null,null,null,null,null,null,null,null,null,null,null,null,null,null,null,null,null,null,null,null,null,"OK","OK"]
[null,null,null,null,null,null,null,null,null,null,null,null,null,null,null,null,null,null,null,null,null,null,null,null,null,null,null,null,null,null,null,null,null,null,null,null,null,null,null,null,null,null,null,null,null,null,null,"OK","OK"]
[null,null,null,null,null,null,null,null,null,null,null,null,null,null,null,null,null,null,null,null,null,null,null,null,null,null,null,null,null,null,null,null,null,null,null,null,null,null,null,null,null,null,null,null,null,null,null,"OK","OK"]
[null,null,null,null,null,null,null,null,null,null,null,null,null,null,null,null,null,null,null,null,null,null,null,null,null,null,null,null,null,null,null,null,null,null,null,null,null,null,null,null,null,null,null,null,null,null,null,"OK","OK"]
[null,null,null,null,null,null,null,null,null,null,null,null,null,null,null,null,null,null,null,null,null,null,null,null,null,null,null,null,null,null,null,null,null,null,null,null,null,null,null,null,null,null,null,null,null,null,null,"OK","OK"]
[null,null,null,null,null,null,null,null,null,null,null,null,null,null,null,null,null,null,null,null,null,null,null,null,null,null,null,null,null,null,null,null,null,null,null,null,null,null,null,null,null,null,null,null,null,null,null,"OK","OK"]
[null,null,null,null,null,null,null,null,null,null,null,null,null,null,null,null,null,null,null,null,null,null,null,null,null,null,null,null,null,null,null,null,null,null,null,null,null,null,null,null,null,null,null,null,null,null,null,"OK","OK"]
[null,null,null,null,null,null,null,null,null,null,null,null,null,null,null,null,null,null,null,null,null,null,null,null,null,null,null,null,null,null,null,null,null,null,null,null,null,null,null,null,null,null,null,null,null,null,null,"OK","OK"]
[null,null,null,null,null,null,null,null,null,null,null,null,null,null,null,null,null,null,null,null,null,null,null,null,null,null,null,null,null,null,null,null,null,null,null,null,null,null,null,null,null,null,null,null,null,null,null,"OK","OK"]
[null,null,null,null,null,null,null,null,null,null,null,null,null,null,null,null,null,null,null,null,null,null,null,null,null,null,null,null,null,null,null,null,null,null,null,null,null,null,null,null,null,null,null,null,null,null,null,"OK","OK"]
[null,null,null,null,null,null,null,null,null,null,null,null,null,null,null,null,null,null,null,null,null,null,null,null,null,null,null,null,null,null,null,null,null,null,null,null,null,null,null,null,null,null,null,null,null,null,null,"OK","OK"]
[null,null,null,null,null,null,null,null,null,null,null,null,null,null,null,null,null,null,null,null,null,null,null,null,null,null,null,null,null,null,null,null,null,null,null,null,null,null,null,null,null,null,null,null,null,null,null,"OK","OK"]
[null,null,null,null,null,null,null,null,null,null,null,null,null,null,null,null,null,null,null,null,null,null,null,null,null,null,null,null,null,null,null,null,null,null,null,null,null,null,null,null,null,null,null,null,null,null,null,"OK","OK"]
[null,null,null,null,null,null,null,null,null,null,null,null,null,null,null,null,null,null,null,null,null,null,null,null,null,null,null,null,null,null,null,null,null,null,null,null,null,null,null,null,null,null,null,null,null,null,null,{"$f":"IF(P213-W213-Y213-AA213-AC213-AE213-AG213-AI213-AK213-AM213-AO213-AQ213-AS213=0,\"OK\",\"Compromisos diferentes al valor estimado en la vigencia actual\")","v":"OK"},{"$f":"IF(P213-X213-Z213-AB213-AD213-AF213-AH213-AJ213-AL213-AN213-AP213-AR213-AT213=0,\"OK\",\"Obligaciones diferentes al valor estimado en la vigencia actual\")","v":"OK"}]
[null,null,null,null,null,null,null,null,null,null,null,null,null,null,null,null,null,null,null,null,null,null,null,null,null,null,null,null,null,null,null,null,null,null,null,null,null,null,null,null,null,null,null,null,null,null,null,"OK","OK"]
[null,null,null,null,null,null,null,null,null,null,null,null,null,null,null,null,null,null,null,null,null,null,null,null,null,null,null,null,null,null,null,null,null,null,null,null,null,null,null,null,null,null,null,null,null,null,null,"OK","OK"]
[null,null,null,null,null,null,null,null,null,null,null,null,null,null,null,null,null,null,null,null,null,null,null,null,null,null,null,null,null,null,null,null,null,null,null,null,null,null,null,null,null,null,null,null,null,null,null,"OK","OK"]
[null,null,null,null,null,null,null,null,null,null,null,null,null,null,null,null,null,null,null,null,null,null,null,null,null,null,null,null,null,null,null,null,null,null,null,null,null,null,null,null,null,null,null,null,null,null,null,"OK","OK"]
[null,null,null,null,null,null,null,null,null,null,null,null,null,null,null,null,null,null,null,null,null,null,null,null,null,null,null,null,null,null,null,null,null,null,null,null,null,null,null,null,null,null,null,null,null,null,null,"OK","OK"]
[null,null,null,null,null,null,null,null,null,null,null,null,null,null,null,null,null,null,null,null,null,null,null,null,null,null,null,null,null,null,null,null,null,null,null,null,null,null,null,null,null,null,null,null,null,null,null,"OK","OK"]
[null,null,null,null,null,null,null,null,null,null,null,null,null,null,null,null,null,null,null,null,null,null,null,null,null,null,null,null,null,null,null,null,null,null,null,null,null,null,null,null,null,null,null,null,null,null,null,"OK","OK"]
[null,null,null,null,null,null,null,null,null,null,null,null,null,null,null,null,null,null,null,null,null,null,null,null,null,null,null,null,null,null,null,null,null,null,null,null,null,null,null,null,null,null,null,null,null,null,null,"OK","OK"]
[null,null,null,null,null,null,null,null,null,null,null,null,null,null,null,null,null,null,null,null,null,null,null,null,null,null,null,null,null,null,null,null,null,null,null,null,null,null,null,null,null,null,null,null,null,null,null,"OK","OK"]
[null,null,null,null,null,null,null,null,null,null,null,null,null,null,null,null,null,null,null,null,null,null,null,null,null,null,null,null,null,null,null,null,null,null,null,null,null,null,null,null,null,null,null,null,null,null,null,"OK","OK"]
[null,null,null,null,null,null,null,null,null,null,null,null,null,null,null,null,null,null,null,null,null,null,null,null,null,null,null,null,null,null,null,null,null,null,null,null,null,null,null,null,null,null,null,null,null,null,null,"OK","OK"]
[null,null,null,null,null,null,null,null,null,null,null,null,null,null,null,null,null,null,null,null,null,null,null,null,null,null,null,null,null,null,null,null,null,null,null,null,null,null,null,null,null,null,null,null,null,null,null,"OK","OK"]
[null,null,null,null,null,null,null,null,null,null,null,null,null,null,null,null,null,null,null,null,null,null,null,null,null,null,null,null,null,null,null,null,null,null,null,null,null,null,null,null,null,null,null,null,null,null,null,"OK","OK"]
[null,null,null,null,null,null,null,null,null,null,null,null,null,null,null,null,null,null,null,null,null,null,null,null,null,null,null,null,null,null,null,null,null,null,null,null,null,null,null,null,null,null,null,null,null,null,null,"OK","OK"]
[null,null,null,null,null,null,null,null,null,null,null,null,null,null,null,null,null,null,null,null,null,null,null,null,null,null,null,null,null,null,null,null,null,null,null,null,null,null,null,null,null,null,null,null,null,null,null,"OK","OK"]
[null,null,null,null,null,null,null,null,null,null,null,null,null,null,null,null,null,null,null,null,null,null,null,null,null,null,null,null,null,null,null,null,null,null,null,null,null,null,null,null,null,null,null,null,null,null,null,"OK","OK"]
[null,null,null,null,null,null,null,null,null,null,null,null,null,null,null,null,null,null,null,null,null,null,null,null,null,null,null,null,null,null,null,null,null,null,null,null,null,null,null,null,null,null,null,null,null,null,null,"OK","OK"]
[null,null,null,null,null,null,null,null,null,null,null,null,null,null,null,null,null,null,null,null,null,null,null,null,null,null,null,null,null,null,null,null,null,null,null,null,null,null,null,null,null,null,null,null,null,null,null,"OK","OK"]
[null,null,null,null,null,null,null,null,null,null,null,null,null,null,null,null,null,null,null,null,null,null,null,null,null,null,null,null,null,null,null,null,null,null,null,null,null,null,null,null,null,null,null,null,null,null,null,"OK","OK"]
[null,null,null,null,null,null,null,null,null,null,null,null,null,null,null,null,null,null,null,null,null,null,null,null,null,null,null,null,null,null,null,null,null,null,null,null,null,null,null,null,null,null,null,null,null,null,null,"OK","OK"]
[null,null,null,null,null,null,null,null,null,null,null,null,null,null,null,null,null,null,null,null,null,null,null,null,null,null,null,null,null,null,null,null,null,null,null,null,null,null,null,null,null,null,null,null,null,null,null,"OK","OK"]
[null,null,null,null,null,null,null,null,null,null,null,null,null,null,null,null,null,null,null,null,null,null,null,null,null,null,null,null,null,null,null,null,null,null,null,null,null,null,null,null,null,null,null,null,null,null,null,"OK","OK"]
[null,null,null,null,null,null,null,null,null,null,null,null,null,null,null,null,null,null,null,null,null,null,null,null,null,null,null,null,null,null,null,null,null,null,null,null,null,null,null,null,null,null,null,null,null,null,null,"OK","OK"]
[null,null,null,null,null,null,null,null,null,null,null,null,null,null,null,null,null,null,null,null,null,null,null,null,null,null,null,null,null,null,null,null,null,null,null,null,null,null,null,null,null,null,null,null,null,null,null,"OK","OK"]
[null,null,null,null,null,null,null,null,null,null,null,null,null,null,null,null,null,null,null,null,null,null,null,null,null,null,null,null,null,null,null,null,null,null,null,null,null,null,null,null,null,null,null,null,null,null,null,"OK","OK"]
[null,null,null,null,null,null,null,null,null,null,null,null,null,null,null,null,null,null,null,null,null,null,null,null,null,null,null,null,null,null,null,null,null,null,null,null,null,null,null,null,null,null,null,null,null,null,null,"OK","OK"]
[null,null,null,null,null,null,null,null,null,null,null,null,null,null,null,null,null,null,null,null,null,null,null,null,null,null,null,null,null,null,null,null,null,null,null,null,null,null,null,null,null,null,null,null,null,null,null,"OK","OK"]
[null,null,null,null,null,null,null,null,null,null,null,null,null,null,null,null,null,null,null,null,null,null,null,null,null,null,null,null,null,null,null,null,null,null,null,null,null,null,null,null,null,null,null,null,null,null,null,"OK","OK"]
[null,null,null,null,null,null,null,null,null,null,null,null,null,null,null,null,null,null,null,null,null,null,null,null,null,null,null,null,null,null,null,null,null,null,null,null,null,null,null,null,null,null,null,null,null,null,null,"OK","OK"]
[null,null,null,null,null,null,null,null,null,null,null,null,null,null,null,null,null,null,null,null,null,null,null,null,null,null,null,null,null,null,null,null,null,null,null,null,null,null,null,null,null,null,null,null,null,null,null,"OK","OK"]
[null,null,null,null,null,null,null,null,null,null,null,null,null,null,null,null,null,null,null,null,null,null,null,null,null,null,null,null,null,null,null,null,null,null,null,null,null,null,null,null,null,null,null,null,null,null,null,"OK","OK"]
[null,null,null,null,null,null,null,null,null,null,null,null,null,null,null,null,null,null,null,null,null,null,null,null,null,null,null,null,null,null,null,null,null,null,null,null,null,null,null,null,null,null,null,null,null,null,null,"OK","OK"]
[null,null,null,null,null,null,null,null,null,null,null,null,null,null,null,null,null,null,null,null,null,null,null,null,null,null,null,null,null,null,null,null,null,null,null,null,null,null,null,null,null,null,null,null,null,null,null,"OK","OK"]
[null,null,null,null,null,null,null,null,null,null,null,null,null,null,null,null,null,null,null,null,null,null,null,null,null,null,null,null,null,null,null,null,null,null,null,null,null,null,null,null,null,null,null,null,null,null,null,"OK","OK"]
[null,null,null,null,null,null,null,null,null,null,null,null,null,null,null,null,null,null,null,null,null,null,null,null,null,null,null,null,null,null,null,null,null,null,null,null,null,null,null,null,null,null,null,null,null,null,null,"OK","OK"]
[null,null,null,null,null,null,null,null,null,null,null,null,null,null,null,null,null,null,null,null,null,null,null,null,null,null,null,null,null,null,null,null,null,null,null,null,null,null,null,null,null,null,null,null,null,null,null,"OK","OK"]
[null,null,null,null,null,null,null,null,null,null,null,null,null,null,null,null,null,null,null,null,null,null,null,null,null,null,null,null,null,null,null,null,null,null,null,null,null,null,null,null,null,null,null,null,null,null,null,"OK","OK"]
[null,null,null,null,null,null,null,null,null,null,null,null,null,null,null,null,null,null,null,null,null,null,null,null,null,null,null,null,null,null,null,null,null,null,null,null,null,null,null,null,null,null,null,null,null,null,null,"OK","OK"]
[null,null,null,null,null,null,null,null,null,null,null,null,null,null,null,null,null,null,null,null,null,null,null,null,null,null,null,null,null,null,null,null,null,null,null,null,null,null,null,null,null,null,null,null,null,null,null,"OK","OK"]
[null,null,null,null,null,null,null,null,null,null,null,null,null,null,null,null,null,null,null,null,null,null,null,null,null,null,null,null,null,null,null,null,null,null,null,null,null,null,null,null,null,null,null,null,null,null,null,"OK","OK"]
[null,null,null,null,null,null,null,null,null,null,null,null,null,null,null,null,null,null,null,null,null,null,null,null,null,null,null,null,null,null,null,null,null,null,null,null,null,null,null,null,null,null,null,null,null,null,null,"OK","OK"]
[null,null,null,null,null,null,null,null,null,null,null,null,null,null,null,null,null,null,null,null,null,null,null,null,null,null,null,null,null,null,null,null,null,null,null,null,null,null,null,null,null,null,null,null,null,null,null,"OK","OK"]
[null,null,null,null,null,null,null,null,null,null,null,null,null,null,null,null,null,null,null,null,null,null,null,null,null,null,null,null,null,null,null,null,null,null,null,null,null,null,null,null,null,null,null,null,null,null,null,"OK","OK"]
[null,null,null,null,null,null,null,null,null,null,null,null,null,null,null,null,null,null,null,null,null,null,null,null,null,null,null,null,null,null,null,null,null,null,null,null,null,null,null,null,null,null,null,null,null,null,null,"OK","OK"]
[null,null,null,null,null,null,null,null,null,null,null,null,null,null,null,null,null,null,null,null,null,null,null,null,null,null,null,null,null,null,null,null,null,null,null,null,null,null,null,null,null,null,null,null,null,null,null,"OK","OK"]
[null,null,null,null,null,null,null,null,null,null,null,null,null,null,null,null,null,null,null,null,null,null,null,null,null,null,null,null,null,null,null,null,null,null,null,null,null,null,null,null,null,null,null,null,null,null,null,"OK","OK"]
[null,null,null,null,null,null,null,null,null,null,null,null,null,null,null,null,null,null,null,null,null,null,null,null,null,null,null,null,null,null,null,null,null,null,null,null,null,null,null,null,null,null,null,null,null,null,null,"OK","OK"]
[null,null,null,null,null,null,null,null,null,null,null,null,null,null,null,null,null,null,null,null,null,null,null,null,null,null,null,null,null,null,null,null,null,null,null,null,null,null,null,null,null,null,null,null,null,null,null,"OK","OK"]
[null,null,null,null,null,null,null,null,null,null,null,null,null,null,null,null,null,null,null,null,null,null,null,null,null,null,null,null,null,null,null,null,null,null,null,null,null,null,null,null,null,null,null,null,null,null,null,"OK","OK"]
[null,null,null,null,null,null,null,null,null,null,null,null,null,null,null,null,null,null,null,null,null,null,null,null,null,null,null,null,null,null,null,null,null,null,null,null,null,null,null,null,null,null,null,null,null,null,null,"OK","OK"]
[null,null,null,null,null,null,null,null,null,null,null,null,null,null,null,null,null,null,null,null,null,null,null,null,null,null,null,null,null,null,null,null,null,null,null,null,null,null,null,null,null,null,null,null,null,null,null,"OK","OK"]
[null,null,null,null,null,null,null,null,null,null,null,null,null,null,null,null,null,null,null,null,null,null,null,null,null,null,null,null,null,null,null,null,null,null,null,null,null,null,null,null,null,null,null,null,null,null,null,"OK","OK"]
[null,null,null,null,null,null,null,null,null,null,null,null,null,null,null,null,null,null,null,null,null,null,null,null,null,null,null,null,null,null,null,null,null,null,null,null,null,null,null,null,null,null,null,null,null,null,null,"OK","OK"]
[null,null,null,null,null,null,null,null,null,null,null,null,null,null,null,null,null,null,null,null,null,null,null,null,null,null,null,null,null,null,null,null,null,null,null,null,null,null,null,null,null,null,null,null,null,null,null,"OK","OK"]
[null,null,null,null,null,null,null,null,null,null,null,null,null,null,null,null,null,null,null,null,null,null,null,null,null,null,null,null,null,null,null,null,null,null,null,null,null,null,null,null,null,null,null,null,null,null,null,"OK","OK"]
[null,null,null,null,null,null,null,null,null,null,null,null,null,null,null,null,null,null,null,null,null,null,null,null,null,null,null,null,null,null,null,null,null,null,null,null,null,null,null,null,null,null,null,null,null,null,null,"OK","OK"]
[null,null,null,null,null,null,null,null,null,null,null,null,null,null,null,null,null,null,null,null,null,null,null,null,null,null,null,null,null,null,null,null,null,null,null,null,null,null,null,null,null,null,null,null,null,null,null,"OK","OK"]
[null,null,null,null,null,null,null,null,null,null,null,null,null,null,null,null,null,null,null,null,null,null,null,null,null,null,null,null,null,null,null,null,null,null,null,null,null,null,null,null,null,null,null,null,null,null,null,"OK","OK"]
[null,null,null,null,null,null,null,null,null,null,null,null,null,null,null,null,null,null,null,null,null,null,null,null,null,null,null,null,null,null,null,null,null,null,null,null,null,null,null,null,null,null,null,null,null,null,null,"OK","OK"]
[null,null,null,null,null,null,null,null,null,null,null,null,null,null,null,null,null,null,null,null,null,null,null,null,null,null,null,null,null,null,null,null,null,null,null,null,null,null,null,null,null,null,null,null,null,null,null,"OK","OK"]
[null,null,null,null,null,null,null,null,null,null,null,null,null,null,null,null,null,null,null,null,null,null,null,null,null,null,null,null,null,null,null,null,null,null,null,null,null,null,null,null,null,null,null,null,null,null,null,"OK","OK"]
[null,null,null,null,null,null,null,null,null,null,null,null,null,null,null,null,null,null,null,null,null,null,null,null,null,null,null,null,null,null,null,null,null,null,null,null,null,null,null,null,null,null,null,null,null,null,null,"OK","OK"]
[null,null,null,null,null,null,null,null,null,null,null,null,null,null,null,null,null,null,null,null,null,null,null,null,null,null,null,null,null,null,null,null,null,null,null,null,null,null,null,null,null,null,null,null,null,null,null,"OK","OK"]
[null,null,null,null,null,null,null,null,null,null,null,null,null,null,null,null,null,null,null,null,null,null,null,null,null,null,null,null,null,null,null,null,null,null,null,null,null,null,null,null,null,null,null,null,null,null,null,{"$f":"IF(P277-W277-Y277-AA277-AC277-AE277-AG277-AI277-AK277-AM277-AO277-AQ277-AS277=0,\"OK\",\"Compromisos diferentes al valor estimado en la vigencia actual\")","v":"OK"},{"$f":"IF(P277-X277-Z277-AB277-AD277-AF277-AH277-AJ277-AL277-AN277-AP277-AR277-AT277=0,\"OK\",\"Obligaciones diferentes al valor estimado en la vigencia actual\")","v":"OK"}]
[null,null,null,null,null,null,null,null,null,null,null,null,null,null,null,null,null,null,null,null,null,null,null,null,null,null,null,null,null,null,null,null,null,null,null,null,null,null,null,null,null,null,null,null,null,null,null,"OK","OK"]
[null,null,null,null,null,null,null,null,null,null,null,null,null,null,null,null,null,null,null,null,null,null,null,null,null,null,null,null,null,null,null,null,null,null,null,null,null,null,null,null,null,null,null,null,null,null,null,"OK","OK"]
[null,null,null,null,null,null,null,null,null,null,null,null,null,null,null,null,null,null,null,null,null,null,null,null,null,null,null,null,null,null,null,null,null,null,null,null,null,null,null,null,null,null,null,null,null,null,null,"OK","OK"]
[null,null,null,null,null,null,null,null,null,null,null,null,null,null,null,null,null,null,null,null,null,null,null,null,null,null,null,null,null,null,null,null,null,null,null,null,null,null,null,null,null,null,null,null,null,null,null,"OK","OK"]
[null,null,null,null,null,null,null,null,null,null,null,null,null,null,null,null,null,null,null,null,null,null,null,null,null,null,null,null,null,null,null,null,null,null,null,null,null,null,null,null,null,null,null,null,null,null,null,"OK","OK"]
[null,null,null,null,null,null,null,null,null,null,null,null,null,null,null,null,null,null,null,null,null,null,null,null,null,null,null,null,null,null,null,null,null,null,null,null,null,null,null,null,null,null,null,null,null,null,null,"OK","OK"]
[null,null,null,null,null,null,null,null,null,null,null,null,null,null,null,null,null,null,null,null,null,null,null,null,null,null,null,null,null,null,null,null,null,null,null,null,null,null,null,null,null,null,null,null,null,null,null,"OK","OK"]
[null,null,null,null,null,null,null,null,null,null,null,null,null,null,null,null,null,null,null,null,null,null,null,null,null,null,null,null,null,null,null,null,null,null,null,null,null,null,null,null,null,null,null,null,null,null,null,"OK","OK"]
[null,null,null,null,null,null,null,null,null,null,null,null,null,null,null,null,null,null,null,null,null,null,null,null,null,null,null,null,null,null,null,null,null,null,null,null,null,null,null,null,null,null,null,null,null,null,null,"OK","OK"]
[null,null,null,null,null,null,null,null,null,null,null,null,null,null,null,null,null,null,null,null,null,null,null,null,null,null,null,null,null,null,null,null,null,null,null,null,null,null,null,null,null,null,null,null,null,null,null,"OK","OK"]
[null,null,null,null,null,null,null,null,null,null,null,null,null,null,null,null,null,null,null,null,null,null,null,null,null,null,null,null,null,null,null,null,null,null,null,null,null,null,null,null,null,null,null,null,null,null,null,"OK","OK"]
[null,null,null,null,null,null,null,null,null,null,null,null,null,null,null,null,null,null,null,null,null,null,null,null,null,null,null,null,null,null,null,null,null,null,null,null,null,null,null,null,null,null,null,null,null,null,null,"OK","OK"]
[null,null,null,null,null,null,null,null,null,null,null,null,null,null,null,null,null,null,null,null,null,null,null,null,null,null,null,null,null,null,null,null,null,null,null,null,null,null,null,null,null,null,null,null,null,null,null,"OK","OK"]
[null,null,null,null,null,null,null,null,null,null,null,null,null,null,null,null,null,null,null,null,null,null,null,null,null,null,null,null,null,null,null,null,null,null,null,null,null,null,null,null,null,null,null,null,null,null,null,"OK","OK"]
[null,null,null,null,null,null,null,null,null,null,null,null,null,null,null,null,null,null,null,null,null,null,null,null,null,null,null,null,null,null,null,null,null,null,null,null,null,null,null,null,null,null,null,null,null,null,null,"OK","OK"]
[null,null,null,null,null,null,null,null,null,null,null,null,null,null,null,null,null,null,null,null,null,null,null,null,null,null,null,null,null,null,null,null,null,null,null,null,null,null,null,null,null,null,null,null,null,null,null,"OK","OK"]
[null,null,null,null,null,null,null,null,null,null,null,null,null,null,null,null,null,null,null,null,null,null,null,null,null,null,null,null,null,null,null,null,null,null,null,null,null,null,null,null,null,null,null,null,null,null,null,"OK","OK"]
[null,null,null,null,null,null,null,null,null,null,null,null,null,null,null,null,null,null,null,null,null,null,null,null,null,null,null,null,null,null,null,null,null,null,null,null,null,null,null,null,null,null,null,null,null,null,null,"OK","OK"]
[null,null,null,null,null,null,null,null,null,null,null,null,null,null,null,null,null,null,null,null,null,null,null,null,null,null,null,null,null,null,null,null,null,null,null,null,null,null,null,null,null,null,null,null,null,null,null,"OK","OK"]
[null,null,null,null,null,null,null,null,null,null,null,null,null,null,null,null,null,null,null,null,null,null,null,null,null,null,null,null,null,null,null,null,null,null,null,null,null,null,null,null,null,null,null,null,null,null,null,"OK","OK"]
[null,null,null,null,null,null,null,null,null,null,null,null,null,null,null,null,null,null,null,null,null,null,null,null,null,null,null,null,null,null,null,null,null,null,null,null,null,null,null,null,null,null,null,null,null,null,null,"OK","OK"]
[null,null,null,null,null,null,null,null,null,null,null,null,null,null,null,null,null,null,null,null,null,null,null,null,null,null,null,null,null,null,null,null,null,null,null,null,null,null,null,null,null,null,null,null,null,null,null,"OK","OK"]
[null,null,null,null,null,null,null,null,null,null,null,null,null,null,null,null,null,null,null,null,null,null,null,null,null,null,null,null,null,null,null,null,null,null,null,null,null,null,null,null,null,null,null,null,null,null,null,"OK","OK"]
[null,null,null,null,null,null,null,null,null,null,null,null,null,null,null,null,null,null,null,null,null,null,null,null,null,null,null,null,null,null,null,null,null,null,null,null,null,null,null,null,null,null,null,null,null,null,null,"OK","OK"]
[null,null,null,null,null,null,null,null,null,null,null,null,null,null,null,null,null,null,null,null,null,null,null,null,null,null,null,null,null,null,null,null,null,null,null,null,null,null,null,null,null,null,null,null,null,null,null,"OK","OK"]
[null,null,null,null,null,null,null,null,null,null,null,null,null,null,null,null,null,null,null,null,null,null,null,null,null,null,null,null,null,null,null,null,null,null,null,null,null,null,null,null,null,null,null,null,null,null,null,"OK","OK"]
[null,null,null,null,null,null,null,null,null,null,null,null,null,null,null,null,null,null,null,null,null,null,null,null,null,null,null,null,null,null,null,null,null,null,null,null,null,null,null,null,null,null,null,null,null,null,null,"OK","OK"]
[null,null,null,null,null,null,null,null,null,null,null,null,null,null,null,null,null,null,null,null,null,null,null,null,null,null,null,null,null,null,null,null,null,null,null,null,null,null,null,null,null,null,null,null,null,null,null,"OK","OK"]
[null,null,null,null,null,null,null,null,null,null,null,null,null,null,null,null,null,null,null,null,null,null,null,null,null,null,null,null,null,null,null,null,null,null,null,null,null,null,null,null,null,null,null,null,null,null,null,"OK","OK"]
[null,null,null,null,null,null,null,null,null,null,null,null,null,null,null,null,null,null,null,null,null,null,null,null,null,null,null,null,null,null,null,null,null,null,null,null,null,null,null,null,null,null,null,null,null,null,null,"OK","OK"]
[null,null,null,null,null,null,null,null,null,null,null,null,null,null,null,null,null,null,null,null,null,null,null,null,null,null,null,null,null,null,null,null,null,null,null,null,null,null,null,null,null,null,null,null,null,null,null,"OK","OK"]
[null,null,null,null,null,null,null,null,null,null,null,null,null,null,null,null,null,null,null,null,null,null,null,null,null,null,null,null,null,null,null,null,null,null,null,null,null,null,null,null,null,null,null,null,null,null,null,"OK","OK"]
[null,null,null,null,null,null,null,null,null,null,null,null,null,null,null,null,null,null,null,null,null,null,null,null,null,null,null,null,null,null,null,null,null,null,null,null,null,null,null,null,null,null,null,null,null,null,null,"OK","OK"]
[null,null,null,null,null,null,null,null,null,null,null,null,null,null,null,null,null,null,null,null,null,null,null,null,null,null,null,null,null,null,null,null,null,null,null,null,null,null,null,null,null,null,null,null,null,null,null,"OK","OK"]
[null,null,null,null,null,null,null,null,null,null,null,null,null,null,null,null,null,null,null,null,null,null,null,null,null,null,null,null,null,null,null,null,null,null,null,null,null,null,null,null,null,null,null,null,null,null,null,"OK","OK"]
[null,null,null,null,null,null,null,null,null,null,null,null,null,null,null,null,null,null,null,null,null,null,null,null,null,null,null,null,null,null,null,null,null,null,null,null,null,null,null,null,null,null,null,null,null,null,null,"OK","OK"]
[null,null,null,null,null,null,null,null,null,null,null,null,null,null,null,null,null,null,null,null,null,null,null,null,null,null,null,null,null,null,null,null,null,null,null,null,null,null,null,null,null,null,null,null,null,null,null,"OK","OK"]
[null,null,null,null,null,null,null,null,null,null,null,null,null,null,null,null,null,null,null,null,null,null,null,null,null,null,null,null,null,null,null,null,null,null,null,null,null,null,null,null,null,null,null,null,null,null,null,"OK","OK"]
[null,null,null,null,null,null,null,null,null,null,null,null,null,null,null,null,null,null,null,null,null,null,null,null,null,null,null,null,null,null,null,null,null,null,null,null,null,null,null,null,null,null,null,null,null,null,null,"OK","OK"]
[null,null,null,null,null,null,null,null,null,null,null,null,null,null,null,null,null,null,null,null,null,null,null,null,null,null,null,null,null,null,null,null,null,null,null,null,null,null,null,null,null,null,null,null,null,null,null,"OK","OK"]
[null,null,null,null,null,null,null,null,null,null,null,null,null,null,null,null,null,null,null,null,null,null,null,null,null,null,null,null,null,null,null,null,null,null,null,null,null,null,null,null,null,null,null,null,null,null,null,"OK","OK"]
[null,null,null,null,null,null,null,null,null,null,null,null,null,null,null,null,null,null,null,null,null,null,null,null,null,null,null,null,null,null,null,null,null,null,null,null,null,null,null,null,null,null,null,null,null,null,null,"OK","OK"]
[null,null,null,null,null,null,null,null,null,null,null,null,null,null,null,null,null,null,null,null,null,null,null,null,null,null,null,null,null,null,null,null,null,null,null,null,null,null,null,null,null,null,null,null,null,null,null,"OK","OK"]
[null,null,null,null,null,null,null,null,null,null,null,null,null,null,null,null,null,null,null,null,null,null,null,null,null,null,null,null,null,null,null,null,null,null,null,null,null,null,null,null,null,null,null,null,null,null,null,"OK","OK"]
[null,null,null,null,null,null,null,null,null,null,null,null,null,null,null,null,null,null,null,null,null,null,null,null,null,null,null,null,null,null,null,null,null,null,null,null,null,null,null,null,null,null,null,null,null,null,null,"OK","OK"]
[null,null,null,null,null,null,null,null,null,null,null,null,null,null,null,null,null,null,null,null,null,null,null,null,null,null,null,null,null,null,null,null,null,null,null,null,null,null,null,null,null,null,null,null,null,null,null,"OK","OK"]
[null,null,null,null,null,null,null,null,null,null,null,null,null,null,null,null,null,null,null,null,null,null,null,null,null,null,null,null,null,null,null,null,null,null,null,null,null,null,null,null,null,null,null,null,null,null,null,"OK","OK"]
[null,null,null,null,null,null,null,null,null,null,null,null,null,null,null,null,null,null,null,null,null,null,null,null,null,null,null,null,null,null,null,null,null,null,null,null,null,null,null,null,null,null,null,null,null,null,null,"OK","OK"]
[null,null,null,null,null,null,null,null,null,null,null,null,null,null,null,null,null,null,null,null,null,null,null,null,null,null,null,null,null,null,null,null,null,null,null,null,null,null,null,null,null,null,null,null,null,null,null,"OK","OK"]
[null,null,null,null,null,null,null,null,null,null,null,null,null,null,null,null,null,null,null,null,null,null,null,null,null,null,null,null,null,null,null,null,null,null,null,null,null,null,null,null,null,null,null,null,null,null,null,"OK","OK"]
[null,null,null,null,null,null,null,null,null,null,null,null,null,null,null,null,null,null,null,null,null,null,null,null,null,null,null,null,null,null,null,null,null,null,null,null,null,null,null,null,null,null,null,null,null,null,null,"OK","OK"]
[null,null,null,null,null,null,null,null,null,null,null,null,null,null,null,null,null,null,null,null,null,null,null,null,null,null,null,null,null,null,null,null,null,null,null,null,null,null,null,null,null,null,null,null,null,null,null,"OK","OK"]
[null,null,null,null,null,null,null,null,null,null,null,null,null,null,null,null,null,null,null,null,null,null,null,null,null,null,null,null,null,null,null,null,null,null,null,null,null,null,null,null,null,null,null,null,null,null,null,"OK","OK"]
[null,null,null,null,null,null,null,null,null,null,null,null,null,null,null,null,null,null,null,null,null,null,null,null,null,null,null,null,null,null,null,null,null,null,null,null,null,null,null,null,null,null,null,null,null,null,null,"OK","OK"]
[null,null,null,null,null,null,null,null,null,null,null,null,null,null,null,null,null,null,null,null,null,null,null,null,null,null,null,null,null,null,null,null,null,null,null,null,null,null,null,null,null,null,null,null,null,null,null,"OK","OK"]
[null,null,null,null,null,null,null,null,null,null,null,null,null,null,null,null,null,null,null,null,null,null,null,null,null,null,null,null,null,null,null,null,null,null,null,null,null,null,null,null,null,null,null,null,null,null,null,"OK","OK"]
[null,null,null,null,null,null,null,null,null,null,null,null,null,null,null,null,null,null,null,null,null,null,null,null,null,null,null,null,null,null,null,null,null,null,null,null,null,null,null,null,null,null,null,null,null,null,null,"OK","OK"]
[null,null,null,null,null,null,null,null,null,null,null,null,null,null,null,null,null,null,null,null,null,null,null,null,null,null,null,null,null,null,null,null,null,null,null,null,null,null,null,null,null,null,null,null,null,null,null,"OK","OK"]
[null,null,null,null,null,null,null,null,null,null,null,null,null,null,null,null,null,null,null,null,null,null,null,null,null,null,null,null,null,null,null,null,null,null,null,null,null,null,null,null,null,null,null,null,null,null,null,"OK","OK"]
[null,null,null,null,null,null,null,null,null,null,null,null,null,null,null,null,null,null,null,null,null,null,null,null,null,null,null,null,null,null,null,null,null,null,null,null,null,null,null,null,null,null,null,null,null,null,null,"OK","OK"]
[null,null,null,null,null,null,null,null,null,null,null,null,null,null,null,null,null,null,null,null,null,null,null,null,null,null,null,null,null,null,null,null,null,null,null,null,null,null,null,null,null,null,null,null,null,null,null,"OK","OK"]
[null,null,null,null,null,null,null,null,null,null,null,null,null,null,null,null,null,null,null,null,null,null,null,null,null,null,null,null,null,null,null,null,null,null,null,null,null,null,null,null,null,null,null,null,null,null,null,"OK","OK"]
[null,null,null,null,null,null,null,null,null,null,null,null,null,null,null,null,null,null,null,null,null,null,null,null,null,null,null,null,null,null,null,null,null,null,null,null,null,null,null,null,null,null,null,null,null,null,null,"OK","OK"]
[null,null,null,null,null,null,null,null,null,null,null,null,null,null,null,null,null,null,null,null,null,null,null,null,null,null,null,null,null,null,null,null,null,null,null,null,null,null,null,null,null,null,null,null,null,null,null,{"$f":"IF(P341-W341-Y341-AA341-AC341-AE341-AG341-AI341-AK341-AM341-AO341-AQ341-AS341=0,\"OK\",\"Compromisos diferentes al valor estimado en la vigencia actual\")","v":"OK"},{"$f":"IF(P341-X341-Z341-AB341-AD341-AF341-AH341-AJ341-AL341-AN341-AP341-AR341-AT341=0,\"OK\",\"Obligaciones diferentes al valor estimado en la vigencia actual\")","v":"OK"}]
[null,null,null,null,null,null,null,null,null,null,null,null,null,null,null,null,null,null,null,null,null,null,null,null,null,null,null,null,null,null,null,null,null,null,null,null,null,null,null,null,null,null,null,null,null,null,null,"OK","OK"]
[null,null,null,null,null,null,null,null,null,null,null,null,null,null,null,null,null,null,null,null,null,null,null,null,null,null,null,null,null,null,null,null,null,null,null,null,null,null,null,null,null,null,null,null,null,null,null,"OK","OK"]
[null,null,null,null,null,null,null,null,null,null,null,null,null,null,null,null,null,null,null,null,null,null,null,null,null,null,null,null,null,null,null,null,null,null,null,null,null,null,null,null,null,null,null,null,null,null,null,"OK","OK"]
[null,null,null,null,null,null,null,null,null,null,null,null,null,null,null,null,null,null,null,null,null,null,null,null,null,null,null,null,null,null,null,null,null,null,null,null,null,null,null,null,null,null,null,null,null,null,null,"OK","OK"]
[null,null,null,null,null,null,null,null,null,null,null,null,null,null,null,null,null,null,null,null,null,null,null,null,null,null,null,null,null,null,null,null,null,null,null,null,null,null,null,null,null,null,null,null,null,null,null,"OK","OK"]
[null,null,null,null,null,null,null,null,null,null,null,null,null,null,null,null,null,null,null,null,null,null,null,null,null,null,null,null,null,null,null,null,null,null,null,null,null,null,null,null,null,null,null,null,null,null,null,"OK","OK"]
[null,null,null,null,null,null,null,null,null,null,null,null,null,null,null,null,null,null,null,null,null,null,null,null,null,null,null,null,null,null,null,null,null,null,null,null,null,null,null,null,null,null,null,null,null,null,null,"OK","OK"]
[null,null,null,null,null,null,null,null,null,null,null,null,null,null,null,null,null,null,null,null,null,null,null,null,null,null,null,null,null,null,null,null,null,null,null,null,null,null,null,null,null,null,null,null,null,null,null,"OK","OK"]
[null,null,null,null,null,null,null,null,null,null,null,null,null,null,null,null,null,null,null,null,null,null,null,null,null,null,null,null,null,null,null,null,null,null,null,null,null,null,null,null,null,null,null,null,null,null,null,"OK","OK"]
[null,null,null,null,null,null,null,null,null,null,null,null,null,null,null,null,null,null,null,null,null,null,null,null,null,null,null,null,null,null,null,null,null,null,null,null,null,null,null,null,null,null,null,null,null,null,null,"OK","OK"]
[null,null,null,null,null,null,null,null,null,null,null,null,null,null,null,null,null,null,null,null,null,null,null,null,null,null,null,null,null,null,null,null,null,null,null,null,null,null,null,null,null,null,null,null,null,null,null,"OK","OK"]
[null,null,null,null,null,null,null,null,null,null,null,null,null,null,null,null,null,null,null,null,null,null,null,null,null,null,null,null,null,null,null,null,null,null,null,null,null,null,null,null,null,null,null,null,null,null,null,"OK","OK"]
[null,null,null,null,null,null,null,null,null,null,null,null,null,null,null,null,null,null,null,null,null,null,null,null,null,null,null,null,null,null,null,null,null,null,null,null,null,null,null,null,null,null,null,null,null,null,null,"OK","OK"]
[null,null,null,null,null,null,null,null,null,null,null,null,null,null,null,null,null,null,null,null,null,null,null,null,null,null,null,null,null,null,null,null,null,null,null,null,null,null,null,null,null,null,null,null,null,null,null,"OK","OK"]
[null,null,null,null,null,null,null,null,null,null,null,null,null,null,null,null,null,null,null,null,null,null,null,null,null,null,null,null,null,null,null,null,null,null,null,null,null,null,null,null,null,null,null,null,null,null,null,"OK","OK"]
[null,null,null,null,null,null,null,null,null,null,null,null,null,null,null,null,null,null,null,null,null,null,null,null,null,null,null,null,null,null,null,null,null,null,null,null,null,null,null,null,null,null,null,null,null,null,null,"OK","OK"]
[null,null,null,null,null,null,null,null,null,null,null,null,null,null,null,null,null,null,null,null,null,null,null,null,null,null,null,null,null,null,null,null,null,null,null,null,null,null,null,null,null,null,null,null,null,null,null,"OK","OK"]
[null,null,null,null,null,null,null,null,null,null,null,null,null,null,null,null,null,null,null,null,null,null,null,null,null,null,null,null,null,null,null,null,null,null,null,null,null,null,null,null,null,null,null,null,null,null,null,"OK","OK"]
[null,null,null,null,null,null,null,null,null,null,null,null,null,null,null,null,null,null,null,null,null,null,null,null,null,null,null,null,null,null,null,null,null,null,null,null,null,null,null,null,null,null,null,null,null,null,null,"OK","OK"]
[null,null,null,null,null,null,null,null,null,null,null,null,null,null,null,null,null,null,null,null,null,null,null,null,null,null,null,null,null,null,null,null,null,null,null,null,null,null,null,null,null,null,null,null,null,null,null,"OK","OK"]
[null,null,null,null,null,null,null,null,null,null,null,null,null,null,null,null,null,null,null,null,null,null,null,null,null,null,null,null,null,null,null,null,null,null,null,null,null,null,null,null,null,null,null,null,null,null,null,"OK","OK"]
[null,null,null,null,null,null,null,null,null,null,null,null,null,null,null,null,null,null,null,null,null,null,null,null,null,null,null,null,null,null,null,null,null,null,null,null,null,null,null,null,null,null,null,null,null,null,null,"OK","OK"]
[null,null,null,null,null,null,null,null,null,null,null,null,null,null,null,null,null,null,null,null,null,null,null,null,null,null,null,null,null,null,null,null,null,null,null,null,null,null,null,null,null,null,null,null,null,null,null,"OK","OK"]
[null,null,null,null,null,null,null,null,null,null,null,null,null,null,null,null,null,null,null,null,null,null,null,null,null,null,null,null,null,null,null,null,null,null,null,null,null,null,null,null,null,null,null,null,null,null,null,"OK","OK"]
[null,null,null,null,null,null,null,null,null,null,null,null,null,null,null,null,null,null,null,null,null,null,null,null,null,null,null,null,null,null,null,null,null,null,null,null,null,null,null,null,null,null,null,null,null,null,null,"OK","OK"]
[null,null,null,null,null,null,null,null,null,null,null,null,null,null,null,null,null,null,null,null,null,null,null,null,null,null,null,null,null,null,null,null,null,null,null,null,null,null,null,null,null,null,null,null,null,null,null,"OK","OK"]
[null,null,null,null,null,null,null,null,null,null,null,null,null,null,null,null,null,null,null,null,null,null,null,null,null,null,null,null,null,null,null,null,null,null,null,null,null,null,null,null,null,null,null,null,null,null,null,"OK","OK"]
[null,null,null,null,null,null,null,null,null,null,null,null,null,null,null,null,null,null,null,null,null,null,null,null,null,null,null,null,null,null,null,null,null,null,null,null,null,null,null,null,null,null,null,null,null,null,null,"OK","OK"]
[null,null,null,null,null,null,null,null,null,null,null,null,null,null,null,null,null,null,null,null,null,null,null,null,null,null,null,null,null,null,null,null,null,null,null,null,null,null,null,null,null,null,null,null,null,null,null,"OK","OK"]
[null,null,null,null,null,null,null,null,null,null,null,null,null,null,null,null,null,null,null,null,null,null,null,null,null,null,null,null,null,null,null,null,null,null,null,null,null,null,null,null,null,null,null,null,null,null,null,"OK","OK"]
[null,null,null,null,null,null,null,null,null,null,null,null,null,null,null,null,null,null,null,null,null,null,null,null,null,null,null,null,null,null,null,null,null,null,null,null,null,null,null,null,null,null,null,null,null,null,null,"OK","OK"]
[null,null,null,null,null,null,null,null,null,null,null,null,null,null,null,null,null,null,null,null,null,null,null,null,null,null,null,null,null,null,null,null,null,null,null,null,null,null,null,null,null,null,null,null,null,null,null,"OK","OK"]
[null,null,null,null,null,null,null,null,null,null,null,null,null,null,null,null,null,null,null,null,null,null,null,null,null,null,null,null,null,null,null,null,null,null,null,null,null,null,null,null,null,null,null,null,null,null,null,"OK","OK"]
[null,null,null,null,null,null,null,null,null,null,null,null,null,null,null,null,null,null,null,null,null,null,null,null,null,null,null,null,null,null,null,null,null,null,null,null,null,null,null,null,null,null,null,null,null,null,null,"OK","OK"]
[null,null,null,null,null,null,null,null,null,null,null,null,null,null,null,null,null,null,null,null,null,null,null,null,null,null,null,null,null,null,null,null,null,null,null,null,null,null,null,null,null,null,null,null,null,null,null,"OK","OK"]
[null,null,null,null,null,null,null,null,null,null,null,null,null,null,null,null,null,null,null,null,null,null,null,null,null,null,null,null,null,null,null,null,null,null,null,null,null,null,null,null,null,null,null,null,null,null,null,"OK","OK"]
[null,null,null,null,null,null,null,null,null,null,null,null,null,null,null,null,null,null,null,null,null,null,null,null,null,null,null,null,null,null,null,null,null,null,null,null,null,null,null,null,null,null,null,null,null,null,null,"OK","OK"]
[null,null,null,null,null,null,null,null,null,null,null,null,null,null,null,null,null,null,null,null,null,null,null,null,null,null,null,null,null,null,null,null,null,null,null,null,null,null,null,null,null,null,null,null,null,null,null,"OK","OK"]
[null,null,null,null,null,null,null,null,null,null,null,null,null,null,null,null,null,null,null,null,null,null,null,null,null,null,null,null,null,null,null,null,null,null,null,null,null,null,null,null,null,null,null,null,null,null,null,"OK","OK"]
[null,null,null,null,null,null,null,null,null,null,null,null,null,null,null,null,null,null,null,null,null,null,null,null,null,null,null,null,null,null,null,null,null,null,null,null,null,null,null,null,null,null,null,null,null,null,null,"OK","OK"]
[null,null,null,null,null,null,null,null,null,null,null,null,null,null,null,null,null,null,null,null,null,null,null,null,null,null,null,null,null,null,null,null,null,null,null,null,null,null,null,null,null,null,null,null,null,null,null,"OK","OK"]
[null,null,null,null,null,null,null,null,null,null,null,null,null,null,null,null,null,null,null,null,null,null,null,null,null,null,null,null,null,null,null,null,null,null,null,null,null,null,null,null,null,null,null,null,null,null,null,"OK","OK"]
[null,null,null,null,null,null,null,null,null,null,null,null,null,null,null,null,null,null,null,null,null,null,null,null,null,null,null,null,null,null,null,null,null,null,null,null,null,null,null,null,null,null,null,null,null,null,null,"OK","OK"]
[null,null,null,null,null,null,null,null,null,null,null,null,null,null,null,null,null,null,null,null,null,null,null,null,null,null,null,null,null,null,null,null,null,null,null,null,null,null,null,null,null,null,null,null,null,null,null,"OK","OK"]
[null,null,null,null,null,null,null,null,null,null,null,null,null,null,null,null,null,null,null,null,null,null,null,null,null,null,null,null,null,null,null,null,null,null,null,null,null,null,null,null,null,null,null,null,null,null,null,"OK","OK"]
[null,null,null,null,null,null,null,null,null,null,null,null,null,null,null,null,null,null,null,null,null,null,null,null,null,null,null,null,null,null,null,null,null,null,null,null,null,null,null,null,null,null,null,null,null,null,null,"OK","OK"]
[null,null,null,null,null,null,null,null,null,null,null,null,null,null,null,null,null,null,null,null,null,null,null,null,null,null,null,null,null,null,null,null,null,null,null,null,null,null,null,null,null,null,null,null,null,null,null,"OK","OK"]
[null,null,null,null,null,null,null,null,null,null,null,null,null,null,null,null,null,null,null,null,null,null,null,null,null,null,null,null,null,null,null,null,null,null,null,null,null,null,null,null,null,null,null,null,null,null,null,"OK","OK"]
[null,null,null,null,null,null,null,null,null,null,null,null,null,null,null,null,null,null,null,null,null,null,null,null,null,null,null,null,null,null,null,null,null,null,null,null,null,null,null,null,null,null,null,null,null,null,null,"OK","OK"]
[null,null,null,null,null,null,null,null,null,null,null,null,null,null,null,null,null,null,null,null,null,null,null,null,null,null,null,null,null,null,null,null,null,null,null,null,null,null,null,null,null,null,null,null,null,null,null,"OK","OK"]
[null,null,null,null,null,null,null,null,null,null,null,null,null,null,null,null,null,null,null,null,null,null,null,null,null,null,null,null,null,null,null,null,null,null,null,null,null,null,null,null,null,null,null,null,null,null,null,"OK","OK"]
[null,null,null,null,null,null,null,null,null,null,null,null,null,null,null,null,null,null,null,null,null,null,null,null,null,null,null,null,null,null,null,null,null,null,null,null,null,null,null,null,null,null,null,null,null,null,null,"OK","OK"]
[null,null,null,null,null,null,null,null,null,null,null,null,null,null,null,null,null,null,null,null,null,null,null,null,null,null,null,null,null,null,null,null,null,null,null,null,null,null,null,null,null,null,null,null,null,null,null,"OK","OK"]
[null,null,null,null,null,null,null,null,null,null,null,null,null,null,null,null,null,null,null,null,null,null,null,null,null,null,null,null,null,null,null,null,null,null,null,null,null,null,null,null,null,null,null,null,null,null,null,"OK","OK"]
[null,null,null,null,null,null,null,null,null,null,null,null,null,null,null,null,null,null,null,null,null,null,null,null,null,null,null,null,null,null,null,null,null,null,null,null,null,null,null,null,null,null,null,null,null,null,null,"OK","OK"]
[null,null,null,null,null,null,null,null,null,null,null,null,null,null,null,null,null,null,null,null,null,null,null,null,null,null,null,null,null,null,null,null,null,null,null,null,null,null,null,null,null,null,null,null,null,null,null,"OK","OK"]
[null,null,null,null,null,null,null,null,null,null,null,null,null,null,null,null,null,null,null,null,null,null,null,null,null,null,null,null,null,null,null,null,null,null,null,null,null,null,null,null,null,null,null,null,null,null,null,"OK","OK"]
[null,null,null,null,null,null,null,null,null,null,null,null,null,null,null,null,null,null,null,null,null,null,null,null,null,null,null,null,null,null,null,null,null,null,null,null,null,null,null,null,null,null,null,null,null,null,null,"OK","OK"]
[null,null,null,null,null,null,null,null,null,null,null,null,null,null,null,null,null,null,null,null,null,null,null,null,null,null,null,null,null,null,null,null,null,null,null,null,null,null,null,null,null,null,null,null,null,null,null,"OK","OK"]
[null,null,null,null,null,null,null,null,null,null,null,null,null,null,null,null,null,null,null,null,null,null,null,null,null,null,null,null,null,null,null,null,null,null,null,null,null,null,null,null,null,null,null,null,null,null,null,"OK","OK"]
[null,null,null,null,null,null,null,null,null,null,null,null,null,null,null,null,null,null,null,null,null,null,null,null,null,null,null,null,null,null,null,null,null,null,null,null,null,null,null,null,null,null,null,null,null,null,null,"OK","OK"]
[null,null,null,null,null,null,null,null,null,null,null,null,null,null,null,null,null,null,null,null,null,null,null,null,null,null,null,null,null,null,null,null,null,null,null,null,null,null,null,null,null,null,null,null,null,null,null,"OK","OK"]
[null,null,null,null,null,null,null,null,null,null,null,null,null,null,null,null,null,null,null,null,null,null,null,null,null,null,null,null,null,null,null,null,null,null,null,null,null,null,null,null,null,null,null,null,null,null,null,"OK","OK"]
[null,null,null,null,null,null,null,null,null,null,null,null,null,null,null,null,null,null,null,null,null,null,null,null,null,null,null,null,null,null,null,null,null,null,null,null,null,null,null,null,null,null,null,null,null,null,null,{"$f":"IF(P405-W405-Y405-AA405-AC405-AE405-AG405-AI405-AK405-AM405-AO405-AQ405-AS405=0,\"OK\",\"Compromisos diferentes al valor estimado en la vigencia actual\")","v":"OK"},{"$f":"IF(P405-X405-Z405-AB405-AD405-AF405-AH405-AJ405-AL405-AN405-AP405-AR405-AT405=0,\"OK\",\"Obligaciones diferentes al valor estimado en la vigencia actual\")","v":"OK"}]
[null,null,null,null,null,null,null,null,null,null,null,null,null,null,null,null,null,null,null,null,null,null,null,null,null,null,null,null,null,null,null,null,null,null,null,null,null,null,null,null,null,null,null,null,null,null,null,"OK","OK"]
[null,null,null,null,null,null,null,null,null,null,null,null,null,null,null,null,null,null,null,null,null,null,null,null,null,null,null,null,null,null,null,null,null,null,null,null,null,null,null,null,null,null,null,null,null,null,null,"OK","OK"]
[null,null,null,null,null,null,null,null,null,null,null,null,null,null,null,null,null,null,null,null,null,null,null,null,null,null,null,null,null,null,null,null,null,null,null,null,null,null,null,null,null,null,null,null,null,null,null,"OK","OK"]
[null,null,null,null,null,null,null,null,null,null,null,null,null,null,null,null,null,null,null,null,null,null,null,null,null,null,null,null,null,null,null,null,null,null,null,null,null,null,null,null,null,null,null,null,null,null,null,"OK","OK"]
[null,null,null,null,null,null,null,null,null,null,null,null,null,null,null,null,null,null,null,null,null,null,null,null,null,null,null,null,null,null,null,null,null,null,null,null,null,null,null,null,null,null,null,null,null,null,null,"OK","OK"]
[null,null,null,null,null,null,null,null,null,null,null,null,null,null,null,null,null,null,null,null,null,null,null,null,null,null,null,null,null,null,null,null,null,null,null,null,null,null,null,null,null,null,null,null,null,null,null,"OK","OK"]
[null,null,null,null,null,null,null,null,null,null,null,null,null,null,null,null,null,null,null,null,null,null,null,null,null,null,null,null,null,null,null,null,null,null,null,null,null,null,null,null,null,null,null,null,null,null,null,"OK","OK"]
[null,null,null,null,null,null,null,null,null,null,null,null,null,null,null,null,null,null,null,null,null,null,null,null,null,null,null,null,null,null,null,null,null,null,null,null,null,null,null,null,null,null,null,null,null,null,null,"OK","OK"]
[null,null,null,null,null,null,null,null,null,null,null,null,null,null,null,null,null,null,null,null,null,null,null,null,null,null,null,null,null,null,null,null,null,null,null,null,null,null,null,null,null,null,null,null,null,null,null,"OK","OK"]
[null,null,null,null,null,null,null,null,null,null,null,null,null,null,null,null,null,null,null,null,null,null,null,null,null,null,null,null,null,null,null,null,null,null,null,null,null,null,null,null,null,null,null,null,null,null,null,"OK","OK"]
[null,null,null,null,null,null,null,null,null,null,null,null,null,null,null,null,null,null,null,null,null,null,null,null,null,null,null,null,null,null,null,null,null,null,null,null,null,null,null,null,null,null,null,null,null,null,null,"OK","OK"]
[null,null,null,null,null,null,null,null,null,null,null,null,null,null,null,null,null,null,null,null,null,null,null,null,null,null,null,null,null,null,null,null,null,null,null,null,null,null,null,null,null,null,null,null,null,null,null,"OK","OK"]
[null,null,null,null,null,null,null,null,null,null,null,null,null,null,null,null,null,null,null,null,null,null,null,null,null,null,null,null,null,null,null,null,null,null,null,null,null,null,null,null,null,null,null,null,null,null,null,"OK","OK"]
[null,null,null,null,null,null,null,null,null,null,null,null,null,null,null,null,null,null,null,null,null,null,null,null,null,null,null,null,null,null,null,null,null,null,null,null,null,null,null,null,null,null,null,null,null,null,null,"OK","OK"]
[null,null,null,null,null,null,null,null,null,null,null,null,null,null,null,null,null,null,null,null,null,null,null,null,null,null,null,null,null,null,null,null,null,null,null,null,null,null,null,null,null,null,null,null,null,null,null,"OK","OK"]
[null,null,null,null,null,null,null,null,null,null,null,null,null,null,null,null,null,null,null,null,null,null,null,null,null,null,null,null,null,null,null,null,null,null,null,null,null,null,null,null,null,null,null,null,null,null,null,"OK","OK"]
[null,null,null,null,null,null,null,null,null,null,null,null,null,null,null,null,null,null,null,null,null,null,null,null,null,null,null,null,null,null,null,null,null,null,null,null,null,null,null,null,null,null,null,null,null,null,null,"OK","OK"]
[null,null,null,null,null,null,null,null,null,null,null,null,null,null,null,null,null,null,null,null,null,null,null,null,null,null,null,null,null,null,null,null,null,null,null,null,null,null,null,null,null,null,null,null,null,null,null,"OK","OK"]
[null,null,null,null,null,null,null,null,null,null,null,null,null,null,null,null,null,null,null,null,null,null,null,null,null,null,null,null,null,null,null,null,null,null,null,null,null,null,null,null,null,null,null,null,null,null,null,"OK","OK"]
[null,null,null,null,null,null,null,null,null,null,null,null,null,null,null,null,null,null,null,null,null,null,null,null,null,null,null,null,null,null,null,null,null,null,null,null,null,null,null,null,null,null,null,null,null,null,null,"OK","OK"]
[null,null,null,null,null,null,null,null,null,null,null,null,null,null,null,null,null,null,null,null,null,null,null,null,null,null,null,null,null,null,null,null,null,null,null,null,null,null,null,null,null,null,null,null,null,null,null,"OK","OK"]
[null,null,null,null,null,null,null,null,null,null,null,null,null,null,null,null,null,null,null,null,null,null,null,null,null,null,null,null,null,null,null,null,null,null,null,null,null,null,null,null,null,null,null,null,null,null,null,"OK","OK"]
[null,null,null,null,null,null,null,null,null,null,null,null,null,null,null,null,null,null,null,null,null,null,null,null,null,null,null,null,null,null,null,null,null,null,null,null,null,null,null,null,null,null,null,null,null,null,null,"OK","OK"]
[null,null,null,null,null,null,null,null,null,null,null,null,null,null,null,null,null,null,null,null,null,null,null,null,null,null,null,null,null,null,null,null,null,null,null,null,null,null,null,null,null,null,null,null,null,null,null,"OK","OK"]
[null,null,null,null,null,null,null,null,null,null,null,null,null,null,null,null,null,null,null,null,null,null,null,null,null,null,null,null,null,null,null,null,null,null,null,null,null,null,null,null,null,null,null,null,null,null,null,"OK","OK"]
[null,null,null,null,null,null,null,null,null,null,null,null,null,null,null,null,null,null,null,null,null,null,null,null,null,null,null,null,null,null,null,null,null,null,null,null,null,null,null,null,null,null,null,null,null,null,null,"OK","OK"]
[null,null,null,null,null,null,null,null,null,null,null,null,null,null,null,null,null,null,null,null,null,null,null,null,null,null,null,null,null,null,null,null,null,null,null,null,null,null,null,null,null,null,null,null,null,null,null,"OK","OK"]
[null,null,null,null,null,null,null,null,null,null,null,null,null,null,null,null,null,null,null,null,null,null,null,null,null,null,null,null,null,null,null,null,null,null,null,null,null,null,null,null,null,null,null,null,null,null,null,"OK","OK"]
[null,null,null,null,null,null,null,null,null,null,null,null,null,null,null,null,null,null,null,null,null,null,null,null,null,null,null,null,null,null,null,null,null,null,null,null,null,null,null,null,null,null,null,null,null,null,null,"OK","OK"]
[null,null,null,null,null,null,null,null,null,null,null,null,null,null,null,null,null,null,null,null,null,null,null,null,null,null,null,null,null,null,null,null,null,null,null,null,null,null,null,null,null,null,null,null,null,null,null,"OK","OK"]
[null,null,null,null,null,null,null,null,null,null,null,null,null,null,null,null,null,null,null,null,null,null,null,null,null,null,null,null,null,null,null,null,null,null,null,null,null,null,null,null,null,null,null,null,null,null,null,"OK","OK"]
[null,null,null,null,null,null,null,null,null,null,null,null,null,null,null,null,null,null,null,null,null,null,null,null,null,null,null,null,null,null,null,null,null,null,null,null,null,null,null,null,null,null,null,null,null,null,null,"OK","OK"]
[null,null,null,null,null,null,null,null,null,null,null,null,null,null,null,null,null,null,null,null,null,null,null,null,null,null,null,null,null,null,null,null,null,null,null,null,null,null,null,null,null,null,null,null,null,null,null,"OK","OK"]
[null,null,null,null,null,null,null,null,null,null,null,null,null,null,null,null,null,null,null,null,null,null,null,null,null,null,null,null,null,null,null,null,null,null,null,null,null,null,null,null,null,null,null,null,null,null,null,"OK","OK"]
[null,null,null,null,null,null,null,null,null,null,null,null,null,null,null,null,null,null,null,null,null,null,null,null,null,null,null,null,null,null,null,null,null,null,null,null,null,null,null,null,null,null,null,null,null,null,null,"OK","OK"]
[null,null,null,null,null,null,null,null,null,null,null,null,null,null,null,null,null,null,null,null,null,null,null,null,null,null,null,null,null,null,null,null,null,null,null,null,null,null,null,null,null,null,null,null,null,null,null,"OK","OK"]
[null,null,null,null,null,null,null,null,null,null,null,null,null,null,null,null,null,null,null,null,null,null,null,null,null,null,null,null,null,null,null,null,null,null,null,null,null,null,null,null,null,null,null,null,null,null,null,"OK","OK"]
[null,null,null,null,null,null,null,null,null,null,null,null,null,null,null,null,null,null,null,null,null,null,null,null,null,null,null,null,null,null,null,null,null,null,null,null,null,null,null,null,null,null,null,null,null,null,null,"OK","OK"]
[null,null,null,null,null,null,null,null,null,null,null,null,null,null,null,null,null,null,null,null,null,null,null,null,null,null,null,null,null,null,null,null,null,null,null,null,null,null,null,null,null,null,null,null,null,null,null,"OK","OK"]
[null,null,null,null,null,null,null,null,null,null,null,null,null,null,null,null,null,null,null,null,null,null,null,null,null,null,null,null,null,null,null,null,null,null,null,null,null,null,null,null,null,null,null,null,null,null,null,"OK","OK"]
[null,null,null,null,null,null,null,null,null,null,null,null,null,null,null,null,null,null,null,null,null,null,null,null,null,null,null,null,null,null,null,null,null,null,null,null,null,null,null,null,null,null,null,null,null,null,null,"OK","OK"]
[null,null,null,null,null,null,null,null,null,null,null,null,null,null,null,null,null,null,null,null,null,null,null,null,null,null,null,null,null,null,null,null,null,null,null,null,null,null,null,null,null,null,null,null,null,null,null,"OK","OK"]
[null,null,null,null,null,null,null,null,null,null,null,null,null,null,null,null,null,null,null,null,null,null,null,null,null,null,null,null,null,null,null,null,null,null,null,null,null,null,null,null,null,null,null,null,null,null,null,"OK","OK"]
[null,null,null,null,null,null,null,null,null,null,null,null,null,null,null,null,null,null,null,null,null,null,null,null,null,null,null,null,null,null,null,null,null,null,null,null,null,null,null,null,null,null,null,null,null,null,null,"OK","OK"]
[null,null,null,null,null,null,null,null,null,null,null,null,null,null,null,null,null,null,null,null,null,null,null,null,null,null,null,null,null,null,null,null,null,null,null,null,null,null,null,null,null,null,null,null,null,null,null,"OK","OK"]
[null,null,null,null,null,null,null,null,null,null,null,null,null,null,null,null,null,null,null,null,null,null,null,null,null,null,null,null,null,null,null,null,null,null,null,null,null,null,null,null,null,null,null,null,null,null,null,"OK","OK"]
[null,null,null,null,null,null,null,null,null,null,null,null,null,null,null,null,null,null,null,null,null,null,null,null,null,null,null,null,null,null,null,null,null,null,null,null,null,null,null,null,null,null,null,null,null,null,null,"OK","OK"]
[null,null,null,null,null,null,null,null,null,null,null,null,null,null,null,null,null,null,null,null,null,null,null,null,null,null,null,null,null,null,null,null,null,null,null,null,null,null,null,null,null,null,null,null,null,null,null,"OK","OK"]
[null,null,null,null,null,null,null,null,null,null,null,null,null,null,null,null,null,null,null,null,null,null,null,null,null,null,null,null,null,null,null,null,null,null,null,null,null,null,null,null,null,null,null,null,null,null,null,"OK","OK"]
[null,null,null,null,null,null,null,null,null,null,null,null,null,null,null,null,null,null,null,null,null,null,null,null,null,null,null,null,null,null,null,null,null,null,null,null,null,null,null,null,null,null,null,null,null,null,null,"OK","OK"]
[null,null,null,null,null,null,null,null,null,null,null,null,null,null,null,null,null,null,null,null,null,null,null,null,null,null,null,null,null,null,null,null,null,null,null,null,null,null,null,null,null,null,null,null,null,null,null,"OK","OK"]
[null,null,null,null,null,null,null,null,null,null,null,null,null,null,null,null,null,null,null,null,null,null,null,null,null,null,null,null,null,null,null,null,null,null,null,null,null,null,null,null,null,null,null,null,null,null,null,"OK","OK"]
[null,null,null,null,null,null,null,null,null,null,null,null,null,null,null,null,null,null,null,null,null,null,null,null,null,null,null,null,null,null,null,null,null,null,null,null,null,null,null,null,null,null,null,null,null,null,null,"OK","OK"]
[null,null,null,null,null,null,null,null,null,null,null,null,null,null,null,null,null,null,null,null,null,null,null,null,null,null,null,null,null,null,null,null,null,null,null,null,null,null,null,null,null,null,null,null,null,null,null,"OK","OK"]
[null,null,null,null,null,null,null,null,null,null,null,null,null,null,null,null,null,null,null,null,null,null,null,null,null,null,null,null,null,null,null,null,null,null,null,null,null,null,null,null,null,null,null,null,null,null,null,"OK","OK"]
[null,null,null,null,null,null,null,null,null,null,null,null,null,null,null,null,null,null,null,null,null,null,null,null,null,null,null,null,null,null,null,null,null,null,null,null,null,null,null,null,null,null,null,null,null,null,null,"OK","OK"]
[null,null,null,null,null,null,null,null,null,null,null,null,null,null,null,null,null,null,null,null,null,null,null,null,null,null,null,null,null,null,null,null,null,null,null,null,null,null,null,null,null,null,null,null,null,null,null,"OK","OK"]
[null,null,null,null,null,null,null,null,null,null,null,null,null,null,null,null,null,null,null,null,null,null,null,null,null,null,null,null,null,null,null,null,null,null,null,null,null,null,null,null,null,null,null,null,null,null,null,"OK","OK"]
[null,null,null,null,null,null,null,null,null,null,null,null,null,null,null,null,null,null,null,null,null,null,null,null,null,null,null,null,null,null,null,null,null,null,null,null,null,null,null,null,null,null,null,null,null,null,null,"OK","OK"]
[null,null,null,null,null,null,null,null,null,null,null,null,null,null,null,null,null,null,null,null,null,null,null,null,null,null,null,null,null,null,null,null,null,null,null,null,null,null,null,null,null,null,null,null,null,null,null,"OK","OK"]
[null,null,null,null,null,null,null,null,null,null,null,null,null,null,null,null,null,null,null,null,null,null,null,null,null,null,null,null,null,null,null,null,null,null,null,null,null,null,null,null,null,null,null,null,null,null,null,"OK","OK"]
[null,null,null,null,null,null,null,null,null,null,null,null,null,null,null,null,null,null,null,null,null,null,null,null,null,null,null,null,null,null,null,null,null,null,null,null,null,null,null,null,null,null,null,null,null,null,null,"OK","OK"]
[null,null,null,null,null,null,null,null,null,null,null,null,null,null,null,null,null,null,null,null,null,null,null,null,null,null,null,null,null,null,null,null,null,null,null,null,null,null,null,null,null,null,null,null,null,null,null,"OK","OK"]
[null,null,null,null,null,null,null,null,null,null,null,null,null,null,null,null,null,null,null,null,null,null,null,null,null,null,null,null,null,null,null,null,null,null,null,null,null,null,null,null,null,null,null,null,null,null,null,{"$f":"IF(P469-W469-Y469-AA469-AC469-AE469-AG469-AI469-AK469-AM469-AO469-AQ469-AS469=0,\"OK\",\"Compromisos diferentes al valor estimado en la vigencia actual\")","v":"OK"},{"$f":"IF(P469-X469-Z469-AB469-AD469-AF469-AH469-AJ469-AL469-AN469-AP469-AR469-AT469=0,\"OK\",\"Obligaciones diferentes al valor estimado en la vigencia actual\")","v":"OK"}]
[null,null,null,null,null,null,null,null,null,null,null,null,null,null,null,null,null,null,null,null,null,null,null,null,null,null,null,null,null,null,null,null,null,null,null,null,null,null,null,null,null,null,null,null,null,null,null,"OK","OK"]
[null,null,null,null,null,null,null,null,null,null,null,null,null,null,null,null,null,null,null,null,null,null,null,null,null,null,null,null,null,null,null,null,null,null,null,null,null,null,null,null,null,null,null,null,null,null,null,"OK","OK"]
[null,null,null,null,null,null,null,null,null,null,null,null,null,null,null,null,null,null,null,null,null,null,null,null,null,null,null,null,null,null,null,null,null,null,null,null,null,null,null,null,null,null,null,null,null,null,null,"OK","OK"]
[null,null,null,null,null,null,null,null,null,null,null,null,null,null,null,null,null,null,null,null,null,null,null,null,null,null,null,null,null,null,null,null,null,null,null,null,null,null,null,null,null,null,null,null,null,null,null,"OK","OK"]
[null,null,null,null,null,null,null,null,null,null,null,null,null,null,null,null,null,null,null,null,null,null,null,null,null,null,null,null,null,null,null,null,null,null,null,null,null,null,null,null,null,null,null,null,null,null,null,"OK","OK"]
[null,null,null,null,null,null,null,null,null,null,null,null,null,null,null,null,null,null,null,null,null,null,null,null,null,null,null,null,null,null,null,null,null,null,null,null,null,null,null,null,null,null,null,null,null,null,null,"OK","OK"]
[null,null,null,null,null,null,null,null,null,null,null,null,null,null,null,null,null,null,null,null,null,null,null,null,null,null,null,null,null,null,null,null,null,null,null,null,null,null,null,null,null,null,null,null,null,null,null,"OK","OK"]
[null,null,null,null,null,null,null,null,null,null,null,null,null,null,null,null,null,null,null,null,null,null,null,null,null,null,null,null,null,null,null,null,null,null,null,null,null,null,null,null,null,null,null,null,null,null,null,"OK","OK"]
[null,null,null,null,null,null,null,null,null,null,null,null,null,null,null,null,null,null,null,null,null,null,null,null,null,null,null,null,null,null,null,null,null,null,null,null,null,null,null,null,null,null,null,null,null,null,null,"OK","OK"]
[null,null,null,null,null,null,null,null,null,null,null,null,null,null,null,null,null,null,null,null,null,null,null,null,null,null,null,null,null,null,null,null,null,null,null,null,null,null,null,null,null,null,null,null,null,null,null,"OK","OK"]
[null,null,null,null,null,null,null,null,null,null,null,null,null,null,null,null,null,null,null,null,null,null,null,null,null,null,null,null,null,null,null,null,null,null,null,null,null,null,null,null,null,null,null,null,null,null,null,"OK","OK"]
[null,null,null,null,null,null,null,null,null,null,null,null,null,null,null,null,null,null,null,null,null,null,null,null,null,null,null,null,null,null,null,null,null,null,null,null,null,null,null,null,null,null,null,null,null,null,null,"OK","OK"]
[null,null,null,null,null,null,null,null,null,null,null,null,null,null,null,null,null,null,null,null,null,null,null,null,null,null,null,null,null,null,null,null,null,null,null,null,null,null,null,null,null,null,null,null,null,null,null,"OK","OK"]
[null,null,null,null,null,null,null,null,null,null,null,null,null,null,null,null,null,null,null,null,null,null,null,null,null,null,null,null,null,null,null,null,null,null,null,null,null,null,null,null,null,null,null,null,null,null,null,"OK","OK"]
[null,null,null,null,null,null,null,null,null,null,null,null,null,null,null,null,null,null,null,null,null,null,null,null,null,null,null,null,null,null,null,null,null,null,null,null,null,null,null,null,null,null,null,null,null,null,null,"OK","OK"]
[null,null,null,null,null,null,null,null,null,null,null,null,null,null,null,null,null,null,null,null,null,null,null,null,null,null,null,null,null,null,null,null,null,null,null,null,null,null,null,null,null,null,null,null,null,null,null,"OK","OK"]
[null,null,null,null,null,null,null,null,null,null,null,null,null,null,null,null,null,null,null,null,null,null,null,null,null,null,null,null,null,null,null,null,null,null,null,null,null,null,null,null,null,null,null,null,null,null,null,"OK","OK"]
[null,null,null,null,null,null,null,null,null,null,null,null,null,null,null,null,null,null,null,null,null,null,null,null,null,null,null,null,null,null,null,null,null,null,null,null,null,null,null,null,null,null,null,null,null,null,null,"OK","OK"]
[null,null,null,null,null,null,null,null,null,null,null,null,null,null,null,null,null,null,null,null,null,null,null,null,null,null,null,null,null,null,null,null,null,null,null,null,null,null,null,null,null,null,null,null,null,null,null,"OK","OK"]
[null,null,null,null,null,null,null,null,null,null,null,null,null,null,null,null,null,null,null,null,null,null,null,null,null,null,null,null,null,null,null,null,null,null,null,null,null,null,null,null,null,null,null,null,null,null,null,"OK","OK"]
[null,null,null,null,null,null,null,null,null,null,null,null,null,null,null,null,null,null,null,null,null,null,null,null,null,null,null,null,null,null,null,null,null,null,null,null,null,null,null,null,null,null,null,null,null,null,null,"OK","OK"]
[null,null,null,null,null,null,null,null,null,null,null,null,null,null,null,null,null,null,null,null,null,null,null,null,null,null,null,null,null,null,null,null,null,null,null,null,null,null,null,null,null,null,null,null,null,null,null,"OK","OK"]
[null,null,null,null,null,null,null,null,null,null,null,null,null,null,null,null,null,null,null,null,null,null,null,null,null,null,null,null,null,null,null,null,null,null,null,null,null,null,null,null,null,null,null,null,null,null,null,"OK","OK"]
[null,null,null,null,null,null,null,null,null,null,null,null,null,null,null,null,null,null,null,null,null,null,null,null,null,null,null,null,null,null,null,null,null,null,null,null,null,null,null,null,null,null,null,null,null,null,null,"OK","OK"]
[null,null,null,null,null,null,null,null,null,null,null,null,null,null,null,null,null,null,null,null,null,null,null,null,null,null,null,null,null,null,null,null,null,null,null,null,null,null,null,null,null,null,null,null,null,null,null,"OK","OK"]
[null,null,null,null,null,null,null,null,null,null,null,null,null,null,null,null,null,null,null,null,null,null,null,null,null,null,null,null,null,null,null,null,null,null,null,null,null,null,null,null,null,null,null,null,null,null,null,"OK","OK"]
[null,null,null,null,null,null,null,null,null,null,null,null,null,null,null,null,null,null,null,null,null,null,null,null,null,null,null,null,null,null,null,null,null,null,null,null,null,null,null,null,null,null,null,null,null,null,null,"OK","OK"]
[null,null,null,null,null,null,null,null,null,null,null,null,null,null,null,null,null,null,null,null,null,null,null,null,null,null,null,null,null,null,null,null,null,null,null,null,null,null,null,null,null,null,null,null,null,null,null,"OK","OK"]
[null,null,null,null,null,null,null,null,null,null,null,null,null,null,null,null,null,null,null,null,null,null,null,null,null,null,null,null,null,null,null,null,null,null,null,null,null,null,null,null,null,null,null,null,null,null,null,"OK","OK"]
[null,null,null,null,null,null,null,null,null,null,null,null,null,null,null,null,null,null,null,null,null,null,null,null,null,null,null,null,null,null,null,null,null,null,null,null,null,null,null,null,null,null,null,null,null,null,null,"OK","OK"]
[null,null,null,null,null,null,null,null,null,null,null,null,null,null,null,null,null,null,null,null,null,null,null,null,null,null,null,null,null,null,null,null,null,null,null,null,null,null,null,null,null,null,null,null,null,null,null,"OK","OK"]
[null,null,null,null,null,null,null,null,null,null,null,null,null,null,null,null,null,null,null,null,null,null,null,null,null,null,null,null,null,null,null,null,null,null,null,null,null,null,null,null,null,null,null,null,null,null,null,"OK","OK"]
[null,null,null,null,null,null,null,null,null,null,null,null,null,null,null,null,null,null,null,null,null,null,null,null,null,null,null,null,null,null,null,null,null,null,null,null,null,null,null,null,null,null,null,null,null,null,null,"OK","OK"]
[null,null,null,null,null,null,null,null,null,null,null,null,null,null,null,null,null,null,null,null,null,null,null,null,null,null,null,null,null,null,null,null,null,null,null,null,null,null,null,null,null,null,null,null,null,null,null,"OK","OK"]
[null,null,null,null,null,null,null,null,null,null,null,null,null,null,null,null,null,null,null,null,null,null,null,null,null,null,null,null,null,null,null,null,null,null,null,null,null,null,null,null,null,null,null,null,null,null,null,"OK","OK"]
[null,null,null,null,null,null,null,null,null,null,null,null,null,null,null,null,null,null,null,null,null,null,null,null,null,null,null,null,null,null,null,null,null,null,null,null,null,null,null,null,null,null,null,null,null,null,null,"OK","OK"]
[null,null,null,null,null,null,null,null,null,null,null,null,null,null,null,null,null,null,null,null,null,null,null,null,null,null,null,null,null,null,null,null,null,null,null,null,null,null,null,null,null,null,null,null,null,null,null,"OK","OK"]
[null,null,null,null,null,null,null,null,null,null,null,null,null,null,null,null,null,null,null,null,null,null,null,null,null,null,null,null,null,null,null,null,null,null,null,null,null,null,null,null,null,null,null,null,null,null,null,"OK","OK"]
[null,null,null,null,null,null,null,null,null,null,null,null,null,null,null,null,null,null,null,null,null,null,null,null,null,null,null,null,null,null,null,null,null,null,null,null,null,null,null,null,null,null,null,null,null,null,null,"OK","OK"]
[null,null,null,null,null,null,null,null,null,null,null,null,null,null,null,null,null,null,null,null,null,null,null,null,null,null,null,null,null,null,null,null,null,null,null,null,null,null,null,null,null,null,null,null,null,null,null,"OK","OK"]
[null,null,null,null,null,null,null,null,null,null,null,null,null,null,null,null,null,null,null,null,null,null,null,null,null,null,null,null,null,null,null,null,null,null,null,null,null,null,null,null,null,null,null,null,null,null,null,"OK","OK"]
[null,null,null,null,null,null,null,null,null,null,null,null,null,null,null,null,null,null,null,null,null,null,null,null,null,null,null,null,null,null,null,null,null,null,null,null,null,null,null,null,null,null,null,null,null,null,null,"OK","OK"]
[null,null,null,null,null,null,null,null,null,null,null,null,null,null,null,null,null,null,null,null,null,null,null,null,null,null,null,null,null,null,null,null,null,null,null,null,null,null,null,null,null,null,null,null,null,null,null,"OK","OK"]
[null,null,null,null,null,null,null,null,null,null,null,null,null,null,null,null,null,null,null,null,null,null,null,null,null,null,null,null,null,null,null,null,null,null,null,null,null,null,null,null,null,null,null,null,null,null,null,"OK","OK"]
[null,null,null,null,null,null,null,null,null,null,null,null,null,null,null,null,null,null,null,null,null,null,null,null,null,null,null,null,null,null,null,null,null,null,null,null,null,null,null,null,null,null,null,null,null,null,null,"OK","OK"]
[null,null,null,null,null,null,null,null,null,null,null,null,null,null,null,null,null,null,null,null,null,null,null,null,null,null,null,null,null,null,null,null,null,null,null,null,null,null,null,null,null,null,null,null,null,null,null,"OK","OK"]
[null,null,null,null,null,null,null,null,null,null,null,null,null,null,null,null,null,null,null,null,null,null,null,null,null,null,null,null,null,null,null,null,null,null,null,null,null,null,null,null,null,null,null,null,null,null,null,"OK","OK"]
[null,null,null,null,null,null,null,null,null,null,null,null,null,null,null,null,null,null,null,null,null,null,null,null,null,null,null,null,null,null,null,null,null,null,null,null,null,null,null,null,null,null,null,null,null,null,null,"OK","OK"]
[null,null,null,null,null,null,null,null,null,null,null,null,null,null,null,null,null,null,null,null,null,null,null,null,null,null,null,null,null,null,null,null,null,null,null,null,null,null,null,null,null,null,null,null,null,null,null,"OK","OK"]
[null,null,null,null,null,null,null,null,null,null,null,null,null,null,null,null,null,null,null,null,null,null,null,null,null,null,null,null,null,null,null,null,null,null,null,null,null,null,null,null,null,null,null,null,null,null,null,"OK","OK"]
[null,null,null,null,null,null,null,null,null,null,null,null,null,null,null,null,null,null,null,null,null,null,null,null,null,null,null,null,null,null,null,null,null,null,null,null,null,null,null,null,null,null,null,null,null,null,null,"OK","OK"]
[null,null,null,null,null,null,null,null,null,null,null,null,null,null,null,null,null,null,null,null,null,null,null,null,null,null,null,null,null,null,null,null,null,null,null,null,null,null,null,null,null,null,null,null,null,null,null,{"$f":"IF(P597-W597-Y597-AA597-AC597-AE597-AG597-AI597-AK597-AM597-AO597-AQ597-AS597=0,\"OK\",\"Compromisos diferentes al valor estimado en la vigencia actual\")","v":"OK"},{"$f":"IF(P597-X597-Z597-AB597-AD597-AF597-AH597-AJ597-AL597-AN597-AP597-AR597-AT597=0,\"OK\",\"Obligaciones diferentes al valor estimado en la vigencia actual\")","v":"OK"}]
[null,null,null,null,null,null,null,null,null,null,null,null,null,null,null,null,null,null,null,null,null,null,null,null,null,null,null,null,null,null,null,null,null,null,null,null,null,null,null,null,null,null,null,null,null,null,null,"OK","OK"]
[null,null,null,null,null,null,null,null,null,null,null,null,null,null,null,null,null,null,null,null,null,null,null,null,null,null,null,null,null,null,null,null,null,null,null,null,null,null,null,null,null,null,null,null,null,null,null,"OK","OK"]
[null,null,null,null,null,null,null,null,null,null,null,null,null,null,null,null,null,null,null,null,null,null,null,null,null,null,null,null,null,null,null,null,null,null,null,null,null,null,null,null,null,null,null,null,null,null,null,"OK","OK"]
[null,null,null,null,null,null,null,null,null,null,null,null,null,null,null,null,null,null,null,null,null,null,null,null,null,null,null,null,null,null,null,null,null,null,null,null,null,null,null,null,null,null,null,null,null,null,null,"OK","OK"]
[null,null,null,null,null,null,null,null,null,null,null,null,null,null,null,null,null,null,null,null,null,null,null,null,null,null,null,null,null,null,null,null,null,null,null,null,null,null,null,null,null,null,null,null,null,null,null,"OK","OK"]
[null,null,null,null,null,null,null,null,null,null,null,null,null,null,null,null,null,null,null,null,null,null,null,null,null,null,null,null,null,null,null,null,null,null,null,null,null,null,null,null,null,null,null,null,null,null,null,"OK","OK"]
[null,null,null,null,null,null,null,null,null,null,null,null,null,null,null,null,null,null,null,null,null,null,null,null,null,null,null,null,null,null,null,null,null,null,null,null,null,null,null,null,null,null,null,null,null,null,null,"OK","OK"]
[null,null,null,null,null,null,null,null,null,null,null,null,null,null,null,null,null,null,null,null,null,null,null,null,null,null,null,null,null,null,null,null,null,null,null,null,null,null,null,null,null,null,null,null,null,null,null,"OK","OK"]
[null,null,null,null,null,null,null,null,null,null,null,null,null,null,null,null,null,null,null,null,null,null,null,null,null,null,null,null,null,null,null,null,null,null,null,null,null,null,null,null,null,null,null,null,null,null,null,"OK","OK"]
[null,null,null,null,null,null,null,null,null,null,null,null,null,null,null,null,null,null,null,null,null,null,null,null,null,null,null,null,null,null,null,null,null,null,null,null,null,null,null,null,null,null,null,null,null,null,null,"OK","OK"]
[null,null,null,null,null,null,null,null,null,null,null,null,null,null,null,null,null,null,null,null,null,null,null,null,null,null,null,null,null,null,null,null,null,null,null,null,null,null,null,null,null,null,null,null,null,null,null,"OK","OK"]
[null,null,null,null,null,null,null,null,null,null,null,null,null,null,null,null,null,null,null,null,null,null,null,null,null,null,null,null,null,null,null,null,null,null,null,null,null,null,null,null,null,null,null,null,null,null,null,"OK","OK"]
[null,null,null,null,null,null,null,null,null,null,null,null,null,null,null,null,null,null,null,null,null,null,null,null,null,null,null,null,null,null,null,null,null,null,null,null,null,null,null,null,null,null,null,null,null,null,null,"OK","OK"]
[null,null,null,null,null,null,null,null,null,null,null,null,null,null,null,null,null,null,null,null,null,null,null,null,null,null,null,null,null,null,null,null,null,null,null,null,null,null,null,null,null,null,null,null,null,null,null,"OK","OK"]
[null,null,null,null,null,null,null,null,null,null,null,null,null,null,null,null,null,null,null,null,null,null,null,null,null,null,null,null,null,null,null,null,null,null,null,null,null,null,null,null,null,null,null,null,null,null,null,"OK","OK"]
[null,null,null,null,null,null,null,null,null,null,null,null,null,null,null,null,null,null,null,null,null,null,null,null,null,null,null,null,null,null,null,null,null,null,null,null,null,null,null,null,null,null,null,null,null,null,null,"OK","OK"]
[null,null,null,null,null,null,null,null,null,null,null,null,null,null,null,null,null,null,null,null,null,null,null,null,null,null,null,null,null,null,null,null,null,null,null,null,null,null,null,null,null,null,null,null,null,null,null,"OK","OK"]
[null,null,null,null,null,null,null,null,null,null,null,null,null,null,null,null,null,null,null,null,null,null,null,null,null,null,null,null,null,null,null,null,null,null,null,null,null,null,null,null,null,null,null,null,null,null,null,"OK","OK"]
[null,null,null,null,null,null,null,null,null,null,null,null,null,null,null,null,null,null,null,null,null,null,null,null,null,null,null,null,null,null,null,null,null,null,null,null,null,null,null,null,null,null,null,null,null,null,null,"OK","OK"]
[null,null,null,null,null,null,null,null,null,null,null,null,null,null,null,null,null,null,null,null,null,null,null,null,null,null,null,null,null,null,null,null,null,null,null,null,null,null,null,null,null,null,null,null,null,null,null,"OK","OK"]
[null,null,null,null,null,null,null,null,null,null,null,null,null,null,null,null,null,null,null,null,null,null,null,null,null,null,null,null,null,null,null,null,null,null,null,null,null,null,null,null,null,null,null,null,null,null,null,"OK","OK"]
[null,null,null,null,null,null,null,null,null,null,null,null,null,null,null,null,null,null,null,null,null,null,null,null,null,null,null,null,null,null,null,null,null,null,null,null,null,null,null,null,null,null,null,null,null,null,null,"OK","OK"]
[null,null,null,null,null,null,null,null,null,null,null,null,null,null,null,null,null,null,null,null,null,null,null,null,null,null,null,null,null,null,null,null,null,null,null,null,null,null,null,null,null,null,null,null,null,null,null,"OK","OK"]
[null,null,null,null,null,null,null,null,null,null,null,null,null,null,null,null,null,null,null,null,null,null,null,null,null,null,null,null,null,null,null,null,null,null,null,null,null,null,null,null,null,null,null,null,null,null,null,"OK","OK"]
[null,null,null,null,null,null,null,null,null,null,null,null,null,null,null,null,null,null,null,null,null,null,null,null,null,null,null,null,null,null,null,null,null,null,null,null,null,null,null,null,null,null,null,null,null,null,null,"OK","OK"]
[null,null,null,null,null,null,null,null,null,null,null,null,null,null,null,null,null,null,null,null,null,null,null,null,null,null,null,null,null,null,null,null,null,null,null,null,null,null,null,null,null,null,null,null,null,null,null,"OK","OK"]
[null,null,null,null,null,null,null,null,null,null,null,null,null,null,null,null,null,null,null,null,null,null,null,null,null,null,null,null,null,null,null,null,null,null,null,null,null,null,null,null,null,null,null,null,null,null,null,"OK","OK"]
[null,null,null,null,null,null,null,null,null,null,null,null,null,null,null,null,null,null,null,null,null,null,null,null,null,null,null,null,null,null,null,null,null,null,null,null,null,null,null,null,null,null,null,null,null,null,null,"OK","OK"]
[null,null,null,null,null,null,null,null,null,null,null,null,null,null,null,null,null,null,null,null,null,null,null,null,null,null,null,null,null,null,null,null,null,null,null,null,null,null,null,null,null,null,null,null,null,null,null,"OK","OK"]
[null,null,null,null,null,null,null,null,null,null,null,null,null,null,null,null,null,null,null,null,null,null,null,null,null,null,null,null,null,null,null,null,null,null,null,null,null,null,null,null,null,null,null,null,null,null,null,"OK","OK"]
[null,null,null,null,null,null,null,null,null,null,null,null,null,null,null,null,null,null,null,null,null,null,null,null,null,null,null,null,null,null,null,null,null,null,null,null,null,null,null,null,null,null,null,null,null,null,null,"OK","OK"]
[null,null,null,null,null,null,null,null,null,null,null,null,null,null,null,null,null,null,null,null,null,null,null,null,null,null,null,null,null,null,null,null,null,null,null,null,null,null,null,null,null,null,null,null,null,null,null,"OK","OK"]
[null,null,null,null,null,null,null,null,null,null,null,null,null,null,null,null,null,null,null,null,null,null,null,null,null,null,null,null,null,null,null,null,null,null,null,null,null,null,null,null,null,null,null,null,null,null,null,"OK","OK"]
[null,null,null,null,null,null,null,null,null,null,null,null,null,null,null,null,null,null,null,null,null,null,null,null,null,null,null,null,null,null,null,null,null,null,null,null,null,null,null,null,null,null,null,null,null,null,null,"OK","OK"]
[null,null,null,null,null,null,null,null,null,null,null,null,null,null,null,null,null,null,null,null,null,null,null,null,null,null,null,null,null,null,null,null,null,null,null,null,null,null,null,null,null,null,null,null,null,null,null,"OK","OK"]
[null,null,null,null,null,null,null,null,null,null,null,null,null,null,null,null,null,null,null,null,null,null,null,null,null,null,null,null,null,null,null,null,null,null,null,null,null,null,null,null,null,null,null,null,null,null,null,"OK","OK"]
[null,null,null,null,null,null,null,null,null,null,null,null,null,null,null,null,null,null,null,null,null,null,null,null,null,null,null,null,null,null,null,null,null,null,null,null,null,null,null,null,null,null,null,null,null,null,null,"OK","OK"]
[null,null,null,null,null,null,null,null,null,null,null,null,null,null,null,null,null,null,null,null,null,null,null,null,null,null,null,null,null,null,null,null,null,null,null,null,null,null,null,null,null,null,null,null,null,null,null,"OK","OK"]
[null,null,null,null,null,null,null,null,null,null,null,null,null,null,null,null,null,null,null,null,null,null,null,null,null,null,null,null,null,null,null,null,null,null,null,null,null,null,null,null,null,null,null,null,null,null,null,"OK","OK"]
[null,null,null,null,null,null,null,null,null,null,null,null,null,null,null,null,null,null,null,null,null,null,null,null,null,null,null,null,null,null,null,null,null,null,null,null,null,null,null,null,null,null,null,null,null,null,null,{"$f":"IF(P789-W789-Y789-AA789-AC789-AE789-AG789-AI789-AK789-AM789-AO789-AQ789-AS789=0,\"OK\",\"Compromisos diferentes al valor estimado en la vigencia actual\")","v":"OK"},{"$f":"IF(P789-X789-Z789-AB789-AD789-AF789-AH789-AJ789-AL789-AN789-AP789-AR789-AT789=0,\"OK\",\"Obligaciones diferentes al valor estimado en la vigencia actual\")","v":"OK"}]
[null,null,null,null,null,null,null,null,null,null,null,null,null,null,null,null,null,null,null,null,null,null,null,null,null,null,null,null,null,null,null,null,null,null,null,null,null,null,null,null,null,null,null,null,null,null,null,"OK","OK"]
[null,null,null,null,null,null,null,null,null,null,null,null,null,null,null,null,null,null,null,null,null,null,null,null,null,null,null,null,null,null,null,null,null,null,null,null,null,null,null,null,null,null,null,null,null,null,null,"OK","OK"]
[null,null,null,null,null,null,null,null,null,null,null,null,null,null,null,null,null,null,null,null,null,null,null,null,null,null,null,null,null,null,null,null,null,null,null,null,null,null,null,null,null,null,null,null,null,null,null,"OK","OK"]
[null,null,null,null,null,null,null,null,null,null,null,null,null,null,null,null,null,null,null,null,null,null,null,null,null,null,null,null,null,null,null,null,null,null,null,null,null,null,null,null,null,null,null,null,null,null,null,"OK","OK"]
[null,null,null,null,null,null,null,null,null,null,null,null,null,null,null,null,null,null,null,null,null,null,null,null,null,null,null,null,null,null,null,null,null,null,null,null,null,null,null,null,null,null,null,null,null,null,null,"OK","OK"]
[null,null,null,null,null,null,null,null,null,null,null,null,null,null,null,null,null,null,null,null,null,null,null,null,null,null,null,null,null,null,null,null,null,null,null,null,null,null,null,null,null,null,null,null,null,null,null,"OK","OK"]
[null,null,null,null,null,null,null,null,null,null,null,null,null,null,null,null,null,null,null,null,null,null,null,null,null,null,null,null,null,null,null,null,null,null,null,null,null,null,null,null,null,null,null,null,null,null,null,"OK","OK"]
[null,null,null,null,null,null,null,null,null,null,null,null,null,null,null,null,null,null,null,null,null,null,null,null,null,null,null,null,null,null,null,null,null,null,null,null,null,null,null,null,null,null,null,null,null,null,null,"OK","OK"]
[null,null,null,null,null,null,null,null,null,null,null,null,null,null,null,null,null,null,null,null,null,null,null,null,null,null,null,null,null,null,null,null,null,null,null,null,null,null,null,null,null,null,null,null,null,null,null,"OK","OK"]
[null,null,null,null,null,null,null,null,null,null,null,null,null,null,null,null,null,null,null,null,null,null,null,null,null,null,null,null,null,null,null,null,null,null,null,null,null,null,null,null,null,null,null,null,null,null,null,"OK","OK"]
[null,null,null,null,null,null,null,null,null,null,null,null,null,null,null,null,null,null,null,null,null,null,null,null,null,null,null,null,null,null,null,null,null,null,null,null,null,null,null,null,null,null,null,null,null,null,null,"OK","OK"]
[null,null,null,null,null,null,null,null,null,null,null,null,null,null,null,null,null,null,null,null,null,null,null,null,null,null,null,null,null,null,null,null,null,null,null,null,null,null,null,null,null,null,null,null,null,null,null,"OK","OK"]
[null,null,null,null,null,null,null,null,null,null,null,null,null,null,null,null,null,null,null,null,null,null,null,null,null,null,null,null,null,null,null,null,null,null,null,null,null,null,null,null,null,null,null,null,null,null,null,"OK","OK"]
[null,null,null,null,null,null,null,null,null,null,null,null,null,null,null,null,null,null,null,null,null,null,null,null,null,null,null,null,null,null,null,null,null,null,null,null,null,null,null,null,null,null,null,null,null,null,null,"OK","OK"]
[null,null,null,null,null,null,null,null,null,null,null,null,null,null,null,null,null,null,null,null,null,null,null,null,null,null,null,null,null,null,null,null,null,null,null,null,null,null,null,null,null,null,null,null,null,null,null,"OK","OK"]
[null,null,null,null,null,null,null,null,null,null,null,null,null,null,null,null,null,null,null,null,null,null,null,null,null,null,null,null,null,null,null,null,null,null,null,null,null,null,null,null,null,null,null,null,null,null,null,"OK","OK"]
[null,null,null,null,null,null,null,null,null,null,null,null,null,null,null,null,null,null,null,null,null,null,null,null,null,null,null,null,null,null,null,null,null,null,null,null,null,null,null,null,null,null,null,null,null,null,null,"OK","OK"]
[null,null,null,null,null,null,null,null,null,null,null,null,null,null,null,null,null,null,null,null,null,null,null,null,null,null,null,null,null,null,null,null,null,null,null,null,null,null,null,null,null,null,null,null,null,null,null,"OK","OK"]
[null,null,null,null,null,null,null,null,null,null,null,null,null,null,null,null,null,null,null,null,null,null,null,null,null,null,null,null,null,null,null,null,null,null,null,null,null,null,null,null,null,null,null,null,null,null,null,"OK","OK"]
[null,null,null,null,null,null,null,null,null,null,null,null,null,null,null,null,null,null,null,null,null,null,null,null,null,null,null,null,null,null,null,null,null,null,null,null,null,null,null,null,null,null,null,null,null,null,null,"OK","OK"]
[null,null,null,null,null,null,null,null,null,null,null,null,null,null,null,null,null,null,null,null,null,null,null,null,null,null,null,null,null,null,null,null,null,null,null,null,null,null,null,null,null,null,null,null,null,null,null,"OK","OK"]
[null,null,null,null,null,null,null,null,null,null,null,null,null,null,null,null,null,null,null,null,null,null,null,null,null,null,null,null,null,null,null,null,null,null,null,null,null,null,null,null,null,null,null,null,null,null,null,"OK","OK"]
[null,null,null,null,null,null,null,null,null,null,null,null,null,null,null,null,null,null,null,null,null,null,null,null,null,null,null,null,null,null,null,null,null,null,null,null,null,null,null,null,null,null,null,null,null,null,null,"OK","OK"]
[null,null,null,null,null,null,null,null,null,null,null,null,null,null,null,null,null,null,null,null,null,null,null,null,null,null,null,null,null,null,null,null,null,null,null,null,null,null,null,null,null,null,null,null,null,null,null,"OK","OK"]
[null,null,null,null,null,null,null,null,null,null,null,null,null,null,null,null,null,null,null,null,null,null,null,null,null,null,null,null,null,null,null,null,null,null,null,null,null,null,null,null,null,null,null,null,null,null,null,"OK","OK"]
[null,null,null,null,null,null,null,null,null,null,null,null,null,null,null,null,null,null,null,null,null,null,null,null,null,null,null,null,null,null,null,null,null,null,null,null,null,null,null,null,null,null,null,null,null,null,null,"OK","OK"]
[null,null,null,null,null,null,null,null,null,null,null,null,null,null,null,null,null,null,null,null,null,null,null,null,null,null,null,null,null,null,null,null,null,null,null,null,null,null,null,null,null,null,null,null,null,null,null,"OK","OK"]
[null,null,null,null,null,null,null,null,null,null,null,null,null,null,null,null,null,null,null,null,null,null,null,null,null,null,null,null,null,null,null,null,null,null,null,null,null,null,null,null,null,null,null,null,null,null,null,"OK","OK"]
[null,null,null,null,null,null,null,null,null,null,null,null,null,null,null,null,null,null,null,null,null,null,null,null,null,null,null,null,null,null,null,null,null,null,null,null,null,null,null,null,null,null,null,null,null,null,null,"OK","OK"]
[null,null,null,null,null,null,null,null,null,null,null,null,null,null,null,null,null,null,null,null,null,null,null,null,null,null,null,null,null,null,null,null,null,null,null,null,null,null,null,null,null,null,null,null,null,null,null,"OK","OK"]
[null,null,null,null,null,null,null,null,null,null,null,null,null,null,null,null,null,null,null,null,null,null,null,null,null,null,null,null,null,null,null,null,null,null,null,null,null,null,null,null,null,null,null,null,null,null,null,"OK","OK"]
[null,null,null,null,null,null,null,null,null,null,null,null,null,null,null,null,null,null,null,null,null,null,null,null,null,null,null,null,null,null,null,null,null,null,null,null,null,null,null,null,null,null,null,null,null,null,null,"OK","OK"]
[null,null,null,null,null,null,null,null,null,null,null,null,null,null,null,null,null,null,null,null,null,null,null,null,null,null,null,null,null,null,null,null,null,null,null,null,null,null,null,null,null,null,null,null,null,null,null,"OK","OK"]
[null,null,null,null,null,null,null,null,null,null,null,null,null,null,null,null,null,null,null,null,null,null,null,null,null,null,null,null,null,null,null,null,null,null,null,null,null,null,null,null,null,null,null,null,null,null,null,"OK","OK"]
[null,null,null,null,null,null,null,null,null,null,null,null,null,null,null,null,null,null,null,null,null,null,null,null,null,null,null,null,null,null,null,null,null,null,null,null,null,null,null,null,null,null,null,null,null,null,null,"OK","OK"]
[null,null,null,null,null,null,null,null,null,null,null,null,null,null,null,null,null,null,null,null,null,null,null,null,null,null,null,null,null,null,null,null,null,null,null,null,null,null,null,null,null,null,null,null,null,null,null,"OK","OK"]
[null,null,null,null,null,null,null,null,null,null,null,null,null,null,null,null,null,null,null,null,null,null,null,null,null,null,null,null,null,null,null,null,null,null,null,null,null,null,null,null,null,null,null,null,null,null,null,"OK","OK"]
[null,null,null,null,null,null,null,null,null,null,null,null,null,null,null,null,null,null,null,null,null,null,null,null,null,null,null,null,null,null,null,null,null,null,null,null,null,null,null,null,null,null,null,null,null,null,null,"OK","OK"]
[null,null,null,null,null,null,null,null,null,null,null,null,null,null,null,null,null,null,null,null,null,null,null,null,null,null,null,null,null,null,null,null,null,null,null,null,null,null,null,null,null,null,null,null,null,null,null,"OK","OK"]
[null,null,null,null,null,null,null,null,null,null,null,null,null,null,null,null,null,null,null,null,null,null,null,null,null,null,null,null,null,null,null,null,null,null,null,null,null,null,null,null,null,null,null,null,null,null,null,"OK","OK"]
[null,null,null,null,null,null,null,null,null,null,null,null,null,null,null,null,null,null,null,null,null,null,null,null,null,null,null,null,null,null,null,null,null,null,null,null,null,null,null,null,null,null,null,null,null,null,null,"OK","OK"]
[null,null,null,null,null,null,null,null,null,null,null,null,null,null,null,null,null,null,null,null,null,null,null,null,null,null,null,null,null,null,null,null,null,null,null,null,null,null,null,null,null,null,null,null,null,null,null,"OK","OK"]
[null,null,null,null,null,null,null,null,null,null,null,null,null,null,null,null,null,null,null,null,null,null,null,null,null,null,null,null,null,null,null,null,null,null,null,null,null,null,null,null,null,null,null,null,null,null,null,"OK","OK"]
[null,null,null,null,null,null,null,null,null,null,null,null,null,null,null,null,null,null,null,null,null,null,null,null,null,null,null,null,null,null,null,null,null,null,null,null,null,null,null,null,null,null,null,null,null,null,null,"OK","OK"]
[null,null,null,null,null,null,null,null,null,null,null,null,null,null,null,null,null,null,null,null,null,null,null,null,null,null,null,null,null,null,null,null,null,null,null,null,null,null,null,null,null,null,null,null,null,null,null,"OK","OK"]
[null,null,null,null,null,null,null,null,null,null,null,null,null,null,null,null,null,null,null,null,null,null,null,null,null,null,null,null,null,null,null,null,null,null,null,null,null,null,null,null,null,null,null,null,null,null,null,"OK","OK"]
[null,null,null,null,null,null,null,null,null,null,null,null,null,null,null,null,null,null,null,null,null,null,null,null,null,null,null,null,null,null,null,null,null,null,null,null,null,null,null,null,null,null,null,null,null,null,null,"OK","OK"]
[null,null,null,null,null,null,null,null,null,null,null,null,null,null,null,null,null,null,null,null,null,null,null,null,null,null,null,null,null,null,null,null,null,null,null,null,null,null,null,null,null,null,null,null,null,null,null,"OK","OK"]
[null,null,null,null,null,null,null,null,null,null,null,null,null,null,null,null,null,null,null,null,null,null,null,null,null,null,null,null,null,null,null,null,null,null,null,null,null,null,null,null,null,null,null,null,null,null,null,"OK","OK"]
[null,null,null,null,null,null,null,null,null,null,null,null,null,null,null,null,null,null,null,null,null,null,null,null,null,null,null,null,null,null,null,null,null,null,null,null,null,null,null,null,null,null,null,null,null,null,null,"OK","OK"]
[null,null,null,null,null,null,null,null,null,null,null,null,null,null,null,null,null,null,null,null,null,null,null,null,null,null,null,null,null,null,null,null,null,null,null,null,null,null,null,null,null,null,null,null,null,null,null,"OK","OK"]
[null,null,null,null,null,null,null,null,null,null,null,null,null,null,null,null,null,null,null,null,null,null,null,null,null,null,null,null,null,null,null,null,null,null,null,null,null,null,null,null,null,null,null,null,null,null,null,"OK","OK"]
[null,null,null,null,null,null,null,null,null,null,null,null,null,null,null,null,null,null,null,null,null,null,null,null,null,null,null,null,null,null,null,null,null,null,null,null,null,null,null,null,null,null,null,null,null,null,null,"OK","OK"]
[null,null,null,null,null,null,null,null,null,null,null,null,null,null,null,null,null,null,null,null,null,null,null,null,null,null,null,null,null,null,null,null,null,null,null,null,null,null,null,null,null,null,null,null,null,null,null,"OK","OK"]
[null,null,null,null,null,null,null,null,null,null,null,null,null,null,null,null,null,null,null,null,null,null,null,null,null,null,null,null,null,null,null,null,null,null,null,null,null,null,null,null,null,null,null,null,null,null,null,"OK","OK"]
[null,null,null,null,null,null,null,null,null,null,null,null,null,null,null,null,null,null,null,null,null,null,null,null,null,null,null,null,null,null,null,null,null,null,null,null,null,null,null,null,null,null,null,null,null,null,null,"OK","OK"]
[null,null,null,null,null,null,null,null,null,null,null,null,null,null,null,null,null,null,null,null,null,null,null,null,null,null,null,null,null,null,null,null,null,null,null,null,null,null,null,null,null,null,null,null,null,null,null,"OK","OK"]
[null,null,null,null,null,null,null,null,null,null,null,null,null,null,null,null,null,null,null,null,null,null,null,null,null,null,null,null,null,null,null,null,null,null,null,null,null,null,null,null,null,null,null,null,null,null,null,"OK","OK"]
[null,null,null,null,null,null,null,null,null,null,null,null,null,null,null,null,null,null,null,null,null,null,null,null,null,null,null,null,null,null,null,null,null,null,null,null,null,null,null,null,null,null,null,null,null,null,null,"OK","OK"]
[null,null,null,null,null,null,null,null,null,null,null,null,null,null,null,null,null,null,null,null,null,null,null,null,null,null,null,null,null,null,null,null,null,null,null,null,null,null,null,null,null,null,null,null,null,null,null,"OK","OK"]
[null,null,null,null,null,null,null,null,null,null,null,null,null,null,null,null,null,null,null,null,null,null,null,null,null,null,null,null,null,null,null,null,null,null,null,null,null,null,null,null,null,null,null,null,null,null,null,"OK","OK"]
[null,null,null,null,null,null,null,null,null,null,null,null,null,null,null,null,null,null,null,null,null,null,null,null,null,null,null,null,null,null,null,null,null,null,null,null,null,null,null,null,null,null,null,null,null,null,null,"OK","OK"]
[null,null,null,null,null,null,null,null,null,null,null,null,null,null,null,null,null,null,null,null,null,null,null,null,null,null,null,null,null,null,null,null,null,null,null,null,null,null,null,null,null,null,null,null,null,null,null,"OK","OK"]
[null,null,null,null,null,null,null,null,null,null,null,null,null,null,null,null,null,null,null,null,null,null,null,null,null,null,null,null,null,null,null,null,null,null,null,null,null,null,null,null,null,null,null,null,null,null,null,"OK","OK"]
[null,null,null,null,null,null,null,null,null,null,null,null,null,null,null,null,null,null,null,null,null,null,null,null,null,null,null,null,null,null,null,null,null,null,null,null,null,null,null,null,null,null,null,null,null,null,null,"OK","OK"]
[null,null,null,null,null,null,null,null,null,null,null,null,null,null,null,null,null,null,null,null,null,null,null,null,null,null,null,null,null,null,null,null,null,null,null,null,null,null,null,null,null,null,null,null,null,null,null,"OK","OK"]
[null,null,null,null,null,null,null,null,null,null,null,null,null,null,null,null,null,null,null,null,null,null,null,null,null,null,null,null,null,null,null,null,null,null,null,null,null,null,null,null,null,null,null,null,null,null,null,{"$f":"IF(P1109-W1109-Y1109-AA1109-AC1109-AE1109-AG1109-AI1109-AK1109-AM1109-AO1109-AQ1109-AS1109=0,\"OK\",\"Compromisos diferentes al valor estimado en la vigencia actual\")","v":"OK"},{"$f":"IF(P1109-X1109-Z1109-AB1109-AD1109-AF1109-AH1109-AJ1109-AL1109-AN1109-AP1109-AR1109-AT1109=0,\"OK\",\"Obligaciones diferentes al valor estimado en la vigencia actual\")","v":"OK"}]
[null,null,null,null,null,null,null,null,null,null,null,null,null,null,null,null,null,null,null,null,null,null,null,null,null,null,null,null,null,null,null,null,null,null,null,null,null,null,null,null,null,null,null,null,null,null,null,"OK","OK"]
[null,null,null,null,null,null,null,null,null,null,null,null,null,null,null,null,null,null,null,null,null,null,null,null,null,null,null,null,null,null,null,null,null,null,null,null,null,null,null,null,null,null,null,null,null,null,null,"OK","OK"]
[null,null,null,null,null,null,null,null,null,null,null,null,null,null,null,null,null,null,null,null,null,null,null,null,null,null,null,null,null,null,null,null,null,null,null,null,null,null,null,null,null,null,null,null,null,null,null,"OK","OK"]
[null,null,null,null,null,null,null,null,null,null,null,null,null,null,null,null,null,null,null,null,null,null,null,null,null,null,null,null,null,null,null,null,null,null,null,null,null,null,null,null,null,null,null,null,null,null,null,"OK","OK"]
[null,null,null,null,null,null,null,null,null,null,null,null,null,null,null,null,null,null,null,null,null,null,null,null,null,null,null,null,null,null,null,null,null,null,null,null,null,null,null,null,null,null,null,null,null,null,null,"OK","OK"]
[null,null,null,null,null,null,null,null,null,null,null,null,null,null,null,null,null,null,null,null,null,null,null,null,null,null,null,null,null,null,null,null,null,null,null,null,null,null,null,null,null,null,null,null,null,null,null,"OK","OK"]
[null,null,null,null,null,null,null,null,null,null,null,null,null,null,null,null,null,null,null,null,null,null,null,null,null,null,null,null,null,null,null,null,null,null,null,null,null,null,null,null,null,null,null,null,null,null,null,"OK","OK"]
[null,null,null,null,null,null,null,null,null,null,null,null,null,null,null,null,null,null,null,null,null,null,null,null,null,null,null,null,null,null,null,null,null,null,null,null,null,null,null,null,null,null,null,null,null,null,null,"OK","OK"]
[null,null,null,null,null,null,null,null,null,null,null,null,null,null,null,null,null,null,null,null,null,null,null,null,null,null,null,null,null,null,null,null,null,null,null,null,null,null,null,null,null,null,null,null,null,null,null,"OK","OK"]
[null,null,null,null,null,null,null,null,null,null,null,null,null,null,null,null,null,null,null,null,null,null,null,null,null,null,null,null,null,null,null,null,null,null,null,null,null,null,null,null,null,null,null,null,null,null,null,"OK","OK"]
[null,null,null,null,null,null,null,null,null,null,null,null,null,null,null,null,null,null,null,null,null,null,null,null,null,null,null,null,null,null,null,null,null,null,null,null,null,null,null,null,null,null,null,null,null,null,null,"OK","OK"]
[null,null,null,null,null,null,null,null,null,null,null,null,null,null,null,null,null,null,null,null,null,null,null,null,null,null,null,null,null,null,null,null,null,null,null,null,null,null,null,null,null,null,null,null,null,null,null,"OK","OK"]
[null,null,null,null,null,null,null,null,null,null,null,null,null,null,null,null,null,null,null,null,null,null,null,null,null,null,null,null,null,null,null,null,null,null,null,null,null,null,null,null,null,null,null,null,null,null,null,"OK","OK"]
[null,null,null,null,null,null,null,null,null,null,null,null,null,null,null,null,null,null,null,null,null,null,null,null,null,null,null,null,null,null,null,null,null,null,null,null,null,null,null,null,null,null,null,null,null,null,null,"OK","OK"]
[null,null,null,null,null,null,null,null,null,null,null,null,null,null,null,null,null,null,null,null,null,null,null,null,null,null,null,null,null,null,null,null,null,null,null,null,null,null,null,null,null,null,null,null,null,null,null,"OK","OK"]
[null,null,null,null,null,null,null,null,null,null,null,null,null,null,null,null,null,null,null,null,null,null,null,null,null,null,null,null,null,null,null,null,null,null,null,null,null,null,null,null,null,null,null,null,null,null,null,"OK","OK"]
[null,null,null,null,null,null,null,null,null,null,null,null,null,null,null,null,null,null,null,null,null,null,null,null,null,null,null,null,null,null,null,null,null,null,null,null,null,null,null,null,null,null,null,null,null,null,null,"OK","OK"]
[null,null,null,null,null,null,null,null,null,null,null,null,null,null,null,null,null,null,null,null,null,null,null,null,null,null,null,null,null,null,null,null,null,null,null,null,null,null,null,null,null,null,null,null,null,null,null,"OK","OK"]
[null,null,null,null,null,null,null,null,null,null,null,null,null,null,null,null,null,null,null,null,null,null,null,null,null,null,null,null,null,null,null,null,null,null,null,null,null,null,null,null,null,null,null,null,null,null,null,"OK","OK"]
[null,null,null,null,null,null,null,null,null,null,null,null,null,null,null,null,null,null,null,null,null,null,null,null,null,null,null,null,null,null,null,null,null,null,null,null,null,null,null,null,null,null,null,null,null,null,null,"OK","OK"]
[null,null,null,null,null,null,null,null,null,null,null,null,null,null,null,null,null,null,null,null,null,null,null,null,null,null,null,null,null,null,null,null,null,null,null,null,null,null,null,null,null,null,null,null,null,null,null,"OK","OK"]
[null,null,null,null,null,null,null,null,null,null,null,null,null,null,null,null,null,null,null,null,null,null,null,null,null,null,null,null,null,null,null,null,null,null,null,null,null,null,null,null,null,null,null,null,null,null,null,"OK","OK"]
[null,null,null,null,null,null,null,null,null,null,null,null,null,null,null,null,null,null,null,null,null,null,null,null,null,null,null,null,null,null,null,null,null,null,null,null,null,null,null,null,null,null,null,null,null,null,null,"OK","OK"]
[null,null,null,null,null,null,null,null,null,null,null,null,null,null,null,null,null,null,null,null,null,null,null,null,null,null,null,null,null,null,null,null,null,null,null,null,null,null,null,null,null,null,null,null,null,null,null,"OK","OK"]
[null,null,null,null,null,null,null,null,null,null,null,null,null,null,null,null,null,null,null,null,null,null,null,null,null,null,null,null,null,null,null,null,null,null,null,null,null,null,null,null,null,null,null,null,null,null,null,"OK","OK"]
[null,null,null,null,null,null,null,null,null,null,null,null,null,null,null,null,null,null,null,null,null,null,null,null,null,null,null,null,null,null,null,null,null,null,null,null,null,null,null,null,null,null,null,null,null,null,null,"OK","OK"]
[null,null,null,null,null,null,null,null,null,null,null,null,null,null,null,null,null,null,null,null,null,null,null,null,null,null,null,null,null,null,null,null,null,null,null,null,null,null,null,null,null,null,null,null,null,null,null,{"$f":"IF(P1237-W1237-Y1237-AA1237-AC1237-AE1237-AG1237-AI1237-AK1237-AM1237-AO1237-AQ1237-AS1237=0,\"OK\",\"Compromisos diferentes al valor estimado en la vigencia actual\")","v":"OK"},{"$f":"IF(P1237-X1237-Z1237-AB1237-AD1237-AF1237-AH1237-AJ1237-AL1237-AN1237-AP1237-AR1237-AT1237=0,\"OK\",\"Obligaciones diferentes al valor estimado en la vigencia actual\")","v":"OK"}]
[null,null,null,null,null,null,null,null,null,null,null,null,null,null,null,null,null,null,null,null,null,null,null,null,null,null,null,null,null,null,null,null,null,null,null,null,null,null,null,null,null,null,null,null,null,null,null,"OK","OK"]
[null,null,null,null,null,null,null,null,null,null,null,null,null,null,null,null,null,null,null,null,null,null,null,null,null,null,null,null,null,null,null,null,null,null,null,null,null,null,null,null,null,null,null,null,null,null,null,"OK","OK"]
[null,null,null,null,null,null,null,null,null,null,null,null,null,null,null,null,null,null,null,null,null,null,null,null,null,null,null,null,null,null,null,null,null,null,null,null,null,null,null,null,null,null,null,null,null,null,null,"OK","OK"]
[null,null,null,null,null,null,null,null,null,null,null,null,null,null,null,null,null,null,null,null,null,null,null,null,null,null,null,null,null,null,null,null,null,null,null,null,null,null,null,null,null,null,null,null,null,null,null,"OK","OK"]
[null,null,null,null,null,null,null,null,null,null,null,null,null,null,null,null,null,null,null,null,null,null,null,null,null,null,null,null,null,null,null,null,null,null,null,null,null,null,null,null,null,null,null,null,null,null,null,"OK","OK"]
[null,null,null,null,null,null,null,null,null,null,null,null,null,null,null,null,null,null,null,null,null,null,null,null,null,null,null,null,null,null,null,null,null,null,null,null,null,null,null,null,null,null,null,null,null,null,null,"OK","OK"]
[null,null,null,null,null,null,null,null,null,null,null,null,null,null,null,null,null,null,null,null,null,null,null,null,null,null,null,null,null,null,null,null,null,null,null,null,null,null,null,null,null,null,null,null,null,null,null,"OK","OK"]
[null,null,null,null,null,null,null,null,null,null,null,null,null,null,null,null,null,null,null,null,null,null,null,null,null,null,null,null,null,null,null,null,null,null,null,null,null,null,null,null,null,null,null,null,null,null,null,"OK","OK"]
[null,null,null,null,null,null,null,null,null,null,null,null,null,null,null,null,null,null,null,null,null,null,null,null,null,null,null,null,null,null,null,null,null,null,null,null,null,null,null,null,null,null,null,null,null,null,null,"OK","OK"]
[null,null,null,null,null,null,null,null,null,null,null,null,null,null,null,null,null,null,null,null,null,null,null,null,null,null,null,null,null,null,null,null,null,null,null,null,null,null,null,null,null,null,null,null,null,null,null,"OK","OK"]
[null,null,null,null,null,null,null,null,null,null,null,null,null,null,null,null,null,null,null,null,null,null,null,null,null,null,null,null,null,null,null,null,null,null,null,null,null,null,null,null,null,null,null,null,null,null,null,"OK","OK"]
[null,null,null,null,null,null,null,null,null,null,null,null,null,null,null,null,null,null,null,null,null,null,null,null,null,null,null,null,null,null,null,null,null,null,null,null,null,null,null,null,null,null,null,null,null,null,null,"OK","OK"]
[null,null,null,null,null,null,null,null,null,null,null,null,null,null,null,null,null,null,null,null,null,null,null,null,null,null,null,null,null,null,null,null,null,null,null,null,null,null,null,null,null,null,null,null,null,null,null,"OK","OK"]
[null,null,null,null,null,null,null,null,null,null,null,null,null,null,null,null,null,null,null,null,null,null,null,null,null,null,null,null,null,null,null,null,null,null,null,null,null,null,null,null,null,null,null,null,null,null,null,"OK","OK"]
[null,null,null,null,null,null,null,null,null,null,null,null,null,null,null,null,null,null,null,null,null,null,null,null,null,null,null,null,null,null,null,null,null,null,null,null,null,null,null,null,null,null,null,null,null,null,null,"OK","OK"]
[null,null,null,null,null,null,null,null,null,null,null,null,null,null,null,null,null,null,null,null,null,null,null,null,null,null,null,null,null,null,null,null,null,null,null,null,null,null,null,null,null,null,null,null,null,null,null,"OK","OK"]
[null,null,null,null,null,null,null,null,null,null,null,null,null,null,null,null,null,null,null,null,null,null,null,null,null,null,null,null,null,null,null,null,null,null,null,null,null,null,null,null,null,null,null,null,null,null,null,"OK","OK"]
[null,null,null,null,null,null,null,null,null,null,null,null,null,null,null,null,null,null,null,null,null,null,null,null,null,null,null,null,null,null,null,null,null,null,null,null,null,null,null,null,null,null,null,null,null,null,null,"OK","OK"]
[null,null,null,null,null,null,null,null,null,null,null,null,null,null,null,null,null,null,null,null,null,null,null,null,null,null,null,null,null,null,null,null,null,null,null,null,null,null,null,null,null,null,null,null,null,null,null,"OK","OK"]
[null,null,null,null,null,null,null,null,null,null,null,null,null,null,null,null,null,null,null,null,null,null,null,null,null,null,null,null,null,null,null,null,null,null,null,null,null,null,null,null,null,null,null,null,null,null,null,"OK","OK"]
[null,null,null,null,null,null,null,null,null,null,null,null,null,null,null,null,null,null,null,null,null,null,null,null,null,null,null,null,null,null,null,null,null,null,null,null,null,null,null,null,null,null,null,null,null,null,null,"OK","OK"]
[null,null,null,null,null,null,null,null,null,null,null,null,null,null,null,null,null,null,null,null,null,null,null,null,null,null,null,null,null,null,null,null,null,null,null,null,null,null,null,null,null,null,null,null,null,null,null,"OK","OK"]
[null,null,null,null,null,null,null,null,null,null,null,null,null,null,null,null,null,null,null,null,null,null,null,null,null,null,null,null,null,null,null,null,null,null,null,null,null,null,null,null,null,null,null,null,null,null,null,"OK","OK"]
[null,null,null,null,null,null,null,null,null,null,null,null,null,null,null,null,null,null,null,null,null,null,null,null,null,null,null,null,null,null,null,null,null,null,null,null,null,null,null,null,null,null,null,null,null,null,null,"OK","OK"]
[null,null,null,null,null,null,null,null,null,null,null,null,null,null,null,null,null,null,null,null,null,null,null,null,null,null,null,null,null,null,null,null,null,null,null,null,null,null,null,null,null,null,null,null,null,null,null,"OK","OK"]
[null,null,null,null,null,null,null,null,null,null,null,null,null,null,null,null,null,null,null,null,null,null,null,null,null,null,null,null,null,null,null,null,null,null,null,null,null,null,null,null,null,null,null,null,null,null,null,"OK","OK"]
[null,null,null,null,null,null,null,null,null,null,null,null,null,null,null,null,null,null,null,null,null,null,null,null,null,null,null,null,null,null,null,null,null,null,null,null,null,null,null,null,null,null,null,null,null,null,null,"OK","OK"]
[null,null,null,null,null,null,null,null,null,null,null,null,null,null,null,null,null,null,null,null,null,null,null,null,null,null,null,null,null,null,null,null,null,null,null,null,null,null,null,null,null,null,null,null,null,null,null,"OK","OK"]
[null,null,null,null,null,null,null,null,null,null,null,null,null,null,null,null,null,null,null,null,null,null,null,null,null,null,null,null,null,null,null,null,null,null,null,null,null,null,null,null,null,null,null,null,null,null,null,"OK","OK"]
[null,null,null,null,null,null,null,null,null,null,null,null,null,null,null,null,null,null,null,null,null,null,null,null,null,null,null,null,null,null,null,null,null,null,null,null,null,null,null,null,null,null,null,null,null,null,null,"OK","OK"]
[null,null,null,null,null,null,null,null,null,null,null,null,null,null,null,null,null,null,null,null,null,null,null,null,null,null,null,null,null,null,null,null,null,null,null,null,null,null,null,null,null,null,null,null,null,null,null,"OK","OK"]
[null,null,null,null,null,null,null,null,null,null,null,null,null,null,null,null,null,null,null,null,null,null,null,null,null,null,null,null,null,null,null,null,null,null,null,null,null,null,null,null,null,null,null,null,null,null,null,"OK","OK"]
[null,null,null,null,null,null,null,null,null,null,null,null,null,null,null,null,null,null,null,null,null,null,null,null,null,null,null,null,null,null,null,null,null,null,null,null,null,null,null,null,null,null,null,null,null,null,null,"OK","OK"]
[null,null,null,null,null,null,null,null,null,null,null,null,null,null,null,null,null,null,null,null,null,null,null,null,null,null,null,null,null,null,null,null,null,null,null,null,null,null,null,null,null,null,null,null,null,null,null,"OK","OK"]
[null,null,null,null,null,null,null,null,null,null,null,null,null,null,null,null,null,null,null,null,null,null,null,null,null,null,null,null,null,null,null,null,null,null,null,null,null,null,null,null,null,null,null,null,null,null,null,"OK","OK"]
[null,null,null,null,null,null,null,null,null,null,null,null,null,null,null,null,null,null,null,null,null,null,null,null,null,null,null,null,null,null,null,null,null,null,null,null,null,null,null,null,null,null,null,null,null,null,null,"OK","OK"]
[null,null,null,null,null,null,null,null,null,null,null,null,null,null,null,null,null,null,null,null,null,null,null,null,null,null,null,null,null,null,null,null,null,null,null,null,null,null,null,null,null,null,null,null,null,null,null,"OK","OK"]
[null,null,null,null,null,null,null,null,null,null,null,null,null,null,null,null,null,null,null,null,null,null,null,null,null,null,null,null,null,null,null,null,null,null,null,null,null,null,null,null,null,null,null,null,null,null,null,"OK","OK"]
[null,null,null,null,null,null,null,null,null,null,null,null,null,null,null,null,null,null,null,null,null,null,null,null,null,null,null,null,null,null,null,null,null,null,null,null,null,null,null,null,null,null,null,null,null,null,null,"OK","OK"]
[null,null,null,null,null,null,null,null,null,null,null,null,null,null,null,null,null,null,null,null,null,null,null,null,null,null,null,null,null,null,null,null,null,null,null,null,null,null,null,null,null,null,null,null,null,null,null,"OK","OK"]
[null,null,null,null,null,null,null,null,null,null,null,null,null,null,null,null,null,null,null,null,null,null,null,null,null,null,null,null,null,null,null,null,null,null,null,null,null,null,null,null,null,null,null,null,null,null,null,"OK","OK"]
[null,null,null,null,null,null,null,null,null,null,null,null,null,null,null,null,null,null,null,null,null,null,null,null,null,null,null,null,null,null,null,null,null,null,null,null,null,null,null,null,null,null,null,null,null,null,null,"OK","OK"]
[null,null,null,null,null,null,null,null,null,null,null,null,null,null,null,null,null,null,null,null,null,null,null,null,null,null,null,null,null,null,null,null,null,null,null,null,null,null,null,null,null,null,null,null,null,null,null,"OK","OK"]
[null,null,null,null,null,null,null,null,null,null,null,null,null,null,null,null,null,null,null,null,null,null,null,null,null,null,null,null,null,null,null,null,null,null,null,null,null,null,null,null,null,null,null,null,null,null,null,"OK","OK"]
[null,null,null,null,null,null,null,null,null,null,null,null,null,null,null,null,null,null,null,null,null,null,null,null,null,null,null,null,null,null,null,null,null,null,null,null,null,null,null,null,null,null,null,null,null,null,null,"OK","OK"]
[null,null,null,null,null,null,null,null,null,null,null,null,null,null,null,null,null,null,null,null,null,null,null,null,null,null,null,null,null,null,null,null,null,null,null,null,null,null,null,null,null,null,null,null,null,null,null,"OK","OK"]
[null,null,null,null,null,null,null,null,null,null,null,null,null,null,null,null,null,null,null,null,null,null,null,null,null,null,null,null,null,null,null,null,null,null,null,null,null,null,null,null,null,null,null,null,null,null,null,"OK","OK"]
[null,null,null,null,null,null,null,null,null,null,null,null,null,null,null,null,null,null,null,null,null,null,null,null,null,null,null,null,null,null,null,null,null,null,null,null,null,null,null,null,null,null,null,null,null,null,null,"OK","OK"]
[null,null,null,null,null,null,null,null,null,null,null,null,null,null,null,null,null,null,null,null,null,null,null,null,null,null,null,null,null,null,null,null,null,null,null,null,null,null,null,null,null,null,null,null,null,null,null,"OK","OK"]
[null,null,null,null,null,null,null,null,null,null,null,null,null,null,null,null,null,null,null,null,null,null,null,null,null,null,null,null,null,null,null,null,null,null,null,null,null,null,null,null,null,null,null,null,null,null,null,"OK","OK"]
[null,null,null,null,null,null,null,null,null,null,null,null,null,null,null,null,null,null,null,null,null,null,null,null,null,null,null,null,null,null,null,null,null,null,null,null,null,null,null,null,null,null,null,null,null,null,null,"OK","OK"]
[null,null,null,null,null,null,null,null,null,null,null,null,null,null,null,null,null,null,null,null,null,null,null,null,null,null,null,null,null,null,null,null,null,null,null,null,null,null,null,null,null,null,null,null,null,null,null,"OK","OK"]
[null,null,null,null,null,null,null,null,null,null,null,null,null,null,null,null,null,null,null,null,null,null,null,null,null,null,null,null,null,null,null,null,null,null,null,null,null,null,null,null,null,null,null,null,null,null,null,"OK","OK"]
[null,null,null,null,null,null,null,null,null,null,null,null,null,null,null,null,null,null,null,null,null,null,null,null,null,null,null,null,null,null,null,null,null,null,null,null,null,null,null,null,null,null,null,null,null,null,null,"OK","OK"]
[null,null,null,null,null,null,null,null,null,null,null,null,null,null,null,null,null,null,null,null,null,null,null,null,null,null,null,null,null,null,null,null,null,null,null,null,null,null,null,null,null,null,null,null,null,null,null,"OK","OK"]
[null,null,null,null,null,null,null,null,null,null,null,null,null,null,null,null,null,null,null,null,null,null,null,null,null,null,null,null,null,null,null,null,null,null,null,null,null,null,null,null,null,null,null,null,null,null,null,"OK","OK"]
[null,null,null,null,null,null,null,null,null,null,null,null,null,null,null,null,null,null,null,null,null,null,null,null,null,null,null,null,null,null,null,null,null,null,null,null,null,null,null,null,null,null,null,null,null,null,null,"OK","OK"]
[null,null,null,null,null,null,null,null,null,null,null,null,null,null,null,null,null,null,null,null,null,null,null,null,null,null,null,null,null,null,null,null,null,null,null,null,null,null,null,null,null,null,null,null,null,null,null,"OK","OK"]
[null,null,null,null,null,null,null,null,null,null,null,null,null,null,null,null,null,null,null,null,null,null,null,null,null,null,null,null,null,null,null,null,null,null,null,null,null,null,null,null,null,null,null,null,null,null,null,"OK","OK"]
[null,null,null,null,null,null,null,null,null,null,null,null,null,null,null,null,null,null,null,null,null,null,null,null,null,null,null,null,null,null,null,null,null,null,null,null,null,null,null,null,null,null,null,null,null,null,null,"OK","OK"]
[null,null,null,null,null,null,null,null,null,null,null,null,null,null,null,null,null,null,null,null,null,null,null,null,null,null,null,null,null,null,null,null,null,null,null,null,null,null,null,null,null,null,null,null,null,null,null,"OK","OK"]
[null,null,null,null,null,null,null,null,null,null,null,null,null,null,null,null,null,null,null,null,null,null,null,null,null,null,null,null,null,null,null,null,null,null,null,null,null,null,null,null,null,null,null,null,null,null,null,"OK","OK"]
[null,null,null,null,null,null,null,null,null,null,null,null,null,null,null,null,null,null,null,null,null,null,null,null,null,null,null,null,null,null,null,null,null,null,null,null,null,null,null,null,null,null,null,null,null,null,null,"OK","OK"]
[null,null,null,null,null,null,null,null,null,null,null,null,null,null,null,null,null,null,null,null,null,null,null,null,null,null,null,null,null,null,null,null,null,null,null,null,null,null,null,null,null,null,null,null,null,null,null,"OK","OK"]
[null,null,null,null,null,null,null,null,null,null,null,null,null,null,null,null,null,null,null,null,null,null,null,null,null,null,null,null,null,null,null,null,null,null,null,null,null,null,null,null,null,null,null,null,null,null,null,"OK","OK"]
[null,null,null,null,null,null,null,null,null,null,null,null,null,null,null,null,null,null,null,null,null,null,null,null,null,null,null,null,null,null,null,null,null,null,null,null,null,null,null,null,null,null,null,null,null,null,null,"OK","OK"]
[null,null,null,null,null,null,null,null,null,null,null,null,null,null,null,null,null,null,null,null,null,null,null,null,null,null,null,null,null,null,null,null,null,null,null,null,null,null,null,null,null,null,null,null,null,null,null,"OK","OK"]
[null,null,null,null,null,null,null,null,null,null,null,null,null,null,null,null,null,null,null,null,null,null,null,null,null,null,null,null,null,null,null,null,null,null,null,null,null,null,null,null,null,null,null,null,null,null,null,{"$f":"IF(P1557-W1557-Y1557-AA1557-AC1557-AE1557-AG1557-AI1557-AK1557-AM1557-AO1557-AQ1557-AS1557=0,\"OK\",\"Compromisos diferentes al valor estimado en la vigencia actual\")","v":"OK"},{"$f":"IF(P1557-X1557-Z1557-AB1557-AD1557-AF1557-AH1557-AJ1557-AL1557-AN1557-AP1557-AR1557-AT1557=0,\"OK\",\"Obligaciones diferentes al valor estimado en la vigencia actual\")","v":"OK"}]
[null,null,null,null,null,null,null,null,null,null,null,null,null,null,null,null,null,null,null,null,null,null,null,null,null,null,null,null,null,null,null,null,null,null,null,null,null,null,null,null,null,null,null,null,null,null,null,"OK","OK"]
[null,null,null,null,null,null,null,null,null,null,null,null,null,null,null,null,null,null,null,null,null,null,null,null,null,null,null,null,null,null,null,null,null,null,null,null,null,null,null,null,null,null,null,null,null,null,null,"OK","OK"]
[null,null,null,null,null,null,null,null,null,null,null,null,null,null,null,null,null,null,null,null,null,null,null,null,null,null,null,null,null,null,null,null,null,null,null,null,null,null,null,null,null,null,null,null,null,null,null,"OK","OK"]
[null,null,null,null,null,null,null,null,null,null,null,null,null,null,null,null,null,null,null,null,null,null,null,null,null,null,null,null,null,null,null,null,null,null,null,null,null,null,null,null,null,null,null,null,null,null,null,"OK","OK"]
[null,null,null,null,null,null,null,null,null,null,null,null,null,null,null,null,null,null,null,null,null,null,null,null,null,null,null,null,null,null,null,null,null,null,null,null,null,null,null,null,null,null,null,null,null,null,null,"OK","OK"]
[null,null,null,null,null,null,null,null,null,null,null,null,null,null,null,null,null,null,null,null,null,null,null,null,null,null,null,null,null,null,null,null,null,null,null,null,null,null,null,null,null,null,null,null,null,null,null,"OK","OK"]
[null,null,null,null,null,null,null,null,null,null,null,null,null,null,null,null,null,null,null,null,null,null,null,null,null,null,null,null,null,null,null,null,null,null,null,null,null,null,null,null,null,null,null,null,null,null,null,"OK","OK"]
[null,null,null,null,null,null,null,null,null,null,null,null,null,null,null,null,null,null,null,null,null,null,null,null,null,null,null,null,null,null,null,null,null,null,null,null,null,null,null,null,null,null,null,null,null,null,null,"OK","OK"]
[null,null,null,null,null,null,null,null,null,null,null,null,null,null,null,null,null,null,null,null,null,null,null,null,null,null,null,null,null,null,null,null,null,null,null,null,null,null,null,null,null,null,null,null,null,null,null,"OK","OK"]
[null,null,null,null,null,null,null,null,null,null,null,null,null,null,null,null,null,null,null,null,null,null,null,null,null,null,null,null,null,null,null,null,null,null,null,null,null,null,null,null,null,null,null,null,null,null,null,"OK","OK"]
[null,null,null,null,null,null,null,null,null,null,null,null,null,null,null,null,null,null,null,null,null,null,null,null,null,null,null,null,null,null,null,null,null,null,null,null,null,null,null,null,null,null,null,null,null,null,null,"OK","OK"]
[null,null,null,null,null,null,null,null,null,null,null,null,null,null,null,null,null,null,null,null,null,null,null,null,null,null,null,null,null,null,null,null,null,null,null,null,null,null,null,null,null,null,null,null,null,null,null,"OK","OK"]
[null,null,null,null,null,null,null,null,null,null,null,null,null,null,null,null,null,null,null,null,null,null,null,null,null,null,null,null,null,null,null,null,null,null,null,null,null,null,null,null,null,null,null,null,null,null,null,"OK","OK"]
[null,null,null,null,null,null,null,null,null,null,null,null,null,null,null,null,null,null,null,null,null,null,null,null,null,null,null,null,null,null,null,null,null,null,null,null,null,null,null,null,null,null,null,null,null,null,null,"OK","OK"]
[null,null,null,null,null,null,null,null,null,null,null,null,null,null,null,null,null,null,null,null,null,null,null,null,null,null,null,null,null,null,null,null,null,null,null,null,null,null,null,null,null,null,null,null,null,null,null,"OK","OK"]
[null,null,null,null,null,null,null,null,null,null,null,null,null,null,null,null,null,null,null,null,null,null,null,null,null,null,null,null,null,null,null,null,null,null,null,null,null,null,null,null,null,null,null,null,null,null,null,"OK","OK"]
[null,null,null,null,null,null,null,null,null,null,null,null,null,null,null,null,null,null,null,null,null,null,null,null,null,null,null,null,null,null,null,null,null,null,null,null,null,null,null,null,null,null,null,null,null,null,null,"OK","OK"]
[null,null,null,null,null,null,null,null,null,null,null,null,null,null,null,null,null,null,null,null,null,null,null,null,null,null,null,null,null,null,null,null,null,null,null,null,null,null,null,null,null,null,null,null,null,null,null,"OK","OK"]
[null,null,null,null,null,null,null,null,null,null,null,null,null,null,null,null,null,null,null,null,null,null,null,null,null,null,null,null,null,null,null,null,null,null,null,null,null,null,null,null,null,null,null,null,null,null,null,"OK","OK"]
[null,null,null,null,null,null,null,null,null,null,null,null,null,null,null,null,null,null,null,null,null,null,null,null,null,null,null,null,null,null,null,null,null,null,null,null,null,null,null,null,null,null,null,null,null,null,null,"OK","OK"]
[null,null,null,null,null,null,null,null,null,null,null,null,null,null,null,null,null,null,null,null,null,null,null,null,null,null,null,null,null,null,null,null,null,null,null,null,null,null,null,null,null,null,null,null,null,null,null,"OK","OK"]
[null,null,null,null,null,null,null,null,null,null,null,null,null,null,null,null,null,null,null,null,null,null,null,null,null,null,null,null,null,null,null,null,null,null,null,null,null,null,null,null,null,null,null,null,null,null,null,"OK","OK"]
[null,null,null,null,null,null,null,null,null,null,null,null,null,null,null,null,null,null,null,null,null,null,null,null,null,null,null,null,null,null,null,null,null,null,null,null,null,null,null,null,null,null,null,null,null,null,null,"OK","OK"]
[null,null,null,null,null,null,null,null,null,null,null,null,null,null,null,null,null,null,null,null,null,null,null,null,null,null,null,null,null,null,null,null,null,null,null,null,null,null,null,null,null,null,null,null,null,null,null,"OK","OK"]
[null,null,null,null,null,null,null,null,null,null,null,null,null,null,null,null,null,null,null,null,null,null,null,null,null,null,null,null,null,null,null,null,null,null,null,null,null,null,null,null,null,null,null,null,null,null,null,"OK","OK"]
[null,null,null,null,null,null,null,null,null,null,null,null,null,null,null,null,null,null,null,null,null,null,null,null,null,null,null,null,null,null,null,null,null,null,null,null,null,null,null,null,null,null,null,null,null,null,null,"OK","OK"]
[null,null,null,null,null,null,null,null,null,null,null,null,null,null,null,null,null,null,null,null,null,null,null,null,null,null,null,null,null,null,null,null,null,null,null,null,null,null,null,null,null,null,null,null,null,null,null,"OK","OK"]
[null,null,null,null,null,null,null,null,null,null,null,null,null,null,null,null,null,null,null,null,null,null,null,null,null,null,null,null,null,null,null,null,null,null,null,null,null,null,null,null,null,null,null,null,null,null,null,"OK","OK"]
[null,null,null,null,null,null,null,null,null,null,null,null,null,null,null,null,null,null,null,null,null,null,null,null,null,null,null,null,null,null,null,null,null,null,null,null,null,null,null,null,null,null,null,null,null,null,null,"OK","OK"]
[null,null,null,null,null,null,null,null,null,null,null,null,null,null,null,null,null,null,null,null,null,null,null,null,null,null,null,null,null,null,null,null,null,null,null,null,null,null,null,null,null,null,null,null,null,null,null,"OK","OK"]
[null,null,null,null,null,null,null,null,null,null,null,null,null,null,null,null,null,null,null,null,null,null,null,null,null,null,null,null,null,null,null,null,null,null,null,null,null,null,null,null,null,null,null,null,null,null,null,"OK","OK"]
[null,null,null,null,null,null,null,null,null,null,null,null,null,null,null,null,null,null,null,null,null,null,null,null,null,null,null,null,null,null,null,null,null,null,null,null,null,null,null,null,null,null,null,null,null,null,null,"OK","OK"]
[null,null,null,null,null,null,null,null,null,null,null,null,null,null,null,null,null,null,null,null,null,null,null,null,null,null,null,null,null,null,null,null,null,null,null,null,null,null,null,null,null,null,null,null,null,null,null,"OK","OK"]
[null,null,null,null,null,null,null,null,null,null,null,null,null,null,null,null,null,null,null,null,null,null,null,null,null,null,null,null,null,null,null,null,null,null,null,null,null,null,null,null,null,null,null,null,null,null,null,"OK","OK"]
[null,null,null,null,null,null,null,null,null,null,null,null,null,null,null,null,null,null,null,null,null,null,null,null,null,null,null,null,null,null,null,null,null,null,null,null,null,null,null,null,null,null,null,null,null,null,null,"OK","OK"]
[null,null,null,null,null,null,null,null,null,null,null,null,null,null,null,null,null,null,null,null,null,null,null,null,null,null,null,null,null,null,null,null,null,null,null,null,null,null,null,null,null,null,null,null,null,null,null,"OK","OK"]
[null,null,null,null,null,null,null,null,null,null,null,null,null,null,null,null,null,null,null,null,null,null,null,null,null,null,null,null,null,null,null,null,null,null,null,null,null,null,null,null,null,null,null,null,null,null,null,"OK","OK"]
[null,null,null,null,null,null,null,null,null,null,null,null,null,null,null,null,null,null,null,null,null,null,null,null,null,null,null,null,null,null,null,null,null,null,null,null,null,null,null,null,null,null,null,null,null,null,null,"OK","OK"]
[null,null,null,null,null,null,null,null,null,null,null,null,null,null,null,null,null,null,null,null,null,null,null,null,null,null,null,null,null,null,null,null,null,null,null,null,null,null,null,null,null,null,null,null,null,null,null,"OK","OK"]
[null,null,null,null,null,null,null,null,null,null,null,null,null,null,null,null,null,null,null,null,null,null,null,null,null,null,null,null,null,null,null,null,null,null,null,null,null,null,null,null,null,null,null,null,null,null,null,"OK","OK"]
[null,null,null,null,null,null,null,null,null,null,null,null,null,null,null,null,null,null,null,null,null,null,null,null,null,null,null,null,null,null,null,null,null,null,null,null,null,null,null,null,null,null,null,null,null,null,null,"OK","OK"]
[null,null,null,null,null,null,null,null,null,null,null,null,null,null,null,null,null,null,null,null,null,null,null,null,null,null,null,null,null,null,null,null,null,null,null,null,null,null,null,null,null,null,null,null,null,null,null,"OK","OK"]
[null,null,null,null,null,null,null,null,null,null,null,null,null,null,null,null,null,null,null,null,null,null,null,null,null,null,null,null,null,null,null,null,null,null,null,null,null,null,null,null,null,null,null,null,null,null,null,"OK","OK"]
[null,null,null,null,null,null,null,null,null,null,null,null,null,null,null,null,null,null,null,null,null,null,null,null,null,null,null,null,null,null,null,null,null,null,null,null,null,null,null,null,null,null,null,null,null,null,null,"OK","OK"]
[null,null,null,null,null,null,null,null,null,null,null,null,null,null,null,null,null,null,null,null,null,null,null,null,null,null,null,null,null,null,null,null,null,null,null,null,null,null,null,null,null,null,null,null,null,null,null,"OK","OK"]
[null,null,null,null,null,null,null,null,null,null,null,null,null,null,null,null,null,null,null,null,null,null,null,null,null,null,null,null,null,null,null,null,null,null,null,null,null,null,null,null,null,null,null,null,null,null,null,"OK","OK"]
[null,null,null,null,null,null,null,null,null,null,null,null,null,null,null,null,null,null,null,null,null,null,null,null,null,null,null,null,null,null,null,null,null,null,null,null,null,null,null,null,null,null,null,null,null,null,null,"OK","OK"]
[null,null,null,null,null,null,null,null,null,null,null,null,null,null,null,null,null,null,null,null,null,null,null,null,null,null,null,null,null,null,null,null,null,null,null,null,null,null,null,null,null,null,null,null,null,null,null,"OK","OK"]
[null,null,null,null,null,null,null,null,null,null,null,null,null,null,null,null,null,null,null,null,null,null,null,null,null,null,null,null,null,null,null,null,null,null,null,null,null,null,null,null,null,null,null,null,null,null,null,"OK","OK"]
[null,null,null,null,null,null,null,null,null,null,null,null,null,null,null,null,null,null,null,null,null,null,null,null,null,null,null,null,null,null,null,null,null,null,null,null,null,null,null,null,null,null,null,null,null,null,null,"OK","OK"]
[null,null,null,null,null,null,null,null,null,null,null,null,null,null,null,null,null,null,null,null,null,null,null,null,null,null,null,null,null,null,null,null,null,null,null,null,null,null,null,null,null,null,null,null,null,null,null,"OK","OK"]
[null,null,null,null,null,null,null,null,null,null,null,null,null,null,null,null,null,null,null,null,null,null,null,null,null,null,null,null,null,null,null,null,null,null,null,null,null,null,null,null,null,null,null,null,null,null,null,"OK","OK"]
[null,null,null,null,null,null,null,null,null,null,null,null,null,null,null,null,null,null,null,null,null,null,null,null,null,null,null,null,null,null,null,null,null,null,null,null,null,null,null,null,null,null,null,null,null,null,null,"OK","OK"]
[null,null,null,null,null,null,null,null,null,null,null,null,null,null,null,null,null,null,null,null,null,null,null,null,null,null,null,null,null,null,null,null,null,null,null,null,null,null,null,null,null,null,null,null,null,null,null,"OK","OK"]
[null,null,null,null,null,null,null,null,null,null,null,null,null,null,null,null,null,null,null,null,null,null,null,null,null,null,null,null,null,null,null,null,null,null,null,null,null,null,null,null,null,null,null,null,null,null,null,"OK","OK"]
[null,null,null,null,null,null,null,null,null,null,null,null,null,null,null,null,null,null,null,null,null,null,null,null,null,null,null,null,null,null,null,null,null,null,null,null,null,null,null,null,null,null,null,null,null,null,null,"OK","OK"]
[null,null,null,null,null,null,null,null,null,null,null,null,null,null,null,null,null,null,null,null,null,null,null,null,null,null,null,null,null,null,null,null,null,null,null,null,null,null,null,null,null,null,null,null,null,null,null,"OK","OK"]
[null,null,null,null,null,null,null,null,null,null,null,null,null,null,null,null,null,null,null,null,null,null,null,null,null,null,null,null,null,null,null,null,null,null,null,null,null,null,null,null,null,null,null,null,null,null,null,"OK","OK"]
[null,null,null,null,null,null,null,null,null,null,null,null,null,null,null,null,null,null,null,null,null,null,null,null,null,null,null,null,null,null,null,null,null,null,null,null,null,null,null,null,null,null,null,null,null,null,null,"OK","OK"]
[null,null,null,null,null,null,null,null,null,null,null,null,null,null,null,null,null,null,null,null,null,null,null,null,null,null,null,null,null,null,null,null,null,null,null,null,null,null,null,null,null,null,null,null,null,null,null,"OK","OK"]
[null,null,null,null,null,null,null,null,null,null,null,null,null,null,null,null,null,null,null,null,null,null,null,null,null,null,null,null,null,null,null,null,null,null,null,null,null,null,null,null,null,null,null,null,null,null,null,"OK","OK"]
[null,null,null,null,null,null,null,null,null,null,null,null,null,null,null,null,null,null,null,null,null,null,null,null,null,null,null,null,null,null,null,null,null,null,null,null,null,null,null,null,null,null,null,null,null,null,null,"OK","OK"]
[null,null,null,null,null,null,null,null,null,null,null,null,null,null,null,null,null,null,null,null,null,null,null,null,null,null,null,null,null,null,null,null,null,null,null,null,null,null,null,null,null,null,null,null,null,null,null,"OK","OK"]
[null,null,null,null,null,null,null,null,null,null,null,null,null,null,null,null,null,null,null,null,null,null,null,null,null,null,null,null,null,null,null,null,null,null,null,null,null,null,null,null,null,null,null,null,null,null,null,"OK","OK"]
[null,null,null,null,null,null,null,null,null,null,null,null,null,null,null,null,null,null,null,null,null,null,null,null,null,null,null,null,null,null,null,null,null,null,null,null,null,null,null,null,null,null,null,null,null,null,null,"OK","OK"]
[null,null,null,null,null,null,null,null,null,null,null,null,null,null,null,null,null,null,null,null,null,null,null,null,null,null,null,null,null,null,null,null,null,null,null,null,null,null,null,null,null,null,null,null,null,null,null,"OK","OK"]
[null,null,null,null,null,null,null,null,null,null,null,null,null,null,null,null,null,null,null,null,null,null,null,null,null,null,null,null,null,null,null,null,null,null,null,null,null,null,null,null,null,null,null,null,null,null,null,"OK","OK"]
[null,null,null,null,null,null,null,null,null,null,null,null,null,null,null,null,null,null,null,null,null,null,null,null,null,null,null,null,null,null,null,null,null,null,null,null,null,null,null,null,null,null,null,null,null,null,null,"OK","OK"]
[null,null,null,null,null,null,null,null,null,null,null,null,null,null,null,null,null,null,null,null,null,null,null,null,null,null,null,null,null,null,null,null,null,null,null,null,null,null,null,null,null,null,null,null,null,null,null,"OK","OK"]
[null,null,null,null,null,null,null,null,null,null,null,null,null,null,null,null,null,null,null,null,null,null,null,null,null,null,null,null,null,null,null,null,null,null,null,null,null,null,null,null,null,null,null,null,null,null,null,"OK","OK"]
[null,null,null,null,null,null,null,null,null,null,null,null,null,null,null,null,null,null,null,null,null,null,null,null,null,null,null,null,null,null,null,null,null,null,null,null,null,null,null,null,null,null,null,null,null,null,null,"OK","OK"]
[null,null,null,null,null,null,null,null,null,null,null,null,null,null,null,null,null,null,null,null,null,null,null,null,null,null,null,null,null,null,null,null,null,null,null,null,null,null,null,null,null,null,null,null,null,null,null,"OK","OK"]
[null,null,null,null,null,null,null,null,null,null,null,null,null,null,null,null,null,null,null,null,null,null,null,null,null,null,null,null,null,null,null,null,null,null,null,null,null,null,null,null,null,null,null,null,null,null,null,"OK","OK"]
[null,null,null,null,null,null,null,null,null,null,null,null,null,null,null,null,null,null,null,null,null,null,null,null,null,null,null,null,null,null,null,null,null,null,null,null,null,null,null,null,null,null,null,null,null,null,null,"OK","OK"]
[null,null,null,null,null,null,null,null,null,null,null,null,null,null,null,null,null,null,null,null,null,null,null,null,null,null,null,null,null,null,null,null,null,null,null,null,null,null,null,null,null,null,null,null,null,null,null,"OK","OK"]
[null,null,null,null,null,null,null,null,null,null,null,null,null,null,null,null,null,null,null,null,null,null,null,null,null,null,null,null,null,null,null,null,null,null,null,null,null,null,null,null,null,null,null,null,null,null,null,"OK","OK"]
[null,null,null,null,null,null,null,null,null,null,null,null,null,null,null,null,null,null,null,null,null,null,null,null,null,null,null,null,null,null,null,null,null,null,null,null,null,null,null,null,null,null,null,null,null,null,null,"OK","OK"]
[null,null,null,null,null,null,null,null,null,null,null,null,null,null,null,null,null,null,null,null,null,null,null,null,null,null,null,null,null,null,null,null,null,null,null,null,null,null,null,null,null,null,null,null,null,null,null,"OK","OK"]
[null,null,null,null,null,null,null,null,null,null,null,null,null,null,null,null,null,null,null,null,null,null,null,null,null,null,null,null,null,null,null,null,null,null,null,null,null,null,null,null,null,null,null,null,null,null,null,"OK","OK"]
[null,null,null,null,null,null,null,null,null,null,null,null,null,null,null,null,null,null,null,null,null,null,null,null,null,null,null,null,null,null,null,null,null,null,null,null,null,null,null,null,null,null,null,null,null,null,null,"OK","OK"]
[null,null,null,null,null,null,null,null,null,null,null,null,null,null,null,null,null,null,null,null,null,null,null,null,null,null,null,null,null,null,null,null,null,null,null,null,null,null,null,null,null,null,null,null,null,null,null,"OK","OK"]
[null,null,null,null,null,null,null,null,null,null,null,null,null,null,null,null,null,null,null,null,null,null,null,null,null,null,null,null,null,null,null,null,null,null,null,null,null,null,null,null,null,null,null,null,null,null,null,"OK","OK"]
[null,null,null,null,null,null,null,null,null,null,null,null,null,null,null,null,null,null,null,null,null,null,null,null,null,null,null,null,null,null,null,null,null,null,null,null,null,null,null,null,null,null,null,null,null,null,null,"OK","OK"]
[null,null,null,null,null,null,null,null,null,null,null,null,null,null,null,null,null,null,null,null,null,null,null,null,null,null,null,null,null,null,null,null,null,null,null,null,null,null,null,null,null,null,null,null,null,null,null,"OK","OK"]
[null,null,null,null,null,null,null,null,null,null,null,null,null,null,null,null,null,null,null,null,null,null,null,null,null,null,null,null,null,null,null,null,null,null,null,null,null,null,null,null,null,null,null,null,null,null,null,"OK","OK"]
[null,null,null,null,null,null,null,null,null,null,null,null,null,null,null,null,null,null,null,null,null,null,null,null,null,null,null,null,null,null,null,null,null,null,null,null,null,null,null,null,null,null,null,null,null,null,null,"OK","OK"]
[null,null,null,null,null,null,null,null,null,null,null,null,null,null,null,null,null,null,null,null,null,null,null,null,null,null,null,null,null,null,null,null,null,null,null,null,null,null,null,null,null,null,null,null,null,null,null,"OK","OK"]
[null,null,null,null,null,null,null,null,null,null,null,null,null,null,null,null,null,null,null,null,null,null,null,null,null,null,null,null,null,null,null,null,null,null,null,null,null,null,null,null,null,null,null,null,null,null,null,"OK","OK"]
[null,null,null,null,null,null,null,null,null,null,null,null,null,null,null,null,null,null,null,null,null,null,null,null,null,null,null,null,null,null,null,null,null,null,null,null,null,null,null,null,null,null,null,null,null,null,null,"OK","OK"]
[null,null,null,null,null,null,null,null,null,null,null,null,null,null,null,null,null,null,null,null,null,null,null,null,null,null,null,null,null,null,null,null,null,null,null,null,null,null,null,null,null,null,null,null,null,null,null,"OK","OK"]
[null,null,null,null,null,null,null,null,null,null,null,null,null,null,null,null,null,null,null,null,null,null,null,null,null,null,null,null,null,null,null,null,null,null,null,null,null,null,null,null,null,null,null,null,null,null,null,"OK","OK"]
[null,null,null,null,null,null,null,null,null,null,null,null,null,null,null,null,null,null,null,null,null,null,null,null,null,null,null,null,null,null,null,null,null,null,null,null,null,null,null,null,null,null,null,null,null,null,null,"OK","OK"]
[null,null,null,null,null,null,null,null,null,null,null,null,null,null,null,null,null,null,null,null,null,null,null,null,null,null,null,null,null,null,null,null,null,null,null,null,null,null,null,null,null,null,null,null,null,null,null,"OK","OK"]
[null,null,null,null,null,null,null,null,null,null,null,null,null,null,null,null,null,null,null,null,null,null,null,null,null,null,null,null,null,null,null,null,null,null,null,null,null,null,null,null,null,null,null,null,null,null,null,{"$f":"IF(P2005-W2005-Y2005-AA2005-AC2005-AE2005-AG2005-AI2005-AK2005-AM2005-AO2005-AQ2005-AS2005=0,\"OK\",\"Compromisos diferentes al valor estimado en la vigencia actual\")","v":"OK"},{"$f":"IF(P2005-X2005-Z2005-AB2005-AD2005-AF2005-AH2005-AJ2005-AL2005-AN2005-AP2005-AR2005-AT2005=0,\"OK\",\"Obligaciones diferentes al valor estimado en la vigencia actual\")","v":"OK"}]
[null,null,null,null,null,null,null,null,null,null,null,null,null,null,null,null,null,null,null,null,null,null,null,null,null,null,null,null,null,null,null,null,null,null,null,null,null,null,null,null,null,null,null,null,null,null,null,"OK","OK"]
[null,null,null,null,null,null,null,null,null,null,null,null,null,null,null,null,null,null,null,null,null,null,null,null,null,null,null,null,null,null,null,null,null,null,null,null,null,null,null,null,null,null,null,null,null,null,null,"OK","OK"]
[null,null,null,null,null,null,null,null,null,null,null,null,null,null,null,null,null,null,null,null,null,null,null,null,null,null,null,null,null,null,null,null,null,null,null,null,null,null,null,null,null,null,null,null,null,null,null,"OK","OK"]
[null,null,null,null,null,null,null,null,null,null,null,null,null,null,null,null,null,null,null,null,null,null,null,null,null,null,null,null,null,null,null,null,null,null,null,null,null,null,null,null,null,null,null,null,null,null,null,"OK","OK"]
[null,null,null,null,null,null,null,null,null,null,null,null,null,null,null,null,null,null,null,null,null,null,null,null,null,null,null,null,null,null,null,null,null,null,null,null,null,null,null,null,null,null,null,null,null,null,null,"OK","OK"]
[null,null,null,null,null,null,null,null,null,null,null,null,null,null,null,null,null,null,null,null,null,null,null,null,null,null,null,null,null,null,null,null,null,null,null,null,null,null,null,null,null,null,null,null,null,null,null,"OK","OK"]
[null,null,null,null,null,null,null,null,null,null,null,null,null,null,null,null,null,null,null,null,null,null,null,null,null,null,null,null,null,null,null,null,null,null,null,null,null,null,null,null,null,null,null,null,null,null,null,"OK","OK"]
[null,null,null,null,null,null,null,null,null,null,null,null,null,null,null,null,null,null,null,null,null,null,null,null,null,null,null,null,null,null,null,null,null,null,null,null,null,null,null,null,null,null,null,null,null,null,null,"OK","OK"]
[null,null,null,null,null,null,null,null,null,null,null,null,null,null,null,null,null,null,null,null,null,null,null,null,null,null,null,null,null,null,null,null,null,null,null,null,null,null,null,null,null,null,null,null,null,null,null,"OK","OK"]
[null,null,null,null,null,null,null,null,null,null,null,null,null,null,null,null,null,null,null,null,null,null,null,null,null,null,null,null,null,null,null,null,null,null,null,null,null,null,null,null,null,null,null,null,null,null,null,"OK","OK"]
[null,null,null,null,null,null,null,null,null,null,null,null,null,null,null,null,null,null,null,null,null,null,null,null,null,null,null,null,null,null,null,null,null,null,null,null,null,null,null,null,null,null,null,null,null,null,null,"OK","OK"]
[null,null,null,null,null,null,null,null,null,null,null,null,null,null,null,null,null,null,null,null,null,null,null,null,null,null,null,null,null,null,null,null,null,null,null,null,null,null,null,null,null,null,null,null,null,null,null,"OK","OK"]
[null,null,null,null,null,null,null,null,null,null,null,null,null,null,null,null,null,null,null,null,null,null,null,null,null,null,null,null,null,null,null,null,null,null,null,null,null,null,null,null,null,null,null,null,null,null,null,"OK","OK"]
[null,null,null,null,null,null,null,null,null,null,null,null,null,null,null,null,null,null,null,null,null,null,null,null,null,null,null,null,null,null,null,null,null,null,null,null,null,null,null,null,null,null,null,null,null,null,null,"OK","OK"]
[null,null,null,null,null,null,null,null,null,null,null,null,null,null,null,null,null,null,null,null,null,null,null,null,null,null,null,null,null,null,null,null,null,null,null,null,null,null,null,null,null,null,null,null,null,null,null,"OK","OK"]
[null,null,null,null,null,null,null,null,null,null,null,null,null,null,null,null,null,null,null,null,null,null,null,null,null,null,null,null,null,null,null,null,null,null,null,null,null,null,null,null,null,null,null,null,null,null,null,"OK","OK"]
[null,null,null,null,null,null,null,null,null,null,null,null,null,null,null,null,null,null,null,null,null,null,null,null,null,null,null,null,null,null,null,null,null,null,null,null,null,null,null,null,null,null,null,null,null,null,null,"OK","OK"]
[null,null,null,null,null,null,null,null,null,null,null,null,null,null,null,null,null,null,null,null,null,null,null,null,null,null,null,null,null,null,null,null,null,null,null,null,null,null,null,null,null,null,null,null,null,null,null,"OK","OK"]
[null,null,null,null,null,null,null,null,null,null,null,null,null,null,null,null,null,null,null,null,null,null,null,null,null,null,null,null,null,null,null,null,null,null,null,null,null,null,null,null,null,null,null,null,null,null,null,"OK","OK"]
[null,null,null,null,null,null,null,null,null,null,null,null,null,null,null,null,null,null,null,null,null,null,null,null,null,null,null,null,null,null,null,null,null,null,null,null,null,null,null,null,null,null,null,null,null,null,null,"OK","OK"]
[null,null,null,null,null,null,null,null,null,null,null,null,null,null,null,null,null,null,null,null,null,null,null,null,null,null,null,null,null,null,null,null,null,null,null,null,null,null,null,null,null,null,null,null,null,null,null,"OK","OK"]
[null,null,null,null,null,null,null,null,null,null,null,null,null,null,null,null,null,null,null,null,null,null,null,null,null,null,null,null,null,null,null,null,null,null,null,null,null,null,null,null,null,null,null,null,null,null,null,"OK","OK"]
[null,null,null,null,null,null,null,null,null,null,null,null,null,null,null,null,null,null,null,null,null,null,null,null,null,null,null,null,null,null,null,null,null,null,null,null,null,null,null,null,null,null,null,null,null,null,null,"OK","OK"]
[null,null,null,null,null,null,null,null,null,null,null,null,null,null,null,null,null,null,null,null,null,null,null,null,null,null,null,null,null,null,null,null,null,null,null,null,null,null,null,null,null,null,null,null,null,null,null,"OK","OK"]
[null,null,null,null,null,null,null,null,null,null,null,null,null,null,null,null,null,null,null,null,null,null,null,null,null,null,null,null,null,null,null,null,null,null,null,null,null,null,null,null,null,null,null,null,null,null,null,"OK","OK"]
[null,null,null,null,null,null,null,null,null,null,null,null,null,null,null,null,null,null,null,null,null,null,null,null,null,null,null,null,null,null,null,null,null,null,null,null,null,null,null,null,null,null,null,null,null,null,null,"OK","OK"]
[null,null,null,null,null,null,null,null,null,null,null,null,null,null,null,null,null,null,null,null,null,null,null,null,null,null,null,null,null,null,null,null,null,null,null,null,null,null,null,null,null,null,null,null,null,null,null,"OK","OK"]
[null,null,null,null,null,null,null,null,null,null,null,null,null,null,null,null,null,null,null,null,null,null,null,null,null,null,null,null,null,null,null,null,null,null,null,null,null,null,null,null,null,null,null,null,null,null,null,"OK","OK"]
[null,null,null,null,null,null,null,null,null,null,null,null,null,null,null,null,null,null,null,null,null,null,null,null,null,null,null,null,null,null,null,null,null,null,null,null,null,null,null,null,null,null,null,null,null,null,null,"OK","OK"]
[null,null,null,null,null,null,null,null,null,null,null,null,null,null,null,null,null,null,null,null,null,null,null,null,null,null,null,null,null,null,null,null,null,null,null,null,null,null,null,null,null,null,null,null,null,null,null,"OK","OK"]
[null,null,null,null,null,null,null,null,null,null,null,null,null,null,null,null,null,null,null,null,null,null,null,null,null,null,null,null,null,null,null,null,null,null,null,null,null,null,null,null,null,null,null,null,null,null,null,"OK","OK"]
[null,null,null,null,null,null,null,null,null,null,null,null,null,null,null,null,null,null,null,null,null,null,null,null,null,null,null,null,null,null,null,null,null,null,null,null,null,null,null,null,null,null,null,null,null,null,null,"OK","OK"]
[null,null,null,null,null,null,null,null,null,null,null,null,null,null,null,null,null,null,null,null,null,null,null,null,null,null,null,null,null,null,null,null,null,null,null,null,null,null,null,null,null,null,null,null,null,null,null,"OK","OK"]
[null,null,null,null,null,null,null,null,null,null,null,null,null,null,null,null,null,null,null,null,null,null,null,null,null,null,null,null,null,null,null,null,null,null,null,null,null,null,null,null,null,null,null,null,null,null,null,"OK","OK"]
[null,null,null,null,null,null,null,null,null,null,null,null,null,null,null,null,null,null,null,null,null,null,null,null,null,null,null,null,null,null,null,null,null,null,null,null,null,null,null,null,null,null,null,null,null,null,null,"OK","OK"]
[null,null,null,null,null,null,null,null,null,null,null,null,null,null,null,null,null,null,null,null,null,null,null,null,null,null,null,null,null,null,null,null,null,null,null,null,null,null,null,null,null,null,null,null,null,null,null,"OK","OK"]
[null,null,null,null,null,null,null,null,null,null,null,null,null,null,null,null,null,null,null,null,null,null,null,null,null,null,null,null,null,null,null,null,null,null,null,null,null,null,null,null,null,null,null,null,null,null,null,"OK","OK"]
[null,null,null,null,null,null,null,null,null,null,null,null,null,null,null,null,null,null,null,null,null,null,null,null,null,null,null,null,null,null,null,null,null,null,null,null,null,null,null,null,null,null,null,null,null,null,null,"OK","OK"]
[null,null,null,null,null,null,null,null,null,null,null,null,null,null,null,null,null,null,null,null,null,null,null,null,null,null,null,null,null,null,null,null,null,null,null,null,null,null,null,null,null,null,null,null,null,null,null,"OK","OK"]
[null,null,null,null,null,null,null,null,null,null,null,null,null,null,null,null,null,null,null,null,null,null,null,null,null,null,null,null,null,null,null,null,null,null,null,null,null,null,null,null,null,null,null,null,null,null,null,"OK","OK"]
[null,null,null,null,null,null,null,null,null,null,null,null,null,null,null,null,null,null,null,null,null,null,null,null,null,null,null,null,null,null,null,null,null,null,null,null,null,null,null,null,null,null,null,null,null,null,null,"OK","OK"]
[null,null,null,null,null,null,null,null,null,null,null,null,null,null,null,null,null,null,null,null,null,null,null,null,null,null,null,null,null,null,null,null,null,null,null,null,null,null,null,null,null,null,null,null,null,null,null,"OK","OK"]
[null,null,null,null,null,null,null,null,null,null,null,null,null,null,null,null,null,null,null,null,null,null,null,null,null,null,null,null,null,null,null,null,null,null,null,null,null,null,null,null,null,null,null,null,null,null,null,"OK","OK"]
[null,null,null,null,null,null,null,null,null,null,null,null,null,null,null,null,null,null,null,null,null,null,null,null,null,null,null,null,null,null,null,null,null,null,null,null,null,null,null,null,null,null,null,null,null,null,null,"OK","OK"]
[null,null,null,null,null,null,null,null,null,null,null,null,null,null,null,null,null,null,null,null,null,null,null,null,null,null,null,null,null,null,null,null,null,null,null,null,null,null,null,null,null,null,null,null,null,null,null,"OK","OK"]
[null,null,null,null,null,null,null,null,null,null,null,null,null,null,null,null,null,null,null,null,null,null,null,null,null,null,null,null,null,null,null,null,null,null,null,null,null,null,null,null,null,null,null,null,null,null,null,"OK","OK"]
[null,null,null,null,null,null,null,null,null,null,null,null,null,null,null,null,null,null,null,null,null,null,null,null,null,null,null,null,null,null,null,null,null,null,null,null,null,null,null,null,null,null,null,null,null,null,null,"OK","OK"]
[null,null,null,null,null,null,null,null,null,null,null,null,null,null,null,null,null,null,null,null,null,null,null,null,null,null,null,null,null,null,null,null,null,null,null,null,null,null,null,null,null,null,null,null,null,null,null,"OK","OK"]
[null,null,null,null,null,null,null,null,null,null,null,null,null,null,null,null,null,null,null,null,null,null,null,null,null,null,null,null,null,null,null,null,null,null,null,null,null,null,null,null,null,null,null,null,null,null,null,"OK","OK"]
[null,null,null,null,null,null,null,null,null,null,null,null,null,null,null,null,null,null,null,null,null,null,null,null,null,null,null,null,null,null,null,null,null,null,null,null,null,null,null,null,null,null,null,null,null,null,null,"OK","OK"]
[null,null,null,null,null,null,null,null,null,null,null,null,null,null,null,null,null,null,null,null,null,null,null,null,null,null,null,null,null,null,null,null,null,null,null,null,null,null,null,null,null,null,null,null,null,null,null,"OK","OK"]
[null,null,null,null,null,null,null,null,null,null,null,null,null,null,null,null,null,null,null,null,null,null,null,null,null,null,null,null,null,null,null,null,null,null,null,null,null,null,null,null,null,null,null,null,null,null,null,"OK","OK"]
[null,null,null,null,null,null,null,null,null,null,null,null,null,null,null,null,null,null,null,null,null,null,null,null,null,null,null,null,null,null,null,null,null,null,null,null,null,null,null,null,null,null,null,null,null,null,null,"OK","OK"]
[null,null,null,null,null,null,null,null,null,null,null,null,null,null,null,null,null,null,null,null,null,null,null,null,null,null,null,null,null,null,null,null,null,null,null,null,null,null,null,null,null,null,null,null,null,null,null,"OK","OK"]
[null,null,null,null,null,null,null,null,null,null,null,null,null,null,null,null,null,null,null,null,null,null,null,null,null,null,null,null,null,null,null,null,null,null,null,null,null,null,null,null,null,null,null,null,null,null,null,"OK","OK"]
[null,null,null,null,null,null,null,null,null,null,null,null,null,null,null,null,null,null,null,null,null,null,null,null,null,null,null,null,null,null,null,null,null,null,null,null,null,null,null,null,null,null,null,null,null,null,null,"OK","OK"]
[null,null,null,null,null,null,null,null,null,null,null,null,null,null,null,null,null,null,null,null,null,null,null,null,null,null,null,null,null,null,null,null,null,null,null,null,null,null,null,null,null,null,null,null,null,null,null,"OK","OK"]
[null,null,null,null,null,null,null,null,null,null,null,null,null,null,null,null,null,null,null,null,null,null,null,null,null,null,null,null,null,null,null,null,null,null,null,null,null,null,null,null,null,null,null,null,null,null,null,"OK","OK"]
[null,null,null,null,null,null,null,null,null,null,null,null,null,null,null,null,null,null,null,null,null,null,null,null,null,null,null,null,null,null,null,null,null,null,null,null,null,null,null,null,null,null,null,null,null,null,null,"OK","OK"]
[null,null,null,null,null,null,null,null,null,null,null,null,null,null,null,null,null,null,null,null,null,null,null,null,null,null,null,null,null,null,null,null,null,null,null,null,null,null,null,null,null,null,null,null,null,null,null,"OK","OK"]
[null,null,null,null,null,null,null,null,null,null,null,null,null,null,null,null,null,null,null,null,null,null,null,null,null,null,null,null,null,null,null,null,null,null,null,null,null,null,null,null,null,null,null,null,null,null,null,"OK","OK"]
[null,null,null,null,null,null,null,null,null,null,null,null,null,null,null,null,null,null,null,null,null,null,null,null,null,null,null,null,null,null,null,null,null,null,null,null,null,null,null,null,null,null,null,null,null,null,null,"OK","OK"]
[null,null,null,null,null,null,null,null,null,null,null,null,null,null,null,null,null,null,null,null,null,null,null,null,null,null,null,null,null,null,null,null,null,null,null,null,null,null,null,null,null,null,null,null,null,null,null,"OK","OK"]
[null,null,null,null,null,null,null,null,null,null,null,null,null,null,null,null,null,null,null,null,null,null,null,null,null,null,null,null,null,null,null,null,null,null,null,null,null,null,null,null,null,null,null,null,null,null,null,"OK","OK"]
[null,null,null,null,null,null,null,null,null,null,null,null,null,null,null,null,null,null,null,null,null,null,null,null,null,null,null,null,null,null,null,null,null,null,null,null,null,null,null,null,null,null,null,null,null,null,null,"OK","OK"]
[null,null,null,null,null,null,null,null,null,null,null,null,null,null,null,null,null,null,null,null,null,null,null,null,null,null,null,null,null,null,null,null,null,null,null,null,null,null,null,null,null,null,null,null,null,null,null,"OK","OK"]
[null,null,null,null,null,null,null,null,null,null,null,null,null,null,null,null,null,null,null,null,null,null,null,null,null,null,null,null,null,null,null,null,null,null,null,null,null,null,null,null,null,null,null,null,null,null,null,{"$f":"IF(P2325-W2325-Y2325-AA2325-AC2325-AE2325-AG2325-AI2325-AK2325-AM2325-AO2325-AQ2325-AS2325=0,\"OK\",\"Compromisos diferentes al valor estimado en la vigencia actual\")","v":"OK"},{"$f":"IF(P2325-X2325-Z2325-AB2325-AD2325-AF2325-AH2325-AJ2325-AL2325-AN2325-AP2325-AR2325-AT2325=0,\"OK\",\"Obligaciones diferentes al valor estimado en la vigencia actual\")","v":"OK"}]
[null,null,null,null,null,null,null,null,null,null,null,null,null,null,null,null,null,null,null,null,null,null,null,null,null,null,null,null,null,null,null,null,null,null,null,null,null,null,null,null,null,null,null,null,null,null,null,"OK","OK"]
[null,null,null,null,null,null,null,null,null,null,null,null,null,null,null,null,null,null,null,null,null,null,null,null,null,null,null,null,null,null,null,null,null,null,null,null,null,null,null,null,null,null,null,null,null,null,null,"OK","OK"]
[null,null,null,null,null,null,null,null,null,null,null,null,null,null,null,null,null,null,null,null,null,null,null,null,null,null,null,null,null,null,null,null,null,null,null,null,null,null,null,null,null,null,null,null,null,null,null,"OK","OK"]
[null,null,null,null,null,null,null,null,null,null,null,null,null,null,null,null,null,null,null,null,null,null,null,null,null,null,null,null,null,null,null,null,null,null,null,null,null,null,null,null,null,null,null,null,null,null,null,"OK","OK"]
[null,null,null,null,null,null,null,null,null,null,null,null,null,null,null,null,null,null,null,null,null,null,null,null,null,null,null,null,null,null,null,null,null,null,null,null,null,null,null,null,null,null,null,null,null,null,null,"OK","OK"]
[null,null,null,null,null,null,null,null,null,null,null,null,null,null,null,null,null,null,null,null,null,null,null,null,null,null,null,null,null,null,null,null,null,null,null,null,null,null,null,null,null,null,null,null,null,null,null,"OK","OK"]
[null,null,null,null,null,null,null,null,null,null,null,null,null,null,null,null,null,null,null,null,null,null,null,null,null,null,null,null,null,null,null,null,null,null,null,null,null,null,null,null,null,null,null,null,null,null,null,"OK","OK"]
[null,null,null,null,null,null,null,null,null,null,null,null,null,null,null,null,null,null,null,null,null,null,null,null,null,null,null,null,null,null,null,null,null,null,null,null,null,null,null,null,null,null,null,null,null,null,null,"OK","OK"]
[null,null,null,null,null,null,null,null,null,null,null,null,null,null,null,null,null,null,null,null,null,null,null,null,null,null,null,null,null,null,null,null,null,null,null,null,null,null,null,null,null,null,null,null,null,null,null,"OK","OK"]
[null,null,null,null,null,null,null,null,null,null,null,null,null,null,null,null,null,null,null,null,null,null,null,null,null,null,null,null,null,null,null,null,null,null,null,null,null,null,null,null,null,null,null,null,null,null,null,"OK","OK"]
[null,null,null,null,null,null,null,null,null,null,null,null,null,null,null,null,null,null,null,null,null,null,null,null,null,null,null,null,null,null,null,null,null,null,null,null,null,null,null,null,null,null,null,null,null,null,null,"OK","OK"]
[null,null,null,null,null,null,null,null,null,null,null,null,null,null,null,null,null,null,null,null,null,null,null,null,null,null,null,null,null,null,null,null,null,null,null,null,null,null,null,null,null,null,null,null,null,null,null,"OK","OK"]
[null,null,null,null,null,null,null,null,null,null,null,null,null,null,null,null,null,null,null,null,null,null,null,null,null,null,null,null,null,null,null,null,null,null,null,null,null,null,null,null,null,null,null,null,null,null,null,"OK","OK"]
[null,null,null,null,null,null,null,null,null,null,null,null,null,null,null,null,null,null,null,null,null,null,null,null,null,null,null,null,null,null,null,null,null,null,null,null,null,null,null,null,null,null,null,null,null,null,null,"OK","OK"]
[null,null,null,null,null,null,null,null,null,null,null,null,null,null,null,null,null,null,null,null,null,null,null,null,null,null,null,null,null,null,null,null,null,null,null,null,null,null,null,null,null,null,null,null,null,null,null,"OK","OK"]
[null,null,null,null,null,null,null,null,null,null,null,null,null,null,null,null,null,null,null,null,null,null,null,null,null,null,null,null,null,null,null,null,null,null,null,null,null,null,null,null,null,null,null,null,null,null,null,"OK","OK"]
[null,null,null,null,null,null,null,null,null,null,null,null,null,null,null,null,null,null,null,null,null,null,null,null,null,null,null,null,null,null,null,null,null,null,null,null,null,null,null,null,null,null,null,null,null,null,null,"OK","OK"]
[null,null,null,null,null,null,null,null,null,null,null,null,null,null,null,null,null,null,null,null,null,null,null,null,null,null,null,null,null,null,null,null,null,null,null,null,null,null,null,null,null,null,null,null,null,null,null,"OK","OK"]
[null,null,null,null,null,null,null,null,null,null,null,null,null,null,null,null,null,null,null,null,null,null,null,null,null,null,null,null,null,null,null,null,null,null,null,null,null,null,null,null,null,null,null,null,null,null,null,"OK","OK"]
[null,null,null,null,null,null,null,null,null,null,null,null,null,null,null,null,null,null,null,null,null,null,null,null,null,null,null,null,null,null,null,null,null,null,null,null,null,null,null,null,null,null,null,null,null,null,null,"OK","OK"]
[null,null,null,null,null,null,null,null,null,null,null,null,null,null,null,null,null,null,null,null,null,null,null,null,null,null,null,null,null,null,null,null,null,null,null,null,null,null,null,null,null,null,null,null,null,null,null,"OK","OK"]
[null,null,null,null,null,null,null,null,null,null,null,null,null,null,null,null,null,null,null,null,null,null,null,null,null,null,null,null,null,null,null,null,null,null,null,null,null,null,null,null,null,null,null,null,null,null,null,"OK","OK"]
[null,null,null,null,null,null,null,null,null,null,null,null,null,null,null,null,null,null,null,null,null,null,null,null,null,null,null,null,null,null,null,null,null,null,null,null,null,null,null,null,null,null,null,null,null,null,null,"OK","OK"]
[null,null,null,null,null,null,null,null,null,null,null,null,null,null,null,null,null,null,null,null,null,null,null,null,null,null,null,null,null,null,null,null,null,null,null,null,null,null,null,null,null,null,null,null,null,null,null,"OK","OK"]
[null,null,null,null,null,null,null,null,null,null,null,null,null,null,null,null,null,null,null,null,null,null,null,null,null,null,null,null,null,null,null,null,null,null,null,null,null,null,null,null,null,null,null,null,null,null,null,"OK","OK"]
[null,null,null,null,null,null,null,null,null,null,null,null,null,null,null,null,null,null,null,null,null,null,null,null,null,null,null,null,null,null,null,null,null,null,null,null,null,null,null,null,null,null,null,null,null,null,null,"OK","OK"]
[null,null,null,null,null,null,null,null,null,null,null,null,null,null,null,null,null,null,null,null,null,null,null,null,null,null,null,null,null,null,null,null,null,null,null,null,null,null,null,null,null,null,null,null,null,null,null,{"$f":"IF(P2453-W2453-Y2453-AA2453-AC2453-AE2453-AG2453-AI2453-AK2453-AM2453-AO2453-AQ2453-AS2453=0,\"OK\",\"Compromisos diferentes al valor estimado en la vigencia actual\")","v":"OK"},{"$f":"IF(P2453-X2453-Z2453-AB2453-AD2453-AF2453-AH2453-AJ2453-AL2453-AN2453-AP2453-AR2453-AT2453=0,\"OK\",\"Obligaciones diferentes al valor estimado en la vigencia actual\")","v":"OK"}]
[null,null,null,null,null,null,null,null,null,null,null,null,null,null,null,null,null,null,null,null,null,null,null,null,null,null,null,null,null,null,null,null,null,null,null,null,null,null,null,null,null,null,null,null,null,null,null,"OK","OK"]
[null,null,null,null,null,null,null,null,null,null,null,null,null,null,null,null,null,null,null,null,null,null,null,null,null,null,null,null,null,null,null,null,null,null,null,null,null,null,null,null,null,null,null,null,null,null,null,"OK","OK"]
[null,null,null,null,null,null,null,null,null,null,null,null,null,null,null,null,null,null,null,null,null,null,null,null,null,null,null,null,null,null,null,null,null,null,null,null,null,null,null,null,null,null,null,null,null,null,null,"OK","OK"]
[null,null,null,null,null,null,null,null,null,null,null,null,null,null,null,null,null,null,null,null,null,null,null,null,null,null,null,null,null,null,null,null,null,null,null,null,null,null,null,null,null,null,null,null,null,null,null,"OK","OK"]
[null,null,null,null,null,null,null,null,null,null,null,null,null,null,null,null,null,null,null,null,null,null,null,null,null,null,null,null,null,null,null,null,null,null,null,null,null,null,null,null,null,null,null,null,null,null,null,"OK","OK"]
[null,null,null,null,null,null,null,null,null,null,null,null,null,null,null,null,null,null,null,null,null,null,null,null,null,null,null,null,null,null,null,null,null,null,null,null,null,null,null,null,null,null,null,null,null,null,null,"OK","OK"]
[null,null,null,null,null,null,null,null,null,null,null,null,null,null,null,null,null,null,null,null,null,null,null,null,null,null,null,null,null,null,null,null,null,null,null,null,null,null,null,null,null,null,null,null,null,null,null,"OK","OK"]
[null,null,null,null,null,null,null,null,null,null,null,null,null,null,null,null,null,null,null,null,null,null,null,null,null,null,null,null,null,null,null,null,null,null,null,null,null,null,null,null,null,null,null,null,null,null,null,"OK","OK"]
[null,null,null,null,null,null,null,null,null,null,null,null,null,null,null,null,null,null,null,null,null,null,null,null,null,null,null,null,null,null,null,null,null,null,null,null,null,null,null,null,null,null,null,null,null,null,null,"OK","OK"]
[null,null,null,null,null,null,null,null,null,null,null,null,null,null,null,null,null,null,null,null,null,null,null,null,null,null,null,null,null,null,null,null,null,null,null,null,null,null,null,null,null,null,null,null,null,null,null,"OK","OK"]
[null,null,null,null,null,null,null,null,null,null,null,null,null,null,null,null,null,null,null,null,null,null,null,null,null,null,null,null,null,null,null,null,null,null,null,null,null,null,null,null,null,null,null,null,null,null,null,"OK","OK"]
[null,null,null,null,null,null,null,null,null,null,null,null,null,null,null,null,null,null,null,null,null,null,null,null,null,null,null,null,null,null,null,null,null,null,null,null,null,null,null,null,null,null,null,null,null,null,null,"OK","OK"]
[null,null,null,null,null,null,null,null,null,null,null,null,null,null,null,null,null,null,null,null,null,null,null,null,null,null,null,null,null,null,null,null,null,null,null,null,null,null,null,null,null,null,null,null,null,null,null,"OK","OK"]
[null,null,null,null,null,null,null,null,null,null,null,null,null,null,null,null,null,null,null,null,null,null,null,null,null,null,null,null,null,null,null,null,null,null,null,null,null,null,null,null,null,null,null,null,null,null,null,"OK","OK"]
[null,null,null,null,null,null,null,null,null,null,null,null,null,null,null,null,null,null,null,null,null,null,null,null,null,null,null,null,null,null,null,null,null,null,null,null,null,null,null,null,null,null,null,null,null,null,null,"OK","OK"]
[null,null,null,null,null,null,null,null,null,null,null,null,null,null,null,null,null,null,null,null,null,null,null,null,null,null,null,null,null,null,null,null,null,null,null,null,null,null,null,null,null,null,null,null,null,null,null,"OK","OK"]
[null,null,null,null,null,null,null,null,null,null,null,null,null,null,null,null,null,null,null,null,null,null,null,null,null,null,null,null,null,null,null,null,null,null,null,null,null,null,null,null,null,null,null,null,null,null,null,"OK","OK"]
[null,null,null,null,null,null,null,null,null,null,null,null,null,null,null,null,null,null,null,null,null,null,null,null,null,null,null,null,null,null,null,null,null,null,null,null,null,null,null,null,null,null,null,null,null,null,null,"OK","OK"]
[null,null,null,null,null,null,null,null,null,null,null,null,null,null,null,null,null,null,null,null,null,null,null,null,null,null,null,null,null,null,null,null,null,null,null,null,null,null,null,null,null,null,null,null,null,null,null,"OK","OK"]
[null,null,null,null,null,null,null,null,null,null,null,null,null,null,null,null,null,null,null,null,null,null,null,null,null,null,null,null,null,null,null,null,null,null,null,null,null,null,null,null,null,null,null,null,null,null,null,"OK","OK"]
[null,null,null,null,null,null,null,null,null,null,null,null,null,null,null,null,null,null,null,null,null,null,null,null,null,null,null,null,null,null,null,null,null,null,null,null,null,null,null,null,null,null,null,null,null,null,null,"OK","OK"]
[null,null,null,null,null,null,null,null,null,null,null,null,null,null,null,null,null,null,null,null,null,null,null,null,null,null,null,null,null,null,null,null,null,null,null,null,null,null,null,null,null,null,null,null,null,null,null,"OK","OK"]
[null,null,null,null,null,null,null,null,null,null,null,null,null,null,null,null,null,null,null,null,null,null,null,null,null,null,null,null,null,null,null,null,null,null,null,null,null,null,null,null,null,null,null,null,null,null,null,"OK","OK"]
[null,null,null,null,null,null,null,null,null,null,null,null,null,null,null,null,null,null,null,null,null,null,null,null,null,null,null,null,null,null,null,null,null,null,null,null,null,null,null,null,null,null,null,null,null,null,null,"OK","OK"]
[null,null,null,null,null,null,null,null,null,null,null,null,null,null,null,null,null,null,null,null,null,null,null,null,null,null,null,null,null,null,null,null,null,null,null,null,null,null,null,null,null,null,null,null,null,null,null,"OK","OK"]
[null,null,null,null,null,null,null,null,null,null,null,null,null,null,null,null,null,null,null,null,null,null,null,null,null,null,null,null,null,null,null,null,null,null,null,null,null,null,null,null,null,null,null,null,null,null,null,"OK","OK"]
[null,null,null,null,null,null,null,null,null,null,null,null,null,null,null,null,null,null,null,null,null,null,null,null,null,null,null,null,null,null,null,null,null,null,null,null,null,null,null,null,null,null,null,null,null,null,null,"OK","OK"]
[null,null,null,null,null,null,null,null,null,null,null,null,null,null,null,null,null,null,null,null,null,null,null,null,null,null,null,null,null,null,null,null,null,null,null,null,null,null,null,null,null,null,null,null,null,null,null,"OK","OK"]
[null,null,null,null,null,null,null,null,null,null,null,null,null,null,null,null,null,null,null,null,null,null,null,null,null,null,null,null,null,null,null,null,null,null,null,null,null,null,null,null,null,null,null,null,null,null,null,"OK","OK"]
[null,null,null,null,null,null,null,null,null,null,null,null,null,null,null,null,null,null,null,null,null,null,null,null,null,null,null,null,null,null,null,null,null,null,null,null,null,null,null,null,null,null,null,null,null,null,null,"OK","OK"]
[null,null,null,null,null,null,null,null,null,null,null,null,null,null,null,null,null,null,null,null,null,null,null,null,null,null,null,null,null,null,null,null,null,null,null,null,null,null,null,null,null,null,null,null,null,null,null,"OK","OK"]
[null,null,null,null,null,null,null,null,null,null,null,null,null,null,null,null,null,null,null,null,null,null,null,null,null,null,null,null,null,null,null,null,null,null,null,null,null,null,null,null,null,null,null,null,null,null,null,"OK","OK"]
[null,null,null,null,null,null,null,null,null,null,null,null,null,null,null,null,null,null,null,null,null,null,null,null,null,null,null,null,null,null,null,null,null,null,null,null,null,null,null,null,null,null,null,null,null,null,null,"OK","OK"]
[null,null,null,null,null,null,null,null,null,null,null,null,null,null,null,null,null,null,null,null,null,null,null,null,null,null,null,null,null,null,null,null,null,null,null,null,null,null,null,null,null,null,null,null,null,null,null,"OK","OK"]
[null,null,null,null,null,null,null,null,null,null,null,null,null,null,null,null,null,null,null,null,null,null,null,null,null,null,null,null,null,null,null,null,null,null,null,null,null,null,null,null,null,null,null,null,null,null,null,"OK","OK"]
[null,null,null,null,null,null,null,null,null,null,null,null,null,null,null,null,null,null,null,null,null,null,null,null,null,null,null,null,null,null,null,null,null,null,null,null,null,null,null,null,null,null,null,null,null,null,null,"OK","OK"]
[null,null,null,null,null,null,null,null,null,null,null,null,null,null,null,null,null,null,null,null,null,null,null,null,null,null,null,null,null,null,null,null,null,null,null,null,null,null,null,null,null,null,null,null,null,null,null,"OK","OK"]
[null,null,null,null,null,null,null,null,null,null,null,null,null,null,null,null,null,null,null,null,null,null,null,null,null,null,null,null,null,null,null,null,null,null,null,null,null,null,null,null,null,null,null,null,null,null,null,"OK","OK"]
[null,null,null,null,null,null,null,null,null,null,null,null,null,null,null,null,null,null,null,null,null,null,null,null,null,null,null,null,null,null,null,null,null,null,null,null,null,null,null,null,null,null,null,null,null,null,null,"OK","OK"]
[null,null,null,null,null,null,null,null,null,null,null,null,null,null,null,null,null,null,null,null,null,null,null,null,null,null,null,null,null,null,null,null,null,null,null,null,null,null,null,null,null,null,null,null,null,null,null,{"$f":"IF(P2645-W2645-Y2645-AA2645-AC2645-AE2645-AG2645-AI2645-AK2645-AM2645-AO2645-AQ2645-AS2645=0,\"OK\",\"Compromisos diferentes al valor estimado en la vigencia actual\")","v":"OK"},{"$f":"IF(P2645-X2645-Z2645-AB2645-AD2645-AF2645-AH2645-AJ2645-AL2645-AN2645-AP2645-AR2645-AT2645=0,\"OK\",\"Obligaciones diferentes al valor estimado en la vigencia actual\")","v":"OK"}]
[null,null,null,null,null,null,null,null,null,null,null,null,null,null,null,null,null,null,null,null,null,null,null,null,null,null,null,null,null,null,null,null,null,null,null,null,null,null,null,null,null,null,null,null,null,null,null,"OK","OK"]
[null,null,null,null,null,null,null,null,null,null,null,null,null,null,null,null,null,null,null,null,null,null,null,null,null,null,null,null,null,null,null,null,null,null,null,null,null,null,null,null,null,null,null,null,null,null,null,"OK","OK"]
[null,null,null,null,null,null,null,null,null,null,null,null,null,null,null,null,null,null,null,null,null,null,null,null,null,null,null,null,null,null,null,null,null,null,null,null,null,null,null,null,null,null,null,null,null,null,null,"OK","OK"]
[null,null,null,null,null,null,null,null,null,null,null,null,null,null,null,null,null,null,null,null,null,null,null,null,null,null,null,null,null,null,null,null,null,null,null,null,null,null,null,null,null,null,null,null,null,null,null,"OK","OK"]
[null,null,null,null,null,null,null,null,null,null,null,null,null,null,null,null,null,null,null,null,null,null,null,null,null,null,null,null,null,null,null,null,null,null,null,null,null,null,null,null,null,null,null,null,null,null,null,"OK","OK"]
[null,null,null,null,null,null,null,null,null,null,null,null,null,null,null,null,null,null,null,null,null,null,null,null,null,null,null,null,null,null,null,null,null,null,null,null,null,null,null,null,null,null,null,null,null,null,null,"OK","OK"]
[null,null,null,null,null,null,null,null,null,null,null,null,null,null,null,null,null,null,null,null,null,null,null,null,null,null,null,null,null,null,null,null,null,null,null,null,null,null,null,null,null,null,null,null,null,null,null,"OK","OK"]
[null,null,null,null,null,null,null,null,null,null,null,null,null,null,null,null,null,null,null,null,null,null,null,null,null,null,null,null,null,null,null,null,null,null,null,null,null,null,null,null,null,null,null,null,null,null,null,"OK","OK"]
[null,null,null,null,null,null,null,null,null,null,null,null,null,null,null,null,null,null,null,null,null,null,null,null,null,null,null,null,null,null,null,null,null,null,null,null,null,null,null,null,null,null,null,null,null,null,null,"OK","OK"]
[null,null,null,null,null,null,null,null,null,null,null,null,null,null,null,null,null,null,null,null,null,null,null,null,null,null,null,null,null,null,null,null,null,null,null,null,null,null,null,null,null,null,null,null,null,null,null,"OK","OK"]
[null,null,null,null,null,null,null,null,null,null,null,null,null,null,null,null,null,null,null,null,null,null,null,null,null,null,null,null,null,null,null,null,null,null,null,null,null,null,null,null,null,null,null,null,null,null,null,"OK","OK"]
[null,null,null,null,null,null,null,null,null,null,null,null,null,null,null,null,null,null,null,null,null,null,null,null,null,null,null,null,null,null,null,null,null,null,null,null,null,null,null,null,null,null,null,null,null,null,null,"OK","OK"]
[null,null,null,null,null,null,null,null,null,null,null,null,null,null,null,null,null,null,null,null,null,null,null,null,null,null,null,null,null,null,null,null,null,null,null,null,null,null,null,null,null,null,null,null,null,null,null,"OK","OK"]
[null,null,null,null,null,null,null,null,null,null,null,null,null,null,null,null,null,null,null,null,null,null,null,null,null,null,null,null,null,null,null,null,null,null,null,null,null,null,null,null,null,null,null,null,null,null,null,"OK","OK"]
[null,null,null,null,null,null,null,null,null,null,null,null,null,null,null,null,null,null,null,null,null,null,null,null,null,null,null,null,null,null,null,null,null,null,null,null,null,null,null,null,null,null,null,null,null,null,null,"OK","OK"]
[null,null,null,null,null,null,null,null,null,null,null,null,null,null,null,null,null,null,null,null,null,null,null,null,null,null,null,null,null,null,null,null,null,null,null,null,null,null,null,null,null,null,null,null,null,null,null,"OK","OK"]
[null,null,null,null,null,null,null,null,null,null,null,null,null,null,null,null,null,null,null,null,null,null,null,null,null,null,null,null,null,null,null,null,null,null,null,null,null,null,null,null,null,null,null,null,null,null,null,"OK","OK"]
[null,null,null,null,null,null,null,null,null,null,null,null,null,null,null,null,null,null,null,null,null,null,null,null,null,null,null,null,null,null,null,null,null,null,null,null,null,null,null,null,null,null,null,null,null,null,null,"OK","OK"]
[null,null,null,null,null,null,null,null,null,null,null,null,null,null,null,null,null,null,null,null,null,null,null,null,null,null,null,null,null,null,null,null,null,null,null,null,null,null,null,null,null,null,null,null,null,null,null,"OK","OK"]
[null,null,null,null,null,null,null,null,null,null,null,null,null,null,null,null,null,null,null,null,null,null,null,null,null,null,null,null,null,null,null,null,null,null,null,null,null,null,null,null,null,null,null,null,null,null,null,"OK","OK"]
[null,null,null,null,null,null,null,null,null,null,null,null,null,null,null,null,null,null,null,null,null,null,null,null,null,null,null,null,null,null,null,null,null,null,null,null,null,null,null,null,null,null,null,null,null,null,null,"OK","OK"]
[null,null,null,null,null,null,null,null,null,null,null,null,null,null,null,null,null,null,null,null,null,null,null,null,null,null,null,null,null,null,null,null,null,null,null,null,null,null,null,null,null,null,null,null,null,null,null,"OK","OK"]
[null,null,null,null,null,null,null,null,null,null,null,null,null,null,null,null,null,null,null,null,null,null,null,null,null,null,null,null,null,null,null,null,null,null,null,null,null,null,null,null,null,null,null,null,null,null,null,"OK","OK"]
[null,null,null,null,null,null,null,null,null,null,null,null,null,null,null,null,null,null,null,null,null,null,null,null,null,null,null,null,null,null,null,null,null,null,null,null,null,null,null,null,null,null,null,null,null,null,null,"OK","OK"]
[null,null,null,null,null,null,null,null,null,null,null,null,null,null,null,null,null,null,null,null,null,null,null,null,null,null,null,null,null,null,null,null,null,null,null,null,null,null,null,null,null,null,null,null,null,null,null,"OK","OK"]
[null,null,null,null,null,null,null,null,null,null,null,null,null,null,null,null,null,null,null,null,null,null,null,null,null,null,null,null,null,null,null,null,null,null,null,null,null,null,null,null,null,null,null,null,null,null,null,"OK","OK"]
[null,null,null,null,null,null,null,null,null,null,null,null,null,null,null,null,null,null,null,null,null,null,null,null,null,null,null,null,null,null,null,null,null,null,null,null,null,null,null,null,null,null,null,null,null,null,null,{"$f":"IF(P2773-W2773-Y2773-AA2773-AC2773-AE2773-AG2773-AI2773-AK2773-AM2773-AO2773-AQ2773-AS2773=0,\"OK\",\"Compromisos diferentes al valor estimado en la vigencia actual\")","v":"OK"},{"$f":"IF(P2773-X2773-Z2773-AB2773-AD2773-AF2773-AH2773-AJ2773-AL2773-AN2773-AP2773-AR2773-AT2773=0,\"OK\",\"Obligaciones diferentes al valor estimado en la vigencia actual\")","v":"OK"}]
[null,null,null,null,null,null,null,null,null,null,null,null,null,null,null,null,null,null,null,null,null,null,null,null,null,null,null,null,null,null,null,null,null,null,null,null,null,null,null,null,null,null,null,null,null,null,null,"OK","OK"]
[null,null,null,null,null,null,null,null,null,null,null,null,null,null,null,null,null,null,null,null,null,null,null,null,null,null,null,null,null,null,null,null,null,null,null,null,null,null,null,null,null,null,null,null,null,null,null,"OK","OK"]
[null,null,null,null,null,null,null,null,null,null,null,null,null,null,null,null,null,null,null,null,null,null,null,null,null,null,null,null,null,null,null,null,null,null,null,null,null,null,null,null,null,null,null,null,null,null,null,"OK","OK"]
[null,null,null,null,null,null,null,null,null,null,null,null,null,null,null,null,null,null,null,null,null,null,null,null,null,null,null,null,null,null,null,null,null,null,null,null,null,null,null,null,null,null,null,null,null,null,null,"OK","OK"]
[null,null,null,null,null,null,null,null,null,null,null,null,null,null,null,null,null,null,null,null,null,null,null,null,null,null,null,null,null,null,null,null,null,null,null,null,null,null,null,null,null,null,null,null,null,null,null,"OK","OK"]
[null,null,null,null,null,null,null,null,null,null,null,null,null,null,null,null,null,null,null,null,null,null,null,null,null,null,null,null,null,null,null,null,null,null,null,null,null,null,null,null,null,null,null,null,null,null,null,"OK","OK"]
[null,null,null,null,null,null,null,null,null,null,null,null,null,null,null,null,null,null,null,null,null,null,null,null,null,null,null,null,null,null,null,null,null,null,null,null,null,null,null,null,null,null,null,null,null,null,null,"OK","OK"]
[null,null,null,null,null,null,null,null,null,null,null,null,null,null,null,null,null,null,null,null,null,null,null,null,null,null,null,null,null,null,null,null,null,null,null,null,null,null,null,null,null,null,null,null,null,null,null,"OK","OK"]
[null,null,null,null,null,null,null,null,null,null,null,null,null,null,null,null,null,null,null,null,null,null,null,null,null,null,null,null,null,null,null,null,null,null,null,null,null,null,null,null,null,null,null,null,null,null,null,"OK","OK"]
[null,null,null,null,null,null,null,null,null,null,null,null,null,null,null,null,null,null,null,null,null,null,null,null,null,null,null,null,null,null,null,null,null,null,null,null,null,null,null,null,null,null,null,null,null,null,null,"OK","OK"]
[null,null,null,null,null,null,null,null,null,null,null,null,null,null,null,null,null,null,null,null,null,null,null,null,null,null,null,null,null,null,null,null,null,null,null,null,null,null,null,null,null,null,null,null,null,null,null,"OK","OK"]
[null,null,null,null,null,null,null,null,null,null,null,null,null,null,null,null,null,null,null,null,null,null,null,null,null,null,null,null,null,null,null,null,null,null,null,null,null,null,null,null,null,null,null,null,null,null,null,"OK","OK"]
[null,null,null,null,null,null,null,null,null,null,null,null,null,null,null,null,null,null,null,null,null,null,null,null,null,null,null,null,null,null,null,null,null,null,null,null,null,null,null,null,null,null,null,null,null,null,null,"OK","OK"]
[null,null,null,null,null,null,null,null,null,null,null,null,null,null,null,null,null,null,null,null,null,null,null,null,null,null,null,null,null,null,null,null,null,null,null,null,null,null,null,null,null,null,null,null,null,null,null,{"$f":"IF(P2837-W2837-Y2837-AA2837-AC2837-AE2837-AG2837-AI2837-AK2837-AM2837-AO2837-AQ2837-AS2837=0,\"OK\",\"Compromisos diferentes al valor estimado en la vigencia actual\")","v":"OK"},{"$f":"IF(P2837-X2837-Z2837-AB2837-AD2837-AF2837-AH2837-AJ2837-AL2837-AN2837-AP2837-AR2837-AT2837=0,\"OK\",\"Obligaciones diferentes al valor estimado en la vigencia actual\")","v":"OK"}]
[null,null,null,null,null,null,null,null,null,null,null,null,null,null,null,null,null,null,null,null,null,null,null,null,null,null,null,null,null,null,null,null,null,null,null,null,null,null,null,null,null,null,null,null,null,null,null,"OK","OK"]
[null,null,null,null,null,null,null,null,null,null,null,null,null,null,null,null,null,null,null,null,null,null,null,null,null,null,null,null,null,null,null,null,null,null,null,null,null,null,null,null,null,null,null,null,null,null,null,"OK","OK"]
[null,null,null,null,null,null,null,null,null,null,null,null,null,null,null,null,null,null,null,null,null,null,null,null,null,null,null,null,null,null,null,null,null,null,null,null,null,null,null,null,null,null,null,null,null,null,null,"OK","OK"]
[null,null,null,null,null,null,null,null,null,null,null,null,null,null,null,null,null,null,null,null,null,null,null,null,null,null,null,null,null,null,null,null,null,null,null,null,null,null,null,null,null,null,null,null,null,null,null,"OK","OK"]
[null,null,null,null,null,null,null,null,null,null,null,null,null,null,null,null,null,null,null,null,null,null,null,null,null,null,null,null,null,null,null,null,null,null,null,null,null,null,null,null,null,null,null,null,null,null,null,"OK","OK"]
[null,null,null,null,null,null,null,null,null,null,null,null,null,null,null,null,null,null,null,null,null,null,null,null,null,null,null,null,null,null,null,null,null,null,null,null,null,null,null,null,null,null,null,null,null,null,null,"OK","OK"]
[null,null,null,null,null,null,null,null,null,null,null,null,null,null,null,null,null,null,null,null,null,null,null,null,null,null,null,null,null,null,null,null,null,null,null,null,null,null,null,null,null,null,null,null,null,null,null,"OK","OK"]
[null,null,null,null,null,null,null,null,null,null,null,null,null,null,null,null,null,null,null,null,null,null,null,null,null,null,null,null,null,null,null,null,null,null,null,null,null,null,null,null,null,null,null,null,null,null,null,"OK","OK"]
[null,null,null,null,null,null,null,null,null,null,null,null,null,null,null,null,null,null,null,null,null,null,null,null,null,null,null,null,null,null,null,null,null,null,null,null,null,null,null,null,null,null,null,null,null,null,null,"OK","OK"]
[null,null,null,null,null,null,null,null,null,null,null,null,null,null,null,null,null,null,null,null,null,null,null,null,null,null,null,null,null,null,null,null,null,null,null,null,null,null,null,null,null,null,null,null,null,null,null,"OK","OK"]
[null,null,null,null,null,null,null,null,null,null,null,null,null,null,null,null,null,null,null,null,null,null,null,null,null,null,null,null,null,null,null,null,null,null,null,null,null,null,null,null,null,null,null,null,null,null,null,"OK","OK"]
[null,null,null,null,null,null,null,null,null,null,null,null,null,null,null,null,null,null,null,null,null,null,null,null,null,null,null,null,null,null,null,null,null,null,null,null,null,null,null,null,null,null,null,null,null,null,null,"OK","OK"]
[null,null,null,null,null,null,null,null,null,null,null,null,null,null,null,null,null,null,null,null,null,null,null,null,null,null,null,null,null,null,null,null,null,null,null,null,null,null,null,null,null,null,null,null,null,null,null,"OK","OK"]
[null,null,null,null,null,null,null,null,null,null,null,null,null,null,null,null,null,null,null,null,null,null,null,null,null,null,null,null,null,null,null,null,null,null,null,null,null,null,null,null,null,null,null,null,null,null,null,"OK","OK"]
[null,null,null,null,null,null,null,null,null,null,null,null,null,null,null,null,null,null,null,null,null,null,null,null,null,null,null,null,null,null,null,null,null,null,null,null,null,null,null,null,null,null,null,null,null,null,null,"OK","OK"]
[null,null,null,null,null,null,null,null,null,null,null,null,null,null,null,null,null,null,null,null,null,null,null,null,null,null,null,null,null,null,null,null,null,null,null,null,null,null,null,null,null,null,null,null,null,null,null,"OK","OK"]
[null,null,null,null,null,null,null,null,null,null,null,null,null,null,null,null,null,null,null,null,null,null,null,null,null,null,null,null,null,null,null,null,null,null,null,null,null,null,null,null,null,null,null,null,null,null,null,"OK","OK"]
[null,null,null,null,null,null,null,null,null,null,null,null,null,null,null,null,null,null,null,null,null,null,null,null,null,null,null,null,null,null,null,null,null,null,null,null,null,null,null,null,null,null,null,null,null,null,null,"OK","OK"]
[null,null,null,null,null,null,null,null,null,null,null,null,null,null,null,null,null,null,null,null,null,null,null,null,null,null,null,null,null,null,null,null,null,null,null,null,null,null,null,null,null,null,null,null,null,null,null,"OK","OK"]
[null,null,null,null,null,null,null,null,null,null,null,null,null,null,null,null,null,null,null,null,null,null,null,null,null,null,null,null,null,null,null,null,null,null,null,null,null,null,null,null,null,null,null,null,null,null,null,"OK","OK"]
[null,null,null,null,null,null,null,null,null,null,null,null,null,null,null,null,null,null,null,null,null,null,null,null,null,null,null,null,null,null,null,null,null,null,null,null,null,null,null,null,null,null,null,null,null,null,null,"OK","OK"]
[null,null,null,null,null,null,null,null,null,null,null,null,null,null,null,null,null,null,null,null,null,null,null,null,null,null,null,null,null,null,null,null,null,null,null,null,null,null,null,null,null,null,null,null,null,null,null,"OK","OK"]
[null,null,null,null,null,null,null,null,null,null,null,null,null,null,null,null,null,null,null,null,null,null,null,null,null,null,null,null,null,null,null,null,null,null,null,null,null,null,null,null,null,null,null,null,null,null,null,"OK","OK"]
[null,null,null,null,null,null,null,null,null,null,null,null,null,null,null,null,null,null,null,null,null,null,null,null,null,null,null,null,null,null,null,null,null,null,null,null,null,null,null,null,null,null,null,null,null,null,null,"OK","OK"]
[null,null,null,null,null,null,null,null,null,null,null,null,null,null,null,null,null,null,null,null,null,null,null,null,null,null,null,null,null,null,null,null,null,null,null,null,null,null,null,null,null,null,null,null,null,null,null,"OK","OK"]
[null,null,null,null,null,null,null,null,null,null,null,null,null,null,null,null,null,null,null,null,null,null,null,null,null,null,null,null,null,null,null,null,null,null,null,null,null,null,null,null,null,null,null,null,null,null,null,"OK","OK"]
[null,null,null,null,null,null,null,null,null,null,null,null,null,null,null,null,null,null,null,null,null,null,null,null,null,null,null,null,null,null,null,null,null,null,null,null,null,null,null,null,null,null,null,null,null,null,null,"OK","OK"]
[null,null,null,null,null,null,null,null,null,null,null,null,null,null,null,null,null,null,null,null,null,null,null,null,null,null,null,null,null,null,null,null,null,null,null,null,null,null,null,null,null,null,null,null,null,null,null,"OK","OK"]
[null,null,null,null,null,null,null,null,null,null,null,null,null,null,null,null,null,null,null,null,null,null,null,null,null,null,null,null,null,null,null,null,null,null,null,null,null,null,null,null,null,null,null,null,null,null,null,"OK","OK"]
[null,null,null,null,null,null,null,null,null,null,null,null,null,null,null,null,null,null,null,null,null,null,null,null,null,null,null,null,null,null,null,null,null,null,null,null,null,null,null,null,null,null,null,null,null,null,null,{"$f":"IF(P2901-W2901-Y2901-AA2901-AC2901-AE2901-AG2901-AI2901-AK2901-AM2901-AO2901-AQ2901-AS2901=0,\"OK\",\"Compromisos diferentes al valor estimado en la vigencia actual\")","v":"OK"},{"$f":"IF(P2901-X2901-Z2901-AB2901-AD2901-AF2901-AH2901-AJ2901-AL2901-AN2901-AP2901-AR2901-AT2901=0,\"OK\",\"Obligaciones diferentes al valor estimado en la vigencia actual\")","v":"OK"}]
[null,null,null,null,null,null,null,null,null,null,null,null,null,null,null,null,null,null,null,null,null,null,null,null,null,null,null,null,null,null,null,null,null,null,null,null,null,null,null,null,null,null,null,null,null,null,null,"OK","OK"]
[null,null,null,null,null,null,null,null,null,null,null,null,null,null,null,null,null,null,null,null,null,null,null,null,null,null,null,null,null,null,null,null,null,null,null,null,null,null,null,null,null,null,null,null,null,null,null,"OK","OK"]
[null,null,null,null,null,null,null,null,null,null,null,null,null,null,null,null,null,null,null,null,null,null,null,null,null,null,null,null,null,null,null,null,null,null,null,null,null,null,null,null,null,null,null,null,null,null,null,"OK","OK"]
[null,null,null,null,null,null,null,null,null,null,null,null,null,null,null,null,null,null,null,null,null,null,null,null,null,null,null,null,null,null,null,null,null,null,null,null,null,null,null,null,null,null,null,null,null,null,null,"OK","OK"]
[null,null,null,null,null,null,null,null,null,null,null,null,null,null,null,null,null,null,null,null,null,null,null,null,null,null,null,null,null,null,null,null,null,null,null,null,null,null,null,null,null,null,null,null,null,null,null,"OK","OK"]
[null,null,null,null,null,null,null,null,null,null,null,null,null,null,null,null,null,null,null,null,null,null,null,null,null,null,null,null,null,null,null,null,null,null,null,null,null,null,null,null,null,null,null,null,null,null,null,"OK","OK"]
[null,null,null,null,null,null,null,null,null,null,null,null,null,null,null,null,null,null,null,null,null,null,null,null,null,null,null,null,null,null,null,null,null,null,null,null,null,null,null,null,null,null,null,null,null,null,null,"OK","OK"]
[null,null,null,null,null,null,null,null,null,null,null,null,null,null,null,null,null,null,null,null,null,null,null,null,null,null,null,null,null,null,null,null,null,null,null,null,null,null,null,null,null,null,null,null,null,null,null,"OK","OK"]
[null,null,null,null,null,null,null,null,null,null,null,null,null,null,null,null,null,null,null,null,null,null,null,null,null,null,null,null,null,null,null,null,null,null,null,null,null,null,null,null,null,null,null,null,null,null,null,"OK","OK"]
[null,null,null,null,null,null,null,null,null,null,null,null,null,null,null,null,null,null,null,null,null,null,null,null,null,null,null,null,null,null,null,null,null,null,null,null,null,null,null,null,null,null,null,null,null,null,null,"OK","OK"]
[null,null,null,null,null,null,null,null,null,null,null,null,null,null,null,null,null,null,null,null,null,null,null,null,null,null,null,null,null,null,null,null,null,null,null,null,null,null,null,null,null,null,null,null,null,null,null,"OK","OK"]
[null,null,null,null,null,null,null,null,null,null,null,null,null,null,null,null,null,null,null,null,null,null,null,null,null,null,null,null,null,null,null,null,null,null,null,null,null,null,null,null,null,null,null,null,null,null,null,"OK","OK"]
[null,null,null,null,null,null,null,null,null,null,null,null,null,null,null,null,null,null,null,null,null,null,null,null,null,null,null,null,null,null,null,null,null,null,null,null,null,null,null,null,null,null,null,null,null,null,null,"OK","OK"]
[null,null,null,null,null,null,null,null,null,null,null,null,null,null,null,null,null,null,null,null,null,null,null,null,null,null,null,null,null,null,null,null,null,null,null,null,null,null,null,null,null,null,null,null,null,null,null,"OK","OK"]
[null,null,null,null,null,null,null,null,null,null,null,null,null,null,null,null,null,null,null,null,null,null,null,null,null,null,null,null,null,null,null,null,null,null,null,null,null,null,null,null,null,null,null,null,null,null,null,"OK","OK"]
[null,null,null,null,null,null,null,null,null,null,null,null,null,null,null,null,null,null,null,null,null,null,null,null,null,null,null,null,null,null,null,null,null,null,null,null,null,null,null,null,null,null,null,null,null,null,null,"OK","OK"]
[null,null,null,null,null,null,null,null,null,null,null,null,null,null,null,null,null,null,null,null,null,null,null,null,null,null,null,null,null,null,null,null,null,null,null,null,null,null,null,null,null,null,null,null,null,null,null,"OK","OK"]
[null,null,null,null,null,null,null,null,null,null,null,null,null,null,null,null,null,null,null,null,null,null,null,null,null,null,null,null,null,null,null,null,null,null,null,null,null,null,null,null,null,null,null,null,null,null,null,"OK","OK"]
[null,null,null,null,null,null,null,null,null,null,null,null,null,null,null,null,null,null,null,null,null,null,null,null,null,null,null,null,null,null,null,null,null,null,null,null,null,null,null,null,null,null,null,null,null,null,null,"OK","OK"]
[null,null,null,null,null,null,null,null,null,null,null,null,null,null,null,null,null,null,null,null,null,null,null,null,null,null,null,null,null,null,null,null,null,null,null,null,null,null,null,null,null,null,null,null,null,null,null,"OK","OK"]
[null,null,null,null,null,null,null,null,null,null,null,null,null,null,null,null,null,null,null,null,null,null,null,null,null,null,null,null,null,null,null,null,null,null,null,null,null,null,null,null,null,null,null,null,null,null,null,"OK","OK"]
[null,null,null,null,null,null,null,null,null,null,null,null,null,null,null,null,null,null,null,null,null,null,null,null,null,null,null,null,null,null,null,null,null,null,null,null,null,null,null,null,null,null,null,null,null,null,null,"OK","OK"]
[null,null,null,null,null,null,null,null,null,null,null,null,null,null,null,null,null,null,null,null,null,null,null,null,null,null,null,null,null,null,null,null,null,null,null,null,null,null,null,null,null,null,null,null,null,null,null,"OK","OK"]
[null,null,null,null,null,null,null,null,null,null,null,null,null,null,null,null,null,null,null,null,null,null,null,null,null,null,null,null,null,null,null,null,null,null,null,null,null,null,null,null,null,null,null,null,null,null,null,"OK","OK"]
[null,null,null,null,null,null,null,null,null,null,null,null,null,null,null,null,null,null,null,null,null,null,null,null,null,null,null,null,null,null,null,null,null,null,null,null,null,null,null,null,null,null,null,null,null,null,null,"OK","OK"]
[null,null,null,null,null,null,null,null,null,null,null,null,null,null,null,null,null,null,null,null,null,null,null,null,null,null,null,null,null,null,null,null,null,null,null,null,null,null,null,null,null,null,null,null,null,null,null,"OK","OK"]
[null,null,null,null,null,null,null,null,null,null,null,null,null,null,null,null,null,null,null,null,null,null,null,null,null,null,null,null,null,null,null,null,null,null,null,null,null,null,null,null,null,null,null,null,null,null,null,"OK","OK"]
[null,null,null,null,null,null,null,null,null,null,null,null,null,null,null,null,null,null,null,null,null,null,null,null,null,null,null,null,null,null,null,null,null,null,null,null,null,null,null,null,null,null,null,null,null,null,null,"OK","OK"]
[null,null,null,null,null,null,null,null,null,null,null,null,null,null,null,null,null,null,null,null,null,null,null,null,null,null,null,null,null,null,null,null,null,null,null,null,null,null,null,null,null,null,null,null,null,null,null,"OK","OK"]
[null,null,null,null,null,null,null,null,null,null,null,null,null,null,null,null,null,null,null,null,null,null,null,null,null,null,null,null,null,null,null,null,null,null,null,null,null,null,null,null,null,null,null,null,null,null,null,"OK","OK"]
[null,null,null,null,null,null,null,null,null,null,null,null,null,null,null,null,null,null,null,null,null,null,null,null,null,null,null,null,null,null,null,null,null,null,null,null,null,null,null,null,null,null,null,null,null,null,null,"OK","OK"]
[null,null,null,null,null,null,null,null,null,null,null,null,null,null,null,null,null,null,null,null,null,null,null,null,null,null,null,null,null,null,null,null,null,null,null,null,null,null,null,null,null,null,null,null,null,null,null,"OK","OK"]
[null,null,null,null,null,null,null,null,null,null,null,null,null,null,null,null,null,null,null,null,null,null,null,null,null,null,null,null,null,null,null,null,null,null,null,null,null,null,null,null,null,null,null,null,null,null,null,"OK","OK"]
[null,null,null,null,null,null,null,null,null,null,null,null,null,null,null,null,null,null,null,null,null,null,null,null,null,null,null,null,null,null,null,null,null,null,null,null,null,null,null,null,null,null,null,null,null,null,null,"OK","OK"]
[null,null,null,null,null,null,null,null,null,null,null,null,null,null,null,null,null,null,null,null,null,null,null,null,null,null,null,null,null,null,null,null,null,null,null,null,null,null,null,null,null,null,null,null,null,null,null,"OK","OK"]
[null,null,null,null,null,null,null,null,null,null,null,null,null,null,null,null,null,null,null,null,null,null,null,null,null,null,null,null,null,null,null,null,null,null,null,null,null,null,null,null,null,null,null,null,null,null,null,"OK","OK"]
[null,null,null,null,null,null,null,null,null,null,null,null,null,null,null,null,null,null,null,null,null,null,null,null,null,null,null,null,null,null,null,null,null,null,null,null,null,null,null,null,null,null,null,null,null,null,null,"OK","OK"]
[null,null,null,null,null,null,null,null,null,null,null,null,null,null,null,null,null,null,null,null,null,null,null,null,null,null,null,null,null,null,null,null,null,null,null,null,null,null,null,null,null,null,null,null,null,null,null,"OK","OK"]
[null,null,null,null,null,null,null,null,null,null,null,null,null,null,null,null,null,null,null,null,null,null,null,null,null,null,null,null,null,null,null,null,null,null,null,null,null,null,null,null,null,null,null,null,null,null,null,"OK","OK"]
[null,null,null,null,null,null,null,null,null,null,null,null,null,null,null,null,null,null,null,null,null,null,null,null,null,null,null,null,null,null,null,null,null,null,null,null,null,null,null,null,null,null,null,null,null,null,null,"OK","OK"]
[null,null,null,null,null,null,null,null,null,null,null,null,null,null,null,null,null,null,null,null,null,null,null,null,null,null,null,null,null,null,null,null,null,null,null,null,null,null,null,null,null,null,null,null,null,null,null,"OK","OK"]
[null,null,null,null,null,null,null,null,null,null,null,null,null,null,null,null,null,null,null,null,null,null,null,null,null,null,null,null,null,null,null,null,null,null,null,null,null,null,null,null,null,null,null,null,null,null,null,"OK","OK"]
[null,null,null,null,null,null,null,null,null,null,null,null,null,null,null,null,null,null,null,null,null,null,null,null,null,null,null,null,null,null,null,null,null,null,null,null,null,null,null,null,null,null,null,null,null,null,null,"OK","OK"]
[null,null,null,null,null,null,null,null,null,null,null,null,null,null,null,null,null,null,null,null,null,null,null,null,null,null,null,null,null,null,null,null,null,null,null,null,null,null,null,null,null,null,null,null,null,null,null,"OK","OK"]
[null,null,null,null,null,null,null,null,null,null,null,null,null,null,null,null,null,null,null,null,null,null,null,null,null,null,null,null,null,null,null,null,null,null,null,null,null,null,null,null,null,null,null,null,null,null,null,"OK","OK"]
[null,null,null,null,null,null,null,null,null,null,null,null,null,null,null,null,null,null,null,null,null,null,null,null,null,null,null,null,null,null,null,null,null,null,null,null,null,null,null,null,null,null,null,null,null,null,null,"OK","OK"]
[null,null,null,null,null,null,null,null,null,null,null,null,null,null,null,null,null,null,null,null,null,null,null,null,null,null,null,null,null,null,null,null,null,null,null,null,null,null,null,null,null,null,null,null,null,null,null,"OK","OK"]
[null,null,null,null,null,null,null,null,null,null,null,null,null,null,null,null,null,null,null,null,null,null,null,null,null,null,null,null,null,null,null,null,null,null,null,null,null,null,null,null,null,null,null,null,null,null,null,"OK","OK"]
[null,null,null,null,null,null,null,null,null,null,null,null,null,null,null,null,null,null,null,null,null,null,null,null,null,null,null,null,null,null,null,null,null,null,null,null,null,null,null,null,null,null,null,null,null,null,null,"OK","OK"]
[null,null,null,null,null,null,null,null,null,null,null,null,null,null,null,null,null,null,null,null,null,null,null,null,null,null,null,null,null,null,null,null,null,null,null,null,null,null,null,null,null,null,null,null,null,null,null,"OK","OK"]
[null,null,null,null,null,null,null,null,null,null,null,null,null,null,null,null,null,null,null,null,null,null,null,null,null,null,null,null,null,null,null,null,null,null,null,null,null,null,null,null,null,null,null,null,null,null,null,"OK","OK"]
[null,null,null,null,null,null,null,null,null,null,null,null,null,null,null,null,null,null,null,null,null,null,null,null,null,null,null,null,null,null,null,null,null,null,null,null,null,null,null,null,null,null,null,null,null,null,null,"OK","OK"]
[null,null,null,null,null,null,null,null,null,null,null,null,null,null,null,null,null,null,null,null,null,null,null,null,null,null,null,null,null,null,null,null,null,null,null,null,null,null,null,null,null,null,null,null,null,null,null,"OK","OK"]
[null,null,null,null,null,null,null,null,null,null,null,null,null,null,null,null,null,null,null,null,null,null,null,null,null,null,null,null,null,null,null,null,null,null,null,null,null,null,null,null,null,null,null,null,null,null,null,"OK","OK"]
[null,null,null,null,null,null,null,null,null,null,null,null,null,null,null,null,null,null,null,null,null,null,null,null,null,null,null,null,null,null,null,null,null,null,null,null,null,null,null,null,null,null,null,null,null,null,null,"OK","OK"]
[null,null,null,null,null,null,null,null,null,null,null,null,null,null,null,null,null,null,null,null,null,null,null,null,null,null,null,null,null,null,null,null,null,null,null,null,null,null,null,null,null,null,null,null,null,null,null,"OK","OK"]
[null,null,null,null,null,null,null,null,null,null,null,null,null,null,null,null,null,null,null,null,null,null,null,null,null,null,null,null,null,null,null,null,null,null,null,null,null,null,null,null,null,null,null,null,null,null,null,"OK","OK"]
[null,null,null,null,null,null,null,null,null,null,null,null,null,null,null,null,null,null,null,null,null,null,null,null,null,null,null,null,null,null,null,null,null,null,null,null,null,null,null,null,null,null,null,null,null,null,null,"OK","OK"]
[null,null,null,null,null,null,null,null,null,null,null,null,null,null,null,null,null,null,null,null,null,null,null,null,null,null,null,null,null,null,null,null,null,null,null,null,null,null,null,null,null,null,null,null,null,null,null,"OK","OK"]
[null,null,null,null,null,null,null,null,null,null,null,null,null,null,null,null,null,null,null,null,null,null,null,null,null,null,null,null,null,null,null,null,null,null,null,null,null,null,null,null,null,null,null,null,null,null,null,"OK","OK"]
[null,null,null,null,null,null,null,null,null,null,null,null,null,null,null,null,null,null,null,null,null,null,null,null,null,null,null,null,null,null,null,null,null,null,null,null,null,null,null,null,null,null,null,null,null,null,null,"OK","OK"]
[null,null,null,null,null,null,null,null,null,null,null,null,null,null,null,null,null,null,null,null,null,null,null,null,null,null,null,null,null,null,null,null,null,null,null,null,null,null,null,null,null,null,null,null,null,null,null,"OK","OK"]
[null,null,null,null,null,null,null,null,null,null,null,null,null,null,null,null,null,null,null,null,null,null,null,null,null,null,null,null,null,null,null,null,null,null,null,null,null,null,null,null,null,null,null,null,null,null,null,"OK","OK"]
[null,null,null,null,null,null,null,null,null,null,null,null,null,null,null,null,null,null,null,null,null,null,null,null,null,null,null,null,null,null,null,null,null,null,null,null,null,null,null,null,null,null,null,null,null,null,null,{"$f":"IF(P2965-W2965-Y2965-AA2965-AC2965-AE2965-AG2965-AI2965-AK2965-AM2965-AO2965-AQ2965-AS2965=0,\"OK\",\"Compromisos diferentes al valor estimado en la vigencia actual\")","v":"OK"},{"$f":"IF(P2965-X2965-Z2965-AB2965-AD2965-AF2965-AH2965-AJ2965-AL2965-AN2965-AP2965-AR2965-AT2965=0,\"OK\",\"Obligaciones diferentes al valor estimado en la vigencia actual\")","v":"OK"}]
[null,null,null,null,null,null,null,null,null,null,null,null,null,null,null,null,null,null,null,null,null,null,null,null,null,null,null,null,null,null,null,null,null,null,null,null,null,null,null,null,null,null,null,null,null,null,null,"OK","OK"]
[null,null,null,null,null,null,null,null,null,null,null,null,null,null,null,null,null,null,null,null,null,null,null,null,null,null,null,null,null,null,null,null,null,null,null,null,null,null,null,null,null,null,null,null,null,null,null,"OK","OK"]
[null,null,null,null,null,null,null,null,null,null,null,null,null,null,null,null,null,null,null,null,null,null,null,null,null,null,null,null,null,null,null,null,null,null,null,null,null,null,null,null,null,null,null,null,null,null,null,"OK","OK"]
[null,null,null,null,null,null,null,null,null,null,null,null,null,null,null,null,null,null,null,null,null,null,null,null,null,null,null,null,null,null,null,null,null,null,null,null,null,null,null,null,null,null,null,null,null,null,null,"OK","OK"]
[null,null,null,null,null,null,null,null,null,null,null,null,null,null,null,null,null,null,null,null,null,null,null,null,null,null,null,null,null,null,null,null,null,null,null,null,null,null,null,null,null,null,null,null,null,null,null,"OK","OK"]
[null,null,null,null,null,null,null,null,null,null,null,null,null,null,null,null,null,null,null,null,null,null,null,null,null,null,null,null,null,null,null,null,null,null,null,null,null,null,null,null,null,null,null,null,null,null,null,"OK","OK"]
[null,null,null,null,null,null,null,null,null,null,null,null,null,null,null,null,null,null,null,null,null,null,null,null,null,null,null,null,null,null,null,null,null,null,null,null,null,null,null,null,null,null,null,null,null,null,null,"OK","OK"]
[null,null,null,null,null,null,null,null,null,null,null,null,null,null,null,null,null,null,null,null,null,null,null,null,null,null,null,null,null,null,null,null,null,null,null,null,null,null,null,null,null,null,null,null,null,null,null,"OK","OK"]
[null,null,null,null,null,null,null,null,null,null,null,null,null,null,null,null,null,null,null,null,null,null,null,null,null,null,null,null,null,null,null,null,null,null,null,null,null,null,null,null,null,null,null,null,null,null,null,"OK","OK"]
[null,null,null,null,null,null,null,null,null,null,null,null,null,null,null,null,null,null,null,null,null,null,null,null,null,null,null,null,null,null,null,null,null,null,null,null,null,null,null,null,null,null,null,null,null,null,null,"OK","OK"]
[null,null,null,null,null,null,null,null,null,null,null,null,null,null,null,null,null,null,null,null,null,null,null,null,null,null,null,null,null,null,null,null,null,null,null,null,null,null,null,null,null,null,null,null,null,null,null,"OK","OK"]
[null,null,null,null,null,null,null,null,null,null,null,null,null,null,null,null,null,null,null,null,null,null,null,null,null,null,null,null,null,null,null,null,null,null,null,null,null,null,null,null,null,null,null,null,null,null,null,"OK","OK"]
[null,null,null,null,null,null,null,null,null,null,null,null,null,null,null,null,null,null,null,null,null,null,null,null,null,null,null,null,null,null,null,null,null,null,null,null,null,null,null,null,null,null,null,null,null,null,null,"OK","OK"]
[null,null,null,null,null,null,null,null,null,null,null,null,null,null,null,null,null,null,null,null,null,null,null,null,null,null,null,null,null,null,null,null,null,null,null,null,null,null,null,null,null,null,null,null,null,null,null,"OK","OK"]
[null,null,null,null,null,null,null,null,null,null,null,null,null,null,null,null,null,null,null,null,null,null,null,null,null,null,null,null,null,null,null,null,null,null,null,null,null,null,null,null,null,null,null,null,null,null,null,"OK","OK"]
[null,null,null,null,null,null,null,null,null,null,null,null,null,null,null,null,null,null,null,null,null,null,null,null,null,null,null,null,null,null,null,null,null,null,null,null,null,null,null,null,null,null,null,null,null,null,null,"OK","OK"]
[null,null,null,null,null,null,null,null,null,null,null,null,null,null,null,null,null,null,null,null,null,null,null,null,null,null,null,null,null,null,null,null,null,null,null,null,null,null,null,null,null,null,null,null,null,null,null,"OK","OK"]
[null,null,null,null,null,null,null,null,null,null,null,null,null,null,null,null,null,null,null,null,null,null,null,null,null,null,null,null,null,null,null,null,null,null,null,null,null,null,null,null,null,null,null,null,null,null,null,"OK","OK"]
[null,null,null,null,null,null,null,null,null,null,null,null,null,null,null,null,null,null,null,null,null,null,null,null,null,null,null,null,null,null,null,null,null,null,null,null,null,null,null,null,null,null,null,null,null,null,null,"OK","OK"]
[null,null,null,null,null,null,null,null,null,null,null,null,null,null,null,null,null,null,null,null,null,null,null,null,null,null,null,null,null,null,null,null,null,null,null,null,null,null,null,null,null,null,null,null,null,null,null,"OK","OK"]
[null,null,null,null,null,null,null,null,null,null,null,null,null,null,null,null,null,null,null,null,null,null,null,null,null,null,null,null,null,null,null,null,null,null,null,null,null,null,null,null,null,null,null,null,null,null,null,"OK","OK"]
[null,null,null,null,null,null,null,null,null,null,null,null,null,null,null,null,null,null,null,null,null,null,null,null,null,null,null,null,null,null,null,null,null,null,null,null,null,null,null,null,null,null,null,null,null,null,null,"OK","OK"]
[null,null,null,null,null,null,null,null,null,null,null,null,null,null,null,null,null,null,null,null,null,null,null,null,null,null,null,null,null,null,null,null,null,null,null,null,null,null,null,null,null,null,null,null,null,null,null,"OK","OK"]
[null,null,null,null,null,null,null,null,null,null,null,null,null,null,null,null,null,null,null,null,null,null,null,null,null,null,null,null,null,null,null,null,null,null,null,null,null,null,null,null,null,null,null,null,null,null,null,"OK","OK"]
[null,null,null,null,null,null,null,null,null,null,null,null,null,null,null,null,null,null,null,null,null,null,null,null,null,null,null,null,null,null,null,null,null,null,null,null,null,null,null,null,null,null,null,null,null,null,null,"OK","OK"]
[null,null,null,null,null,null,null,null,null,null,null,null,null,null,null,null,null,null,null,null,null,null,null,null,null,null,null,null,null,null,null,null,null,null,null,null,null,null,null,null,null,null,null,null,null,null,null,"OK","OK"]
[null,null,null,null,null,null,null,null,null,null,null,null,null,null,null,null,null,null,null,null,null,null,null,null,null,null,null,null,null,null,null,null,null,null,null,null,null,null,null,null,null,null,null,null,null,null,null,"OK","OK"]
[null,null,null,null,null,null,null,null,null,null,null,null,null,null,null,null,null,null,null,null,null,null,null,null,null,null,null,null,null,null,null,null,null,null,null,null,null,null,null,null,null,null,null,null,null,null,null,"OK","OK"]
[null,null,null,null,null,null,null,null,null,null,null,null,null,null,null,null,null,null,null,null,null,null,null,null,null,null,null,null,null,null,null,null,null,null,null,null,null,null,null,null,null,null,null,null,null,null,null,"OK","OK"]
[null,null,null,null,null,null,null,null,null,null,null,null,null,null,null,null,null,null,null,null,null,null,null,null,null,null,null,null,null,null,null,null,null,null,null,null,null,null,null,null,null,null,null,null,null,null,null,"OK","OK"]
[null,null,null,null,null,null,null,null,null,null,null,null,null,null,null,null,null,null,null,null,null,null,null,null,null,null,null,null,null,null,null,null,null,null,null,null,null,null,null,null,null,null,null,null,null,null,null,"OK","OK"]
[null,null,null,null,null,null,null,null,null,null,null,null,null,null,null,null,null,null,null,null,null,null,null,null,null,null,null,null,null,null,null,null,null,null,null,null,null,null,null,null,null,null,null,null,null,null,null,"OK","OK"]
[null,null,null,null,null,null,null,null,null,null,null,null,null,null,null,null,null,null,null,null,null,null,null,null,null,null,null,null,null,null,null,null,null,null,null,null,null,null,null,null,null,null,null,null,null,null,null,"OK","OK"]
[null,null,null,null,null,null,null,null,null,null,null,null,null,null,null,null,null,null,null,null,null,null,null,null,null,null,null,null,null,null,null,null,null,null,null,null,null,null,null,null,null,null,null,null,null,null,null,"OK","OK"]
[null,null,null,null,null,null,null,null,null,null,null,null,null,null,null,null,null,null,null,null,null,null,null,null,null,null,null,null,null,null,null,null,null,null,null,null,null,null,null,null,null,null,null,null,null,null,null,"OK","OK"]
[null,null,null,null,null,null,null,null,null,null,null,null,null,null,null,null,null,null,null,null,null,null,null,null,null,null,null,null,null,null,null,null,null,null,null,null,null,null,null,null,null,null,null,null,null,null,null,"OK","OK"]
[null,null,null,null,null,null,null,null,null,null,null,null,null,null,null,null,null,null,null,null,null,null,null,null,null,null,null,null,null,null,null,null,null,null,null,null,null,null,null,null,null,null,null,null,null,null,null,"OK","OK"]
[null,null,null,null,null,null,null,null,null,null,null,null,null,null,null,null,null,null,null,null,null,null,null,null,null,null,null,null,null,null,null,null,null,null,null,null,null,null,null,null,null,null,null,null,null,null,null,"OK","OK"]
[null,null,null,null,null,null,null,null,null,null,null,null,null,null,null,null,null,null,null,null,null,null,null,null,null,null,null,null,null,null,null,null,null,null,null,null,null,null,null,null,null,null,null,null,null,null,null,"OK","OK"]

{"sheet":"TABLA DINÁMICA","index":1,"n_rows":18,"n_cols":5,"rows_kept":18,"cut":false,"hidden":false,"merged":[[4,1,4,3],[17,0,17,3],[13,1,14,1],[15,1,15,3],[14,2,14,3],[13,0,15,0],[16,0,16,3]]}
[]
[]
[]
[]
["PROYECTO DE INVERSIÓN",{"$f":"IF(ISBLANK(FORMATO!D9),\"NA\",FORMATO!D9)","v":"NA"}]
["FUENTE","VALOR POR FUENTE VIGENCIA ACTUAL","V.TD","VALIDACIÓN"]
["Nación - 11 - Otros Recursos del Tesoro",{"$f":"IF($B$5=\"NA\",\"\",VLOOKUP($B$5,LISTAS!$B$44:$F$52,7,0))","v":""},{"$f":"IF(ISERROR(E7),0,E7)","v":""},{"$f":"IF($B$5=\"NA\",\"\",IF(C7=B7,\"El valor asignado a la fuente de recursos corresponde al aprobado\",\"El valor asignado a la fuente de recursos es diferente al aprobado, por favor verifique\"))","v":""},{"$f":"IF($B$5=\"NA\",\"\",VLOOKUP($A$7,$A$14:$E$124,5,0))","v":""}]
["Total Propios - 20 - Ingresos corrientes",{"$f":"IF($B$5=\"NA\",\"\",VLOOKUP($B$5,LISTAS!$B$44:$F$52,8,0))","v":""},{"$f":"IF(ISERROR(E8),0,E8)","v":""},{"$f":"IF($B$5=\"NA\",\"\",IF(C8=B8,\"El valor asignado a la fuente de recursos corresponde al aprobado\",\"El valor asignado a la fuente de recursos es diferente al aprobado, por favor verifique\"))","v":""},{"$f":"IF($B$5=\"NA\",\"\",VLOOKUP($A$8,$A$14:$E$124,5,0))","v":""}]
["Total Propios - 21 - Otros recursos de tesorería",{"$f":"IF($B$5=\"NA\",\" \",VLOOKUP($B$5,LISTAS!$B$44:$F$52,9,0))","v":" "},{"$f":"IF(ISERROR(E9),\"\",E9)","v":""},{"$f":"IF($B$5=\"NA\",\"\",IF(C9=B9,\"El valor asignado a la fuente de recursos corresponde al aprobado\",\"El valor asignado a la fuente de recursos es diferente al aprobado, por favor verifique\"))","v":""},{"$f":"IF($B$5=\"NA\",\"\",VLOOKUP($A$9,$A$14:$E$124,5,0))","v":""}]
[]
[]
["Vr. estimado en la vigencia actual"]
["Fuente de los recursos","Objetivo Específico del Proyecto de Inversión","Producto del Proyecto de Inversión","Actividad del Proyecto de Inversión","Total"]
["(en blanco)","(en blanco)","(en blanco)","(en blanco)",0]
[null,null,"Total (en blanco)",null,0]
[null,"Total (en blanco)",null,null,0]
["Total (en blanco)",null,null,null,0]
["Total general",null,null,null,0]

{"sheet":"LISTAS","index":2,"n_rows":414,"n_cols":13,"rows_kept":414,"cut":false,"hidden":false,"merged":[[27,1,27,2],[1,1,1,2],[2,1,2,2],[19,1,19,2],[20,1,20,2],[26,1,26,2],[299,5,299,7],[33,1,33,2],[34,1,34,2],[40,1,41,1],[381,3,382,3],[299,2,299,4]]}
[]
[null,"Lista 2"]
[null,"Modalidad_de_selección ",null,"Meses "]
[null,"CCE-11||03","Contratación régimen especial - Régimen especial","Enero "]
[null,"CCE-15||03","Contratación régimen especial (con ofertas)  - Régimen especial","Febrero"]
[null,"CCE-99","Seléccion abreviada - acuerdo marco","Marzo"]
[null,"CCE-16","Contratación directa - Contratos interadministrativos ","Abril"]
[null,"CCE-16","Contratación directa - Prestación de servicios profesionales ","Mayo"]
[null,"CCE-16","Contratación directa - Contratos de arrendamiento o adquisición de inmuebles","Junio"]
[null,"CCE-16","Contratación directa - Contratos menor cuantía","Julio"]
[null,"CCE-16","Contratación directa  - único oferente","Agosto"]
[null,null,null,"Septiembre"]
[null,null,null,"Octubre",null,null,null,null,null,null,"Rubro presupuestal"]
[null,null,null,"Noviembre",null,null,null,null,null,null,"A-02-01-01-004-005 MAQUINARIA DE OFICINA, CONTABILIDAD E INFORMÁTICA"]
[null,null,null,"Diciembre",null,null,null,null,null,null,"A-02-02-01-002-008 DOTACIÓN (PRENDAS DE VESTIR Y CALZADO)"]
[null,null,null,null,null,null,null,null,null,null,"A-02-02-01-003 OTROS BIENES TRANSPORTABLES (EXCEPTO PRODUCTOS METÁLICOS, MAQUINARIA Y EQUIPO)"]
[null,null,null,null,null,null,null,null,null,null,"A-02-02-01-003-002 PASTA O PULPA, PAPEL Y PRODUCTOS DE PAPEL; IMPRESOS Y ARTÍCULOS RELACIONADOS"]
[null,null,null,null,null,null,null,null,null,null,"A-02-02-01-003-005 OTROS PRODUCTOS QUÍMICOS; FIBRAS ARTIFICIALES (O FIBRAS INDUSTRIALES HECHAS POR EL HOMBRE)"]
[null,null,null,null,null,null,null,null,null,null,"A-02-02-01-003-008 OTROS BIENES TRANSPORTABLES N.C.P."]
[null,"Lista 3",null,null,null,null,null,null,null,null,"A-02-02-02-006-003 ALOJAMIENTO; SERVICIOS DE SUMINISTROS DE COMIDAS Y BEBIDAS"]
[null,"Fuente_de_los_recursos",null,"Unidad de tiempo",null,null,null,null,null,null,"A-02-02-02-006-004 SERVICIOS DE TRANSPORTE DE PASAJEROS"]
[null,0,"Propios - 20 - Ingresos corrientes","Meses",null,null,null,null,null,null,"A-02-02-02-006-007 SERVICIOS DE APOYO AL TRANSPORTE"]
[null,0,"Propios - 21 - Otros recursos de tesorería","Días",null,null,null,null,null,null,"A-02-02-02-006-008 SERVICIOS POSTALES Y DE MENSAJERÍA"]
[null,1,"Nación - 10 - Recursos Corrientes",null,null,null,null,null,null,null,"A-02-02-02-007-001 SERVICIOS FINANCIEROS Y SERVICIOS CONEXOS"]
[null,1,"Nación - 11 - Otros Recursos del Tesoro",null,null,null,null,null,null,null,"A-02-02-02-007-003 SERVICIOS DE ARRENDAMIENTO O ALQUILER SIN OPERARIO"]
[null,null,null,null,null,null,null,null,null,null,"A-02-02-02-008-002 SERVICIOS JURÍDICOS Y CONTABLES"]
[null,"Lista 4",null,null,null,null,null,null,null,null,"A-02-02-02-008-003 OTROS SERVICIOS PROFESIONALES, CIENTÍFICOS Y TÉCNICOS"]
[null,"¿Se requieren vigencias futuras?",null,null,null,null,null,null,null,null,"A-02-02-02-008-004 SERVICIOS DE TELECOMUNICACIONES, TRANSMISIÓN Y SUMINISTRO DE INFORMACIÓN"]
[null,"0","No",null,null,null,null,null,null,null,"A-02-02-02-008-005 SERVICIOS DE SOPORTE"]
[null,"1","SI",null,null,null,null,null,null,null,"A-02-02-02-008-007 SERVICIOS DE MANTENIMIENTO, REPARACIÓN E INSTALACIÓN (EXCEPTO SERVICIOS DE CONSTRUCCIÓN)"]
[null,"0","N/A",null,null,null,null,null,null,null,"A-02-02-02-008-009 OTROS SERVICIOS DE FABRICACIÓN; SERVICIOS DE EDICIÓN, IMPRESIÓN Y REPRODUCCIÓN; SERVICIOS DE RECUPERACIÓN DE MATERIALES"]
[null,null,null,null,null,null,null,null,null,null,"A-02-02-02-009-003 SERVICIOS PARA EL CUIDADO DE LA SALUD HUMANA Y SERVICIOS SOCIALES"]
[null,null,null,null,null,null,null,null,null,null,"A-02-02-02-009-006 SERVICIOS DE ESPARCIMIENTO, CULTURALES Y DEPORTIVOS"]
[null,"Lista 5",null,null,null,null,null,null,null,null,"A-02-02-02-009-007 OTROS SERVICIOS"]
[null,"Estado_de_solicitud_de_vigencias_futuras",null,null,null,null,null,null,null,null,"A-05-01-02-007-001 SERVICIOS FINANCIEROS Y SERVICIOS CONEXOS"]
[null,0,"N/A",null,null,null,null,null,null,null,"A-05-01-02-007-003 SERVICIOS DE ARRENDAMIENTO O ALQUILER SIN OPERARIO"]
[null,1,"No solicitadas",null,null,null,null,null,null,null,"A-05-01-02-008-003 OTROS SERVICIOS PROFESIONALES, CIENTÍFICOS Y TÉCNICOS"]
[null,2,"Solicitadas"]
[null,3,"Aprobadas"]
[]
[null,"FORMULA PROYECTOS ","Área de Funcionamiento","NA"]
[null,null,"Proyecto de Inversión","PROYECTOS"]
[null,"Nombre_del_rubro","Objetivo_General_Proyecto","Reponsable","Código_pptal","Total"]
[null,"ASESORIA PARA LA EQUIDAD Y CONECTIVIDAD ENERGÉTICA A NIVEL NACIONAL","Asegurar que la planeación energética permita el cierre de brechas en la prestación del servicio de energía eléctrica y gas a través de mejores información y estrategias","OFICINA DE GESTIÓN DE PROYECTOS DE FONDOS","C-2102-1900-3",1520000000]
[null,"IMPLEMENTACIÓN DE ACCIONES PARA LA CONFIABILIDAD DEL SUBSECTOR ELÉCTRICO A NIVEL NACIONAL","Fortalecimiento de la confiabilidad del sistema eléctrico de cara a incrementos futuros en la demanda","SUBDIRECCIÓN DE ENERGÍA ELÉCTRICA","C-2102-1900-4",4947257345]
[null,"ASESORIA PARA LA PLANEACIÓN DE ABASTECIMIENTO Y CONFIABILIDAD DEL SUB SECTOR DE HIDROCARBUROS A NIVEL NACIONAL","Desarrollar la planeación del subsector de hidrocarburos con la mejor información existente, para la identificación de opciones y estrategias que permitan abastecimiento pleno, eficiente y continuo de estos recursos, con total respeto ambiental y la ","SUBDIRECCIÓN DE HIDROCARBUROS","C-2103-1900-1",2940000000]
[null,"ASESORIA PARA LA SEGURIDAD ENERGÉTICA Y EL SEGUIMIENTO DEL PEN A NIVEL NACIONAL","Contar con insumos técnicos de alta calidad para la apropiada planeación energética de largo plazo","SUBDIRECCIÓN DE DEMANDA","C-2106-1900-6",3600000000]
[null,"ASESORIA PARA PROMOVER EL DESARROLLO SOSTENIBLE Y LA COMPETITIVIDAD DEL SECTOR MINERO NACIONAL","Generar estrategias que dinamicen el desarrollo del sector y su incidencia en los territorios a través de una planeación con prospectiva y sostenibildad","SUBDIRECCIÓN DE MINERÍA","C-2106-1900-9",2250000000]
[null,"FORTALECIMIENTO DE LOS SERVICIOS DIGITALES AUMENTANDO LA CAPACIDAD PARA LA TRANSFORMACION DIGITAL E INTERACCION CON EL CIUDADANO NACIONAL","Fortalecer la interaccion y empoderamiento ciudadano a traves de la habilitacion de servicios digitales ","OFICINA DE GESTIÓN DE LA INFORMACIÓN","Rubro Provisional1",3896327879]
[null,"FORTALECIMIENTO DE LA PERCEPCIÓN DE LA CIUDADANÍA FRENTE A LOS PRODUCTOS Y SERVICIOS PRESTADOS POR LA UPME NACIONAL","Aumentar la percepcion de la ciudadania frente a los productos y servicios prestados por la UPME","GIT PLANEACIÓN","Rubro Provisional2",2274128453]
[null,"FORTALECIMIENTO DEL LEVANTAMIENTO, GESTIÓN Y APROPIACIÓN DE LA INFORMACIÓN PARA LA PLANEACIÓN  DEL SECTOR MINERO ENERGÉTICO CON ENFOQUE TERRITORIAL  NACIONAL","Fortalecer el uso de la informacion territorial en las dinamicas de la planeacion del sector mineroenergetico.","DIRECCIÓN GENERAL","Rubro Provisional3",3262624416]
[null,"DESARROLLO DE ESTRATEGIAS PARA DOTAR DE SENTIDO SOCIAL Y AMBIENTAL LA PLANEACIÓN MINERO ENERGÉTICA A NIVEL NACIONAL","Generar estrategias que contribuyan a dotar de sentido ambiental y social la planeación minero energética para prevenir y gestionar conflictos sectoriales","DIRECCIÓN GENERAL","C-2105-1900-3",2271661907]
[null,"TOTAL",null,null,null,{"$f":"SUM(F44:F52)","v":26962000000}]
[]
[]
[null,"NOMBRE_PROY.INV","PROY.INV","OBJ.GEN","OBJ.ESP","PRODUCTO","ACTIVIDAD"]
[null,"Fortalecimiento de la función jurisdiccional de la Superintendencia de industria y comercio a nivel  Nacional","C-3503-0200-11","Fortalecer la función  jurisdiccional de la Superintendencia de Industria y Comercio en materia de protección al consumidor, competencia desleal y propiedad industrial","Mejorar los niveles de atención y oportunidad de trámites jurisdiccionales","Servicio jurisdiccionales para la protección del consumidor, la competencia y la propiedad industrial","Atender trámites en materia de Asuntos Jurisdiccionales.  ",null,"\tMejorar las estrategias de planeación de la energización rural sostenible","DOCUMENTOS DE PLANEACIÓN","Realizar la captura y análisis de la información para la relización de los planes de energización rural sostenible (PERS)"]
[null,"Fortalecimiento de la función jurisdiccional de la Superintendencia de industria y comercio a nivel  Nacional","C-3503-0200-11","Fortalecer la función  jurisdiccional de la Superintendencia de Industria y Comercio en materia de protección al consumidor, competencia desleal y propiedad industrial","Mejorar los niveles de atención y oportunidad de trámites jurisdiccionales","Servicio jurisdiccionales para la protección del consumidor, la competencia y la propiedad industrial","Capacitar al recurso humano",null,null,null,"Realizar el seguimiento y la supervisión de los planes de energización rural sostenible (PERS)"]
[null,"Fortalecimiento de la función jurisdiccional de la Superintendencia de industria y comercio a nivel  Nacional","C-3503-0200-11","Fortalecer la función  jurisdiccional de la Superintendencia de Industria y Comercio en materia de protección al consumidor, competencia desleal y propiedad industrial","Mejorar los niveles de atención y oportunidad de trámites jurisdiccionales","Servicio jurisdiccionales para la protección del consumidor, la competencia y la propiedad industrial","Notificar los trámites judiciales en los terminos establecidos por la Ley.",null,"Generar un conocimiento actualizado para la identificación de proyectos orientados al aumento de cobertura de energía y gas","SERVICIO DE ASISTENCIA TÉCNICA EN LA ESTRUCTURACIÓN DE PROYECTOS ENERGÉTICOS","Realizar el análisis para evaluación de proyectos de conceptos de viabilidad que permitan acceder a recursos de fondos especiales de energía."]
[null,"Fortalecimiento de la función jurisdiccional de la Superintendencia de industria y comercio a nivel  Nacional","C-3503-0200-11","Fortalecer la función  jurisdiccional de la Superintendencia de Industria y Comercio en materia de protección al consumidor, competencia desleal y propiedad industrial","Promover el uso de las normas procesales aplicables en temas jurisdiccionales","Servicio de divulgación de temas misionales de la SIC","Realizar eventos de divulgación en materia de procesos Jurisdiccionales",null,null,null,"Realizar estudios y análisis que permitan identificar y priorizar estrategias para ampliar la cobertura del servicio de energía eléctrica a zonas que no poseen dicho servicio."]
[null,"Fortalecimiento de la función jurisdiccional de la Superintendencia de industria y comercio a nivel  Nacional","C-3503-0200-11","Fortalecer la función  jurisdiccional de la Superintendencia de Industria y Comercio en materia de protección al consumidor, competencia desleal y propiedad industrial","Promover el uso de las normas procesales aplicables en temas jurisdiccionales","Servicio de divulgación de temas misionales de la SIC","Generar y divulgar contenidos en materia de Competencia Desleal, propiedad industrial y protección al consumidor, en medios digitales o impresos. ",null,"Complementar la Planeación de energía eléctrica a partir de lineamientos integrales, basados en estudiós y simulaciones con rigor técnico como insumo.","DOCUMENTOS DE PLANEACIÓN","Fortalecer el plan indicativo de expansión de cobertura en la captura y análisis de la información técnica de soporte para la planeación"]
[null,"Mejoramiento en la ejecución de las funciones asignadas en materia de protección al consumidor a nivel  Nacional","C-3503-0200-15","Mejorar la ejecución de las funciones asignadas en materia de protección al consumidor","Mejorar los niveles de atención y oportunidad de los trámites y denuncias en materia de Protección al Consumidor","Servicios de protección al consumidor dentro de las competencias de la SIC","Atender trámites de Protección al Consumidor",null,null,null,"Actualizar las herramientas sistemáticas para la planeación del sector energético"]
[null,"Mejoramiento en la ejecución de las funciones asignadas en materia de protección al consumidor a nivel  Nacional","C-3503-0200-15","Mejorar la ejecución de las funciones asignadas en materia de protección al consumidor","Mejorar los niveles de atención y oportunidad de los trámites y denuncias en materia de Protección al Consumidor","Servicios de protección al consumidor dentro de las competencias de la SIC","Capacitar al recurso humano",null,null,null,"Realizar estudios que complementen el Plan de expansión de generación transmisión"]
[null,"Mejoramiento en la ejecución de las funciones asignadas en materia de protección al consumidor a nivel  Nacional","C-3503-0200-15","Mejorar la ejecución de las funciones asignadas en materia de protección al consumidor","Mejorar los niveles de atención y oportunidad de los trámites y denuncias en materia de Protección al Consumidor","Servicios de protección al consumidor dentro de las competencias de la SIC","Participar en las diferentes actividades programadas por organismos nacionales e internacionales ",null,null,null,"ADMINISTRACIÓN Y GERENCIA"]
[null,"Mejoramiento en la ejecución de las funciones asignadas en materia de protección al consumidor a nivel  Nacional","C-3503-0200-15","Mejorar la ejecución de las funciones asignadas en materia de protección al consumidor","Promover el cumplimiento de las disposiciones legales en materia de protección al consumidor por parte de los vigilados","Servicios de educación informal en temas de la Superintendencia de Industria y Comercio","Elaborar talleres para el fortalecimiento de la red de producto seguro ",null,"Desarrollar la información técnica e idónea que fortalezca los procesos de convocatorias y subastas.","SERVICIO DE ASISTENCIA TÉCNICA EN LA ESTRUCTURACIÓN DE CONVOCATORIAS DE LOS SISTEMAS DE TRANSMISIÓN DE ENERGÍA","Realizar el análisis a los procesos de convocatorias y subastas para la estructuración de documentos para la selección del inversionista y de la interventoría, tanto en asuntos jurídicos como en aspectos técnicos."]
[null,"Mejoramiento en la ejecución de las funciones asignadas en materia de protección al consumidor a nivel  Nacional","C-3503-0200-15","Mejorar la ejecución de las funciones asignadas en materia de protección al consumidor","Promover el cumplimiento de las disposiciones legales en materia de protección al consumidor por parte de los vigilados","Servicios de educación informal en temas de la Superintendencia de Industria y Comercio","Realizar charlas de difusión de los derechos de los consumidores en diferentes municipios del país.",null,null,null,"Efectuar el seguimiento de los proyectos en ejecución, así como el analisis de información técnica, ambiental y social de los proyectos en estructuración de Documentos de Selección de Inversionistas (DSI)"]
[null,"Mejoramiento en la ejecución de las funciones asignadas en materia de protección al consumidor a nivel  Nacional","C-3503-0200-15","Mejorar la ejecución de las funciones asignadas en materia de protección al consumidor","Promover el cumplimiento de las disposiciones legales en materia de protección al consumidor por parte de los vigilados","Servicio de divulgación de temas misionales de la SIC","Generar y divulgar contenidos en cartillas o folletos en medio digital o impreso",null,"Contar con informaciòn necesaria y suficiente para la adecuada planeación que proporcione los elementos para asegurar el abastecimiento y la confiabilidad del sector de hidrocarburos","DOCUMENTOS DE LINEAMIENTOS TÉCNICOS","Realizar estudios y acciones técnicas para el sub sector de Gas (GNL-GLP)."]
[null,"Mejoramiento en la ejecución de las funciones asignadas en materia de protección al consumidor a nivel  Nacional","C-3503-0200-15","Mejorar la ejecución de las funciones asignadas en materia de protección al consumidor","Promover el cumplimiento de las disposiciones legales en materia de protección al consumidor por parte de los vigilados","Servicio de divulgación de temas misionales de la SIC","Realizar programas educativos en medios masivos ",null,null,null,"Realizar estudios técnicos con información especializada de combustibles liquidos"]
[null,"Mejoramiento en la ejecución de las funciones asignadas en materia de protección al consumidor a nivel  Nacional","C-3503-0200-15","Mejorar la ejecución de las funciones asignadas en materia de protección al consumidor","Promover el cumplimiento de las disposiciones legales en materia de protección al consumidor por parte de los vigilados","Servicio de divulgación de temas misionales de la SIC","Realizar foros y/o eventos de carácter nacional e internacional.",null,null,null,"Realizar estudios técnicos con información especializada de petroleo"]
[null,"Fortalecimiento de la protección de datos personales a nivel  Nacional","C-3503-0200-12","Fortalecer la protección de datos personales en el país","Aumentar la eficiencia del control y vigilancia a los sujetos obligados","Servicios de inspección, vigilancia y control para la protección de los datos personales.","Administrar el Registro Nacional de Bases de Datos",null,null,null,"Elaborar insumos técnicos, legales y económicos que sirvan de soporte para orientar la implementación de planes del sub sector de hidrocarburos"]
[null,"Fortalecimiento de la protección de datos personales a nivel  Nacional","C-3503-0200-12","Fortalecer la protección de datos personales en el país","Aumentar la eficiencia del control y vigilancia a los sujetos obligados","Servicios de inspección, vigilancia y control para la protección de los datos personales.","Mantener y actualizar el Sistema Integral de Supervisión Inteligente - SISI y el Registro Nacional de Bases de Datos",null,"Fortalecer las capacidades de modelación y prospectiva para la identificación de nuevas oportunidades en el mercado de los hidrocarburos","DOCUMENTOS DE PLANEACIÓN","Adquirir Información especializada del sub sector energetico"]
[null,"Fortalecimiento de la protección de datos personales a nivel  Nacional","C-3503-0200-12","Fortalecer la protección de datos personales en el país","Aumentar la eficiencia del control y vigilancia a los sujetos obligados","Servicios de inspección, vigilancia y control para la protección de los datos personales.","Realizar procesos de supervisión",null,null,null,"Actualizar herramientas para la modelación y proyección de escenarios de hidrocarburos"]
[null,"Fortalecimiento de la protección de datos personales a nivel  Nacional","C-3503-0200-12","Fortalecer la protección de datos personales en el país","Aumentar la eficiencia del control y vigilancia a los sujetos obligados","Servicios de inspección, vigilancia y control para la protección de los datos personales.","Implementar y mantener una herramienta para la optimización y aprovechamiento de la información contenida en el Sistema Integral de Supervisión Inteligente - SISI ",null,"Mejorar los niveles de información de diagnóstico del sistema energético","SERVICIO DE INFORMACIÓN DEL SECTOR MINERO","Construir una base de datos de consulta pública acerca de la manera como los diferentes sectores consumen energía, para fortalecer la calidad de la información que se registra en los balances energéticos y la planeación a largo plazo"]
[null,"Fortalecimiento de la protección de datos personales a nivel  Nacional","C-3503-0200-12","Fortalecer la protección de datos personales en el país","Aumentar la eficiencia del control y vigilancia a los sujetos obligados","Servicios de inspección, vigilancia y control para la protección de los datos personales.","Participar en las diferentes actividades programadas por organismos nacionales e internacionales ",null,null,null,"Consolidar la información del desarrollo de la matriz energética colombiana desde inicios del siglo XX para aportar evidencia sobre los cambios estructurales en la misma, así como en la oferta energética exportable, y sus impactos en la planeación de largo plazo, en el marco de la transformación energética."]
[null,"Fortalecimiento de la protección de datos personales a nivel  Nacional","C-3503-0200-12","Fortalecer la protección de datos personales en el país","Aumentar la eficiencia del control y vigilancia a los sujetos obligados","Servicios de inspección, vigilancia y control para la protección de los datos personales.","Capacitar al recurso humano en temas de protección a datos personales",null,null,null,"Consolidar información de vigilancia tecnológica como insumo para el observatorio de energía"]
[null,"Fortalecimiento de la protección de datos personales a nivel  Nacional","C-3503-0200-12","Fortalecer la protección de datos personales en el país","Promover el conocimiento de los titulares y vigilados sobre la normatividad del derecho de protección de datos personales","Servicios de educación informal en temas de la Superintendencia de Industria y Comercio","Realizar capacitaciones sobre el cumplimiento de deberes de los sujetos obligados ",null,null,null,"Analizar la información recolectada y consolidar los balances energéticos"]
[null,"Fortalecimiento de la protección de datos personales a nivel  Nacional","C-3503-0200-12","Fortalecer la protección de datos personales en el país","Promover el conocimiento de los titulares y vigilados sobre la normatividad del derecho de protección de datos personales","Servicios de educación informal en temas de la Superintendencia de Industria y Comercio","Realizar capacitaciones para promover y divulgar el derecho fundamental a la protección de datos personales a los Titulares y vigilados",null,"\tIncorporación las más recientes innovaciones tecnológicas en la planeación energética","SERVICIO DE DIVULGACIÓN DEL SECTOR MINERO ENERGÉTICO","Desarrollar estudios que permitan plantear un mapa de ruta para la implementación de las redes inteligentes"]
[null,"Fortalecimiento de la protección de datos personales a nivel  Nacional","C-3503-0200-12","Fortalecer la protección de datos personales en el país","Promover el conocimiento de los titulares y vigilados sobre la normatividad del derecho de protección de datos personales","Servicio de divulgación de temas misionales de la SIC","Realizar campañas de divulgación en materia de protección de datos personales",null,null,null,"Desarrollar estudios que permitan identificar las estrategias para la implementación de redes inteligentes en las ciudades colombianas"]
[null,"Fortalecimiento de la protección de datos personales a nivel  Nacional","C-3503-0200-12","Fortalecer la protección de datos personales en el país","Promover el conocimiento de los titulares y vigilados sobre la normatividad del derecho de protección de datos personales","Servicio de divulgación de temas misionales de la SIC","Realizar foros y eventos de divulgación en materia de protección de datos personales dirigidas a Titulares y Vigilados ",null,null,null,"Desarrollar estudios que permitan elaborar estrategias para materializar los objetivos propuestos en el PEN vigente"]
[null,"Fortalecimiento de la protección de datos personales a nivel  Nacional","C-3503-0200-12","Fortalecer la protección de datos personales en el país","Promover el conocimiento de los titulares y vigilados sobre la normatividad del derecho de protección de datos personales","Servicio de divulgación de temas misionales de la SIC","Generar y divulgar guías y cartillas relacionadas con las funciones de la SIC en materia de protección de datos personales",null,null,null,"Realizar la evaluación de incentivos tributarios de fuentes no convencionales, gestión eficiente de energía y otros fondos."]
[null,"Fortalecimiento de la función de inspección, control y vigilancia de la Superintendencia de Industria y Comercio en el marco del Subsistema Nacional de Calidad, el régimen de control de precios y el sector valuatorio a nivel  Nacional","C-3503-0200-16","Fortalecer la función de inspección, control y vigilancia en el marco del Subsistema Nacional de Calidad, el régimen de control de precios y el sector valuatorio del país","Mejorar los niveles de atención y oportunidad de trámites en materia de inspección,  vigilancia y control  en temas asociados al SICAL, al régimen de control de precios y al sector valuatorio del país","Servicio de inspección, vigilancia y control en temas asociados al SICAL, al régimen de control de precios y al sector valuatorio del país","Atender trámites en materia del SICAL, al régimen de control de precios y al sector valuatorio del país",null,null,null,"Posibilitar la integración de análisis económicos, sociales y ambientales en el ejercicio de planeación energética a largo plazo."]
[null,"Fortalecimiento de la función de inspección, control y vigilancia de la Superintendencia de Industria y Comercio en el marco del Subsistema Nacional de Calidad, el régimen de control de precios y el sector valuatorio a nivel  Nacional","C-3503-0200-16","Fortalecer la función de inspección, control y vigilancia en el marco del Subsistema Nacional de Calidad, el régimen de control de precios y el sector valuatorio del país","Mejorar los niveles de atención y oportunidad de trámites en materia de inspección,  vigilancia y control  en temas asociados al SICAL, al régimen de control de precios y al sector valuatorio del país","Servicio de inspección, vigilancia y control en temas asociados al SICAL, al régimen de control de precios y al sector valuatorio del país","Expedir reglamentos técnicos metrológicos aplicables a instrumentos de medición sujetos a control metrológico.",null,"Fomentar la visión cientifica y de innovación del sector","DOCUMENTOS DE INVESTIGACIÓN","Fortalecer la capacidad institucional y de gestión investigativa del sector minero"]
[null,"Fortalecimiento de la función de inspección, control y vigilancia de la Superintendencia de Industria y Comercio en el marco del Subsistema Nacional de Calidad, el régimen de control de precios y el sector valuatorio a nivel  Nacional","C-3503-0200-16","Fortalecer la función de inspección, control y vigilancia en el marco del Subsistema Nacional de Calidad, el régimen de control de precios y el sector valuatorio del país","Mejorar los niveles de atención y oportunidad de trámites en materia de inspección,  vigilancia y control  en temas asociados al SICAL, al régimen de control de precios y al sector valuatorio del país","Servicio de inspección, vigilancia y control en temas asociados al SICAL, al régimen de control de precios y al sector valuatorio del país","Mantener  e  implementar los laboratorios de calibración",null,null,null,"Fortalecer la capacidad de la UPME en ciencia, tecnología y política pública"]
[null,"Fortalecimiento de la función de inspección, control y vigilancia de la Superintendencia de Industria y Comercio en el marco del Subsistema Nacional de Calidad, el régimen de control de precios y el sector valuatorio a nivel  Nacional","C-3503-0200-16","Fortalecer la función de inspección, control y vigilancia en el marco del Subsistema Nacional de Calidad, el régimen de control de precios y el sector valuatorio del país","Mejorar los niveles de atención y oportunidad de trámites en materia de inspección,  vigilancia y control  en temas asociados al SICAL, al régimen de control de precios y al sector valuatorio del país","Servicio de inspección, vigilancia y control en temas asociados al SICAL, al régimen de control de precios y al sector valuatorio del país","Administrar y mantener los Sistemas de Información utilizados en el marco del SICAL",null,"Integrar la información oficial del sector apropiadamente","SERVICIO DE INFORMACIÓN OFICIAL DEL SECTOR MINERO","Mejorar el flujo, calidad y análisis de la información que nutre al SIMCO"]
[null,"Fortalecimiento de la función de inspección, control y vigilancia de la Superintendencia de Industria y Comercio en el marco del Subsistema Nacional de Calidad, el régimen de control de precios y el sector valuatorio a nivel  Nacional","C-3503-0200-16","Fortalecer la función de inspección, control y vigilancia en el marco del Subsistema Nacional de Calidad, el régimen de control de precios y el sector valuatorio del país","Mejorar los niveles de atención y oportunidad de trámites en materia de inspección,  vigilancia y control  en temas asociados al SICAL, al régimen de control de precios y al sector valuatorio del país","Servicio de inspección, vigilancia y control en temas asociados al SICAL, al régimen de control de precios y al sector valuatorio del país","Capacitar al recurso humano",null,null,null,"Mejorar la analítica de la información mediante herramientas de inteligencia de negocio."]
[null,"Fortalecimiento de la función de inspección, control y vigilancia de la Superintendencia de Industria y Comercio en el marco del Subsistema Nacional de Calidad, el régimen de control de precios y el sector valuatorio a nivel  Nacional","C-3503-0200-16","Fortalecer la función de inspección, control y vigilancia en el marco del Subsistema Nacional de Calidad, el régimen de control de precios y el sector valuatorio del país","Mejorar los niveles de atención y oportunidad de trámites en materia de inspección,  vigilancia y control  en temas asociados al SICAL, al régimen de control de precios y al sector valuatorio del país","Servicio de inspección, vigilancia y control en temas asociados al SICAL, al régimen de control de precios y al sector valuatorio del país","Participar en eventos de carácter nacional e internacional en temas de Metrología legal y Reglamentos técnicos.",null,"Adaptar la planeación a los retos de la sostenibilidad del sector","DOCUMENTOS DE PLANEACIÓN","Planear de manera dinámica que responda a las oportunidades del sector y del país"]
[null,"Fortalecimiento de la función de inspección, control y vigilancia de la Superintendencia de Industria y Comercio en el marco del Subsistema Nacional de Calidad, el régimen de control de precios y el sector valuatorio a nivel  Nacional","C-3503-0200-16","Fortalecer la función de inspección, control y vigilancia en el marco del Subsistema Nacional de Calidad, el régimen de control de precios y el sector valuatorio del país","Promover la divulgación de las actividades adelantadas por la SIC dentro del SICAL,  el régimen de control de  precios y el sistema valuatorio del país","Servicios de educación informal en temas de la Superintendencia de Industria y Comercio","Realizar capacitaciones en temas relacionados con la metrología legal ",null,null,null,"Estructurar el sistema de monitoreo y evaluación de la planeación sectorial con estrategias e instrumentos estandarizados"]
[null,"Fortalecimiento de la función de inspección, control y vigilancia de la Superintendencia de Industria y Comercio en el marco del Subsistema Nacional de Calidad, el régimen de control de precios y el sector valuatorio a nivel  Nacional","C-3503-0200-16","Fortalecer la función de inspección, control y vigilancia en el marco del Subsistema Nacional de Calidad, el régimen de control de precios y el sector valuatorio del país","Promover la divulgación de las actividades adelantadas por la SIC dentro del SICAL,  el régimen de control de  precios y el sistema valuatorio del país","Servicios de educación informal en temas de la Superintendencia de Industria y Comercio","Realizar capacitaciones en temas relacionados con reglamentos técnicos ",null,null,null,"Desarrollar e implementar estrategias y herramientas para el fortalecimiento de la planeación sectorial con enfoque territorial"]
[null,"Fortalecimiento de la función de inspección, control y vigilancia de la Superintendencia de Industria y Comercio en el marco del Subsistema Nacional de Calidad, el régimen de control de precios y el sector valuatorio a nivel  Nacional","C-3503-0200-16","Fortalecer la función de inspección, control y vigilancia en el marco del Subsistema Nacional de Calidad, el régimen de control de precios y el sector valuatorio del país","Promover la divulgación de las actividades adelantadas por la SIC dentro del SICAL,  el régimen de control de  precios y el sistema valuatorio del país","Servicio de divulgación de temas misionales de la SIC","Realizar foros y/o eventos de carácter nacional e internacional.",null,"Ampliar el conocimiento técnico y económicodel sector","DOCUMENTOS DE LINEAMIENTOS TÉCNICOS","Estructurar análisis y tendencias de mercado (transición energética), hacia la identificación de oportunidades sectoriales"]
[null,"Fortalecimiento de la función de inspección, control y vigilancia de la Superintendencia de Industria y Comercio en el marco del Subsistema Nacional de Calidad, el régimen de control de precios y el sector valuatorio a nivel  Nacional","C-3503-0200-16","Fortalecer la función de inspección, control y vigilancia en el marco del Subsistema Nacional de Calidad, el régimen de control de precios y el sector valuatorio del país","Promover la divulgación de las actividades adelantadas por la SIC dentro del SICAL,  el régimen de control de  precios y el sistema valuatorio del país","Servicio de divulgación de temas misionales de la SIC","Generar y divulgar contenidos en cartillas o folletos en medio digital o impreso",null,null,null,"Ampliar la capacidad analítica y de medición en el sector"]
[null,"Fortalecimiento de la atención y promoción de trámites y servicios en el marco del sistema de propiedad industrial a nivel  Nacional","C-3503-0200-14","Fortalecer la atención y promoción de trámites y servicios en el marco del sistema de propiedad industrial en Colombia ","Mejorar la atención de trámites y servicios en materia de Propiedad Industrial","Servicio de registro de propiedad industrial e información tecnológica","Atender los servicios de información tecnológica con las herramientas necesarias para su trámite.",null,"Promover la competitividad del sector y el desarrollo de territorios sostenibles","SERVICIOS DE APOYO PARA LA GESTIÓN DE PROCESOS DE PARTICIPACIÓN, COLABORACIÓN, Y TRANSPARENCIA DEL SECTOR MINERO ENERGÉTICO","Desarrollar estrategias para el fortalecimiento de la cadena de valor del sector minero"]
[null,"Fortalecimiento de la atención y promoción de trámites y servicios en el marco del sistema de propiedad industrial a nivel  Nacional","C-3503-0200-14","Fortalecer la atención y promoción de trámites y servicios en el marco del sistema de propiedad industrial en Colombia ","Mejorar la atención de trámites y servicios en materia de Propiedad Industrial","Servicio de registro de propiedad industrial e información tecnológica","Atender las solicitudes presentadas en materia de signos distintivos y nuevas creaciones.",null,null,null,"Incorporar estrategias y herramientas que armonizan al sector con estándares nacionales e internacionales"]
[null,"Fortalecimiento de la atención y promoción de trámites y servicios en el marco del sistema de propiedad industrial a nivel  Nacional","C-3503-0200-14","Fortalecer la atención y promoción de trámites y servicios en el marco del sistema de propiedad industrial en Colombia ","Aumentar la cobertura en la difusión del sistema de Propiedad industrial y sus beneficios","Servicio para promover la propiedad industrial ","Mantener e implementar los Centros de apoyo a la Tecnologia e Innovación en el país",null,"Incrementar el desarrollo de los habilitadores transversales de la política de gobierno digital","DOCUMENTO PARA LA PLANEACIÓN ESTRATÉGICA EN TI","Definir y estructurar las acciones tendientes a la apropiación e implementación de la politica de Gobierno Digital."]
[null,"Fortalecimiento de la atención y promoción de trámites y servicios en el marco del sistema de propiedad industrial a nivel  Nacional","C-3503-0200-14","Fortalecer la atención y promoción de trámites y servicios en el marco del sistema de propiedad industrial en Colombia ","Aumentar la cobertura en la difusión del sistema de Propiedad industrial y sus beneficios","Servicio para promover la propiedad industrial ","Realizar orientaciones a los usuarios en temas de propiedad industrial.",null,null,null,"Mantener y fortalecer el modelo Operativo de TI"]
[null,"Fortalecimiento de la atención y promoción de trámites y servicios en el marco del sistema de propiedad industrial a nivel  Nacional","C-3503-0200-14","Fortalecer la atención y promoción de trámites y servicios en el marco del sistema de propiedad industrial en Colombia ","Aumentar la cobertura en la difusión del sistema de Propiedad industrial y sus beneficios","Servicio para promover la propiedad industrial ","Participar en programas que promuevan la presentación de solicitudes de patente por parte de residentes a nivel nacional e internacional.",null,"Aumentar la capacidad institucional a nivel de arquitectura tecnológica y de sistemas de informaciòn","SERVICIOS TECNOLÓGICOS","Robustecer el nivel de madurez de la estrategia de infraestructura y soluciones en la nube"]
[null,"Fortalecimiento de la atención y promoción de trámites y servicios en el marco del sistema de propiedad industrial a nivel  Nacional","C-3503-0200-14","Fortalecer la atención y promoción de trámites y servicios en el marco del sistema de propiedad industrial en Colombia ","Aumentar la cobertura en la difusión del sistema de Propiedad industrial y sus beneficios","Servicio de divulgación de temas misionales de la SIC","Realizar y/o participar en foros o eventos de carácter nacional o internacional en materia de Propiedad Industrial",null,null,null,"Administar de manera eficiente el Software a nivel Institucional, de cara a la mejora de los productos y servicios prestados a la ciudadanía."]
[null,"Fortalecimiento de la atención y promoción de trámites y servicios en el marco del sistema de propiedad industrial a nivel  Nacional","C-3503-0200-14","Fortalecer la atención y promoción de trámites y servicios en el marco del sistema de propiedad industrial en Colombia ","Aumentar la cobertura en la difusión del sistema de Propiedad industrial y sus beneficios","Servicio de divulgación de temas misionales de la SIC","Generar y divulgar publicaciones en materia de propiedad industrial en medios impresos o digitales",null,"Mejorar la implementación del modelo de Gestión de Información Institucional","SERVICIOS DE INFORMACIÓN IMPLEMENTADOS","Realizar la adopción del modelo de gestión de Información Institucional"]
[null,"Fortalecimiento de la atención y promoción de trámites y servicios en el marco del sistema de propiedad industrial a nivel  Nacional","C-3503-0200-14","Fortalecer la atención y promoción de trámites y servicios en el marco del sistema de propiedad industrial en Colombia ","Aumentar la cobertura en la difusión del sistema de Propiedad industrial y sus beneficios","Servicios de educación informal en temas de la Superintendencia de Industria y Comercio","Realizar talleres de transferencia de tecnología, para inventores nacionales. ",null,null,null,"Identificar y apropiar soluciones de TI."]
[null,"Fortalecimiento de la atención y promoción de trámites y servicios en el marco del sistema de propiedad industrial a nivel  Nacional","C-3503-0200-14","Fortalecer la atención y promoción de trámites y servicios en el marco del sistema de propiedad industrial en Colombia ","Aumentar la cobertura en la difusión del sistema de Propiedad industrial y sus beneficios","Servicios de educación informal en temas de la Superintendencia de Industria y Comercio","Realizar talleres de formación dentro del programa CATI.",null,"Mejorar el direccionamiento estratégico y la gestión de los procesos frente a la ciudadania","DOCUMENTOS DE PLANEACIÓN","Realizar la formulación de políticas, estrategias, proyectos y planes encaminadas a lograr los objetivos institucionales en desarrollo de su misión."]
[null,"Mejoramiento del control y vigilancia a las cámaras de comercio y comerciantes a nivel  Nacional","C-3503-0200-10","Mejorar el control y vigilancia a las cámaras de comercio y comerciantes","Ampliar la cobertura de control y vigilancia a las cámaras de comercio y comerciantes del país","Servicios de inspección,vigilancia y control a las cámaras de comercio y comerciantes","Atender los trámites relacionados con la Vigilancia a las Cámaras de Comercio y comerciantes",null,null,null,"Realizar la programación y seguimiento a la ejecución de las políticas, estrategias, los planes y proyectos institucionales"]
[null,"Mejoramiento del control y vigilancia a las cámaras de comercio y comerciantes a nivel  Nacional","C-3503-0200-10","Mejorar el control y vigilancia a las cámaras de comercio y comerciantes","Ampliar la cobertura de control y vigilancia a las cámaras de comercio y comerciantes del país","Servicios de inspección,vigilancia y control a las cámaras de comercio y comerciantes","Capacitar al recurso humano en temas relacionados con el control y la vigilancia a las Cámaras de Comercio y a los Comerciantes",null,null,"SERVICIO DE IMPLEMENTACIÓN SISTEMAS DE GESTIÓN","Planificar y coordinar la apropiación e implementación del MIPG"]
[null,"Mejoramiento del control y vigilancia a las cámaras de comercio y comerciantes a nivel  Nacional","C-3503-0200-10","Mejorar el control y vigilancia a las cámaras de comercio y comerciantes","Ampliar la cobertura de control y vigilancia a las cámaras de comercio y comerciantes del país","Servicios de inspección,vigilancia y control a las cámaras de comercio y comerciantes","Participar en las diferentes actividades programadas por organismos nacionales e internacionales ",null,null,null,"Realizar acciones que faciliten la articulación de los instrumentos de planeación, de cara a la mejora de los productos y servicios prestados a la ciudadanía."]
[null,"Mejoramiento del control y vigilancia a las cámaras de comercio y comerciantes a nivel  Nacional","C-3503-0200-10","Mejorar el control y vigilancia a las cámaras de comercio y comerciantes","Ampliar la cobertura de control y vigilancia a las cámaras de comercio y comerciantes del país","Servicios de inspección,vigilancia y control a las cámaras de comercio y comerciantes","Realizar mantenimiento y actualización del Sistema de Administración Integral de Riesgos - SAIR",null,"Fortalecer la gestión de conocimiento para la planeación minero energética","DOCUMENTOS METODOLÓGICOS","Identificar y caracterizar las estrategias y/o mecanismos para la generación, organización y apropiación del conocimiento."]
[null,"Mejoramiento del control y vigilancia a las cámaras de comercio y comerciantes a nivel  Nacional","C-3503-0200-10","Mejorar el control y vigilancia a las cámaras de comercio y comerciantes","Promover las funciones de las cámaras de comercio y las obligaciones de los comerciantes frente a las normas que los rigen","Servicio de divulgación de temas misionales de la SIC","Realizar  foros, eventos y campañas de divulgación",null,null,null,"Realizar la implementación de un esquema organizativo y de gobernabilidad para la gestión del conocimiento"]
[null,"Mejoramiento del control y vigilancia a las cámaras de comercio y comerciantes a nivel  Nacional","C-3503-0200-10","Mejorar el control y vigilancia a las cámaras de comercio y comerciantes","Promover las funciones de las cámaras de comercio y las obligaciones de los comerciantes frente a las normas que los rigen","Servicio de divulgación de temas misionales de la SIC","Generar y divulgar contenidos en cartillas o folletos en medio digital e impresos",null,null,"SERVICIO DE EDUCACIÓN INFORMAL PARA LA GESTIÓN ADMINISTRATIVA","Diseñar y ejecutar el plan de fortalecimiento de competencias técnicas especializadas para la planeación minero energética"]
[null,"Mejoramiento del control y vigilancia a las cámaras de comercio y comerciantes a nivel  Nacional","C-3503-0200-10","Mejorar el control y vigilancia a las cámaras de comercio y comerciantes","Aumentar el conocimiento en las normas por parte de las Cámaras de Comercio y comerciantes","Servicios de educación informal en temas de la Superintendencia de Industria y Comercio","Capacitar a las Cámaras de Comercio en temas relacionados con la normatividad aplicable",null,null,null,"Configurar entornos de aprendizaje, intercambio y difusión de conocimiento asociados a prácticas clave de la entidad y su información minero energética, entre los servidores públicos y los grupos de valor"]
[null,"Mejoramiento del control y vigilancia a las cámaras de comercio y comerciantes a nivel  Nacional","C-3503-0200-10","Mejorar el control y vigilancia a las cámaras de comercio y comerciantes","Aumentar el conocimiento en las normas por parte de las Cámaras de Comercio y comerciantes","Servicios de educación informal en temas de la Superintendencia de Industria y Comercio","Capacitar los Comerciantes en temas relacionados con la normatividad aplicable",null,"Fortalecer el conocimiento de la población y el territorio en cuanto a la dinámica de la planeación minero energética","SERVICIOS DE APOYO PARA LA GESTIÓN DE PROCESOS DE PARTICIPACIÓN, COLABORACIÓN, Y TRANSPARENCIA DEL SECTOR MINERO ENERGÉTICO","Elaborar la estrategia de comunicaciones con enfoque territorial y sectorial."]
[null,"Mejoramiento de los Sistemas de Información y servicios tecnológicos de la Superintendencia de Industria y Comercio en el territorio  Nacional","C-3599-0200-6","Mejorar los Sistemas de Información y servicios tecnológicos de la Superintendencia de Industria y Comercio, en el territorio nacional","Garantizar Sistemas de información y servicios tecnológicos modernos y efectivos ","Servicios de información implementados","Mantener y actualizar el Modelo de Seguridad y Privacidad de la Información",null,null,null,"Ejecutar la estrategia de comunicación con las entidades territoriales, entidades del sector y ciudadanía en general"]
[null,"Mejoramiento de los Sistemas de Información y servicios tecnológicos de la Superintendencia de Industria y Comercio en el territorio  Nacional","C-3599-0200-6","Mejorar los Sistemas de Información y servicios tecnológicos de la Superintendencia de Industria y Comercio, en el territorio nacional","Garantizar Sistemas de información y servicios tecnológicos modernos y efectivos ","Servicios de información implementados","Adquirir, instalar y mantener equipos, componentes y servicios  tecnológicos de procesamiento, almacenamiento y comunicaciones",null,"Incluir el uso de las particularidades propias de cada territorio en la planeación minero energética","DOCUMENTOS METODOLÓGICOS","Realizar la definición de los territorios de interés para los planes minero energéticos"]
[null,"Mejoramiento de los Sistemas de Información y servicios tecnológicos de la Superintendencia de Industria y Comercio en el territorio  Nacional","C-3599-0200-6","Mejorar los Sistemas de Información y servicios tecnológicos de la Superintendencia de Industria y Comercio, en el territorio nacional","Garantizar Sistemas de información y servicios tecnológicos modernos y efectivos ","Servicios de información implementados","Instalar y renovar software de la plataforma tecnológica existente y nueva",null,null,null,"Documentar las realidades y dinámicas de los territorios."]
[null,"Mejoramiento de los Sistemas de Información y servicios tecnológicos de la Superintendencia de Industria y Comercio en el territorio  Nacional","C-3599-0200-6","Mejorar los Sistemas de Información y servicios tecnológicos de la Superintendencia de Industria y Comercio, en el territorio nacional","Garantizar Sistemas de información y servicios tecnológicos modernos y efectivos ","Servicios de información implementados","Realizar mejoramientos, soporte y mantenimiento  de soluciones informáticas actuales y desarrollos de nuevas soluciones",null,null,null,"Evaluar la inclusión de las realidades y dinámicas de los territorios en la planeación minero energética"]
[null,"Mejoramiento de los Sistemas de Información y servicios tecnológicos de la Superintendencia de Industria y Comercio en el territorio  Nacional","C-3599-0200-6","Mejorar los Sistemas de Información y servicios tecnológicos de la Superintendencia de Industria y Comercio, en el territorio nacional","Garantizar Sistemas de información y servicios tecnológicos modernos y efectivos ","Servicios de información implementados","Implementar la mesa de servicios informaticos ",null,"Generar fundamentación técnica para la implementación de acciones contenidas en el PIGCC sectorial, adoptado mediante Resolución 40807 de 2018 (en cumplimiento de la Ley 1931 de 2018)","DOCUMENTOS DE LINEAMIENTOS TÉCNICOS","Elaborar instrumentos de fundamentación técnica para dar soporte a las acciones de mitigación, adaptación y gobernanza climática contenidas en el PIGCC sectorial y para el análisis de eficiencia energética en las operaciones sectoriales."]
[null,"Mejoramiento de los Sistemas de Información y servicios tecnológicos de la Superintendencia de Industria y Comercio en el territorio  Nacional","C-3599-0200-6","Mejorar los Sistemas de Información y servicios tecnológicos de la Superintendencia de Industria y Comercio, en el territorio nacional","Garantizar Sistemas de información y servicios tecnológicos modernos y efectivos ","Servicios de información implementados","Capacitar al recurso humano en  tecnologías de la información y las comunicaciones y metodologías de desarrollo",null,null,null,"Fomentar la apropiación sectorial de instrumentos tecnicos para la ejecución de las acciones de mitigación, adaptación y gobernanza climática contenidas en el PIGCC sectorial"]
[null,"Mejoramiento de la infraestructura física de la sede de la Superintendencia de Industria y Comercio en  Bogotá","C-3599-0200-7","Mejorar la infraestructura física de la sede de la Superintendencia de Industria y Comercio","Contar con bienes muebles e inmuebles que cumplan con las normas sobre salud, seguridad y medio ambiente","Sedes adecuadas","Realizar adecuaciones físicas a la sede de la  Superintendencia de Industria y Comercio",null,"Articular la planeación sectorial de mediano y largo plazo con los ODS; los mejores estándares y prácticas de la OCDE; el Plan de acción sectorial en derechos humanos; la política de crecimiento verde y la de mejoramiento de la calidad del aire y con el CONPES de Economía Circular","DOCUMENTOS NORMATIVOS","Desarrollar Instrumentos sobre mejores prácticas sectoriales en temas de economia circular, de aprovechamiento y uso sostenible de recursos naturales y de debida diligencia de la industria."]
[null,"Mejoramiento de la infraestructura física de la sede de la Superintendencia de Industria y Comercio en  Bogotá","C-3599-0200-7","Mejorar la infraestructura física de la sede de la Superintendencia de Industria y Comercio","Contar con bienes muebles e inmuebles que cumplan con las normas sobre salud, seguridad y medio ambiente","Sedes adecuadas","Dotar las instalaciones físicas de la  Superintendencia de Industria y Comercio",null,null,null,"Promover las potencialidad del Biogas como sustituto de la leña, mediante la divulgación de los lineamientos definidos previamenre por UPME para su aprovechamiento y mediante el acompañamiento tecnico a la aplicación de los mismos."]
[null,"Mejoramiento de la infraestructura física de la sede de la Superintendencia de Industria y Comercio en  Bogotá","C-3599-0200-7","Mejorar la infraestructura física de la sede de la Superintendencia de Industria y Comercio","Contar con bienes muebles e inmuebles que cumplan con las normas sobre salud, seguridad y medio ambiente","Sedes adecuadas","Adquirir equipos, medios de seguridad y aparatos eléctricos para la  sede de la  Superintendencia de Industria y Comercio",null,null,"DOCUMENTOS DE INVESTIGACIÓN","Determinar e implementar las acciones derivadas de la alineación estratégica con los ODS, en la planeación del sector con mejores estándares y prácticas de la OCDE, con la política de crecimiento verde y con la de mejoramiento de la calidad del aire y con el CONPES de Economía Circular."]
[null,"Mejoramiento de la infraestructura física de la sede de la Superintendencia de Industria y Comercio en  Bogotá","C-3599-0200-7","Mejorar la infraestructura física de la sede de la Superintendencia de Industria y Comercio","Contar con bienes muebles e inmuebles que cumplan con las normas sobre salud, seguridad y medio ambiente","Sedes mantenidas","Realizar el mantenimiento preventivo a la sede de la  Superintendencia de Industria y Comercio",null,"\tFacilitar la articulación de la planeación del sector energético y minero con el ordenamiento y desarrollo territorial (local, regional y nacional)","SERVICIO DE DIVULGACIÓN DE LOS RESULTADOS OBTENIDOS EN ASUNTOS AMBIENTALES EN EL SECTOR MINERO ENERGÉTICO","Implementar una estrategia de articulación intra e intersectorial para la planeacion del desarrollo minero energético"]
[null,"Mejoramiento de la infraestructura física de la sede de la Superintendencia de Industria y Comercio en  Bogotá","C-3599-0200-7","Mejorar la infraestructura física de la sede de la Superintendencia de Industria y Comercio","Contar con bienes muebles e inmuebles que cumplan con las normas sobre salud, seguridad y medio ambiente","Sedes mantenidas","Realizar el mantenimiento correctivo a la sede de la  Superintendencia de Industria y Comercio",null,null,null,"Incorporar las consideraciones sociales, étnicas, género y de derechos humanos en la planeación sectorial"]
[null,"Fortalecimiento del régimen de protección de la libre competencia económica en los mercados a nivel  Nacional","C-3503-0200-13","Fortalecer la implementación del régimen de protección de la libre competencia económica en los mercados","Mejorar los niveles de atención y oportunidad de los trámites y servicios en materia de protección de la competencia","Servicio para la protección de la competencia","Atender los casos y solicitudes presentadas en materia de protección de la libre competencia económica de los mercados. ",null,null,null,"Generar mecanismo de retroalimentación y divulgación permanente sobre la planeación minero energética en departamentos y municipios prioritarios para el sector."]
[null,"Fortalecimiento del régimen de protección de la libre competencia económica en los mercados a nivel  Nacional","C-3503-0200-13","Fortalecer la implementación del régimen de protección de la libre competencia económica en los mercados","Mejorar los niveles de atención y oportunidad de los trámites y servicios en materia de protección de la competencia","Servicio para la protección de la competencia","Dotar el laboratorio de informática forense para su adecuado funcionamiento",null,"Involucrar la transformación digital para la gestión y gobernanza de la información ambiental y social sectorial","SERVICIO DE INFORMACIÓN IMPLEMENTADO","Desarrollar el modelo de datos del sector minero energético hasta su puesta en funcionamiento."]
[null,"Fortalecimiento del régimen de protección de la libre competencia económica en los mercados a nivel  Nacional","C-3503-0200-13","Fortalecer la implementación del régimen de protección de la libre competencia económica en los mercados","Mejorar los niveles de atención y oportunidad de los trámites y servicios en materia de protección de la competencia","Servicio para la protección de la competencia","Actualizar y mantener el laboratorio de informática forense para su adecuado funcionamiento",null,null,null,"Diseñar la ruta metodologica y la gobernanza de la información ambiental y social sectorial"]
[null,"Fortalecimiento del régimen de protección de la libre competencia económica en los mercados a nivel  Nacional","C-3503-0200-13","Fortalecer la implementación del régimen de protección de la libre competencia económica en los mercados","Mejorar los niveles de atención y oportunidad de los trámites y servicios en materia de protección de la competencia","Servicio para la protección de la competencia","Participar en foros y eventos de caracter nacional e internacional "]
[null,"Fortalecimiento del régimen de protección de la libre competencia económica en los mercados a nivel  Nacional","C-3503-0200-13","Fortalecer la implementación del régimen de protección de la libre competencia económica en los mercados","Mejorar los niveles de atención y oportunidad de los trámites y servicios en materia de protección de la competencia","Servicio para la protección de la competencia","Capacitar al recurso humano en temas de libre competencia económica de los mercados. "]
[null,"Fortalecimiento del régimen de protección de la libre competencia económica en los mercados a nivel  Nacional","C-3503-0200-13","Fortalecer la implementación del régimen de protección de la libre competencia económica en los mercados","Promocionar los temas de protección a la competencia","Servicio de divulgación de temas misionales de la SIC","Realizar foros, eventos y campañas de divulgación"]
[null,"Fortalecimiento del régimen de protección de la libre competencia económica en los mercados a nivel  Nacional","C-3503-0200-13","Fortalecer la implementación del régimen de protección de la libre competencia económica en los mercados","Promocionar los temas de protección a la competencia","Servicio de divulgación de temas misionales de la SIC","Realizar campañas en medios de comunicación que promuevan la protección de la competencia"]
[null,"Fortalecimiento del régimen de protección de la libre competencia económica en los mercados a nivel  Nacional","C-3503-0200-13","Fortalecer la implementación del régimen de protección de la libre competencia económica en los mercados","Promocionar los temas de protección a la competencia","Servicio de divulgación de temas misionales de la SIC","Compilar los actos administrativos relacionados con funciones de la SIC en materia de Protección de la Competencia"]
[null,"Incremento de la cobertura de los servicios de la Red Nacional de Protección al Consumidor en el territorio  Nacional","C-3503-0200-9","Incrementar la cobertura de los servicios de la Red Nacional de Protección al Consumidor en el territorio nacional","Descentralizar los servicios de la Red Nacional de Protección al Consumidor","Servicios de apoyo para la consolidación de la red nacional de protección al consumidor","Implementar y mantener en operación las casas del consumidor a nivel nacional"]
[null,"Incremento de la cobertura de los servicios de la Red Nacional de Protección al Consumidor en el territorio  Nacional","C-3503-0200-9","Incrementar la cobertura de los servicios de la Red Nacional de Protección al Consumidor en el territorio nacional","Descentralizar los servicios de la Red Nacional de Protección al Consumidor","Servicios de apoyo para la consolidación de la red nacional de protección al consumidor","Implementar y mantener en operación las unidades móviles"]
[null,"Incremento de la cobertura de los servicios de la Red Nacional de Protección al Consumidor en el territorio  Nacional","C-3503-0200-9","Incrementar la cobertura de los servicios de la Red Nacional de Protección al Consumidor en el territorio nacional","Descentralizar los servicios de la Red Nacional de Protección al Consumidor","Servicios de apoyo para la consolidación de la red nacional de protección al consumidor","Ejecutar estrategias de promoción, prevención y articulación para la protección de los consumidores dirigidas a tenderos y comerciantes"]
[null,"Incremento de la cobertura de los servicios de la Red Nacional de Protección al Consumidor en el territorio  Nacional","C-3503-0200-9","Incrementar la cobertura de los servicios de la Red Nacional de Protección al Consumidor en el territorio nacional","Descentralizar los servicios de la Red Nacional de Protección al Consumidor","Servicios de apoyo para la consolidación de la red nacional de protección al consumidor","Ejecutar estrategias de acompañamiento y brindar apoyo de implementación, operación y sostenimiento a los proyectos elaborados por miembros de la Red Nacional de Protección al Consumidor a nivel regional."]
[null,"Incremento de la cobertura de los servicios de la Red Nacional de Protección al Consumidor en el territorio  Nacional","C-3503-0200-9","Incrementar la cobertura de los servicios de la Red Nacional de Protección al Consumidor en el territorio nacional","Descentralizar los servicios de la Red Nacional de Protección al Consumidor","Servicios de apoyo para la consolidación de la red nacional de protección al consumidor","Mantener y actualizar las soluciones informáticas para apoyar las actividades de la Red Nacional de Protección al Consumidor."]
[null,"Incremento de la cobertura de los servicios de la Red Nacional de Protección al Consumidor en el territorio  Nacional","C-3503-0200-9","Incrementar la cobertura de los servicios de la Red Nacional de Protección al Consumidor en el territorio nacional","Promover la cultura de consumo en temas relacionados con el Estatuto de Protección al Consumidor","Servicio de divulgación de temas misionales de la SIC","Generar y divulgar contenidos para dar a conocer el Estatuto de Protección al Consumidor"]
[null,"Incremento de la cobertura de los servicios de la Red Nacional de Protección al Consumidor en el territorio  Nacional","C-3503-0200-9","Incrementar la cobertura de los servicios de la Red Nacional de Protección al Consumidor en el territorio nacional","Promover la cultura de consumo en temas relacionados con el Estatuto de Protección al Consumidor","Servicio de divulgación de temas misionales de la SIC","Generar y divulgar material sobre las normas de protección al consumidor"]
[null,"Incremento de la cobertura de los servicios de la Red Nacional de Protección al Consumidor en el territorio  Nacional","C-3503-0200-9","Incrementar la cobertura de los servicios de la Red Nacional de Protección al Consumidor en el territorio nacional","Promover la cultura de consumo en temas relacionados con el Estatuto de Protección al Consumidor","Servicios de educación informal en temas de la Superintendencia de Industria y Comercio","Capacitar de forma activa y gradual a los miembros de la Red Nacional de Protección al Consumidor en todo el territorio nacional según la Ley 1480 de 2011"]
[null,"Incremento de la cobertura de los servicios de la Red Nacional de Protección al Consumidor en el territorio  Nacional","C-3503-0200-9","Incrementar la cobertura de los servicios de la Red Nacional de Protección al Consumidor en el territorio nacional","Promover la cultura de consumo en temas relacionados con el Estatuto de Protección al Consumidor","Servicios de educación informal en temas de la Superintendencia de Industria y Comercio","Realizar capacitaciones dirigidas a instituciones educativas, empresarios y población en el territorio nacional"]
[null,"Fortalecimiento del Sistema de Atención al Ciudadano de la Superintendencia de Industria y Comercio a nivel  Nacional","C-3599-0200-5","Fortalecer el sistema de atención al ciudadano de la entidad a nivel nacional","Mejorar el conocimiento y la comunicación con los ciudadanos, en relación con las funciones, trámites y servicios brindados por la entidad","Servicio de atención al ciudadano","Diseñar la estrategia de los  servicios de atención "]
[null,"Fortalecimiento del Sistema de Atención al Ciudadano de la Superintendencia de Industria y Comercio a nivel  Nacional","C-3599-0200-5","Fortalecer el sistema de atención al ciudadano de la entidad a nivel nacional","Mejorar el conocimiento y la comunicación con los ciudadanos, en relación con las funciones, trámites y servicios brindados por la entidad","Servicio de atención al ciudadano","Implementar y mantener las herramientas y plataformas del  servicio de atención"]
[null,"Fortalecimiento del Sistema de Atención al Ciudadano de la Superintendencia de Industria y Comercio a nivel  Nacional","C-3599-0200-5","Fortalecer el sistema de atención al ciudadano de la entidad a nivel nacional","Mejorar el conocimiento y la comunicación con los ciudadanos, en relación con las funciones, trámites y servicios brindados por la entidad","Servicio de atención al ciudadano","Diseñar e implementar cursos presenciales de formación."]
[null,"Fortalecimiento del Sistema de Atención al Ciudadano de la Superintendencia de Industria y Comercio a nivel  Nacional","C-3599-0200-5","Fortalecer el sistema de atención al ciudadano de la entidad a nivel nacional","Mejorar el conocimiento y la comunicación con los ciudadanos, en relación con las funciones, trámites y servicios brindados por la entidad","Servicio de atención al ciudadano","Diseñar e implementar cursos virtuales de formación."]
[null,"Fortalecimiento del Sistema de Atención al Ciudadano de la Superintendencia de Industria y Comercio a nivel  Nacional","C-3599-0200-5","Fortalecer el sistema de atención al ciudadano de la entidad a nivel nacional","Mejorar el conocimiento y la comunicación con los ciudadanos, en relación con las funciones, trámites y servicios brindados por la entidad","Servicio de atención al ciudadano","Diseñar e implementar la estrategia y/o campañas del servicio de divulgación"]
[null,"Fortalecimiento del Sistema de Atención al Ciudadano de la Superintendencia de Industria y Comercio a nivel  Nacional","C-3599-0200-5","Fortalecer el sistema de atención al ciudadano de la entidad a nivel nacional","Optimizar la Gestión Documental de la Entidad","Servicio de Gestión Documental","Tramitar los documentos de entrada y salida de la entidad"]
[null,"Fortalecimiento del Sistema de Atención al Ciudadano de la Superintendencia de Industria y Comercio a nivel  Nacional","C-3599-0200-5","Fortalecer el sistema de atención al ciudadano de la entidad a nivel nacional","Optimizar la Gestión Documental de la Entidad","Servicio de Gestión Documental","Digitalizar y Complementar expedientes de series documentales"]
[null,"Fortalecimiento del Sistema de Atención al Ciudadano de la Superintendencia de Industria y Comercio a nivel  Nacional","C-3599-0200-5","Fortalecer el sistema de atención al ciudadano de la entidad a nivel nacional","Optimizar la Gestión Documental de la Entidad","Servicio de Gestión Documental","Realizar inventario de series documentales "]
[null,"Fortalecimiento del Sistema de Atención al Ciudadano de la Superintendencia de Industria y Comercio a nivel  Nacional","C-3599-0200-5","Fortalecer el sistema de atención al ciudadano de la entidad a nivel nacional","Optimizar la Gestión Documental de la Entidad","Servicio de Gestión Documental","Implementar y mantener el Sistema de Documentos Electrónicos de la SIC."]
[null,"Fortalecimiento del Sistema de Atención al Ciudadano de la Superintendencia de Industria y Comercio a nivel  Nacional","C-3599-0200-5","Fortalecer el sistema de atención al ciudadano de la entidad a nivel nacional","Optimizar la Gestión Documental de la Entidad","Servicio de Gestión Documental","Implementar y mantener los programas de gestión documental "]
[null,"Fortalecimiento del Sistema de Atención al Ciudadano de la Superintendencia de Industria y Comercio a nivel  Nacional","C-3599-0200-5","Fortalecer el sistema de atención al ciudadano de la entidad a nivel nacional","Optimizar la Gestión Documental de la Entidad","Servicio de Gestión Documental","Capacitar al recurso humano en temas de gestión documental "]
[null,"Mejoramiento en la calidad de la gestión estratégica de la Superintendencia de Industria y Comercio a nivel Nacional","C-3599-0200-8","Mejorar la calidad de la gestión estratégica de la Superintendencia de Industria y Comercio","Fortalecer la implementación y  la articulación de los sistemas de  gestión","Servicio de Implementación Sistema de Gestión","Mejorar el  Sistema Integral de Gestión Institucional en el marco del Modelo Integrado de Planeación y Gestión"]
[null,"Mejoramiento en la calidad de la gestión estratégica de la Superintendencia de Industria y Comercio a nivel Nacional","C-3599-0200-8","Mejorar la calidad de la gestión estratégica de la Superintendencia de Industria y Comercio","Fortalecer la implementación y  la articulación de los sistemas de  gestión","Servicio de Implementación Sistema de Gestión","Diseñar e implementar el programa de Gestión de la Información y comunicación"]
[null,"Mejoramiento en la calidad de la gestión estratégica de la Superintendencia de Industria y Comercio a nivel Nacional","C-3599-0200-8","Mejorar la calidad de la gestión estratégica de la Superintendencia de Industria y Comercio","Fortalecer la implementación y  la articulación de los sistemas de  gestión","Servicio de Implementación Sistema de Gestión","Diseñar e implementar la estrategia de gestión de conocimiento e innovación "]
[null,"Mejoramiento en la calidad de la gestión estratégica de la Superintendencia de Industria y Comercio a nivel Nacional","C-3599-0200-8","Mejorar la calidad de la gestión estratégica de la Superintendencia de Industria y Comercio","Fortalecer la implementación y  la articulación de los sistemas de  gestión","Servicio de Implementación Sistema de Gestión","Diseñar e implementar las rutas de creación de valor de la política de gestión estratégica del talento humano"]
[null,"Mejoramiento en la calidad de la gestión estratégica de la Superintendencia de Industria y Comercio a nivel Nacional","C-3599-0200-8","Mejorar la calidad de la gestión estratégica de la Superintendencia de Industria y Comercio","Fortalecer la implementación y  la articulación de los sistemas de  gestión","Servicio de Implementación Sistema de Gestión","Rediseñar e implementar la política de direccionamiento estratégico y planeación institucional"]
[null,"Mejoramiento en la calidad de la gestión estratégica de la Superintendencia de Industria y Comercio a nivel Nacional","C-3599-0200-8","Mejorar la calidad de la gestión estratégica de la Superintendencia de Industria y Comercio","Fortalecer la implementación y  la articulación de los sistemas de  gestión","Servicio de Implementación Sistema de Gestión","Diseñar e implementar el modelo de seguimiento y evaluación del desempeño institucional"]
[null,"Mejoramiento en la calidad de la gestión estratégica de la Superintendencia de Industria y Comercio a nivel Nacional","C-3599-0200-8","Mejorar la calidad de la gestión estratégica de la Superintendencia de Industria y Comercio","Fortalecer la implementación y  la articulación de los sistemas de  gestión","Servicio de Implementación Sistema de Gestión","Rediseñar e implementar la política institucional de gestión del riesgo "]
[null,"Mejoramiento en la calidad de la gestión estratégica de la Superintendencia de Industria y Comercio a nivel Nacional","C-3599-0200-8","Mejorar la calidad de la gestión estratégica de la Superintendencia de Industria y Comercio","Fortalecer la implementación y  la articulación de los sistemas de  gestión","Servicio de Implementación Sistema de Gestión","Rediseñar e implementar la estrategia de transparencia y participación ciudadana"]
[null,"Mejoramiento en la calidad de la gestión estratégica de la Superintendencia de Industria y Comercio a nivel Nacional","C-3599-0200-8","Mejorar la calidad de la gestión estratégica de la Superintendencia de Industria y Comercio","Fortalecer la implementación y  la articulación de los sistemas de  gestión","Servicio de Implementación Sistema de Gestión","Mantener y mejorar la Política de Defensa Jurídica institucional"]
[null,"Mejoramiento en la calidad de la gestión estratégica de la Superintendencia de Industria y Comercio a nivel Nacional","C-3599-0200-8","Mejorar la calidad de la gestión estratégica de la Superintendencia de Industria y Comercio","Fortalecer la implementación y  la articulación de los sistemas de  gestión","Servicio de Educación informal para la gestión Administrativa","Capacitar a gerentes publicos en temas de  direccionamiento estratégico"]
[null,"Mejoramiento en la calidad de la gestión estratégica de la Superintendencia de Industria y Comercio a nivel Nacional","C-3599-0200-8","Mejorar la calidad de la gestión estratégica de la Superintendencia de Industria y Comercio","Fortalecer la implementación y  la articulación de los sistemas de  gestión","Servicio de Educación informal para la gestión Administrativa","Capacitar a los servidores publicos en competencias laborales y servicio al ciudadano"]
[]
[]
[]
[]
[]
[null,"PROY.INV","OBJ.ESP","PRODUCTO","ACTIVIDAD","PRY","OBJ. ESP.","PRODUCTO","ACTIVIDAD",null,"FORMULA PARA INDIRECTO PRY.INV",null,"CCP"]
[null,"C-2102-1900-3","1 - Mejorar las estrategias de planeación de la energización rural sostenible","1 - DOCUMENTOS DE PLANEACIÓN","Realizar la captura y análisis de la información para la relización de los planes de energización rural sostenible (PERS)","PRY_1","OBJ_1_1","PRO_1_1_1","ACT_1_1_1_1",null,{"$f":"IF(FORMATO!D5=\"Área de Funcionamiento\",\"NA\",VLOOKUP(FORMATO!C10,LISTAS!B164:G185,5,0))","v":{"$error":"#N/A"}},"C-2102-1900-3-0-2102009-02","CCP_1"]
[null,null,"2 - Generar un conocimiento actualizado para la identificación de proyectos orientados al aumento de cobertura de energía y gas","1 - SERVICIO DE ASISTENCIA TÉCNICA EN LA ESTRUCTURACIÓN DE PROYECTOS ENERGÉTICOS","Realizar el seguimiento y la supervisión de los planes de energización rural sostenible (PERS)",null,"OBJ_1_2",null,"ACT_1_1_1_2",null,null,"C-2102-1900-3-0-2102030-02","CCP_2"]
[null,"C-2102-1900-4","1 - Complementar la Planeación de energía eléctrica a partir de lineamientos integrales, basados en estudiós y simulaciones con rigor técnico como insumo.","1 - DOCUMENTOS DE PLANEACIÓN (1)","Realizar el análisis para evaluación de proyectos de conceptos de viabilidad que permitan acceder a recursos de fondos especiales de energía.","PRY_2","OBJ_2_1","PRO_1_2_1","ACT_1_2_1_1",null,null,"C-2102-1900-4-0-2102009-02","CCP_3"]
[null,null,"2 - Desarrollar la información técnica e idónea que fortalezca los procesos de convocatorias y subastas.","1 - SERVICIO DE ASISTENCIA TÉCNICA EN LA ESTRUCTURACIÓN DE CONVOCATORIAS DE LOS SISTEMAS DE TRANSMISIÓN DE ENERGÍA","Realizar estudios y análisis que permitan identificar y priorizar estrategias para ampliar la cobertura del servicio de energía eléctrica a zonas que no poseen dicho servicio.",null,"OBJ_2_2",null,"ACT_1_2_1_2",null,null,"C-2102-1900-4-0-2102029-02","CCP_4"]
[null,"C-2103-1900-1","1 - Contar con informaciòn necesaria y suficiente para la adecuada planeación que proporcione los elementos para asegurar el abastecimiento y la confiabilidad del sector de hidrocarburos","1 - DOCUMENTOS DE LINEAMIENTOS TÉCNICOS","Fortalecer el plan indicativo de expansión de cobertura en la captura y análisis de la información técnica de soporte para la planeación","PRY_3","OBJ_3_1","PRO_2_1_1","ACT_2_1_1_1",null,null,"C-2103-1900-1-0-2103025-02","CCP_5"]
[null,null,"2 - Fortalecer las capacidades de modelación y prospectiva para la identificación de nuevas oportunidades en el mercado de los hidrocarburos","1 - DOCUMENTOS DE PLANEACIÓN (2)","Actualizar las herramientas sistemáticas para la planeación del sector energético",null,"OBJ_3_2",null,"ACT_2_1_1_2",null,null,"C-2103-1900-1-0-2103026-02","CCP_6"]
[null,"C-2106-1900-6","1 - Mejorar los niveles de información de diagnóstico del sistema energético","1 - SERVICIO DE INFORMACIÓN DEL SECTOR MINERO","Realizar estudios que complementen el Plan de expansión de generación transmisión","PRY_4","OBJ_4_1",null,"ACT_2_1_1_3",null,null,"C-2106-1900-6-0-2106008-02","CCP_7"]
[null,null,"2 - Incorporación las más recientes innovaciones tecnológicas en la planeación energética","1 - SERVICIO DE DIVULGACIÓN DEL SECTOR MINERO ENERGÉTICO","ADMINISTRACIÓN Y GERENCIA",null,"OBJ_4_2",null,"ACT_2_1_1_4",null,null,"C-2106-1900-6-0-2106019-02","CCP_8"]
[null,"C-2106-1900-9","1 - Fomentar la visión cientifica y de innovación del sector","1 - DOCUMENTOS DE INVESTIGACIÓN (3)","Realizar el análisis a los procesos de convocatorias y subastas para la estructuración de documentos para la selección del inversionista y de la interventoría, tanto en asuntos jurídicos como en aspectos técnicos.","PRY_5","OBJ_5_1","PRO_2_2_1","ACT_2_2_1_1",null,null,"C-2106-1900-9-0-2106002-02","CCP_9"]
[null,null,"2 - Integrar la información oficial del sector apropiadamente","1 - SERVICIO DE INFORMACIÓN OFICIAL DEL SECTOR MINERO","Efectuar el seguimiento de los proyectos en ejecución, así como el analisis de información técnica, ambiental y social de los proyectos en estructuración de Documentos de Selección de Inversionistas (DSI)",null,"OBJ_5_2",null,"ACT_2_2_1_2",null,null,"C-2106-1900-9-0-XXXXXX-02","CCP_10"]
[null,null,"3 - Adaptar la planeación a los retos de la sostenibilidad del sector","1 - DOCUMENTOS DE PLANEACIÓN (4)","Realizar estudios y acciones técnicas para el sub sector de Gas (GNL-GLP).",null,"OBJ_5_3","PRO_3_1_1","ACT_3_1_1_1",null,null,"C-2106-1900-9-0-2106003-02","CCP_11"]
[null,null,"4 - Ampliar el conocimiento técnico y económicodel sector","1 - DOCUMENTOS DE LINEAMIENTOS TÉCNICOS (1)","Realizar estudios técnicos con información especializada de combustibles liquidos",null,"OBJ_5_4",null,"ACT_3_1_1_2",null,null,"C-2106-1900-9-0-2106010-02","CCP_12"]
[null,null,"5 - Promover la competitividad del sector y el desarrollo de territorios sostenibles","1 - SERVICIOS DE APOYO PARA LA GESTIÓN DE PROCESOS DE PARTICIPACIÓN, COLABORACIÓN, Y TRANSPARENCIA DEL SECTOR MINERO ENERGÉTICO","Realizar estudios técnicos con información especializada de petroleo",null,"OBJ_5_5",null,"ACT_3_1_1_3",null,null,"C-2106-1900-9-0-2106022-02","CCP_13"]
[null,"Rubro Provisional1","1 - Incrementar el desarrollo de los habilitadores transversales de la política de gobierno digital","1 - DOCUMENTO PARA LA PLANEACIÓN ESTRATÉGICA EN TI","Elaborar insumos técnicos, legales y económicos que sirvan de soporte para orientar la implementación de planes del sub sector de hidrocarburos","PRY_6","OBJ_6_1",null,"ACT_3_1_1_4",null,null,"CCP Provisional1.1","CCP_14"]
[null,null,"2 - Aumentar la capacidad institucional a nivel de arquitectura tecnológica y de sistemas de informaciòn","1 - SERVICIOS TECNOLÓGICOS","Adquirir Información especializada del sub sector energetico",null,"OBJ_6_2","PRO_3_2_1","ACT_3_2_1_1",null,null,"CCP Provisional1.2","CCP_15"]
[null,null,"3 - Mejorar la implementación del modelo de Gestión de Información Institucional","1 - SERVICIOS DE INFORMACIÓN IMPLEMENTADOS","Actualizar herramientas para la modelación y proyección de escenarios de hidrocarburos",null,"OBJ_6_3",null,"ACT_3_2_1_2",null,null,"CCP Provisional1.3","CCP_16"]
[null,"Rubro Provisional2","1 - Mejorar el direccionamiento estratégico y la gestión de los procesos frente a la ciudadania","1 - DOCUMENTOS DE PLANEACIÓN (5)","Construir una base de datos de consulta pública acerca de la manera como los diferentes sectores consumen energía, para fortalecer la calidad de la información que se registra en los balances energéticos y la planeación a largo plazo","PRY_7","OBJ_7_1","PRO_4_1_1","ACT_4_1_1_1",null,null,"CCP Provisional2.1","CCP_17"]
[null,null,"2 - Fortalecer la gestión de conocimiento para la planeación minero energética","2 - SERVICIO DE IMPLEMENTACIÓN SISTEMAS DE GESTIÓN","Consolidar la información del desarrollo de la matriz energética colombiana desde inicios del siglo XX para aportar evidencia sobre los cambios estructurales en la misma, así como en la oferta energética exportable, y sus impactos en la planeación de largo plazo, en el marco de la transformación energética.",null,null,null,"ACT_4_1_1_2",null,null,"CCP Provisional2.2","CCP_18"]
[null,"Rubro Provisional3","1 - Fortalecer el conocimiento de la población y el territorio en cuanto a la dinámica de la planeación minero energética","1 - DOCUMENTOS METODOLÓGICOS","Consolidar información de vigilancia tecnológica como insumo para el observatorio de energía","PRY_8","OBJ_7_2",null,"ACT_4_1_1_3",null,null,"CCP Provisional2.3","CCP_19"]
[null,null,"2 - Incluir el uso de las particularidades propias de cada territorio en la planeación minero energética","2 - SERVICIO DE EDUCACIÓN INFORMAL PARA LA GESTIÓN ADMINISTRATIVA","Analizar la información recolectada y consolidar los balances energéticos",null,null,null,"ACT_4_1_1_4",null,null,"CCP Provisional2.4","CCP_20"]
[null,"C-2105-1900-3","1 - Generar fundamentación técnica para la implementación de acciones contenidas en el PIGCC sectorial, adoptado mediante Resolución 40807 de 2018 (en cumplimiento de la Ley 1931 de 2018)","1 - SERVICIOS DE APOYO PARA LA GESTIÓN DE PROCESOS DE PARTICIPACIÓN, COLABORACIÓN, Y TRANSPARENCIA DEL SECTOR MINERO ENERGÉTICO (1)","Desarrollar estudios que permitan plantear un mapa de ruta para la implementación de las redes inteligentes","PRY_9","OBJ_8_1","PRO_4_2_1","ACT_4_2_1_1",null,null,"CCP Provisional3.1","CCP_21"]
[null,null,"2 - Articular la planeación sectorial de mediano y largo plazo con los ODS; los mejores estándares y prácticas de la OCDE; el Plan de acción sectorial en derechos humanos; la política de crecimiento verde y la de mejoramiento de la calidad del aire y con el CONPES de Economía Circular","1 - DOCUMENTOS METODOLÓGICOS (1)","Desarrollar estudios que permitan identificar las estrategias para la implementación de redes inteligentes en las ciudades colombianas",null,"OBJ_8_2",null,"ACT_4_2_1_2",null,null,"CCP Provisional3.2","CCP_22"]
[null,null,"3 - Facilitar la articulación de la planeación del sector energético y minero con el ordenamiento y desarrollo territorial (local, regional y nacional)","1 - DOCUMENTOS DE LINEAMIENTOS TÉCNICOS (2)","Desarrollar estudios que permitan elaborar estrategias para materializar los objetivos propuestos en el PEN vigente",null,"OBJ_9_1",null,"ACT_4_2_1_3",null,null,"C-2105-1900-3-0-2105004-02","CCP_23"]
[null,null,"4 - Involucrar la transformación digital para la gestión y gobernanza de la información ambiental y social sectorial","1 - DOCUMENTOS NORMATIVOS","Realizar la evaluación de incentivos tributarios de fuentes no convencionales, gestión eficiente de energía y otros fondos.",null,"OBJ_9_2",null,"ACT_4_2_1_4",null,null,"C-2105-1900-3-0-2105005-02","CCP_24"]
[null,null,null,"2 - DOCUMENTOS DE INVESTIGACIÓN","Posibilitar la integración de análisis económicos, sociales y ambientales en el ejercicio de planeación energética a largo plazo.",null,null,null,"ACT_4_2_1_5",null,null,"C-2105-1900-3-0-XXXXXX-02","CCP_25"]
[null,null,null,"1 - SERVICIO DE DIVULGACIÓN DE LOS RESULTADOS OBTENIDOS EN ASUNTOS AMBIENTALES EN EL SECTOR MINERO ENERGÉTICO","Fortalecer la capacidad institucional y de gestión investigativa del sector minero",null,"OBJ_9_3","PRO_5_1_1","ACT_5_1_1_1",null,null,"C-2105-1900-3-0-2105014-02","CCP_26"]
[null,null,null,"1 - SERVICIO DE INFORMACIÓN IMPLEMENTADO","Fortalecer la capacidad de la UPME en ciencia, tecnología y política pública",null,"OBJ_9_4",null,"ACT_5_1_1_2",null,null,"C-2105-1900-3-0-2105020-02","CCP_27"]
[null,null,null,null,"Mejorar el flujo, calidad y análisis de la información que nutre al SIMCO",null,null,"PRO_5_2_1","ACT_5_2_1_1"]
[null,null,"=SI($D$3=\"Área de Funcionamiento\";NA;INDIRECTO(BUSCARV($B18;LISTAS!$C$233:$G$298;5;0)))",null,"Mejorar la analítica de la información mediante herramientas de inteligencia de negocio.",null,null,null,"ACT_5_2_1_2"]
[null,null,"=SI($D$3=\"Área de Funcionamiento\";NA;INDIRECTO(BUSCARV($C18;LISTAS!$D$233:$H$297;5;0)))",null,"Planear de manera dinámica que responda a las oportunidades del sector y del país",null,null,"PRO_5_3_1","ACT_5_3_1_1"]
[null,null,null,null,"Estructurar el sistema de monitoreo y evaluación de la planeación sectorial con estrategias e instrumentos estandarizados",null,null,null,"ACT_5_3_1_2"]
[null,null,null,null,"Desarrollar e implementar estrategias y herramientas para el fortalecimiento de la planeación sectorial con enfoque territorial",null,null,null,"ACT_5_3_1_3"]
[null,null,null,null,"Estructurar análisis y tendencias de mercado (transición energética), hacia la identificación de oportunidades sectoriales",null,null,"PRO_5_4_1","ACT_5_4_1_1"]
[null,null,null,null,"Ampliar la capacidad analítica y de medición en el sector",null,null,null,"ACT_5_4_1_2"]
[null,null,null,null,"Desarrollar estrategias para el fortalecimiento de la cadena de valor del sector minero",null,null,"PRO_5_5_1","ACT_5_5_1_1"]
[null,null,null,null,"Incorporar estrategias y herramientas que armonizan al sector con estándares nacionales e internacionales",null,null,null,"ACT_5_5_1_2"]
[null,null,null,null,"Definir y estructurar las acciones tendientes a la apropiación e implementación de la politica de Gobierno Digital.",null,null,"PRO_6_1_1","ACT_6_1_1_1"]
[null,null,null,null,"Mantener y fortalecer el modelo Operativo de TI",null,null,null,"ACT_6_1_1_2"]
[null,null,null,null,"Robustecer el nivel de madurez de la estrategia de infraestructura y soluciones en la nube",null,null,"PRO_6_2_1","ACT_6_2_1_1"]
[null,null,null,null,"Administar de manera eficiente el Software a nivel Institucional, de cara a la mejora de los productos y servicios prestados a la ciudadanía.",null,null,null,"ACT_6_2_1_2"]
[null,null,null,null,"Realizar la adopción del modelo de gestión de Información Institucional",null,null,"PRO_6_3_1","ACT_6_3_1_1"]
[null,null,null,null,"Identificar y apropiar soluciones de TI.",null,null,null,"ACT_6_3_1_2"]
[null,null,null,null,"Realizar la formulación de políticas, estrategias, proyectos y planes encaminadas a lograr los objetivos institucionales en desarrollo de su misión.",null,null,"PRO_7_1_1","ACT_7_1_1_1"]
[null,null,null,null,"Realizar la programación y seguimiento a la ejecución de las políticas, estrategias, los planes y proyectos institucionales",null,null,null,"ACT_7_1_1_2"]
[null,null,null,null,"Planificar y coordinar la apropiación e implementación del MIPG",null,null,"PRO_7_1_2","ACT_7_1_2_1"]
[null,null,null,null,"Realizar acciones que faciliten la articulación de los instrumentos de planeación, de cara a la mejora de los productos y servicios prestados a la ciudadanía.",null,null,null,"ACT_7_1_2_2"]
[null,null,null,null,"Identificar y caracterizar las estrategias y/o mecanismos para la generación, organización y apropiación del conocimiento.",null,null,"PRO_7_2_1","ACT_7_2_1_1"]
[null,null,null,null,"Realizar la implementación de un esquema organizativo y de gobernabilidad para la gestión del conocimiento",null,null,null,"ACT_7_2_1_2"]
[null,null,null,null,"Diseñar y ejecutar el plan de fortalecimiento de competencias técnicas especializadas para la planeación minero energética",null,null,"PRO_7_2_2","ACT_7_2_2_1"]
[null,null,null,null,"Configurar entornos de aprendizaje, intercambio y difusión de conocimiento asociados a prácticas clave de la entidad y su información minero energética, entre los servidores públicos y los grupos de valor",null,null,null,"ACT_7_2_2_2"]
[null,null,null,null,"Elaborar la estrategia de comunicaciones con enfoque territorial y sectorial.",null,null,"PRO_8_1_1","ACT_8_1_1_1"]
[null,null,null,null,"Ejecutar la estrategia de comunicación con las entidades territoriales, entidades del sector y ciudadanía en general",null,null,null,"ACT_8_1_1_2"]
[null,null,null,null,"Realizar la definición de los territorios de interés para los planes minero energéticos",null,null,"PRO_8_2_1","ACT_8_2_1_1"]
[null,null,null,null,"Documentar las realidades y dinámicas de los territorios.",null,null,null,"ACT_8_2_1_2"]
[null,null,null,null,"Evaluar la inclusión de las realidades y dinámicas de los territorios en la planeación minero energética",null,null,null,"ACT_8_2_1_3"]
[null,null,null,null,"Elaborar instrumentos de fundamentación técnica para dar soporte a las acciones de mitigación, adaptación y gobernanza climática contenidas en el PIGCC sectorial y para el análisis de eficiencia energética en las operaciones sectoriales.",null,null,"PRO_9_1_1","ACT_9_1_1_1"]
[null,null,null,null,"Fomentar la apropiación sectorial de instrumentos tecnicos para la ejecución de las acciones de mitigación, adaptación y gobernanza climática contenidas en el PIGCC sectorial",null,null,null,"ACT_9_1_1_2"]
[null,null,null,null,"Desarrollar Instrumentos sobre mejores prácticas sectoriales en temas de economia circular, de aprovechamiento y uso sostenible de recursos naturales y de debida diligencia de la industria.",null,null,"PRO_9_2_1","ACT_9_2_1_1"]
[null,null,null,null,"Promover las potencialidad del Biogas como sustituto de la leña, mediante la divulgación de los lineamientos definidos previamenre por UPME para su aprovechamiento y mediante el acompañamiento tecnico a la aplicación de los mismos.",null,null,null,"ACT_9_2_1_2"]
[null,null,null,null,"Determinar e implementar las acciones derivadas de la alineación estratégica con los ODS, en la planeación del sector con mejores estándares y prácticas de la OCDE, con la política de crecimiento verde y con la de mejoramiento de la calidad del aire y con el CONPES de Economía Circular.",null,null,"PRO_9_2_2","ACT_9_2_2_1"]
[null,null,null,null,"Implementar una estrategia de articulación intra e intersectorial para la planeacion del desarrollo minero energético",null,null,"PRO_9_3_1","ACT_9_3_1_1"]
[null,null,null,null,"Incorporar las consideraciones sociales, étnicas, género y de derechos humanos en la planeación sectorial",null,null,null,"ACT_9_3_1_2"]
[null,null,null,null,"Generar mecanismo de retroalimentación y divulgación permanente sobre la planeación minero energética en departamentos y municipios prioritarios para el sector.",null,null,null,"ACT_9_3_1_3"]
[null,null,null,null,"Desarrollar el modelo de datos del sector minero energético hasta su puesta en funcionamiento.",null,null,"PRO_9_4_1","ACT_9_4_1_1"]
[null,null,null,null,"Diseñar la ruta metodologica y la gobernanza de la información ambiental y social sectorial",null,null,null,"ACT_9_4_1_2"]
[]
[]
[]
[null,"PROY.INV","OBJ.ESP","PRODUCTO","ACTIVIDAD","PRY","OBJ. ESP.","PRODUCTO","ACTIVIDAD"]
[null,"C-2102-1900-3","1 - Mejorar las estrategias de planeación de la energización rural sostenible","1 - DOCUMENTOS DE PLANEACIÓN","Realizar la captura y análisis de la información para la relización de los planes de energización rural sostenible (PERS)","PRY_1","OBJ_1_1","PRO_1_1_1","ACT_1_1_1_1"]
[null,null,null,null,"Realizar el seguimiento y la supervisión de los planes de energización rural sostenible (PERS)",null,null,null,"ACT_1_1_1_2"]
[null,null,"2 - Generar un conocimiento actualizado para la identificación de proyectos orientados al aumento de cobertura de energía y gas","1 - SERVICIO DE ASISTENCIA TÉCNICA EN LA ESTRUCTURACIÓN DE PROYECTOS ENERGÉTICOS","Realizar el análisis para evaluación de proyectos de conceptos de viabilidad que permitan acceder a recursos de fondos especiales de energía.",null,"OBJ_1_2","PRO_1_2_1","ACT_1_2_1_1"]
[null,null,null,null,"Realizar estudios y análisis que permitan identificar y priorizar estrategias para ampliar la cobertura del servicio de energía eléctrica a zonas que no poseen dicho servicio.",null,null,null,"ACT_1_2_1_2"]
[null,"C-2102-1900-4","1 - Complementar la Planeación de energía eléctrica a partir de lineamientos integrales, basados en estudiós y simulaciones con rigor técnico como insumo.","1 - DOCUMENTOS DE PLANEACIÓN (1)","Fortalecer el plan indicativo de expansión de cobertura en la captura y análisis de la información técnica de soporte para la planeación","PRY_2","OBJ_2_1","PRO_2_1_1","ACT_2_1_1_1"]
[null,null,null,null,"Actualizar las herramientas sistemáticas para la planeación del sector energético",null,null,null,"ACT_2_1_1_2"]
[null,null,null,null,"Realizar estudios que complementen el Plan de expansión de generación transmisión",null,null,null,"ACT_2_1_1_3"]
[null,null,null,null,"ADMINISTRACIÓN Y GERENCIA",null,null,null,"ACT_2_1_1_4"]
[null,null,"2 - Desarrollar la información técnica e idónea que fortalezca los procesos de convocatorias y subastas.","1 - SERVICIO DE ASISTENCIA TÉCNICA EN LA ESTRUCTURACIÓN DE CONVOCATORIAS DE LOS SISTEMAS DE TRANSMISIÓN DE ENERGÍA","Realizar el análisis a los procesos de convocatorias y subastas para la estructuración de documentos para la selección del inversionista y de la interventoría, tanto en asuntos jurídicos como en aspectos técnicos.",null,"OBJ_2_2","PRO_2_2_1","ACT_2_2_1_1"]
[null,null,null,null,"Efectuar el seguimiento de los proyectos en ejecución, así como el analisis de información técnica, ambiental y social de los proyectos en estructuración de Documentos de Selección de Inversionistas (DSI)",null,null,null,"ACT_2_2_1_2"]
[null,"C-2103-1900-1","1 - Contar con informaciòn necesaria y suficiente para la adecuada planeación que proporcione los elementos para asegurar el abastecimiento y la confiabilidad del sector de hidrocarburos","1 - DOCUMENTOS DE LINEAMIENTOS TÉCNICOS","Realizar estudios y acciones técnicas para el sub sector de Gas (GNL-GLP).","PRY_3","OBJ_3_1","PRO_3_1_1","ACT_3_1_1_1"]
[null,null,null,null,"Realizar estudios técnicos con información especializada de combustibles liquidos",null,null,null,"ACT_3_1_1_2"]
[null,null,null,null,"Realizar estudios técnicos con información especializada de petroleo",null,null,null,"ACT_3_1_1_3"]
[null,null,null,null,"Elaborar insumos técnicos, legales y económicos que sirvan de soporte para orientar la implementación de planes del sub sector de hidrocarburos",null,null,null,"ACT_3_1_1_4"]
[null,null,"2 - Fortalecer las capacidades de modelación y prospectiva para la identificación de nuevas oportunidades en el mercado de los hidrocarburos","1 - DOCUMENTOS DE PLANEACIÓN (2)","Adquirir Información especializada del sub sector energetico",null,"OBJ_3_2","PRO_3_2_1","ACT_3_2_1_1"]
[null,null,null,null,"Actualizar herramientas para la modelación y proyección de escenarios de hidrocarburos",null,null,null,"ACT_3_2_1_2"]
[null,"C-2106-1900-6","1 - Mejorar los niveles de información de diagnóstico del sistema energético","1 - SERVICIO DE INFORMACIÓN DEL SECTOR MINERO","Construir una base de datos de consulta pública acerca de la manera como los diferentes sectores consumen energía, para fortalecer la calidad de la información que se registra en los balances energéticos y la planeación a largo plazo","PRY_4","OBJ_4_1","PRO_4_1_1","ACT_4_1_1_1"]
[null,null,null,null,"Consolidar la información del desarrollo de la matriz energética colombiana desde inicios del siglo XX para aportar evidencia sobre los cambios estructurales en la misma, así como en la oferta energética exportable, y sus impactos en la planeación de largo plazo, en el marco de la transformación energética.",null,null,null,"ACT_4_1_1_2"]
[null,null,null,null,"Consolidar información de vigilancia tecnológica como insumo para el observatorio de energía",null,null,null,"ACT_4_1_1_3"]
[null,null,null,null,"Analizar la información recolectada y consolidar los balances energéticos",null,null,null,"ACT_4_1_1_4"]
[null,null,"2 - Incorporación las más recientes innovaciones tecnológicas en la planeación energética","1 - SERVICIO DE DIVULGACIÓN DEL SECTOR MINERO ENERGÉTICO","Desarrollar estudios que permitan plantear un mapa de ruta para la implementación de las redes inteligentes",null,"OBJ_4_2","PRO_4_2_1","ACT_4_2_1_1"]
[null,null,null,null,"Desarrollar estudios que permitan identificar las estrategias para la implementación de redes inteligentes en las ciudades colombianas",null,null,null,"ACT_4_2_1_2"]
[null,null,null,null,"Desarrollar estudios que permitan elaborar estrategias para materializar los objetivos propuestos en el PEN vigente",null,null,null,"ACT_4_2_1_3"]
[null,null,null,null,"Realizar la evaluación de incentivos tributarios de fuentes no convencionales, gestión eficiente de energía y otros fondos.",null,null,null,"ACT_4_2_1_4"]
[null,null,null,null,"Posibilitar la integración de análisis económicos, sociales y ambientales en el ejercicio de planeación energética a largo plazo.",null,null,null,"ACT_4_2_1_5"]
[null,"C-2106-1900-9","1 - Fomentar la visión cientifica y de innovación del sector","1 - DOCUMENTOS DE INVESTIGACIÓN (3)","Fortalecer la capacidad institucional y de gestión investigativa del sector minero","PRY_5","OBJ_5_1","PRO_5_1_1","ACT_5_1_1_1"]
[null,null,null,null,"Fortalecer la capacidad de la UPME en ciencia, tecnología y política pública",null,null,null,"ACT_5_1_1_2"]
[null,null,"2 - Integrar la información oficial del sector apropiadamente","1 - SERVICIO DE INFORMACIÓN OFICIAL DEL SECTOR MINERO","Mejorar el flujo, calidad y análisis de la información que nutre al SIMCO",null,"OBJ_5_2","PRO_5_2_1","ACT_5_2_1_1"]
[null,null,null,null,"Mejorar la analítica de la información mediante herramientas de inteligencia de negocio.",null,null,null,"ACT_5_2_1_2"]
[null,null,"3 - Adaptar la planeación a los retos de la sostenibilidad del sector","1 - DOCUMENTOS DE PLANEACIÓN (4)","Planear de manera dinámica que responda a las oportunidades del sector y del país",null,"OBJ_5_3","PRO_5_3_1","ACT_5_3_1_1"]
[null,null,null,null,"Estructurar el sistema de monitoreo y evaluación de la planeación sectorial con estrategias e instrumentos estandarizados",null,null,null,"ACT_5_3_1_2"]
[null,null,null,null,"Desarrollar e implementar estrategias y herramientas para el fortalecimiento de la planeación sectorial con enfoque territorial",null,null,null,"ACT_5_3_1_3"]
[null,null,"4 - Ampliar el conocimiento técnico y económicodel sector","1 - DOCUMENTOS DE LINEAMIENTOS TÉCNICOS (1)","Estructurar análisis y tendencias de mercado (transición energética), hacia la identificación de oportunidades sectoriales",null,"OBJ_5_4","PRO_5_4_1","ACT_5_4_1_1"]
[null,null,null,null,"Ampliar la capacidad analítica y de medición en el sector",null,null,null,"ACT_5_4_1_2"]
[null,null,"5 - Promover la competitividad del sector y el desarrollo de territorios sostenibles","1 - SERVICIOS DE APOYO PARA LA GESTIÓN DE PROCESOS DE PARTICIPACIÓN, COLABORACIÓN, Y TRANSPARENCIA DEL SECTOR MINERO ENERGÉTICO","Desarrollar estrategias para el fortalecimiento de la cadena de valor del sector minero",null,"OBJ_5_5","PRO_5_5_1","ACT_5_5_1_1"]
[null,null,null,null,"Incorporar estrategias y herramientas que armonizan al sector con estándares nacionales e internacionales",null,null,null,"ACT_5_5_1_2"]
[null,"Rubro Provisional1","1 - Incrementar el desarrollo de los habilitadores transversales de la política de gobierno digital","1 - DOCUMENTO PARA LA PLANEACIÓN ESTRATÉGICA EN TI","Definir y estructurar las acciones tendientes a la apropiación e implementación de la politica de Gobierno Digital.","PRY_6","OBJ_6_1","PRO_6_1_1","ACT_6_1_1_1"]
[null,null,null,null,"Mantener y fortalecer el modelo Operativo de TI",null,null,null,"ACT_6_1_1_2"]
[null,null,"2 - Aumentar la capacidad institucional a nivel de arquitectura tecnológica y de sistemas de informaciòn","1 - SERVICIOS TECNOLÓGICOS","Robustecer el nivel de madurez de la estrategia de infraestructura y soluciones en la nube",null,"OBJ_6_2","PRO_6_2_1","ACT_6_2_1_1"]
[null,null,null,null,"Administar de manera eficiente el Software a nivel Institucional, de cara a la mejora de los productos y servicios prestados a la ciudadanía.",null,null,null,"ACT_6_2_1_2"]
[null,null,"3 - Mejorar la implementación del modelo de Gestión de Información Institucional","1 - SERVICIOS DE INFORMACIÓN IMPLEMENTADOS","Realizar la adopción del modelo de gestión de Información Institucional",null,"OBJ_6_3","PRO_6_3_1","ACT_6_3_1_1"]
[null,null,null,null,"Identificar y apropiar soluciones de TI.",null,null,null,"ACT_6_3_1_2"]
[null,"Rubro Provisional2","1 - Mejorar el direccionamiento estratégico y la gestión de los procesos frente a la ciudadania","1 - DOCUMENTOS DE PLANEACIÓN (5)","Realizar la formulación de políticas, estrategias, proyectos y planes encaminadas a lograr los objetivos institucionales en desarrollo de su misión.","PRY_7","OBJ_7_1","PRO_7_1_1","ACT_7_1_1_1"]
[null,null,null,null,"Realizar la programación y seguimiento a la ejecución de las políticas, estrategias, los planes y proyectos institucionales",null,null,null,"ACT_7_1_1_2"]
[null,null,null,"2 - SERVICIO DE IMPLEMENTACIÓN SISTEMAS DE GESTIÓN","Planificar y coordinar la apropiación e implementación del MIPG",null,null,"PRO_7_1_2","ACT_7_1_2_1"]
[null,null,null,null,"Realizar acciones que faciliten la articulación de los instrumentos de planeación, de cara a la mejora de los productos y servicios prestados a la ciudadanía.",null,null,null,"ACT_7_1_2_2"]
[null,null,"2 - Fortalecer la gestión de conocimiento para la planeación minero energética","1 - DOCUMENTOS METODOLÓGICOS","Identificar y caracterizar las estrategias y/o mecanismos para la generación, organización y apropiación del conocimiento.",null,"OBJ_7_2","PRO_7_2_1","ACT_7_2_1_1"]
[null,null,null,null,"Realizar la implementación de un esquema organizativo y de gobernabilidad para la gestión del conocimiento",null,null,null,"ACT_7_2_1_2"]
[null,null,null,"2 - SERVICIO DE EDUCACIÓN INFORMAL PARA LA GESTIÓN ADMINISTRATIVA","Diseñar y ejecutar el plan de fortalecimiento de competencias técnicas especializadas para la planeación minero energética",null,null,"PRO_7_2_2","ACT_7_2_2_1"]
[null,null,null,null,"Configurar entornos de aprendizaje, intercambio y difusión de conocimiento asociados a prácticas clave de la entidad y su información minero energética, entre los servidores públicos y los grupos de valor",null,null,null,"ACT_7_2_2_2"]
[null,"Rubro Provisional3","1 - Fortalecer el conocimiento de la población y el territorio en cuanto a la dinámica de la planeación minero energética","1 - SERVICIOS DE APOYO PARA LA GESTIÓN DE PROCESOS DE PARTICIPACIÓN, COLABORACIÓN, Y TRANSPARENCIA DEL SECTOR MINERO ENERGÉTICO (1)","Elaborar la estrategia de comunicaciones con enfoque territorial y sectorial.","PRY_8","OBJ_8_1","PRO_8_1_1","ACT_8_1_1_1"]
[null,null,null,null,"Ejecutar la estrategia de comunicación con las entidades territoriales, entidades del sector y ciudadanía en general",null,null,null,"ACT_8_1_1_2"]
[null,null,"2 - Incluir el uso de las particularidades propias de cada territorio en la planeación minero energética","1 - DOCUMENTOS METODOLÓGICOS (1)","Realizar la definición de los territorios de interés para los planes minero energéticos",null,"OBJ_8_2","PRO_8_2_1","ACT_8_2_1_1"]
[null,null,null,null,"Documentar las realidades y dinámicas de los territorios.",null,null,null,"ACT_8_2_1_2"]
[null,null,null,null,"Evaluar la inclusión de las realidades y dinámicas de los territorios en la planeación minero energética",null,null,null,"ACT_8_2_1_3"]
[null,"C-2105-1900-3","1 - Generar fundamentación técnica para la implementación de acciones contenidas en el PIGCC sectorial, adoptado mediante Resolución 40807 de 2018 (en cumplimiento de la Ley 1931 de 2018)","1 - DOCUMENTOS DE LINEAMIENTOS TÉCNICOS (2)","Elaborar instrumentos de fundamentación técnica para dar soporte a las acciones de mitigación, adaptación y gobernanza climática contenidas en el PIGCC sectorial y para el análisis de eficiencia energética en las operaciones sectoriales.","PRY_9","OBJ_9_1","PRO_9_1_1","ACT_9_1_1_1"]
[null,null,null,null,"Fomentar la apropiación sectorial de instrumentos tecnicos para la ejecución de las acciones de mitigación, adaptación y gobernanza climática contenidas en el PIGCC sectorial",null,null,null,"ACT_9_1_1_2"]
[null,null,"2 - Articular la planeación sectorial de mediano y largo plazo con los ODS; los mejores estándares y prácticas de la OCDE; el Plan de acción sectorial en derechos humanos; la política de crecimiento verde y la de mejoramiento de la calidad del aire y con el CONPES de Economía Circular","1 - DOCUMENTOS NORMATIVOS","Desarrollar Instrumentos sobre mejores prácticas sectoriales en temas de economia circular, de aprovechamiento y uso sostenible de recursos naturales y de debida diligencia de la industria.",null,"OBJ_9_2","PRO_9_2_1","ACT_9_2_1_1"]
[null,null,null,null,"Promover las potencialidad del Biogas como sustituto de la leña, mediante la divulgación de los lineamientos definidos previamenre por UPME para su aprovechamiento y mediante el acompañamiento tecnico a la aplicación de los mismos.",null,null,null,"ACT_9_2_1_2"]
[null,null,null,"2 - DOCUMENTOS DE INVESTIGACIÓN","Determinar e implementar las acciones derivadas de la alineación estratégica con los ODS, en la planeación del sector con mejores estándares y prácticas de la OCDE, con la política de crecimiento verde y con la de mejoramiento de la calidad del aire y con el CONPES de Economía Circular.",null,null,"PRO_9_2_2","ACT_9_2_2_1"]
[null,null,"3 - Facilitar la articulación de la planeación del sector energético y minero con el ordenamiento y desarrollo territorial (local, regional y nacional)","1 - SERVICIO DE DIVULGACIÓN DE LOS RESULTADOS OBTENIDOS EN ASUNTOS AMBIENTALES EN EL SECTOR MINERO ENERGÉTICO","Implementar una estrategia de articulación intra e intersectorial para la planeacion del desarrollo minero energético",null,"OBJ_9_3","PRO_9_3_1","ACT_9_3_1_1"]
[null,null,null,null,"Incorporar las consideraciones sociales, étnicas, género y de derechos humanos en la planeación sectorial",null,null,null,"ACT_9_3_1_2"]
[null,null,null,null,"Generar mecanismo de retroalimentación y divulgación permanente sobre la planeación minero energética en departamentos y municipios prioritarios para el sector.",null,null,null,"ACT_9_3_1_3"]
[null,null,"4 - Involucrar la transformación digital para la gestión y gobernanza de la información ambiental y social sectorial","1 - SERVICIO DE INFORMACIÓN IMPLEMENTADO","Desarrollar el modelo de datos del sector minero energético hasta su puesta en funcionamiento.",null,"OBJ_9_4","PRO_9_4_1","ACT_9_4_1_1"]
[null,null,null,null,"Diseñar la ruta metodologica y la gobernanza de la información ambiental y social sectorial",null,null,null,"ACT_9_4_1_2"]
[]
[]
[null,null,"CUENTA SIMPLE",null,null,"CUENTA CONSOLIDADA"]
[null,"PROY.INV","OBJ.ESP","PRODUCTO","ACTIVIDAD","OBJ.ESP","PRODUCTO","ACTIVIDAD"]
[null,"C-2102-1900-3",1,1,1,{"$f":"+COUNT(C302:C305)","v":2},{"$f":"+COUNT(D302:D305)","v":2},{"$f":"+COUNT(E302:E305)","v":4}]
[null,null,null,null,2]
[null,null,2,1,1]
[null,null,null,null,2]
[null,"C-2102-1900-4",1,1,1,{"$f":"+COUNT(C306:C311)","v":2},{"$f":"+COUNT(D306:D311)","v":2},{"$f":"+COUNT(E306:E311)","v":6}]
[null,null,null,null,2]
[null,null,null,null,3]
[null,null,null,null,4]
[null,null,2,1,1]
[null,null,null,null,2]
[null,"C-2103-1900-1",1,1,1,{"$f":"+COUNT(C312:C317)","v":2},{"$f":"+COUNT(D312:D317)","v":2},{"$f":"+COUNT(E312:E317)","v":6}]
[null,null,null,null,2]
[null,null,null,null,3]
[null,null,null,null,4]
[null,null,2,1,1]
[null,null,null,null,2]
[null,"C-2106-1900-6",1,1,1,{"$f":"+COUNT(C318:C326)","v":2},{"$f":"+COUNT(D318:D326)","v":2},9]
[null,null,null,null,2]
[null,null,null,null,3]
[null,null,null,null,4]
[null,null,2,1,1]
[null,null,null,null,2]
[null,null,null,null,3]
[null,null,null,null,4]
[null,null,null,null,5]
[null,"C-2106-1900-9",1,1,1,{"$f":"+COUNT(C327:C337)","v":5},{"$f":"+COUNT(D327:D337)","v":5},11]
[null,null,null,null,2]
[null,null,2,1,1]
[null,null,null,null,2]
[null,null,3,1,1]
[null,null,null,null,2]
[null,null,null,null,3]
[null,null,4,1,1]
[null,null,null,null,2]
[null,null,5,1,1]
[null,null,null,null,2]
[null,"Rubro Provisional1",1,1,1,{"$f":"+COUNT(C338:C343)","v":3},{"$f":"+COUNT(D338:D343)","v":3},6]
[null,null,null,null,2]
[null,null,2,1,1]
[null,null,null,null,2]
[null,null,3,1,1]
[null,null,null,null,2]
[null,"Rubro Provisional2",1,1,1,{"$f":"+COUNT(C344:C351)","v":2},{"$f":"+COUNT(D344:D351)","v":4},8]
[null,null,null,null,2]
[null,null,null,2,1]
[null,null,null,null,2]
[null,null,2,1,1]
[null,null,null,null,2]
[null,null,null,2,1]
[null,null,null,null,2]
[null,"Rubro Provisional3",1,1,1,{"$f":"+COUNT(C352:C356)","v":2},{"$f":"+COUNT(D352:D356)","v":2},5]
[null,null,null,null,2]
[null,null,2,1,1]
[null,null,null,null,2]
[null,null,null,null,3]
[null,"C-2105-1900-3",1,1,1,{"$f":"+COUNT(C357:C366)","v":4},{"$f":"+COUNT(D357:D366)","v":5},10]
[null,null,null,null,2]
[null,null,2,1,1]
[null,null,null,null,2]
[null,null,null,2,1]
[null,null,3,1,1]
[null,null,null,null,2]
[null,null,null,null,3]
[null,null,4,1,1]
[null,null,null,null,2]
[]
[]
[]
[]
[]
[]
[]
[null,"CCP FUNCIONAMIENTO",null,null,"ÁREA DE FUNCIONAMIENTO"]
[null,"A-02-01-01-003-008",null,null,"SECRETARÍA GENERAL"]
[null,"A-02-01-01-004-004",null,null,"GIT GESTIÓN ADMINISTRATIVA"]
[null,"A-02-01-01-004-005",null,null,"GIT GESTIÓN DEL TALENTO HUMANO"]
[null,"A-02-01-01-004-006",null,null,"OFICINA DE GESTIÓN DE LA INFORMACIÓN"]
[null,"A-02-01-01-004-007",null,null,"SUBDIRECCIÓN DE DEMANDA"]
[null,"A-02-01-01-004-008",null,null,"NA"]
[null,"A-02-01-01-004-009"]
[null,"A-02-02-01-002-006",null,"Lista para columna \"D\" en formulación ASO_PLAN","SI"]
[null,"A-02-02-01-002-007",null,null,"NO"]
[null,"A-02-02-01-002-008"]
[null,"A-02-02-01-003-001"]
[null,"A-02-02-01-003-002"]
[null,"A-02-02-01-003-003"]
[null,"A-02-02-01-003-004"]
[null,"A-02-02-01-003-005"]
[null,"A-02-02-01-003-006"]
[null,"A-02-02-01-003-008"]
[null,"A-02-02-01-004-004"]
[null,"A-02-02-01-004-005"]
[null,"A-02-02-01-004-006"]
[null,"A-02-02-01-004-007"]
[null,"A-02-02-02-005-004"]
[null,"A-02-02-02-006-003"]
[null,"A-02-02-02-006-004"]
[null,"A-02-02-02-006-005"]
[null,"A-02-02-02-006-006"]
[null,"A-02-02-02-006-008"]
[null,"A-02-02-02-007-001"]
[null,"A-02-02-02-007-002"]
[null,"A-02-02-02-008-001"]
[null,"A-02-02-02-008-002"]
[null,"A-02-02-02-008-003"]
[null,"A-02-02-02-008-004"]
[null,"A-02-02-02-008-005"]
[null,"A-02-02-02-008-007"]
[null,"A-02-02-02-008-009"]
[null,"A-02-02-02-009-002"]
[null,"A-02-02-02-009-003"]
[null,"A-02-02-02-009-006"]
[null,"A-02-02-02-010"]